Workbook

Sheet CoverSheet
A3: Gas Pipeline Businesses
A4: Price-Quality Regulation 1 October 2022 Reset
A5: Default Price Path Asset Stranding Model
A17: Published 31 May 2022

Sheet Description
A1: Description
A2: How this workbook may be operated
A3: 1 | B3: Update a particular case,i.e, for a chosen GPB and chosen stranding year
B4: Select the case using the Dashboard tab by selecting GPB, Stranding Year, Years in MAR ramp-up, Stranding Year MAR ÷ 2023 MAR, Revaluations, Curve on MAR ramp-down
B5: After making the selections on the dashboard, run the macro "Update results for one selected case and GPB ". This runs the GoallSeeks macro, which updates the results on the tab Dashboard. Until this macro is run, the Dashboard results will most likely be invalid.
B6: Results may be observed on the charts on the dashboard and also values in sheets from Existing to MAR will be relevant to the selected case and GPB.
A7: 2 | B7: Update results for selected case and all Stranding Years and all GPBs
B8: This macro can be run by button " Update summary table for all GPBs" on the Dashboard sheet or "Update Summary Table" on Reporting sheet. They key parameters are Years of ramp-up, Stranding Year, MAR of 2023 MAR, Curve on MAR ramp-down and Revaluations as the macro will step through all combinations of the five GPBs and five stranding years anyway, ie, 25 different cases.
B9: The populated results appear in sheet Reporting under the label "Summary Table"
A10: 3 | B10: Defer Mitigation until DPP4
B11: In the sheet Deferred Action, there are two sets of parameters, which can be chosen for option: Mitigation DPP3 and Mitigation DPP4. Two scenarios and their effects can be compared side by side.
B12: Select constraints for each Mitigation option in tab Deferred Action.
B13: Button "Update results for deferred mitigation" runs a macro which refreshes relevant input data in the sheet Reporting. This Macro button can be found also in the sheet Reporting in the Deferred Mitigation section.
B14: Charts and results in the tab Deferred Action refresh automatically.
A15: 4 | B15: Calculate unrecoverd RAB
B16: Macro in the section "Calculate unrecoverd RAB for unmitigated Stranding Risk" in tab Reporting called "Calculate RAB for unmitigated risk" produces results for no mitigation.
A17: 5 | B17: Final Descision Gas DPP3
B18: Final Decsision for Gas DPP3 is based on allocating weights to different scenarios. The results can be found in sheet "AS Decision DPP3". Macro "Update results for Final Decision" needs to be run to refresh the table.
A19: 6 | B19: Macro which helps to test the workbook consistency is attached just below.
B20: Attached button runs a macro which can help identify inconsistent formulas within horizontal ranges.

Sheet Table of Contents
A1: Table of Contents
B4: Sheet Name | C4: Link
B5: Inputs_AS | C5: Inputs
B6: Existing | C6: Existing assets
C7: Inputs
C8: Calculations
B9: Additional | C9: Additional assets
B10: OpexTax | C10: Opex and Tax
C11: Inputs
C12: Calculations
B13: Total | C13: Total
C14: Inputs
C15: Calculations
B16: Inputs_finmod | C16: Inputs
B17: GPB data | C17: GPB data
B18: Timing | C18: Timing
C19: Inputs
C20: Calculations
C21: Outputs
B22: RAB | C22: Regulatory asset base
C23: Inputs
C24: Calculations
C25: Outputs
B26: Tax | C26: Tax calculations
C27: Inputs
C28: Calculations
C29: Outputs
B30: BBAR | C30: Building blocks allowable revenue
C31: Inputs
C32: Calculations
C33: Outputs
B34: Rev | C34: Revenue growth index
C35: Inputs
C36: Calculations
C37: Outputs
B38: MAR | C38: Maximum allowable revenue
C39: Inputs
C40: Calculations
C41: Outputs
B42: Reporting | C42: Reporting
C43: Summary Table
C44: Blending
B45: Dashboard | C45: Deferred Mitigation until DPP4
C46: Unrecovered RAB
B47: Outputs to Chartbook | C47: Residual Value
B48: Dashboard | C48: Dashboard
B49: Deferred Action | C49: Dashboard for deferred mitigation
B50: AS Decision DPP3 | C50: Asset Stranding Decision DPP3
C51: DPP3 Asset Stranding Decision
B52: Outputs to Chartbook | C52: Outputs to chartbook
C53: Chapter 6

Sheet Inputs_AS
A1: Inputs
B2: Chosen supplier | D2: =GPB_name -> First Gas transmission
B3: Chosen supplier number | D3: =MATCH(GPB_name,GPBnames,0) -> 5
B4: Post-tax WACC | D4: 0.0567 | E4: Please change the Inputs highlighted in red only, the Input values in black are either Macro driven or linked to tab Dashboard.
B5: Vanilla WACC | D5: 0.0614 | E5: Use tab Dashboard to select Modelling Inputs criteria.
B6: Cost of debt | D6: 0.0404
B7: Leverage | D7: 0.42
B8: Tax rate | D8: 0.28
B9: Stranding year opex÷2027 opex | D9: 0.3
B10: Stranding year | D10: =StrandingYear -> 2060
B11: Year from which capital recovery starts ramp-down | D11: =MARrampDownStart -> 2029
B12: Remaining life of additional assets | D12: 45
B13: Stranding year MAR ÷ 2023 MAR | D13: =Dashboard!C7 -> 0.2
B14: Curve on MAR ramp-down | D14: =Dashboard!C9 -> 0.02
B15: Mitigation | D15: TRUE | E15: driven by macro "Unmitigated", button can be found in tab Reporting
B16: Defer Mitigation until DPP4 | D16: FALSE | E16: driven by macro "DeferMitigation", button can be found in tab Deferred Action
B18: Stranding Years
B19: Last year can be chosen and entered by user
B20: Stranding year scenarios | C20: 2040 | D20: 2050 | E20: 2060 | F20: 2070 | G20: 2055
B22: 2022 MAR | D22: GasNet | E22: Powerco | F22: Vector | G22: First Gas distribution | H22: First Gas transmission
B23: 2022 MAR from 2017 financial model | D23: 4383.998268 | E23: 51435.56862 | F23: 50702.2772 | G23: 24646.15131 | H23: 131623.3864
B25: Forecast changes in CPI | E25: 2021 | F25: 2022 | G25: 2023 | H25: 2024 | I25: 2025 | J25: 2026 | K25: 2027 | L25: 2028 | M25: 2029 | N25: 2030 | O25: 2031 | P25: 2032 | Q25: 2033 | R25: 2034 | S25: 2035 | T25: 2036 | U25: 2037 | V25: 2038 | W25: 2039 | X25: 2040 | Y25: 2041 | Z25: 2042 | AA25: 2043 | AB25: 2044 | AC25: 2045 | AD25: 2046 | AE25: 2047 | AF25: 2048 | AG25: 2049 | AH25: 2050 | AI25: 2051 | AJ25: 2052 | AK25: 2053 | AL25: 2054 | AM25: 2055 | AN25: 2056 | AO25: 2057 | AP25: 2058 | AQ25: 2059 | AR25: 2060 | AS25: 2061 | AT25: 2062 | AU25: 2063 | AV25: 2064 | AW25: 2065 | AX25: 2066 | AY25: 2067 | AZ25: 2068 | BA25: 2069 | BB25: 2070
B26: F'cast changes in CPI used for revaluations, June year-ends | E26: =[1]Output!G8 -> 0.03342884432 | F26: =[1]Output!H8 -> 0.063 | G26: =[1]Output!I8 -> 0.026 | H26: =[1]Output!J8 -> 0.023 | I26: =[1]Output!K8 -> 0.02 | J26: =[1]Output!L8 -> 0.02 | K26: =[1]Output!M8 -> 0.02 | L26: =[1]Output!N8 -> 0.02 | M26: =[1]Output!O8 -> 0.02 | N26: =[1]Output!P8 -> 0.02 | O26: =[1]Output!Q8 -> 0.02 | P26: =[1]Output!R8 -> 0.02 | Q26: =[1]Output!S8 -> 0.02 | R26: =[1]Output!T8 -> 0.02 | S26: =[1]Output!U8 -> 0.02 | T26: =[1]Output!V8 -> 0.02 | U26: =[1]Output!W8 -> 0.02 | V26: =[1]Output!X8 -> 0.02 | W26: =[1]Output!Y8 -> 0.02 | X26: =[1]Output!Z8 -> 0.02 | Y26: =[1]Output!AA8 -> 0.02 | Z26: =[1]Output!AB8 -> 0.02 | AA26: =[1]Output!AC8 -> 0.02 | AB26: =[1]Output!AD8 -> 0.02 | AC26: =[1]Output!AE8 -> 0.02 | AD26: =[1]Output!AF8 -> 0.02 | AE26: =[1]Output!AG8 -> 0.02 | AF26: =[1]Output!AH8 -> 0.02 | AG26: =[1]Output!AI8 -> 0.02 | AH26: =[1]Output!AJ8 -> 0.02 | AI26: =[1]Output!AK8 -> 0.02 | AJ26: =[1]Output!AL8 -> 0.02 | AK26: =[1]Output!AM8 -> 0.02 | AL26: =[1]Output!AN8 -> 0.02 | AM26: =[1]Output!AO8 -> 0.02 | AN26: =[1]Output!AP8 -> 0.02 | AO26: =[1]Output!AQ8 -> 0.02 | AP26: =[1]Output!AR8 -> 0.02 | AQ26: =[1]Output!AS8 -> 0.02 | AR26: =[1]Output!AT8 -> 0.02 | AS26: =[1]Output!AU8 -> 0.02 | AT26: =[1]Output!AV8 -> 0.02 | AU26: =[1]Output!AW8 -> 0.02 | AV26: =[1]Output!AX8 -> 0.02 | AW26: =[1]Output!AY8 -> 0.02 | AX26: =[1]Output!AZ8 -> 0.02 | AY26: =[1]Output!BA8 -> 0.02 | AZ26: =[1]Output!BB8 -> 0.02 | BA26: =[1]Output!BC8 -> 0.02 | BB26: =[1]Output!BD8 -> 0.02
B27: F'cast changes in CPI used for revaluations, September year-ends | E27: =[1]Output!G9 -> 0.04933586338 | F27: =[1]Output!H9 -> 0.05 | G27: =[1]Output!I9 -> 0.025 | H27: =[1]Output!J9 -> 0.022 | I27: =[1]Output!K9 -> 0.02 | J27: =[1]Output!L9 -> 0.02 | K27: =[1]Output!M9 -> 0.02 | L27: =[1]Output!N9 -> 0.02 | M27: =[1]Output!O9 -> 0.02 | N27: =[1]Output!P9 -> 0.02 | O27: =[1]Output!Q9 -> 0.02 | P27: =[1]Output!R9 -> 0.02 | Q27: =[1]Output!S9 -> 0.02 | R27: =[1]Output!T9 -> 0.02 | S27: =[1]Output!U9 -> 0.02 | T27: =[1]Output!V9 -> 0.02 | U27: =[1]Output!W9 -> 0.02 | V27: =[1]Output!X9 -> 0.02 | W27: =[1]Output!Y9 -> 0.02 | X27: =[1]Output!Z9 -> 0.02 | Y27: =[1]Output!AA9 -> 0.02 | Z27: =[1]Output!AB9 -> 0.02 | AA27: =[1]Output!AC9 -> 0.02 | AB27: =[1]Output!AD9 -> 0.02 | AC27: =[1]Output!AE9 -> 0.02 | AD27: =[1]Output!AF9 -> 0.02 | AE27: =[1]Output!AG9 -> 0.02 | AF27: =[1]Output!AH9 -> 0.02 | AG27: =[1]Output!AI9 -> 0.02 | AH27: =[1]Output!AJ9 -> 0.02 | AI27: =[1]Output!AK9 -> 0.02 | AJ27: =[1]Output!AL9 -> 0.02 | AK27: =[1]Output!AM9 -> 0.02 | AL27: =[1]Output!AN9 -> 0.02 | AM27: =[1]Output!AO9 -> 0.02 | AN27: =[1]Output!AP9 -> 0.02 | AO27: =[1]Output!AQ9 -> 0.02 | AP27: =[1]Output!AR9 -> 0.02 | AQ27: =[1]Output!AS9 -> 0.02 | AR27: =[1]Output!AT9 -> 0.02 | AS27: =[1]Output!AU9 -> 0.02 | AT27: =[1]Output!AV9 -> 0.02 | AU27: =[1]Output!AW9 -> 0.02 | AV27: =[1]Output!AX9 -> 0.02 | AW27: =[1]Output!AY9 -> 0.02 | AX27: =[1]Output!AZ9 -> 0.02 | AY27: =[1]Output!BA9 -> 0.02 | AZ27: =[1]Output!BB9 -> 0.02 | BA27: =[1]Output!BC9 -> 0.02 | BB27: =[1]Output!BD9 -> 0.02
B28: F'cast changes in CPI used for revaluations, chosen GPB's year ends | E28: =IF(OR($D$3=1,$D$3=3),E26,E27) -> 0.04933586338 | F28: =IF(OR($D$3=1,$D$3=3),F26,F27) -> 0.05 | G28: 0.025 | H28: 0.022 | I28: 0.02 | J28: 0.02 | K28: 0.02 | L28: 0.02 | M28: 0.02 | N28: 0.02 | O28: 0.02 | P28: 0.02 | Q28: 0.02 | R28: 0.02 | S28: 0.02 | T28: 0.02 | U28: 0.02 | V28: 0.02 | W28: 0.02 | X28: 0.02 | Y28: 0.02 | Z28: 0.02 | AA28: 0.02 | AB28: 0.02 | AC28: 0.02 | AD28: 0.02 | AE28: 0.02 | AF28: 0.02 | AG28: 0.02 | AH28: 0.02 | AI28: 0.02 | AJ28: 0.02 | AK28: 0.02 | AL28: 0.02 | AM28: 0.02 | AN28: 0.02 | AO28: 0.02 | AP28: 0.02 | AQ28: 0.02 | AR28: 0.02 | AS28: 0.02 | AT28: 0.02 | AU28: 0.02 | AV28: 0.02 | AW28: 0.02 | AX28: 0.02 | AY28: 0.02 | AZ28: 0.02 | BA28: 0.02 | BB28: 0.02
B29: Inflation rate, lagged, 8 index, September year-end | E29: =[1]Output!G10 -> 0.01882640587 | F29: =[1]Output!H10 -> 0.01463882889 | G29: =[1]Output!I10 -> 0.05214947966 | H29: =[1]Output!J10 -> 0.04628530323 | I29: =[1]Output!K10 -> 0.02474373522 | J29: =[1]Output!L10 -> 0.02149215402 | K29: =[1]Output!M10 -> 0.02 | L29: =[1]Output!N10 -> 0.02 | M29: =[1]Output!O10 -> 0.02 | N29: =[1]Output!P10 -> 0.02 | O29: =[1]Output!Q10 -> 0.02 | P29: =[1]Output!R10 -> 0.02 | Q29: =[1]Output!S10 -> 0.02 | R29: =[1]Output!T10 -> 0.02 | S29: =[1]Output!U10 -> 0.02 | T29: =[1]Output!V10 -> 0.02 | U29: =[1]Output!W10 -> 0.02 | V29: =[1]Output!X10 -> 0.02 | W29: =[1]Output!Y10 -> 0.02 | X29: =[1]Output!Z10 -> 0.02 | Y29: =[1]Output!AA10 -> 0.02 | Z29: =[1]Output!AB10 -> 0.02 | AA29: =[1]Output!AC10 -> 0.02 | AB29: =[1]Output!AD10 -> 0.02 | AC29: =[1]Output!AE10 -> 0.02 | AD29: =[1]Output!AF10 -> 0.02 | AE29: =[1]Output!AG10 -> 0.02 | AF29: =[1]Output!AH10 -> 0.02 | AG29: =[1]Output!AI10 -> 0.02 | AH29: =[1]Output!AJ10 -> 0.02 | AI29: =[1]Output!AK10 -> 0.02 | AJ29: =[1]Output!AL10 -> 0.02 | AK29: =[1]Output!AM10 -> 0.02 | AL29: =[1]Output!AN10 -> 0.02 | AM29: =[1]Output!AO10 -> 0.02 | AN29: =[1]Output!AP10 -> 0.02 | AO29: =[1]Output!AQ10 -> 0.02 | AP29: =[1]Output!AR10 -> 0.02 | AQ29: =[1]Output!AS10 -> 0.02 | AR29: =[1]Output!AT10 -> 0.02 | AS29: =[1]Output!AU10 -> 0.02 | AT29: =[1]Output!AV10 -> 0.02 | AU29: =[1]Output!AW10 -> 0.02 | AV29: =[1]Output!AX10 -> 0.02 | AW29: =[1]Output!AY10 -> 0.02 | AX29: =[1]Output!AZ10 -> 0.02 | AY29: =[1]Output!BA10 -> 0.02 | AZ29: =[1]Output!BB10 -> 0.02 | BA29: =[1]Output!BC10 -> 0.02 | BB29: =[1]Output!BD10 -> 0.02
B30: Inflation rate, not lagged, 8 index, September year-end | E30: =[1]Output!G11 -> 0.02811532047 | F30: =[1]Output!H11 -> 0.05954901506 | G30: =[1]Output!I11 -> 0.03092122799 | H30: =[1]Output!J11 -> 0.02324453846 | I30: =[1]Output!K11 -> 0.02024799149 | J30: =[1]Output!L11 -> 0.02 | K30: =[1]Output!M11 -> 0.02 | L30: =[1]Output!N11 -> 0.02 | M30: =[1]Output!O11 -> 0.02 | N30: =[1]Output!P11 -> 0.02 | O30: =[1]Output!Q11 -> 0.02 | P30: =[1]Output!R11 -> 0.02 | Q30: =[1]Output!S11 -> 0.02 | R30: =[1]Output!T11 -> 0.02 | S30: =[1]Output!U11 -> 0.02 | T30: =[1]Output!V11 -> 0.02 | U30: =[1]Output!W11 -> 0.02 | V30: =[1]Output!X11 -> 0.02 | W30: =[1]Output!Y11 -> 0.02 | X30: =[1]Output!Z11 -> 0.02 | Y30: =[1]Output!AA11 -> 0.02 | Z30: =[1]Output!AB11 -> 0.02 | AA30: =[1]Output!AC11 -> 0.02 | AB30: =[1]Output!AD11 -> 0.02 | AC30: =[1]Output!AE11 -> 0.02 | AD30: =[1]Output!AF11 -> 0.02 | AE30: =[1]Output!AG11 -> 0.02 | AF30: =[1]Output!AH11 -> 0.02 | AG30: =[1]Output!AI11 -> 0.02 | AH30: =[1]Output!AJ11 -> 0.02 | AI30: =[1]Output!AK11 -> 0.02 | AJ30: =[1]Output!AL11 -> 0.02 | AK30: =[1]Output!AM11 -> 0.02 | AL30: =[1]Output!AN11 -> 0.02 | AM30: =[1]Output!AO11 -> 0.02 | AN30: =[1]Output!AP11 -> 0.02 | AO30: =[1]Output!AQ11 -> 0.02 | AP30: =[1]Output!AR11 -> 0.02 | AQ30: =[1]Output!AS11 -> 0.02 | AR30: =[1]Output!AT11 -> 0.02 | AS30: =[1]Output!AU11 -> 0.02 | AT30: =[1]Output!AV11 -> 0.02 | AU30: =[1]Output!AW11 -> 0.02 | AV30: =[1]Output!AX11 -> 0.02 | AW30: =[1]Output!AY11 -> 0.02 | AX30: =[1]Output!AZ11 -> 0.02 | AY30: =[1]Output!BA11 -> 0.02 | AZ30: =[1]Output!BB11 -> 0.02 | BA30: =[1]Output!BC11 -> 0.02 | BB30: =[1]Output!BD11 -> 0.02
B31: Inflation rate, not lagged for FGT, lagged for other GPBs | E31: =IF(GPB_name="First Gas transmission",E30,E29) -> 0.02811532047 | F31: 0.05954901506 | G31: 0.03092122799 | H31: 0.02324453846 | I31: 0.02024799149 | J31: 0.02 | K31: 0.02 | L31: 0.02 | M31: 0.02 | N31: 0.02 | O31: 0.02 | P31: 0.02 | Q31: 0.02 | R31: 0.02 | S31: 0.02 | T31: 0.02 | U31: 0.02 | V31: 0.02 | W31: 0.02 | X31: 0.02 | Y31: 0.02 | Z31: 0.02 | AA31: 0.02 | AB31: 0.02 | AC31: 0.02 | AD31: 0.02 | AE31: 0.02 | AF31: 0.02 | AG31: 0.02 | AH31: 0.02 | AI31: 0.02 | AJ31: 0.02 | AK31: 0.02 | AL31: 0.02 | AM31: 0.02 | AN31: 0.02 | AO31: 0.02 | AP31: 0.02 | AQ31: 0.02 | AR31: 0.02 | AS31: 0.02 | AT31: 0.02 | AU31: 0.02 | AV31: 0.02 | AW31: 0.02 | AX31: 0.02 | AY31: 0.02 | AZ31: 0.02 | BA31: 0.02 | BB31: 0.02
B33: Existing assets 2020 closing RAB, broken down by expiry year
B34: as received in responses to our requests for information. Amounts in $000s.
B35: Although the standard base year of 2021 has been used, capex values for the disclosure year ending 2021 have not been used.
B36: After the draft release, there was insufficient time to obtain a more recent RFI (as at DY2021) for Final decision due on 31st May 2022.
B37: The below data as at 2020 were used for final decision as they are, excluding year 2021
B38: CAPEX additions made during DY2021 feature in the tab Additional, even though they clasify as Existing assets.
B39: This does not have an impact on the accuracy of the model. | I39: Chosen GPB
B40: Expiry year | D40: GasNet | E40: Powerco | F40: Vector | G40: First Gas distribution | H40: First Gas transmission | I40: =GPB_name -> First Gas transmission
B41: 2021 | D41: 1 | E41: 473.7018167 | F41: 1345.749 | G41: 34.61677199 | H41: 1336.104253 | I41: =INDEX(D41:H41,1,D$3) -> 1336.104253
B42: 2022 | D42: 39 | E42: 368.1073438 | F42: 966.364 | G42: 228.1873519 | H42: 1613.233183 | I42: 1613.233183 | J42: Note rows may be hidden immediately below this text.
B43: 2023 | D43: 48 | E43: 648.4479801 | F43: 1510.518 | G43: 213.9978738 | H43: 4387.006796 | I43: 4387.006796
B44: 2024 | D44: 19 | E44: 1115.049825 | F44: 440.565 | G44: 348.7421922 | H44: 4053.607027 | I44: 4053.607027
B45: 2025 | D45: 90 | E45: 1111.855666 | F45: 424.578 | G45: 341.7498898 | H45: 1364.983383 | I45: 1364.983383
B46: 2026 | D46: 24 | E46: 1246.695025 | F46: 352.318 | G46: 361.6722347 | H46: 741.4545246 | I46: 741.4545246
B47: 2027 | D47: 17 | E47: 945.9782686 | F47: 1855.957 | G47: 587.9626007 | H47: 3757.951525 | I47: 3757.951525
B48: 2028 | D48: 99 | E48: 1955.852923 | F48: 1391.56 | G48: 651.0141205 | H48: 4931.591375 | I48: 4931.591375
B49: 2029 | D49: 163 | E49: 8902.534677 | F49: 1125.121 | G49: 667.416967 | H49: 5259.39943 | I49: 5259.39943
B50: 2030 | D50: 307 | E50: 2750.312519 | F50: 966.999 | G50: 424.4785516 | H50: 1846.314316 | I50: 1846.314316
B51: 2031 | D51: 287 | E51: 8036.33152 | F51: 370.51 | G51: 731.4915865 | H51: 950.2487371 | I51: 950.2487371
B52: 2032 | D52: 316 | E52: 1950.26993 | F52: 625.511 | G52: 1057.693602 | H52: 2113.267297 | I52: 2113.267297
B53: 2033 | D53: 406 | E53: 4215.864422 | F53: 864.8 | G53: 1252.182287 | H53: 36015.71054 | I53: 36015.71054
B54: 2034 | D54: 366 | E54: 6939.905172 | F54: 1340.488 | G54: 1122.715699 | H54: 1856.010704 | I54: 1856.010704
B55: 2035 | D55: 516 | E55: 5096.238036 | F55: 739.809 | G55: 3277.921834 | H55: 125.9218295 | I55: 125.9218295
B56: 2036 | D56: 1 | E56: 5381.320139 | F56: 568.207 | G56: 3085.945578 | H56: 10016.15182 | I56: 10016.15182
B57: 2037 | D57: 2 | E57: 6797.291911 | F57: 805.728 | G57: 3904.310964 | H57: 4406.318036 | I57: 4406.318036
B58: 2038 | D58: 26 | E58: 8304.388489 | F58: 885.323 | G58: 4771.632746 | H58: 1068.049329 | I58: 1068.049329
B59: 2039 | D59: 72 | E59: 11334.1582 | F59: 6145.335 | G59: 5750.976585 | H59: 550.7768622 | I59: 550.7768622
B60: 2040 | D60: 55 | E60: 9045.326529 | F60: 2181.302 | G60: 2337.893945 | H60: 27062.9898 | I60: 27062.9898
B61: 2041 | D61: 4 | E61: 13939.06824 | F61: 1950.386 | G61: 3230.130503 | H61: 1348.632627 | I61: 1348.632627
B62: 2042 | D62: 75 | E62: 14739.5887 | F62: 1482.738 | G62: 2685.651812 | H62: 13.30130839 | I62: 13.30130839
B63: 2043 | D63: 310 | E63: 14358.49035 | F63: 1133.071 | G63: 2234.429906 | H63: 11808.27003 | I63: 11808.27003
B64: 2044 | D64: 18 | E64: 14048.05095 | F64: 2051.789 | G64: 2857.502891 | H64: 13909.71999 | I64: 13909.71999
B65: 2045 | D65: 41 | E65: 12678.12881 | F65: 1000.57 | G65: 2624.944998 | H65: 5816.779882 | I65: 5816.779882
B66: 2046 | D66: 852 | E66: 11457.26541 | F66: 2036.031 | G66: 3018.485696 | H66: 37199.36876 | I66: 37199.36876
B67: 2047 | D67: 652 | E67: 10228.72343 | F67: 2340.845 | G67: 4676.035015 | H67: 101554.3749 | I67: 101554.3749
B68: 2048 | D68: 778 | E68: 8641.67711 | F68: 4611.768 | G68: 5341.916769 | H68: 37285.46137 | I68: 37285.46137
B69: 2049 | D69: 1135 | E69: 11829.92382 | F69: 6983.023 | G69: 5591.957171 | H69: 48813.05917 | I69: 48813.05917
B70: 2050 | D70: 860 | E70: 7076.723603 | F70: 9673.907 | G70: 4669.821343 | H70: 13079.84059 | I70: 13079.84059
B71: 2051 | D71: 489 | E71: 5552.75192 | F71: 5090.681 | G71: 2378.584894 | H71: 1183.385459 | I71: 1183.385459
B72: 2052 | D72: 490 | E72: 15360.65727 | F72: 5593.829 | G72: 5017.994967 | H72: 28656.90348 | I72: 28656.90348
B73: 2053 | D73: 981 | E73: 9727.61131 | F73: 8872.99 | G73: 3478.290323 | H73: 13614.16278 | I73: =INDEX(D73:H73,1,D$3) -> 13614.16278
B74: 2054 | D74: 763 | E74: 8222.705223 | F74: 9911.88 | G74: 2197.400845 | H74: 13068.37652 | I74: 13068.37652
B75: 2055 | D75: 483 | E75: 6767.678917 | F75: 11572.603 | G75: 2954.45217 | H75: 286637.912 | I75: 286637.912
B76: 2056 | D76: 1031 | E76: 6439.352897 | F76: 16146.492 | G76: 566.3036027 | H76: 0 | I76: 0
B77: 2057 | D77: 383 | E77: 8748.326252 | F77: 27097.606 | G77: 587.3878419 | H77: 4013.195266 | I77: 4013.195266
B78: 2058 | D78: 445 | E78: 6176.338907 | F78: 17587.652 | G78: 4546.259093 | H78: 854.6862886 | I78: 854.6862886
B79: 2059 | D79: 231 | E79: 5876.452541 | F79: 7861.66 | G79: 2556.788694 | H79: 1942.739924 | I79: 1942.739924
B80: 2060 | D80: 513 | E80: 8793.213885 | F80: 10827.587 | G80: 1.902772416 | H80: 1286.523085 | I80: 1286.523085
B81: 2061 | D81: 345 | E81: 7912.765301 | F81: 4892.764 | G81: 24.48971736 | H81: 0 | I81: 0
B82: 2062 | D82: 296 | E82: 5588.966054 | F82: 4204.628 | G82: 31.34423484 | H82: 3501.911095 | I82: 3501.911095
B83: 2063 | D83: 385 | E83: 33738.89405 | F83: 5308.853 | G83: 1766.68113 | H83: 133.7665539 | I83: 133.7665539
B84: 2064 | D84: 328 | E84: 7943.49308 | F84: 12474.099 | G84: 0.3878883157 | H84: 0 | I84: 0
B85: 2065 | D85: 479 | E85: 6479.376783 | F85: 11417.496 | G85: 33.93295623 | H85: -572.0378424 | I85: -572.0378424
B86: 2066 | D86: 382 | E86: 8194.420751 | F86: 12587.631 | G86: 0.923385794 | H86: 0 | I86: 0
B87: 2067 | D87: 350 | E87: 9315.586831 | F87: 17310.022 | G87: 1.53339796 | H87: 141.9616949 | I87: 141.9616949
B88: 2068 | D88: 431 | E88: 4079.951557 | F88: 2126.64 | G88: 0 | H88: 553.9733892 | I88: 553.9733892
B89: 2069 | D89: 561 | E89: 1231.795087 | F89: 22613.561 | G89: 121.5221815 | H89: 733.9714687 | I89: 733.9714687
B90: 2070 | D90: 374 | E90: 387.1331608 | F90: 3888.905 | G90: 3125.553716 | H90: 13538.6529 | I90: 13538.6529
B91: 2071 | D91: 490 | E91: 426.9142336 | F91: 12589.858 | G91: 2887.375247 | H91: 0 | I91: 0
B92: 2072 | D92: 452 | E92: 834.1533722 | F92: 12598.131 | G92: 2141.584597 | H92: 1640.131698 | I92: 1640.131698
B93: 2073 | D93: 516 | E93: 605.9962551 | F93: 10320.116 | G93: 6180.341417 | H93: 1649.178458 | I93: 1649.178458
B94: 2074 | D94: 542 | E94: 326.465489 | F94: 19834.172 | G94: 6786.323259 | H94: 0 | I94: 0
B95: 2075 | D95: 543 | E95: 125.4855364 | F95: 11197.455 | G95: 6508.240727 | H95: 0 | I95: 0
B96: 2076 | D96: 415 | E96: 281.2908533 | F96: 14940.052 | G96: 0 | H96: 0 | I96: 0
B97: 2077 | D97: 698 | E97: 441.664778 | F97: 15296.279 | G97: 10224.15433 | H97: 0 | I97: 0
B98: 2078 | D98: 434 | E98: 163.7274292 | F98: 20243.667 | G98: 6107.20268 | H98: 39.08529926 | I98: 39.08529926
B99: 2079 | D99: 1055 | E99: 502.6915554 | F99: 16849.956 | G99: 11085.87787 | H99: 0 | I99: 0
B100: 2080 | D100: 442 | E100: 242.2490683 | F100: 15195.547 | G100: 13985.25994 | H100: 0 | I100: 0
B101: 2081 | D101: 500 | E101: 594.9580029 | F101: 2136.21 | G101: 1151.959917 | H101: 0 | I101: 0
B102: 2082 | D102: 0 | E102: 227.1572386 | F102: 805.25 | G102: 629.1594151 | H102: 0 | I102: 0
B103: 2083 | D103: 2 | E103: 557.6177936 | F103: -9.593 | G103: 502.3904558 | H103: 0 | I103: 0
B104: 2084 | D104: 0 | E104: 1990.096836 | F104: 355.527 | G104: 75.19698708 | H104: 0 | I104: 0
B105: 2085 | D105: 0 | E105: 2085.946722 | F105: 4112.447 | G105: 220.8317559 | H105: 0 | I105: =INDEX(D105:H105,1,D$3) -> 0
B106: 2086 | D106: 155 | E106: 893.9916262 | F106: 1023.163 | G106: 0 | H106: 0 | I106: 0
B107: 2087 | D107: 2 | E107: 810.9873224 | F107: 257.215 | G107: 5099.085888 | H107: 0 | I107: 0
B108: 2088 | D108: 140 | E108: 3.408931119 | F108: 239.53 | G108: 1099.114241 | H108: 8411.006054 | I108: 8411.006054
B109: 2089 | D109: 0 | E109: 0 | F109: 211.36 | G109: 1983.95989 | H109: -386.7202342 | I109: -386.7202342
B110: 2090 | D110: 219 | E110: 0 | F110: 501.209 | G110: 169.5262301 | H110: =614.596164581328+17445.662 -> 18060.25816 | I110: 18060.25816
D111: =SUM(D41:D110) -> 23924 | E111: =SUM(E41:E110) -> 383269.5456 | F111: 434256 | G111: 174312.7981 | H111: 782988.9229 | I111: 782988.9229
B113: Gas Demand Profile - Demonstration path by Climate Change Commission
B114: source: https://ccc-production-media.s3.ap-southeast-2.amazonaws.com/public/Inaia-tonu-nei-a-low-emissions-future-for-Aotearoa/Modelling-files/Scenarios-dataset-2021-final-advice.xlsx
B115: Gas demand breakdown (PJ) | C115: 2022 | D115: 2023 | E115: 2024 | F115: 2025 | G115: 2026 | H115: 2027 | I115: 2028 | J115: 2029 | K115: 2030 | L115: 2031 | M115: 2032 | N115: 2033 | O115: 2034 | P115: 2035 | Q115: 2036 | R115: 2037 | S115: 2038 | T115: 2039 | U115: 2040 | V115: 2041 | W115: 2042 | X115: 2043 | Y115: 2044 | Z115: 2045 | AA115: 2046 | AB115: 2047 | AC115: 2048 | AD115: 2049 | AE115: 2050
B116: Food processing | C116: 21.6564964 | D116: 21.38490149 | E116: 21.01351167 | F116: 20.55282139 | G116: 20.00006225 | H116: 19.4352163 | I116: 18.89700809 | J116: 18.23018767 | K116: 17.39130365 | L116: 16.64360534 | M116: 15.55067834 | N116: 14.56878599 | O116: 13.61567504 | P116: 12.7116449 | Q116: 11.83849402 | R116: 11.01783745 | S116: 10.07548557 | T116: 8.983965168 | U116: 8.073058184 | V116: 7.220417016 | W116: 6.420963225 | X116: 5.211842763 | Y116: 3.602466201 | Z116: 2.310273604 | AA116: 0.8708835912 | AB116: 0 | AC116: 0 | AD116: 0 | AE116: 0
B117: Metals | C117: 2.056040815 | D117: 2.056040815 | E117: 2.056040815 | F117: 2.056040815 | G117: 2.056040815 | H117: 2.056040815 | I117: 2.056040815 | J117: 2.056040815 | K117: 2.056040815 | L117: 2.056040815 | M117: 2.056040815 | N117: 2.056040815 | O117: 2.056040815 | P117: 2.056040815 | Q117: 2.056040815 | R117: 2.056040815 | S117: 2.056040815 | T117: 2.056040815 | U117: 2.056040815 | V117: 2.056040815 | W117: 2.056040815 | X117: 2.056040815 | Y117: 2.056040815 | Z117: 2.056040815 | AA117: 2.056040815 | AB117: 2.056040815 | AC117: 2.056040815 | AD117: 2.056040815 | AE117: 2.056040815
B118: Chemicals | C118: 70.5298384 | D118: 52.2898384 | E118: 52.2898384 | F118: 52.2898384 | G118: 52.2898384 | H118: 52.2898384 | I118: 52.2898384 | J118: 52.2898384 | K118: 31.0098384 | L118: 31.0098384 | M118: 31.0098384 | N118: 31.0098384 | O118: 31.0098384 | P118: 31.0098384 | Q118: 31.0098384 | R118: 31.0098384 | S118: 31.0098384 | T118: 30.9372818 | U118: 9.513730354 | V118: 9.387340534 | W118: 9.259542304 | X118: 9.144246142 | Y118: 9.031648895 | Z118: 8.93584324 | AA118: 8.84554105 | AB118: 8.765179957 | AC118: 8.691687431 | AD118: 8.628229613 | AE118: 8.570370228
B119: Cement & lime | C119: 2.16359575 | D119: 2.16359575 | E119: 2.16359575 | F119: 2.16359575 | G119: 2.16359575 | H119: 2.16359575 | I119: 2.16359575 | J119: 2.16359575 | K119: 2.16359575 | L119: 2.16359575 | M119: 2.16359575 | N119: 2.16359575 | O119: 2.16359575 | P119: 2.16359575 | Q119: 2.16359575 | R119: 2.16359575 | S119: 2.16359575 | T119: 2.16359575 | U119: 2.16359575 | V119: 2.16359575 | W119: 2.16359575 | X119: 2.16359575 | Y119: 2.16359575 | Z119: 2.16359575 | AA119: 2.16359575 | AB119: 2.16359575 | AC119: 2.16359575 | AD119: 2.16359575 | AE119: 2.16359575
B120: Wood, pulp & paper | C120: 5.692876738 | D120: 5.574275139 | E120: 5.45567354 | F120: 5.337071942 | G120: 5.218470343 | H120: 5.099868744 | I120: 4.981267146 | J120: 4.862665547 | K120: 4.744063948 | L120: 3.389657553 | M120: 2.035251158 | N120: 1.780844764 | O120: 1.526438369 | P120: 1.272031974 | Q120: 1.017625579 | R120: 0.8990239805 | S120: 0.7804223818 | T120: 0.6618207831 | U120: 0.5432191861 | V120: 0.5432191846 | W120: 0.5432191844 | X120: 0.5432191844 | Y120: 0.5432191844 | Z120: 0.5432191844 | AA120: 0.5432191844 | AB120: 0.5432191844 | AC120: 0.5432191844 | AD120: 0.5432191844 | AE120: 0.5432191844
B121: Mining & quarrying | C121: 0.7509685155 | D121: 0.7642864697 | E121: 0.7743549619 | F121: 0.781324294 | G121: 0.7838097172 | H121: 0.7854251171 | I121: 0.7875045872 | J121: 0.7834664354 | K121: 0.771197588 | L121: 0.7609730865 | M121: 0.7334708938 | N121: 0.7088234999 | O121: 0.6832818263 | P121: 0.6582144771 | Q121: 0.6324068904 | R121: 0.6073132789 | S121: 0.572853421 | T121: 0.527159469 | U121: 0.4886628572 | V121: 0.4505891162 | W121: 0.4132265328 | X121: 0.3457310651 | Y121: 0.2464118379 | Z121: 0.1629399826 | AA121: 0.0633388584 | AB121: 0 | AC121: 0 | AD121: 0 | AE121: 0
B122: Other industry | C122: 1.521893458 | D122: 1.533687479 | E122: 1.536776086 | F122: 1.530042341 | G122: 1.513566256 | H122: 1.494574274 | I122: 1.475463807 | J122: 1.442932401 | K122: 1.39415763 | L122: 1.349472113 | M122: 1.275190218 | N122: 1.207524367 | O122: 1.140000397 | P122: 1.075092721 | Q122: 1.011020044 | R122: 0.9502072691 | S122: 0.8770920391 | T122: 0.7897816011 | U122: 0.716321658 | V122: 0.6462133309 | W122: 0.579758294 | X122: 0.4744802155 | Y122: 0.3307548534 | Z122: 0.2138882379 | AA122: 0.08129887733 | AB122: 0 | AC122: 0 | AD122: 0 | AE122: 0
B123: Agriculture, forestry & fishing | C123: 1.255341703 | D123: 1.199625404 | E123: 1.139047783 | F123: 1.074190766 | G123: 1.010987067 | H123: 0.951757484 | I123: 0.8963867044 | J123: 0.8421691956 | K123: 0.7887134912 | L123: 0.7305150923 | M123: 0.6748945076 | N123: 0.6217288971 | O123: 0.5709159738 | P123: 0.5223198961 | Q123: 0.4757881654 | R123: 0.4312240512 | S123: 0.388557829 | T123: 0.3477132491 | U123: 0.3086248044 | V123: 0.2712262762 | W123: 0.2354498095 | X123: 0.2012318894 | Y123: 0.1685095612 | Z123: 0.1372183647 | AA123: 0.1072945911 | AB123: 0.0786740434 | AC123: 0.05129253934 | AD123: 0.02508873333 | AE123: 0
B124: Commercial | C124: 8.391930127 | D124: 8.268217127 | E124: 8.039687703 | F124: 7.675124408 | G124: 7.189233703 | H124: 6.734445281 | I124: 6.313344852 | J124: 5.92280019 | K124: 5.546670055 | L124: 5.231700322 | M124: 4.919041909 | N124: 4.609178192 | O124: 4.302359642 | P124: 3.999313271 | Q124: 3.701034645 | R124: 3.407799694 | S124: 3.119522585 | T124: 2.836206511 | U124: 2.557703617 | V124: 2.283871236 | W124: 2.014585615 | X124: 1.749656137 | Y124: 1.488877923 | Z124: 1.232061998 | AA124: 0.9790026132 | AB124: 0.729495393 | AC124: 0.4833299936 | AD124: 0.2402471117 | AE124: 0
B125: Residential | C125: 6.990887242 | D125: 7.022264448 | E125: 7.022428522 | F125: 6.96602857 | G125: 6.83559042 | H125: 6.703300288 | I125: 6.572343719 | J125: 6.441947497 | K125: 6.296483551 | L125: 6.001482557 | M125: 5.700919244 | N125: 5.395572439 | O125: 5.085991324 | P125: 4.773195441 | Q125: 4.458469722 | R125: 4.142391548 | S125: 3.825184258 | T125: 3.507161433 | U125: 3.188490411 | V125: 2.86934621 | W125: 2.549925086 | X125: 2.230360022 | Y125: 1.910772542 | Z125: 1.594783167 | AA125: 1.277624494 | AB125: 0.9594416825 | AC125: 0.6403766691 | AD125: 0.3205256946 | AE125: 0
B126: Electricity generation | C126: 36.61998236 | D126: 34.70198161 | E126: 34.11836063 | F126: 14.01072848 | G126: 18.83197003 | H126: 23.48379088 | I126: 23.48953905 | J126: 22.7231783 | K126: 22.34903736 | L126: 22.52761802 | M126: 22.39130119 | N126: 22.67432858 | O126: 22.78060215 | P126: 22.76217361 | Q126: 22.74503421 | R126: 22.74109197 | S126: 22.53440261 | T126: 22.10677706 | U126: 21.70005281 | V126: 21.39380962 | W126: 19.84213533 | X126: 19.5595909 | Y126: 19.30307264 | Z126: 18.98885539 | AA126: 18.60162317 | AB126: 18.21452337 | AC126: 17.84697142 | AD126: 15.39326226 | AE126: 12.71418047
B127: Transport | C127: 0 | D127: 0 | E127: 0 | F127: 0 | G127: 0 | H127: 0 | I127: 0 | J127: 0 | K127: 0 | L127: 0 | M127: 0 | N127: 0 | O127: 0 | P127: 0 | Q127: 0 | R127: 0 | S127: 0 | T127: 0 | U127: 0 | V127: 0 | W127: 0 | X127: 0 | Y127: 0 | Z127: 0 | AA127: 0 | AB127: 0 | AC127: 0 | AD127: 0 | AE127: 0
B128: Total | C128: =SUM(C116:C127) -> 157.6298515 | D128: =SUM(D116:D127) -> 136.9587141 | E128: 135.6093159 | F128: 114.4368071 | G128: 117.8931647 | H128: 121.1978533 | I128: 119.9223329 | J128: 117.7588222 | K128: 94.51110224 | L128: 91.86449905 | M128: 88.51022242 | N128: 86.7962617 | O128: 84.93473969 | P128: 83.00346126 | Q128: 81.10934824 | R128: 79.4263642 | S128: 77.40299566 | T128: 74.91750363 | U128: 51.30950045 | V128: 49.28566909 | W128: 46.07844194 | X128: 43.67999489 | Y128: 40.84537021 | Z128: 38.33871973 | AA128: 35.589463 | AB128: 33.5101702 | AC128: 32.47651381 | AD128: 29.37020916 | AE128: 26.04740645
B130: Gas Demand Profile - adjusted Demonstration path
B131: Demonstration path adjusted - Excluding Chemicals and Electricity | C131: =SUM(C116:C127)-C118-C126 -> 50.48003075 | D131: =SUM(D116:D127)-D118-D126 -> 49.96689412 | E131: 49.20111683 | F131: 48.13624027 | G131: 46.77135632 | H131: 45.42422406 | I131: 44.14295547 | J131: 42.7458055 | K131: 41.15222648 | L131: 38.32704263 | M131: 35.10908283 | N131: 33.11209472 | O131: 31.14429914 | P131: 29.23144925 | Q131: 27.35447564 | R131: 25.67543383 | S131: 23.85875465 | T131: 21.87344478 | U131: 20.09571728 | V131: 18.50451894 | W131: 16.97676431 | X131: 14.97615784 | Y131: 12.51064867 | Z131: 10.4140211 | AA131: 8.142298776 | AB131: 6.530466869 | AC131: 5.937854952 | AD131: 5.34871729 | AE131: 4.76285575
B133: MAR for DPP3 if there was no AS | I133: Chosen GPB
B134: DPP3 year | D134: GasNet | E134: Powerco | F134: Vector | G134: First Gas distribution | H134: First Gas transmission | I134: =GPB_name -> First Gas transmission
B135: 2023 | D135: =[2]Outputs!C20 -> 4751.242611 | E135: =[2]Outputs!D20 -> 56072.20338 | F135: =[2]Outputs!E20 -> 52451.50801 | G135: =[2]Outputs!F20 -> 27199.9094 | H135: =[2]Outputs!G20 -> 140101.1245 | I135: =INDEX(D135:H135,1,D$3) -> 140101.1245
B136: 2024 | D136: =[2]Outputs!C21 -> 5119.124565 | E136: =[2]Outputs!D21 -> 60740.31947 | F136: =[2]Outputs!E21 -> 53684.25766 | G136: =[2]Outputs!F21 -> 29846.10305 | H136: =[2]Outputs!G21 -> 148014.4567 | I136: =INDEX(D136:H136,1,D$3) -> 148014.4567
B137: 2025 | D137: =[2]Outputs!C22 -> 5400.538046 | E137: =[2]Outputs!D22 -> 64395.40554 | F137: =[2]Outputs!E22 -> 53808.82522 | G137: =[2]Outputs!F22 -> 32070.32279 | H137: =[2]Outputs!G22 -> 155916.818 | I137: =INDEX(D137:H137,1,D$3) -> 155916.818
B138: 2026 | D138: =[2]Outputs!C23 -> 5677.982478 | E138: =[2]Outputs!D23 -> 68005.91769 | F138: =[2]Outputs!E23 -> 53756.64501 | G138: =[2]Outputs!F23 -> 34345.55134 | H138: =[2]Outputs!G23 -> 164201.1574 | I138: =INDEX(D138:H138,1,D$3) -> 164201.1574
B139: source: Financial-model-no-mitigation.xlsx

Sheet Existing
A1: Existing assets
A2: Inputs
B3: Chosen Supplier | D3: =GPB_name -> First Gas transmission
B4: Mitigation | D4: =Inputs_AS!D15 -> TRUE
B5: Stranding year | D5: =Inputs_AS!D10 -> 2060
B6: Adjustment Factor | D6: =AdjFactor -> 0.908944059
B7: Apply revaluations from 2023 onwards | D7: =Reval -> TRUE
B9: Forecast changes in CPI used for revaluations
E10: 2021 | F10: 2022 | G10: 2023 | H10: 2024 | I10: 2025 | J10: 2026 | K10: 2027 | L10: 2028 | M10: 2029 | N10: 2030 | O10: 2031 | P10: 2032 | Q10: 2033 | R10: 2034 | S10: 2035 | T10: 2036 | U10: 2037 | V10: 2038 | W10: 2039 | X10: 2040 | Y10: 2041 | Z10: 2042 | AA10: 2043 | AB10: 2044 | AC10: 2045 | AD10: 2046 | AE10: 2047 | AF10: 2048 | AG10: 2049 | AH10: 2050 | AI10: 2051 | AJ10: 2052 | AK10: 2053 | AL10: 2054 | AM10: 2055 | AN10: 2056 | AO10: 2057 | AP10: 2058 | AQ10: 2059 | AR10: 2060 | AS10: 2061 | AT10: 2062 | AU10: 2063 | AV10: 2064 | AW10: 2065 | AX10: 2066 | AY10: 2067 | AZ10: 2068 | BA10: 2069 | BB10: 2070 | BC10: 2071 | BD10: 2072
B11: Forecast CPI increases (revaluations) | E11: =Inputs_AS!E28 -> 0.04933586338 | F11: =Inputs_AS!F28 -> 0.05 | G11: =IF(AND($D$7,G10<>$D$5),Inputs_AS!G28,0) -> 0.025 | H11: =IF(AND($D$7,H10<>$D$5),Inputs_AS!H28,0) -> 0.022 | I11: =IF(AND($D$7,I10<>$D$5),Inputs_AS!I28,0) -> 0.02 | J11: =IF(AND($D$7,J10<>$D$5),Inputs_AS!J28,0) -> 0.02 | K11: =IF(AND($D$7,K10<>$D$5),Inputs_AS!K28,0) -> 0.02 | L11: =IF(AND($D$7,L10<>$D$5),Inputs_AS!L28,0) -> 0.02 | M11: =IF(AND($D$7,M10<>$D$5),Inputs_AS!M28,0) -> 0.02 | N11: =IF(AND($D$7,N10<>$D$5),Inputs_AS!N28,0) -> 0.02 | O11: =IF(AND($D$7,O10<>$D$5),Inputs_AS!O28,0) -> 0.02 | P11: =IF(AND($D$7,P10<>$D$5),Inputs_AS!P28,0) -> 0.02 | Q11: =IF(AND($D$7,Q10<>$D$5),Inputs_AS!Q28,0) -> 0.02 | R11: =IF(AND($D$7,R10<>$D$5),Inputs_AS!R28,0) -> 0.02 | S11: =IF(AND($D$7,S10<>$D$5),Inputs_AS!S28,0) -> 0.02 | T11: =IF(AND($D$7,T10<>$D$5),Inputs_AS!T28,0) -> 0.02 | U11: =IF(AND($D$7,U10<>$D$5),Inputs_AS!U28,0) -> 0.02 | V11: =IF(AND($D$7,V10<>$D$5),Inputs_AS!V28,0) -> 0.02 | W11: =IF(AND($D$7,W10<>$D$5),Inputs_AS!W28,0) -> 0.02 | X11: =IF(AND($D$7,X10<>$D$5),Inputs_AS!X28,0) -> 0.02 | Y11: =IF(AND($D$7,Y10<>$D$5),Inputs_AS!Y28,0) -> 0.02 | Z11: =IF(AND($D$7,Z10<>$D$5),Inputs_AS!Z28,0) -> 0.02 | AA11: =IF(AND($D$7,AA10<>$D$5),Inputs_AS!AA28,0) -> 0.02 | AB11: =IF(AND($D$7,AB10<>$D$5),Inputs_AS!AB28,0) -> 0.02 | AC11: =IF(AND($D$7,AC10<>$D$5),Inputs_AS!AC28,0) -> 0.02 | AD11: =IF(AND($D$7,AD10<>$D$5),Inputs_AS!AD28,0) -> 0.02 | AE11: =IF(AND($D$7,AE10<>$D$5),Inputs_AS!AE28,0) -> 0.02 | AF11: =IF(AND($D$7,AF10<>$D$5),Inputs_AS!AF28,0) -> 0.02 | AG11: =IF(AND($D$7,AG10<>$D$5),Inputs_AS!AG28,0) -> 0.02 | AH11: =IF(AND($D$7,AH10<>$D$5),Inputs_AS!AH28,0) -> 0.02 | AI11: =IF(AND($D$7,AI10<>$D$5),Inputs_AS!AI28,0) -> 0.02 | AJ11: =IF(AND($D$7,AJ10<>$D$5),Inputs_AS!AJ28,0) -> 0.02 | AK11: =IF(AND($D$7,AK10<>$D$5),Inputs_AS!AK28,0) -> 0.02 | AL11: =IF(AND($D$7,AL10<>$D$5),Inputs_AS!AL28,0) -> 0.02 | AM11: =IF(AND($D$7,AM10<>$D$5),Inputs_AS!AM28,0) -> 0.02 | AN11: =IF(AND($D$7,AN10<>$D$5),Inputs_AS!AN28,0) -> 0.02 | AO11: =IF(AND($D$7,AO10<>$D$5),Inputs_AS!AO28,0) -> 0.02 | AP11: =IF(AND($D$7,AP10<>$D$5),Inputs_AS!AP28,0) -> 0.02 | AQ11: =IF(AND($D$7,AQ10<>$D$5),Inputs_AS!AQ28,0) -> 0.02 | AR11: =IF(AND($D$7,AR10<>$D$5),Inputs_AS!AR28,0) -> 0 | AS11: =IF(AND($D$7,AS10<>$D$5),Inputs_AS!AS28,0) -> 0.02 | AT11: =IF(AND($D$7,AT10<>$D$5),Inputs_AS!AT28,0) -> 0.02 | AU11: =IF(AND($D$7,AU10<>$D$5),Inputs_AS!AU28,0) -> 0.02 | AV11: =IF(AND($D$7,AV10<>$D$5),Inputs_AS!AV28,0) -> 0.02 | AW11: =IF(AND($D$7,AW10<>$D$5),Inputs_AS!AW28,0) -> 0.02 | AX11: =IF(AND($D$7,AX10<>$D$5),Inputs_AS!AX28,0) -> 0.02 | AY11: =IF(AND($D$7,AY10<>$D$5),Inputs_AS!AY28,0) -> 0.02 | AZ11: =IF(AND($D$7,AZ10<>$D$5),Inputs_AS!AZ28,0) -> 0.02 | BA11: =IF(AND($D$7,BA10<>$D$5),Inputs_AS!BA28,0) -> 0.02 | BB11: =IF(AND($D$7,BB10<>$D$5),Inputs_AS!BB28,0) -> 0.02 | BC11: 0
A13: Calculations
B14: Panel of opening RAB by ID year by expiry year
B15: If Base Year is adopted, values in 2021 are not being used.
B16: Expiry year per RFI | C16: Opening RAB per RFI | D16: Expiry year post accln
C17: ID years: | D17: 2020 | E17: 2021 | F17: 2022 | G17: 2023 | H17: 2024 | I17: 2025 | J17: 2026 | K17: 2027 | L17: 2028 | M17: 2029 | N17: 2030 | O17: 2031 | P17: 2032 | Q17: 2033 | R17: 2034 | S17: 2035 | T17: 2036 | U17: 2037 | V17: 2038 | W17: 2039 | X17: 2040 | Y17: 2041 | Z17: 2042 | AA17: 2043 | AB17: 2044 | AC17: 2045 | AD17: 2046 | AE17: 2047 | AF17: 2048 | AG17: 2049 | AH17: 2050 | AI17: 2051 | AJ17: 2052 | AK17: 2053 | AL17: 2054 | AM17: 2055 | AN17: 2056 | AO17: 2057 | AP17: 2058 | AQ17: 2059 | AR17: 2060 | AS17: 2061 | AT17: 2062 | AU17: 2063 | AV17: 2064 | AW17: 2065 | AX17: 2066 | AY17: 2067 | AZ17: 2068 | BA17: 2069 | BB17: 2070 | BC17: 2071 | BD17: 2072
B18: 2021 | C18: =Inputs_AS!I41 -> 1336.104253 | D18: =B18 -> 2021 | E18: =C18 -> 1336.104253 | F18: =IF(F$17>$B18,0,E18*(1-1/($B18-F$17+2)+E$11)) -> 0 | G18: 0 | H18: =IF(H$17>$D18+1,0,G18*(1-1/($D18-H$17+2)+G$11)) -> 0 | I18: 0 | J18: 0 | K18: 0 | L18: 0 | M18: 0 | N18: 0 | O18: 0 | P18: 0 | Q18: 0 | R18: 0 | S18: 0 | T18: 0 | U18: 0 | V18: 0 | W18: 0 | X18: 0 | Y18: 0 | Z18: 0 | AA18: 0 | AB18: 0 | AC18: 0 | AD18: 0 | AE18: 0 | AF18: 0 | AG18: 0 | AH18: 0 | AI18: 0 | AJ18: 0 | AK18: 0 | AL18: 0 | AM18: 0 | AN18: 0 | AO18: 0 | AP18: 0 | AQ18: 0 | AR18: 0 | AS18: 0 | AT18: 0 | AU18: 0 | AV18: 0 | AW18: 0 | AX18: 0 | AY18: 0 | AZ18: 0 | BA18: 0 | BB18: 0 | BC18: 0 | BD18: 0
B19: 2022 | C19: =Inputs_AS!I42 -> 1613.233183 | D19: =B19 -> 2022 | E19: 1613.233183 | F19: 886.2068436 | G19: 0 | H19: =IF(H$17>$D19+1,0,G19*(1-1/($D19-H$17+2)+G$11)) -> 0 | I19: 0 | J19: 0 | K19: 0 | L19: 0 | M19: 0 | N19: 0 | O19: 0 | P19: 0 | Q19: 0 | R19: 0 | S19: 0 | T19: 0 | U19: 0 | V19: 0 | W19: 0 | X19: 0 | Y19: 0 | Z19: 0 | AA19: 0 | AB19: 0 | AC19: 0 | AD19: 0 | AE19: 0 | AF19: 0 | AG19: 0 | AH19: 0 | AI19: 0 | AJ19: 0 | AK19: 0 | AL19: 0 | AM19: 0 | AN19: 0 | AO19: 0 | AP19: 0 | AQ19: 0 | AR19: 0 | AS19: 0 | AT19: 0 | AU19: 0 | AV19: 0 | AW19: 0 | AX19: 0 | AY19: 0 | AZ19: 0 | BA19: 0 | BB19: 0 | BC19: 0 | BD19: 0
B20: 2023 | C20: =Inputs_AS!I43 -> 4387.006796 | D20: =IF($D$4,ROUND(MIN(D$5,2023+(B20-2023)*$D$6),2),B20) -> 2023 | E20: 4387.006796 | F20: 3141.107965 | G20: 1727.609381 | H20: =IF(H$17>$D20+1,0,G20*(1-1/($D20-H$17+2)+G$11)) -> 43.19023452 | I20: 0 | J20: 0 | K20: 0 | L20: 0 | M20: 0 | N20: 0 | O20: 0 | P20: 0 | Q20: 0 | R20: 0 | S20: 0 | T20: 0 | U20: 0 | V20: 0 | W20: 0 | X20: 0 | Y20: 0 | Z20: 0 | AA20: 0 | AB20: 0 | AC20: 0 | AD20: 0 | AE20: 0 | AF20: 0 | AG20: 0 | AH20: 0 | AI20: 0 | AJ20: 0 | AK20: 0 | AL20: 0 | AM20: 0 | AN20: 0 | AO20: 0 | AP20: 0 | AQ20: 0 | AR20: 0 | AS20: 0 | AT20: 0 | AU20: 0 | AV20: 0 | AW20: 0 | AX20: 0 | AY20: 0 | AZ20: 0 | BA20: 0 | BB20: 0 | BC20: 0 | BD20: 0
B21: 2024 | C21: =Inputs_AS!I44 -> 4053.607027 | D21: 2023.91 | E21: 4053.607027 | F21: 3240.193473 | G21: 2322.138656 | H21: =IF(H$17>$D21+1,0,G21*(1-1/($D21-H$17+2)+G$11)) -> 1164.412721 | I21: 0 | J21: 0 | K21: 0 | L21: 0 | M21: 0 | N21: 0 | O21: 0 | P21: 0 | Q21: 0 | R21: 0 | S21: 0 | T21: 0 | U21: 0 | V21: 0 | W21: 0 | X21: 0 | Y21: 0 | Z21: 0 | AA21: 0 | AB21: 0 | AC21: 0 | AD21: 0 | AE21: 0 | AF21: 0 | AG21: 0 | AH21: 0 | AI21: 0 | AJ21: 0 | AK21: 0 | AL21: 0 | AM21: 0 | AN21: 0 | AO21: 0 | AP21: 0 | AQ21: 0 | AR21: 0 | AS21: 0 | AT21: 0 | AU21: 0 | AV21: 0 | AW21: 0 | AX21: 0 | AY21: 0 | AZ21: 0 | BA21: 0 | BB21: 0 | BC21: 0 | BD21: 0
B22: 2025 | C22: =Inputs_AS!I45 -> 1364.983383 | D22: 2024.82 | E22: 1364.983383 | F22: 1159.32934 | G22: 927.463472 | H22: =IF(H$17>$D22+1,0,G22*(1-1/($D22-H$17+2)+G$11)) -> 621.7623028 | I22: 293.8134346 | J22: 0 | K22: 0 | L22: 0 | M22: 0 | N22: 0 | O22: 0 | P22: 0 | Q22: 0 | R22: 0 | S22: 0 | T22: 0 | U22: 0 | V22: 0 | W22: 0 | X22: 0 | Y22: 0 | Z22: 0 | AA22: 0 | AB22: 0 | AC22: 0 | AD22: 0 | AE22: 0 | AF22: 0 | AG22: 0 | AH22: 0 | AI22: 0 | AJ22: 0 | AK22: 0 | AL22: 0 | AM22: 0 | AN22: 0 | AO22: 0 | AP22: 0 | AQ22: 0 | AR22: 0 | AS22: 0 | AT22: 0 | AU22: 0 | AV22: 0 | AW22: 0 | AX22: 0 | AY22: 0 | AZ22: 0 | BA22: 0 | BB22: 0 | BC22: 0 | BD22: 0
B23: 2026 | C23: =Inputs_AS!I46 -> 741.4545246 | D23: 2025.73 | E23: 741.4545246 | F23: 654.4590696 | G23: 556.2902092 | H23: =IF(H$17>$D23+1,0,G23*(1-1/($D23-H$17+2)+G$11)) -> 421.0579981 | I23: 276.0875751 | J23: 122.0211329 | K23: 0 | L23: 0 | M23: 0 | N23: 0 | O23: 0 | P23: 0 | Q23: 0 | R23: 0 | S23: 0 | T23: 0 | U23: 0 | V23: 0 | W23: 0 | X23: 0 | Y23: 0 | Z23: 0 | AA23: 0 | AB23: 0 | AC23: 0 | AD23: 0 | AE23: 0 | AF23: 0 | AG23: 0 | AH23: 0 | AI23: 0 | AJ23: 0 | AK23: 0 | AL23: 0 | AM23: 0 | AN23: 0 | AO23: 0 | AP23: 0 | AQ23: 0 | AR23: 0 | AS23: 0 | AT23: 0 | AU23: 0 | AV23: 0 | AW23: 0 | AX23: 0 | AY23: 0 | AZ23: 0 | BA23: 0 | BB23: 0 | BC23: 0 | BD23: 0
B24: 2027 | C24: =Inputs_AS!I47 -> 3757.951525 | D24: 2026.64 | E24: 3757.951525 | F24: 3406.50309 | G24: 3009.07773 | H24: =IF(H$17>$D24+1,0,G24*(1-1/($D24-H$17+2)+G$11)) -> 2435.796541 | I24: 1820.209191 | J24: 1167.140197 | K24: 478.812149 | L24: 0 | M24: 0 | N24: 0 | O24: 0 | P24: 0 | Q24: 0 | R24: 0 | S24: 0 | T24: 0 | U24: 0 | V24: 0 | W24: 0 | X24: 0 | Y24: 0 | Z24: 0 | AA24: 0 | AB24: 0 | AC24: 0 | AD24: 0 | AE24: 0 | AF24: 0 | AG24: 0 | AH24: 0 | AI24: 0 | AJ24: 0 | AK24: 0 | AL24: 0 | AM24: 0 | AN24: 0 | AO24: 0 | AP24: 0 | AQ24: 0 | AR24: 0 | AS24: 0 | AT24: 0 | AU24: 0 | AV24: 0 | AW24: 0 | AX24: 0 | AY24: 0 | AZ24: 0 | BA24: 0 | BB24: 0 | BC24: 0 | BD24: 0
B25: 2028 | C25: =Inputs_AS!I48 -> 4931.591375 | D25: 2027.54 | E25: 4931.591375 | F25: 4558.446771 | G25: 4135.162428 | H25: =IF(H$17>$D25+1,0,G25*(1-1/($D25-H$17+2)+G$11)) -> 3492.122278 | I25: 2799.759039 | J25: 2064.861836 | K25: 1293.221342 | L25: 479.3316506 | M25: 0 | N25: 0 | O25: 0 | P25: 0 | Q25: 0 | R25: 0 | S25: 0 | T25: 0 | U25: 0 | V25: 0 | W25: 0 | X25: 0 | Y25: 0 | Z25: 0 | AA25: 0 | AB25: 0 | AC25: 0 | AD25: 0 | AE25: 0 | AF25: 0 | AG25: 0 | AH25: 0 | AI25: 0 | AJ25: 0 | AK25: 0 | AL25: 0 | AM25: 0 | AN25: 0 | AO25: 0 | AP25: 0 | AQ25: 0 | AR25: 0 | AS25: 0 | AT25: 0 | AU25: 0 | AV25: 0 | AW25: 0 | AX25: 0 | AY25: 0 | AZ25: 0 | BA25: 0 | BB25: 0 | BC25: 0 | BD25: 0
B26: 2029 | C26: =Inputs_AS!I49 -> 5259.39943 | D26: 2028.45 | E26: 5259.39943 | F26: 4934.498728 | G26: 4564.411323 | H26: =IF(H$17>$D26+1,0,G26*(1-1/($D26-H$17+2)+G$11)) -> 3970.860936 | I26: 3329.62154 | J26: 2647.984411 | K26: 1933.412386 | L26: 1182.932721 | M26: 390.7757057 | N26: 0 | O26: 0 | P26: 0 | Q26: 0 | R26: 0 | S26: 0 | T26: 0 | U26: 0 | V26: 0 | W26: 0 | X26: 0 | Y26: 0 | Z26: 0 | AA26: 0 | AB26: 0 | AC26: 0 | AD26: 0 | AE26: 0 | AF26: 0 | AG26: 0 | AH26: 0 | AI26: 0 | AJ26: 0 | AK26: 0 | AL26: 0 | AM26: 0 | AN26: 0 | AO26: 0 | AP26: 0 | AQ26: 0 | AR26: 0 | AS26: 0 | AT26: 0 | AU26: 0 | AV26: 0 | AW26: 0 | AX26: 0 | AY26: 0 | AZ26: 0 | BA26: 0 | BB26: 0 | BC26: 0 | BD26: 0
B27: 2030 | C27: =Inputs_AS!I50 -> 1846.314316 | D27: 2029.36 | E27: 1846.314316 | F27: 1752.772396 | G27: 1645.658527 | H27: =IF(H$17>$D27+1,0,G27*(1-1/($D27-H$17+2)+G$11)) -> 1463.205082 | I27: 1265.331901 | J27: 1054.569155 | K27: 833.7868786 | L27: 602.3117594 | M27: 359.1411474 | N27: 102.2495973 | O27: 0 | P27: 0 | Q27: 0 | R27: 0 | S27: 0 | T27: 0 | U27: 0 | V27: 0 | W27: 0 | X27: 0 | Y27: 0 | Z27: 0 | AA27: 0 | AB27: 0 | AC27: 0 | AD27: 0 | AE27: 0 | AF27: 0 | AG27: 0 | AH27: 0 | AI27: 0 | AJ27: 0 | AK27: 0 | AL27: 0 | AM27: 0 | AN27: 0 | AO27: 0 | AP27: 0 | AQ27: 0 | AR27: 0 | AS27: 0 | AT27: 0 | AU27: 0 | AV27: 0 | AW27: 0 | AX27: 0 | AY27: 0 | AZ27: 0 | BA27: 0 | BB27: 0 | BC27: 0 | BD27: 0
B28: 2031 | C28: =Inputs_AS!I51 -> 950.2487371 | D28: 2030.27 | E28: 950.2487371 | F28: 910.7438302 | G28: 865.2066387 | H28: =IF(H$17>$D28+1,0,G28*(1-1/($D28-H$17+2)+G$11)) -> 782.2168967 | I28: 691.8304969 | J28: 595.3273147 | K28: 494.2685261 | L28: 388.4001435 | M28: 277.3913441 | N28: 160.740341 | O28: 37.38795017 | P28: 0 | Q28: 0 | R28: 0 | S28: 0 | T28: 0 | U28: 0 | V28: 0 | W28: 0 | X28: 0 | Y28: 0 | Z28: 0 | AA28: 0 | AB28: 0 | AC28: 0 | AD28: 0 | AE28: 0 | AF28: 0 | AG28: 0 | AH28: 0 | AI28: 0 | AJ28: 0 | AK28: 0 | AL28: 0 | AM28: 0 | AN28: 0 | AO28: 0 | AP28: 0 | AQ28: 0 | AR28: 0 | AS28: 0 | AT28: 0 | AU28: 0 | AV28: 0 | AW28: 0 | AX28: 0 | AY28: 0 | AZ28: 0 | BA28: 0 | BB28: 0 | BC28: 0 | BD28: 0
B29: 2032 | C29: =Inputs_AS!I52 -> 2113.267297 | D29: 2031.18 | E29: 2113.267297 | F29: 2041.421556 | G29: 1957.908856 | H29: =IF(H$17>$D29+1,0,G29*(1-1/($D29-H$17+2)+G$11)) -> 1793.576745 | I29: 1613.771773 | J29: 1421.287908 | K29: 1219.731804 | L29: 1008.65698 | M29: 787.5246221 | N29: 555.6258623 | O29: 311.8641308 | P29: 53.80977715 | Q29: 0 | R29: 0 | S29: 0 | T29: 0 | U29: 0 | V29: 0 | W29: 0 | X29: 0 | Y29: 0 | Z29: 0 | AA29: 0 | AB29: 0 | AC29: 0 | AD29: 0 | AE29: 0 | AF29: 0 | AG29: 0 | AH29: 0 | AI29: 0 | AJ29: 0 | AK29: 0 | AL29: 0 | AM29: 0 | AN29: 0 | AO29: 0 | AP29: 0 | AQ29: 0 | AR29: 0 | AS29: 0 | AT29: 0 | AU29: 0 | AV29: 0 | AW29: 0 | AX29: 0 | AY29: 0 | AZ29: 0 | BA29: 0 | BB29: 0 | BC29: 0 | BD29: 0
B30: 2033 | C30: =Inputs_AS!I53 -> 36015.71054 | D30: 2032.09 | E30: 36015.71054 | F30: 35022.13745 | G30: 33854.73286 | H30: =IF(H$17>$D30+1,0,G30*(1-1/($D30-H$17+2)+G$11)) -> 31345.82538 | I30: 28587.04791 | J30: 25625.16119 | K30: 22523.39626 | L30: 19275.44116 | M30: 15874.02637 | N30: 12310.32686 | O30: 8572.608846 | P30: 4642.334302 | Q30: 476.1586927 | R30: 0 | S30: 0 | T30: 0 | U30: 0 | V30: 0 | W30: 0 | X30: 0 | Y30: 0 | Z30: 0 | AA30: 0 | AB30: 0 | AC30: 0 | AD30: 0 | AE30: 0 | AF30: 0 | AG30: 0 | AH30: 0 | AI30: 0 | AJ30: 0 | AK30: 0 | AL30: 0 | AM30: 0 | AN30: 0 | AO30: 0 | AP30: 0 | AQ30: 0 | AR30: 0 | AS30: 0 | AT30: 0 | AU30: 0 | AV30: 0 | AW30: 0 | AX30: 0 | AY30: 0 | AZ30: 0 | BA30: 0 | BB30: 0 | BC30: 0 | BD30: 0
B31: 2034 | C31: =Inputs_AS!I54 -> 1856.010704 | D31: 2033 | E31: 1856.010704 | F31: 1815.006401 | G31: 1766.140844 | H31: =IF(H$17>$D31+1,0,G31*(1-1/($D31-H$17+2)+G$11)) -> 1649.736107 | I31: 1521.05669 | J31: 1382.471525 | K31: 1237.312015 | L31: 1085.299396 | M31: 926.1221514 | N31: 759.4201641 | O31: 584.7535264 | P31: 401.5307548 | Q31: 208.7959925 | R31: 4.17591985 | S31: 0 | T31: 0 | U31: 0 | V31: 0 | W31: 0 | X31: 0 | Y31: 0 | Z31: 0 | AA31: 0 | AB31: 0 | AC31: 0 | AD31: 0 | AE31: 0 | AF31: 0 | AG31: 0 | AH31: 0 | AI31: 0 | AJ31: 0 | AK31: 0 | AL31: 0 | AM31: 0 | AN31: 0 | AO31: 0 | AP31: 0 | AQ31: 0 | AR31: 0 | AS31: 0 | AT31: 0 | AU31: 0 | AV31: 0 | AW31: 0 | AX31: 0 | AY31: 0 | AZ31: 0 | BA31: 0 | BB31: 0 | BC31: 0 | BD31: 0
B32: 2035 | C32: =Inputs_AS!I55 -> 125.9218295 | D32: 2033.91 | E32: 125.9218295 | F32: 123.739503 | G32: 121.0879422 | H32: =IF(H$17>$D32+1,0,G32*(1-1/($D32-H$17+2)+G$11)) -> 113.9482271 | I32: 106.0107043 | J32: 97.43357182 | K32: 88.44693778 | L32: 79.03421563 | M32: 69.1772421 | N32: 58.85566984 | O32: 48.0458851 | P32: 36.71885265 | Q32: 24.83506728 | R32: 12.3291156 | S32: 0 | T32: 0 | U32: 0 | V32: 0 | W32: 0 | X32: 0 | Y32: 0 | Z32: 0 | AA32: 0 | AB32: 0 | AC32: 0 | AD32: 0 | AE32: 0 | AF32: 0 | AG32: 0 | AH32: 0 | AI32: 0 | AJ32: 0 | AK32: 0 | AL32: 0 | AM32: 0 | AN32: 0 | AO32: 0 | AP32: 0 | AQ32: 0 | AR32: 0 | AS32: 0 | AT32: 0 | AU32: 0 | AV32: 0 | AW32: 0 | AX32: 0 | AY32: 0 | AZ32: 0 | BA32: 0 | BB32: 0 | BC32: 0 | BD32: 0
B33: 2036 | C33: =Inputs_AS!I56 -> 10016.15182 | D33: 2034.82 | E33: 10016.15182 | F33: 9884.297825 | G33: 9719.559528 | H33: =IF(H$17>$D33+1,0,G33*(1-1/($D33-H$17+2)+G$11)) -> 9204.392547 | I33: 8628.175769 | J33: 8003.31084 | K33: 7348.375953 | L33: 6662.194271 | M33: 5943.495155 | N33: 5190.88483 | O33: 4402.797917 | P33: 3577.410324 | Q33: 2712.463681 | R33: 1804.846401 | S33: 849.2694824 | T33: 0 | U33: 0 | V33: 0 | W33: 0 | X33: 0 | Y33: 0 | Z33: 0 | AA33: 0 | AB33: 0 | AC33: 0 | AD33: 0 | AE33: 0 | AF33: 0 | AG33: 0 | AH33: 0 | AI33: 0 | AJ33: 0 | AK33: 0 | AL33: 0 | AM33: 0 | AN33: 0 | AO33: 0 | AP33: 0 | AQ33: 0 | AR33: 0 | AS33: 0 | AT33: 0 | AU33: 0 | AV33: 0 | AW33: 0 | AX33: 0 | AY33: 0 | AZ33: 0 | BA33: 0 | BB33: 0 | BC33: 0 | BD33: 0
B34: 2037 | C34: =Inputs_AS!I57 -> 4406.318036 | D34: 2035.73 | E34: 4406.318036 | F34: 4364.512362 | G34: 4309.955958 | H34: =IF(H$17>$D34+1,0,G34*(1-1/($D34-H$17+2)+G$11)) -> 4103.796921 | I34: 3871.708346 | J34: 3619.0736 | K34: 3354.169555 | L34: 3076.528429 | M34: 2785.650243 | N34: 2480.994523 | O34: 2161.967382 | P34: 1827.900031 | Q34: 1478.009822 | R34: 1111.320736 | S34: 726.4699583 | T34: 321.0745261 | U34: 0 | V34: 0 | W34: 0 | X34: 0 | Y34: 0 | Z34: 0 | AA34: 0 | AB34: 0 | AC34: 0 | AD34: 0 | AE34: 0 | AF34: 0 | AG34: 0 | AH34: 0 | AI34: 0 | AJ34: 0 | AK34: 0 | AL34: 0 | AM34: 0 | AN34: 0 | AO34: 0 | AP34: 0 | AQ34: 0 | AR34: 0 | AS34: 0 | AT34: 0 | AU34: 0 | AV34: 0 | AW34: 0 | AX34: 0 | AY34: 0 | AZ34: 0 | BA34: 0 | BB34: 0 | BC34: 0 | BD34: 0
B35: 2038 | C35: =Inputs_AS!I58 -> 1068.049329 | D35: 2036.63 | E35: 1068.049329 | F35: 1061.406391 | G35: 1052.041041 | H35: =IF(H$17>$D35+1,0,G35*(1-1/($D35-H$17+2)+G$11)) -> 1006.432221 | I35: 954.734242 | J35: 898.2363503 | K35: 838.9666533 | L35: 776.8215599 | M35: 711.6911625 | N35: 643.4578754 | O35: 571.9944149 | P35: 497.1606358 | Q35: 418.7982293 | R35: 336.7210126 | S35: 250.6948234 | T35: 160.3874942 | U35: 65.19800838 | V35: 0 | W35: 0 | X35: 0 | Y35: 0 | Z35: 0 | AA35: 0 | AB35: 0 | AC35: 0 | AD35: 0 | AE35: 0 | AF35: 0 | AG35: 0 | AH35: 0 | AI35: 0 | AJ35: 0 | AK35: 0 | AL35: 0 | AM35: 0 | AN35: 0 | AO35: 0 | AP35: 0 | AQ35: 0 | AR35: 0 | AS35: 0 | AT35: 0 | AU35: 0 | AV35: 0 | AW35: 0 | AX35: 0 | AY35: 0 | AZ35: 0 | BA35: 0 | BB35: 0 | BC35: 0 | BD35: 0
B36: 2039 | C36: =Inputs_AS!I59 -> 550.7768622 | D36: 2037.54 | E36: 550.7768622 | F36: 548.9616584 | G36: 545.9118714 | H36: =IF(H$17>$D36+1,0,G36*(1-1/($D36-H$17+2)+G$11)) -> 524.4302041 | I36: 499.8995665 | J36: 472.9773535 | K36: 444.7194083 | L36: 415.076586 | M36: 383.9970375 | N36: 351.4257165 | O36: 317.3036785 | P36: 281.5670361 | Q36: 244.1453132 | R36: 204.9586683 | S36: 163.9127606 | T36: 120.8879761 | U36: 75.71204423 | V36: 28.06262003 | W36: 0 | X36: 0 | Y36: 0 | Z36: 0 | AA36: 0 | AB36: 0 | AC36: 0 | AD36: 0 | AE36: 0 | AF36: 0 | AG36: 0 | AH36: 0 | AI36: 0 | AJ36: 0 | AK36: 0 | AL36: 0 | AM36: 0 | AN36: 0 | AO36: 0 | AP36: 0 | AQ36: 0 | AR36: 0 | AS36: 0 | AT36: 0 | AU36: 0 | AV36: 0 | AW36: 0 | AX36: 0 | AY36: 0 | AZ36: 0 | BA36: 0 | BB36: 0 | BC36: 0 | BD36: 0
B37: 2040 | C37: =Inputs_AS!I60 -> 27062.9898 | D37: 2038.45 | E37: 27062.9898 | F37: 27045.01628 | G37: 26973.84518 | H37: =IF(H$17>$D37+1,0,G37*(1-1/($D37-H$17+2)+G$11)) -> 26008.44389 | I37: 24897.23523 | J37: 23672.18787 | K37: 22385.61766 | L37: 21035.28844 | M37: 19618.85111 | N37: 18133.82611 | O37: 16577.57924 | P37: 14947.28712 | Q37: 13239.8856 | R37: 11451.98787 | S37: 9579.745451 | T37: 7618.588573 | U37: 5562.673802 | V37: 3403.448175 | W37: 1124.311501 | X37: 0 | Y37: 0 | Z37: 0 | AA37: 0 | AB37: 0 | AC37: 0 | AD37: 0 | AE37: 0 | AF37: 0 | AG37: 0 | AH37: 0 | AI37: 0 | AJ37: 0 | AK37: 0 | AL37: 0 | AM37: 0 | AN37: 0 | AO37: 0 | AP37: 0 | AQ37: 0 | AR37: 0 | AS37: 0 | AT37: 0 | AU37: 0 | AV37: 0 | AW37: 0 | AX37: 0 | AY37: 0 | AZ37: 0 | BA37: 0 | BB37: 0 | BC37: 0 | BD37: 0
B38: 2041 | C38: =Inputs_AS!I61 -> 1348.632627 | D38: 2039.36 | E38: 1348.632627 | F38: =IF(F$17>$B38,0,E38*(1-1/($B38-F$17+2)+E$11)) -> 1350.94798 | G38: 1350.94798 | H38: =IF(H$17>$D38+1,0,G38*(1-1/($D38-H$17+2)+G$11)) -> 1306.902096 | I38: 1255.769951 | J38: 1199.129494 | K38: 1139.607244 | L38: 1077.099446 | M38: 1011.497466 | N38: 942.6871457 | O38: 870.5479209 | P38: 794.9516228 | Q38: 715.7607483 | R38: 632.8258616 | S38: 545.9814572 | T38: 455.0388741 | U38: 359.7729374 | V38: 259.8931171 | W38: 154.9667773 | X38: 44.11995307 | Y38: 0 | Z38: 0 | AA38: 0 | AB38: 0 | AC38: 0 | AD38: 0 | AE38: 0 | AF38: 0 | AG38: 0 | AH38: 0 | AI38: 0 | AJ38: 0 | AK38: 0 | AL38: 0 | AM38: 0 | AN38: 0 | AO38: 0 | AP38: 0 | AQ38: 0 | AR38: 0 | AS38: 0 | AT38: 0 | AU38: 0 | AV38: 0 | AW38: 0 | AX38: 0 | AY38: 0 | AZ38: 0 | BA38: 0 | BB38: 0 | BC38: 0 | BD38: 0
B39: 2042 | C39: =Inputs_AS!I62 -> 13.30130839 | D39: 2040.27 | E39: 13.30130839 | F39: 13.352935 | G39: 13.3847277 | H39: =IF(H$17>$D39+1,0,G39*(1-1/($D39-H$17+2)+G$11)) -> 12.98673901 | I39: 12.5204647 | J39: 12.00133099 | K39: 11.45541583 | L39: 10.881762 | M39: 10.27936996 | N39: 9.647192895 | O39: 8.984130285 | P39: 8.28901929 | Q39: 7.560622837 | R39: 6.79761246 | S39: 5.998542363 | T39: 5.161807889 | U39: 4.285573859 | V39: 3.367638062 | W39: 2.405132089 | X39: 1.393705176 | Y39: 0.3241736292 | Z39: 0 | AA39: 0 | AB39: 0 | AC39: 0 | AD39: 0 | AE39: 0 | AF39: 0 | AG39: 0 | AH39: 0 | AI39: 0 | AJ39: 0 | AK39: 0 | AL39: 0 | AM39: 0 | AN39: 0 | AO39: 0 | AP39: 0 | AQ39: 0 | AR39: 0 | AS39: 0 | AT39: 0 | AU39: 0 | AV39: 0 | AW39: 0 | AX39: 0 | AY39: 0 | AZ39: 0 | BA39: 0 | BB39: 0 | BC39: 0 | BD39: 0
B40: 2043 | C40: =Inputs_AS!I63 -> 11808.27003 | D40: 2041.18 | E40: 11808.27003 | F40: 11877.43818 | G40: 11931.42654 | H40: =IF(H$17>$D40+1,0,G40*(1-1/($D40-H$17+2)+G$11)) -> 11607.63574 | I40: 11224.51991 | J40: 10795.66224 | K40: 10344.35285 | L40: 9869.793733 | M40: 9371.153379 | N40: 8847.563291 | O40: 8298.11363 | P40: 7721.847492 | Q40: 7117.753254 | R40: 6484.753934 | S40: 5821.691808 | T40: 5127.305058 | U40: 4400.190147 | V40: 3638.736393 | W40: 2841.000022 | X40: 2004.423789 | Y40: 1125.051811 | Z40: 194.1191091 | AA40: 0 | AB40: 0 | AC40: 0 | AD40: 0 | AE40: 0 | AF40: 0 | AG40: 0 | AH40: 0 | AI40: 0 | AJ40: 0 | AK40: 0 | AL40: 0 | AM40: 0 | AN40: 0 | AO40: 0 | AP40: 0 | AQ40: 0 | AR40: 0 | AS40: 0 | AT40: 0 | AU40: 0 | AV40: 0 | AW40: 0 | AX40: 0 | AY40: 0 | AZ40: 0 | BA40: 0 | BB40: 0 | BC40: 0 | BD40: 0
B41: 2044 | C41: =Inputs_AS!I64 -> 13909.71999 | D41: 2042.09 | E41: 13909.71999 | F41: 14016.39637 | G41: 14107.80765 | H41: =IF(H$17>$D41+1,0,G41*(1-1/($D41-H$17+2)+G$11)) -> 13758.2725 | I41: 13340.24876 | J41: 12869.61599 | K41: 12373.95881 | L41: 11852.39144 | M41: 11303.99252 | N41: 10727.80179 | O41: 10122.81606 | P41: 9487.984034 | Q41: 8822.199618 | R41: 8124.292806 | S41: 7393.017077 | T41: 6627.031056 | U41: 5824.870541 | V41: 4984.903166 | W41: 4105.248938 | X41: 3183.62557 | Y41: 2216.998544 | Z41: 1200.573661 | AA41: 123.1414086 | AB41: 0 | AC41: 0 | AD41: 0 | AE41: 0 | AF41: 0 | AG41: 0 | AH41: 0 | AI41: 0 | AJ41: 0 | AK41: 0 | AL41: 0 | AM41: 0 | AN41: 0 | AO41: 0 | AP41: 0 | AQ41: 0 | AR41: 0 | AS41: 0 | AT41: 0 | AU41: 0 | AV41: 0 | AW41: 0 | AX41: 0 | AY41: 0 | AZ41: 0 | BA41: 0 | BB41: 0 | BC41: 0 | BD41: 0
B42: 2045 | C42: =Inputs_AS!I65 -> 5816.779882 | D42: 2043 | E42: 5816.779882 | F42: 5871.084545 | G42: 5920.010249 | H42: =IF(H$17>$D42+1,0,G42*(1-1/($D42-H$17+2)+G$11)) -> 5786.105256 | I42: 5624.094308 | J42: 5440.571231 | K42: 5247.128698 | L42: 5043.416643 | M42: 4829.071436 | N42: 4603.714769 | O42: 4366.952295 | P42: 4118.371933 | Q42: 3857.541711 | R42: 3584.006935 | S42: 3297.28638 | T42: 2996.866955 | U42: 2682.195924 | V42: 2352.668996 | W42: 2007.610877 | X42: 1646.240919 | Y42: 1267.605508 | Z42: 870.4224486 | AA42: 452.6196733 | AB42: 9.052393466 | AC42: 0 | AD42: 0 | AE42: 0 | AF42: 0 | AG42: 0 | AH42: 0 | AI42: 0 | AJ42: 0 | AK42: 0 | AL42: 0 | AM42: 0 | AN42: 0 | AO42: 0 | AP42: 0 | AQ42: 0 | AR42: 0 | AS42: 0 | AT42: 0 | AU42: 0 | AV42: 0 | AW42: 0 | AX42: 0 | AY42: 0 | AZ42: 0 | BA42: 0 | BB42: 0 | BC42: 0 | BD42: 0
B43: 2046 | C43: =Inputs_AS!I66 -> 37199.36876 | D43: 2043.91 | E43: 37199.36876 | F43: 37603.88678 | G43: 37979.92565 | H43: =IF(H$17>$D43+1,0,G43*(1-1/($D43-H$17+2)+G$11)) -> 37195.97214 | I43: 36235.42307 | J43: 35140.17056 | K43: 33984.6889 | L43: 32766.85678 | M43: 31484.47323 | N43: 30135.25174 | O43: 28716.81313 | P43: 27226.67685 | Q43: 25662.25013 | R43: 24020.81419 | S43: 22299.50598 | T43: 20495.29368 | U43: 18604.94213 | V43: 16624.96232 | W43: 14551.53359 | X43: 12380.37583 | Y43: 10106.52188 | Z43: 7723.864111 | AA43: 5224.092558 | AB43: 2593.447416 | AC43: 0 | AD43: 0 | AE43: 0 | AF43: 0 | AG43: 0 | AH43: 0 | AI43: 0 | AJ43: 0 | AK43: 0 | AL43: 0 | AM43: 0 | AN43: 0 | AO43: 0 | AP43: 0 | AQ43: 0 | AR43: 0 | AS43: 0 | AT43: 0 | AU43: 0 | AV43: 0 | AW43: 0 | AX43: 0 | AY43: 0 | AZ43: 0 | BA43: 0 | BB43: 0 | BC43: 0 | BD43: 0
B44: 2047 | C44: =Inputs_AS!I67 -> 101554.3749 | D44: 2044.81 | E44: 101554.3749 | F44: 102803.3746 | G44: 103989.5674 | H44: =IF(H$17>$D44+1,0,G44*(1-1/($D44-H$17+2)+G$11)) -> 102030.3601 | I44: 99596.88225 | J44: 96802.80922 | K44: 93852.30259 | L44: 90739.85887 | M44: 87459.77346 | N44: 84006.12697 | O44: 80372.76899 | P44: 76553.29871 | Q44: 72541.0411 | R44: 68329.01718 | S44: 63909.90598 | T44: 59275.99439 | U44: 54419.10914 | V44: 49330.52093 | W44: 44000.80345 | X44: 38419.6149 | Y44: 32575.33682 | Z44: 26454.42426 | AA44: 20040.0943 | AB44: 13309.19003 | AC44: 6222.230168 | AD44: 0 | AE44: 0 | AF44: 0 | AG44: 0 | AH44: 0 | AI44: 0 | AJ44: 0 | AK44: 0 | AL44: 0 | AM44: 0 | AN44: 0 | AO44: 0 | AP44: 0 | AQ44: 0 | AR44: 0 | AS44: 0 | AT44: 0 | AU44: 0 | AV44: 0 | AW44: 0 | AX44: 0 | AY44: 0 | AZ44: 0 | BA44: 0 | BB44: 0 | BC44: 0 | BD44: 0
B45: 2048 | C45: =Inputs_AS!I68 -> 37285.46137 | D45: 2045.72 | E45: 37285.46137 | F45: 37793.34817 | G45: 38283.26195 | H45: =IF(H$17>$D45+1,0,G45*(1-1/($D45-H$17+2)+G$11)) -> 37626.37798 | I45: 36798.06772 | J45: 35839.82706 | K45: 34826.90222 | L45: 33757.37017 | M45: 32629.23925 | N45: 31440.44485 | O45: 30188.84436 | P45: 28872.2113 | Q45: 27488.22813 | R45: 26034.47752 | S45: 24508.43142 | T45: 22907.43696 | U45: 21228.69792 | V45: 19469.24946 | W45: 17625.92236 | X45: 15695.29024 | Y45: 13673.58738 | Z45: 11556.57182 | AA45: 9339.277024 | AB45: 7015.504225 | AC45: 4576.584815 | AD45: 2007.311386 | AE45: 0 | AF45: 0 | AG45: 0 | AH45: 0 | AI45: 0 | AJ45: 0 | AK45: 0 | AL45: 0 | AM45: 0 | AN45: 0 | AO45: 0 | AP45: 0 | AQ45: 0 | AR45: 0 | AS45: 0 | AT45: 0 | AU45: 0 | AV45: 0 | AW45: 0 | AX45: 0 | AY45: 0 | AZ45: 0 | BA45: 0 | BB45: 0 | BC45: 0 | BD45: 0
B46: 2049 | C46: =Inputs_AS!I69 -> 48813.05917 | D46: 2046.63 | E46: 48813.05917 | F46: 49538.08465 | G46: 50245.77157 | H46: =IF(H$17>$D46+1,0,G46*(1-1/($D46-H$17+2)+G$11)) -> 49461.89265 | I46: 48456.87221 | J46: 47284.74265 | K46: 46044.36526 | L46: 44733.33956 | M46: 43349.18111 | N46: 41889.31658 | O46: 40351.07814 | P46: 38731.69693 | Q46: 37028.29524 | R46: 35237.87719 | S46: 33357.31726 | T46: 31383.34585 | U46: 29312.53075 | V46: 27141.2526 | W46: 24865.67136 | X46: 22481.67872 | Y46: 19984.82753 | Z46: 17370.22129 | AA46: 14632.32886 | AB46: 11764.64523 | AC46: 8758.989036 | AD46: 5603.754734 | AE46: 2277.943489 | AF46: 0 | AG46: 0 | AH46: 0 | AI46: 0 | AJ46: 0 | AK46: 0 | AL46: 0 | AM46: 0 | AN46: 0 | AO46: 0 | AP46: 0 | AQ46: 0 | AR46: 0 | AS46: 0 | AT46: 0 | AU46: 0 | AV46: 0 | AW46: 0 | AX46: 0 | AY46: 0 | AZ46: 0 | BA46: 0 | BB46: 0 | BC46: 0 | BD46: 0
B47: 2050 | C47: =Inputs_AS!I70 -> 13079.84059 | D47: 2047.54 | E47: 13079.84059 | F47: 13289.15113 | G47: 13495.3621 | H47: =IF(H$17>$D47+1,0,G47*(1-1/($D47-H$17+2)+G$11)) -> 13304.34513 | I47: 13054.89137 | J47: 12761.40588 | K47: 12450.46692 | L47: 12121.46015 | M47: 11773.75011 | N47: 11406.67904 | O47: 11019.56564 | P47: 10611.7035 | Q47: 10182.35936 | R47: 9730.771071 | S47: 9256.145015 | T47: 8757.65307 | U47: 8234.428693 | V47: 7685.561921 | W47: 7110.092712 | X47: 6507.001829 | Y47: 5875.197857 | Z47: 5213.497855 | AA47: 4520.596886 | AB47: 3795.016606 | AC47: 3035.010197 | AD47: 2238.362887 | AE47: 1401.884914 | AF47: 519.607733 | AG47: 0 | AH47: 0 | AI47: 0 | AJ47: 0 | AK47: 0 | AL47: 0 | AM47: 0 | AN47: 0 | AO47: 0 | AP47: 0 | AQ47: 0 | AR47: 0 | AS47: 0 | AT47: 0 | AU47: 0 | AV47: 0 | AW47: 0 | AX47: 0 | AY47: 0 | AZ47: 0 | BA47: 0 | BB47: 0 | BC47: 0 | BD47: 0
B48: 2051 | C48: =Inputs_AS!I71 -> 1183.385459 | D48: 2048.45 | E48: 1183.385459 | F48: 1203.595078 | G48: 1223.654996 | H48: =IF(H$17>$D48+1,0,G48*(1-1/($D48-H$17+2)+G$11)) -> 1207.983422 | I48: 1187.09409 | J48: 1162.284066 | K48: 1135.965395 | L48: 1108.084908 | M48: 1078.587636 | N48: 1047.416717 | O48: 1014.513292 | P48: 979.8163876 | Q48: 943.2627791 | R48: 904.7868323 | S48: 864.3203144 | T48: 821.7921661 | U48: 777.1282201 | V48: 730.2508471 | W48: 681.0784975 | X48: 629.5250916 | Y48: 575.4991816 | Z48: 518.9027532 | AA48: 459.629432 | AB48: 397.5616436 | AC48: 332.5657859 | AD48: 264.4832172 | AE48: 193.1110794 | AF48: 118.1524523 | AG48: 39.03105147 | AH48: 0 | AI48: 0 | AJ48: 0 | AK48: 0 | AL48: 0 | AM48: 0 | AN48: 0 | AO48: 0 | AP48: 0 | AQ48: 0 | AR48: 0 | AS48: 0 | AT48: 0 | AU48: 0 | AV48: 0 | AW48: 0 | AX48: 0 | AY48: 0 | AZ48: 0 | BA48: 0 | BB48: 0 | BC48: 0 | BD48: 0
B49: 2052 | C49: =Inputs_AS!I72 -> 28656.90348 | D49: 2049.36 | E49: 28656.90348 | F49: 29175.18832 | G49: 29692.81262 | H49: =IF(H$17>$D49+1,0,G49*(1-1/($D49-H$17+2)+G$11)) -> 29349.86932 | I49: 28882.14197 | J49: 28320.89908 | K49: 27724.71858 | L49: 27092.36712 | M49: 26422.57014 | N49: 25714.00983 | O49: 24965.32294 | P49: 24175.09826 | Q49: 23341.87374 | R49: 22464.13323 | S49: 21540.30262 | T49: 20568.74522 | U49: 19547.75625 | V49: 18475.55597 | W49: 17350.281 | X49: 16169.97316 | Y49: 14932.5644 | Z49: 13635.85624 | AA49: 12277.49009 | AB49: 10854.90265 | AC49: 9365.255001 | AD49: 7805.311034 | AE49: 6171.208302 | AF49: 4457.96333 | AG49: 2658.155084 | AH49: 756.7923886 | AI49: 0 | AJ49: 0 | AK49: 0 | AL49: 0 | AM49: 0 | AN49: 0 | AO49: 0 | AP49: 0 | AQ49: 0 | AR49: 0 | AS49: 0 | AT49: 0 | AU49: 0 | AV49: 0 | AW49: 0 | AX49: 0 | AY49: 0 | AZ49: 0 | BA49: 0 | BB49: 0 | BC49: 0 | BD49: 0
B50: 2053 | C50: =Inputs_AS!I73 -> 13614.16278 | D50: 2050.27 | E50: =C50 -> 13614.16278 | F50: 13873.27886 | G50: 14133.40284 | H50: =IF(H$17>$D50+1,0,G50*(1-1/($D50-H$17+2)+G$11)) -> 13986.79441 | I50: 13781.60347 | J50: 13532.62178 | K50: 13267.75297 | L50: 12986.43506 | M50: 12688.08748 | N50: 12372.11023 | O50: 12037.88294 | P50: 11684.76379 | Q50: 11312.08834 | R50: 10919.16819 | S50: 10505.28935 | T50: 10069.71048 | U50: 9611.660652 | V50: 9130.336707 | W50: 8624.899982 | X50: 8094.472147 | Y50: 7538.129811 | Z50: 6954.897295 | AA50: 6343.736633 | AB50: 5703.533175 | AC50: 5033.073828 | AD50: 4331.012206 | AE50: 3595.808502 | AF50: 2825.614953 | AG50: 2018.02482 | AH50: 1169.387598 | AI50: 271.9977138 | AJ50: 0 | AK50: 0 | AL50: 0 | AM50: 0 | AN50: 0 | AO50: 0 | AP50: 0 | AQ50: 0 | AR50: 0 | AS50: 0 | AT50: 0 | AU50: 0 | AV50: 0 | AW50: 0 | AX50: 0 | AY50: 0 | AZ50: 0 | BA50: 0 | BB50: 0 | BC50: 0 | BD50: 0
B51: 2054 | C51: =Inputs_AS!I74 -> 13068.37652 | D51: 2051.18 | E51: 13068.37652 | F51: 13328.75214 | G51: 13591.28817 | H51: =IF(H$17>$D51+1,0,G51*(1-1/($D51-H$17+2)+G$11)) -> 13465.29628 | I51: 13283.70113 | J51: 13060.64443 | K51: 12822.97861 | L51: 12570.18566 | M51: 12301.73058 | N51: 12017.06068 | O51: 11715.60475 | P51: 11396.77214 | Q51: 11059.95178 | R51: 10704.51099 | S51: 10329.79423 | T51: 9935.12153 | U51: 9519.786783 | V51: 9083.05559 | W51: 8624.162711 | X51: 8142.308886 | Y51: 7636.656797 | Z51: 7106.325819 | AA51: 6550.384966 | AB51: 5967.843104 | AC51: 5357.634795 | AD51: 4718.598801 | AE51: 4049.443463 | AF51: 3348.68649 | AG51: 2614.53905 | AH51: 1844.64774 | AI51: 1035.372006 | AJ51: 178.6455428 | AK51: 0 | AL51: 0 | AM51: 0 | AN51: 0 | AO51: 0 | AP51: 0 | AQ51: 0 | AR51: 0 | AS51: 0 | AT51: 0 | AU51: 0 | AV51: 0 | AW51: 0 | AX51: 0 | AY51: 0 | AZ51: 0 | BA51: 0 | BB51: 0 | BC51: 0 | BD51: 0
B52: 2055 | C52: =Inputs_AS!I75 -> 286637.912 | D52: =IF($D$4,ROUND(MIN(D$5,2023+(B52-2023)*$D$6),2),B52) -> 2052.09 | E52: 286637.912 | F52: 292589.7862 | G52: 298613.6935 | H52: =IF(H$17>$D52+1,0,G52*(1-1/($D52-H$17+2)+G$11)) -> 296155.0182 | I52: 292489.7817 | J52: 287926.9827 | K52: 283056.9885 | L52: 277868.8761 | M52: 272351.3682 | N52: 266492.8178 | O52: 260281.1922 | P52: 253704.055 | Q52: 246748.546 | R52: 239401.3593 | S52: 231648.7181 | T52: 223476.346 | U52: 214869.4337 | V52: 205812.6003 | W52: 196289.8463 | X52: 186284.4973 | Y52: 175779.1332 | Z52: 164755.4989 | AA52: 153194.3871 | AB52: 141075.4813 | AC52: 128377.136 | AD52: 115076.0587 | AE52: 101146.8241 | AF52: 86561.08665 | AG52: 71286.20098 | AH52: 55282.53601 | AI52: 38497.39838 | AJ52: 20847.53851 | AK52: 2138.307161 | AL52: 0 | AM52: 0 | AN52: 0 | AO52: 0 | AP52: 0 | AQ52: 0 | AR52: 0 | AS52: 0 | AT52: 0 | AU52: 0 | AV52: 0 | AW52: 0 | AX52: 0 | AY52: 0 | AZ52: 0 | BA52: 0 | BB52: 0 | BC52: 0 | BD52: 0
B53: 2056 | C53: =Inputs_AS!I76 -> 0 | D53: 2053 | E53: 0 | F53: 0 | G53: 0 | H53: =IF(H$17>$D53+1,0,G53*(1-1/($D53-H$17+2)+G$11)) -> 0 | I53: 0 | J53: 0 | K53: 0 | L53: 0 | M53: 0 | N53: 0 | O53: 0 | P53: 0 | Q53: 0 | R53: 0 | S53: 0 | T53: 0 | U53: 0 | V53: 0 | W53: 0 | X53: 0 | Y53: 0 | Z53: 0 | AA53: 0 | AB53: 0 | AC53: 0 | AD53: 0 | AE53: 0 | AF53: 0 | AG53: 0 | AH53: 0 | AI53: 0 | AJ53: 0 | AK53: 0 | AL53: 0 | AM53: 0 | AN53: 0 | AO53: 0 | AP53: 0 | AQ53: 0 | AR53: 0 | AS53: 0 | AT53: 0 | AU53: 0 | AV53: 0 | AW53: 0 | AX53: 0 | AY53: 0 | AZ53: 0 | BA53: 0 | BB53: 0 | BC53: 0 | BD53: 0
B54: 2057 | C54: =Inputs_AS!I77 -> 4013.195266 | D54: 2053.9 | E54: 4013.195266 | F54: 4102.724983 | G54: 4193.896649 | H54: =IF(H$17>$D54+1,0,G54*(1-1/($D54-H$17+2)+G$11)) -> 4167.273951 | I54: 4124.090743 | J54: 4068.643102 | K54: 4009.232465 | L54: 3945.717026 | M54: 3877.950436 | N54: 3805.781629 | O54: 3729.054626 | P54: 3647.608328 | Q54: 3561.276288 | R54: 3469.886458 | S54: 3373.260912 | T54: 3271.215532 | U54: 3163.559656 | V54: 3050.095672 | W54: 2930.618552 | X54: 2804.915291 | Y54: 2672.764248 | Z54: 2533.934335 | AA54: 2388.184004 | AB54: 2235.259953 | AC54: 2074.895431 | AD54: 1906.807943 | AE54: 1730.696018 | AF54: 1546.234493 | AG54: 1353.067228 | AH54: 1150.795144 | AI54: 938.9548948 | AJ54: 716.9763273 | AK54: 484.0826376 | AL54: 238.9839548 | AM54: 0 | AN54: 0 | AO54: 0 | AP54: 0 | AQ54: 0 | AR54: 0 | AS54: 0 | AT54: 0 | AU54: 0 | AV54: 0 | AW54: 0 | AX54: 0 | AY54: 0 | AZ54: 0 | BA54: 0 | BB54: 0 | BC54: 0 | BD54: 0
B55: 2058 | C55: =Inputs_AS!I78 -> 854.6862886 | D55: 2054.81 | E55: 854.6862886 | F55: 874.3612301 | G55: 894.447907 | H55: =IF(H$17>$D55+1,0,G55*(1-1/($D55-H$17+2)+G$11)) -> 889.5476628 | I55: 881.1533083 | J55: 870.1767864 | K55: 858.3895544 | L55: 845.7624981 | M55: 832.2655762 | N55: 817.8677853 | O55: 802.5371214 | P55: 786.2405393 | Q55: 768.9439079 | R55: 750.6119615 | S55: 731.2082465 | T55: 710.6950618 | U55: 689.033392 | V55: 666.1828322 | W55: 642.1015011 | X55: 616.7459403 | Y55: 590.0709957 | Z55: 562.0296745 | AA55: 532.5729708 | AB55: 501.6496472 | AC55: 469.2059554 | AD55: 435.1852682 | AE55: 399.5275803 | AF55: 362.1688038 | AG55: 323.0397338 | AH55: 282.0644443 | AI55: 239.157636 | AJ55: 194.2198665 | AK55: 147.1279209 | AL55: 97.71178861 | AM55: 45.68161079 | AN55: 0 | AO55: 0 | AP55: 0 | AQ55: 0 | AR55: 0 | AS55: 0 | AT55: 0 | AU55: 0 | AV55: 0 | AW55: 0 | AX55: 0 | AY55: 0 | AZ55: 0 | BA55: 0 | BB55: 0 | BC55: 0 | BD55: 0
B56: 2059 | C56: =Inputs_AS!I79 -> 1942.739924 | D56: 2055.72 | E56: 1942.739924 | F56: 1988.772832 | G56: 2035.875346 | H56: =IF(H$17>$D56+1,0,G56*(1-1/($D56-H$17+2)+G$11)) -> 2026.39633 | I56: 2009.045621 | J56: 1985.88966 | K56: 1960.962607 | L56: 1934.200614 | M56: 1905.537809 | N56: 1874.90622 | O56: 1842.235698 | P56: 1807.45383 | Q56: 1770.485842 | R56: 1731.254503 | S56: 1689.680011 | T56: 1645.679872 | U56: 1599.168766 | V56: 1550.05839 | W56: 1498.257293 | X56: 1443.670673 | Y56: 1386.200147 | Z56: 1325.743479 | AA56: 1262.194254 | AB56: 1195.441473 | AC56: 1125.369055 | AD56: 1051.855185 | AE56: 974.7714694 | AF56: 893.9817682 | AG56: 809.3405586 | AH56: 720.6905098 | AI56: 627.8587084 | AJ56: 530.6503741 | AK56: 428.8374549 | AL56: 322.1353183 | AM56: 210.1459223 | AN56: 92.17097896 | AO56: 0 | AP56: 0 | AQ56: 0 | AR56: 0 | AS56: 0 | AT56: 0 | AU56: 0 | AV56: 0 | AW56: 0 | AX56: 0 | AY56: 0 | AZ56: 0 | BA56: 0 | BB56: 0 | BC56: 0 | BD56: 0
B57: 2060 | C57: =Inputs_AS!I80 -> 1286.523085 | D57: 2056.63 | E57: 1286.523085 | F57: 1317.831735 | G57: 1349.932764 | H57: =IF(H$17>$D57+1,0,G57*(1-1/($D57-H$17+2)+G$11)) -> 1344.699484 | I57: 1334.297756 | J57: 1320.091963 | K57: 1304.758362 | L57: 1288.256129 | M57: 1270.543151 | N57: 1251.575979 | O57: 1231.309779 | P57: 1209.698281 | Q57: 1186.693718 | R57: 1162.246768 | S57: 1136.306482 | T57: 1108.820218 | U57: 1079.733552 | V57: 1048.990193 | W57: 1016.531882 | X57: 982.2982747 | Y57: 946.2268112 | Z57: 908.2525614 | AA57: 868.3080437 | AB57: 826.3230055 | AC57: 782.2241534 | AD57: 735.9348159 | AE57: 687.3745083 | AF57: 636.458357 | AG57: 583.0963137 | AH57: 527.192039 | AI57: 468.6412482 | AJ57: 407.3291187 | AK57: 343.1259464 | AL57: 275.8791897 | AM57: 205.3969967 | AN57: 131.4072193 | AO57: 53.41743772 | AP57: 0 | AQ57: 0 | AR57: 0 | AS57: 0 | AT57: 0 | AU57: 0 | AV57: 0 | AW57: 0 | AX57: 0 | AY57: 0 | AZ57: 0 | BA57: 0 | BB57: 0 | BC57: 0 | BD57: 0
B58: 2061 | C58: =Inputs_AS!I81 -> 0 | D58: 2057.54 | E58: 0 | F58: =IF(F$17>$B58,0,E58*(1-1/($B58-F$17+2)+E$11)) -> 0 | G58: 0 | H58: =IF(H$17>$D58+1,0,G58*(1-1/($D58-H$17+2)+G$11)) -> 0 | I58: 0 | J58: 0 | K58: 0 | L58: 0 | M58: 0 | N58: 0 | O58: 0 | P58: 0 | Q58: 0 | R58: 0 | S58: 0 | T58: 0 | U58: 0 | V58: 0 | W58: 0 | X58: 0 | Y58: 0 | Z58: 0 | AA58: 0 | AB58: 0 | AC58: 0 | AD58: 0 | AE58: 0 | AF58: 0 | AG58: 0 | AH58: 0 | AI58: 0 | AJ58: 0 | AK58: 0 | AL58: 0 | AM58: 0 | AN58: 0 | AO58: 0 | AP58: 0 | AQ58: 0 | AR58: 0 | AS58: 0 | AT58: 0 | AU58: 0 | AV58: 0 | AW58: 0 | AX58: 0 | AY58: 0 | AZ58: 0 | BA58: 0 | BB58: 0 | BC58: 0 | BD58: 0
B59: 2062 | C59: =Inputs_AS!I82 -> 3501.911095 | D59: 2058.45 | E59: 3501.911095 | F59: 3591.302066 | G59: 3683.274436 | H59: =IF(H$17>$D59+1,0,G59*(1-1/($D59-H$17+2)+G$11)) -> 3674.306244 | I59: 3651.493415 | J59: 3618.52928 | K59: 3582.722607 | L59: 3543.969583 | M59: 3502.163138 | N59: 3457.192833 | O59: 3408.944742 | P59: 3357.301326 | Q59: 3302.141294 | R59: 3243.339458 | S59: 3180.766583 | T59: 3114.289212 | U59: 3043.769486 | V59: 2969.064943 | W59: 2890.028296 | X59: 2806.507185 | Y59: 2718.3439 | Z59: 2625.375065 | AA59: 2527.431273 | AB59: 2424.33666 | AC59: 2315.908399 | AD59: 2201.95609 | AE59: 2082.281004 | AF59: 1956.675138 | AG59: 1824.919983 | AH59: 1686.784891 | AI59: 1542.024833 | AJ59: 1390.377184 | AK59: 1231.556918 | AL59: 1065.248999 | AM59: 891.0954471 | AN59: 708.6711881 | AO59: 517.4326733 | AP59: 316.5843173 | AQ59: 104.5819917 | AR59: 0 | AS59: 0 | AT59: 0 | AU59: 0 | AV59: 0 | AW59: 0 | AX59: 0 | AY59: 0 | AZ59: 0 | BA59: 0 | BB59: 0 | BC59: 0 | BD59: 0
B60: 2063 | C60: =Inputs_AS!I83 -> 133.7665539 | D60: 2059.36 | E60: 133.7665539 | F60: 137.2551923 | G60: 140.8499711 | H60: =IF(H$17>$D60+1,0,G60*(1-1/($D60-H$17+2)+G$11)) -> 140.6011462 | I60: 139.8274532 | J60: 138.669606 | K60: 137.4072121 | L60: 136.0364351 | M60: 134.5533185 | N60: 132.9537816 | O60: 131.2336154 | P60: 129.3884779 | Q60: 127.4138893 | R60: 125.3052267 | S60: 123.0577187 | T60: 120.6664394 | U60: 118.1263018 | V60: 115.4320513 | W60: 112.5782571 | X60: 109.5593046 | Y60: 106.3693853 | Z60: 103.0024866 | AA60: 99.4523791 | AB60: 95.712603 | AC60: 91.77645146 | AD60: 87.6369511 | AE60: 83.28683837 | AF60: 78.71853035 | AG60: 73.92408782 | AH60: 68.89516748 | AI60: 63.62295814 | AJ60: 58.09809271 | AK60: 52.31052195 | AL60: 46.24932451 | AM60: 39.90240463 | AN60: 33.25597425 | AO60: 26.2935767 | AP60: 18.99397898 | AQ60: 11.32556238 | AR60: 3.224454231 | AS60: 0 | AT60: 0 | AU60: 0 | AV60: 0 | AW60: 0 | AX60: 0 | AY60: 0 | AZ60: 0 | BA60: 0 | BB60: 0 | BC60: 0 | BD60: 0
B61: 2064 | C61: =Inputs_AS!I84 -> 0 | D61: 2060 | E61: 0 | F61: 0 | G61: 0 | H61: =IF(H$17>$D61+1,0,G61*(1-1/($D61-H$17+2)+G$11)) -> 0 | I61: 0 | J61: 0 | K61: 0 | L61: 0 | M61: 0 | N61: 0 | O61: 0 | P61: 0 | Q61: 0 | R61: 0 | S61: 0 | T61: 0 | U61: 0 | V61: 0 | W61: 0 | X61: 0 | Y61: 0 | Z61: 0 | AA61: 0 | AB61: 0 | AC61: 0 | AD61: 0 | AE61: 0 | AF61: 0 | AG61: 0 | AH61: 0 | AI61: 0 | AJ61: 0 | AK61: 0 | AL61: 0 | AM61: 0 | AN61: 0 | AO61: 0 | AP61: 0 | AQ61: 0 | AR61: 0 | AS61: 0 | AT61: 0 | AU61: 0 | AV61: 0 | AW61: 0 | AX61: 0 | AY61: 0 | AZ61: 0 | BA61: 0 | BB61: 0 | BC61: 0 | BD61: 0
B62: 2065 | C62: =Inputs_AS!I85 -> -572.0378424 | D62: 2060 | E62: -572.0378424 | F62: -587.5478712 | G62: -603.5719041 | H62: =IF(H$17>$D62+1,0,G62*(1-1/($D62-H$17+2)+G$11)) -> -602.7777305 | I62: -599.7475506 | J62: -595.0828474 | K62: -589.9821373 | L62: -584.4293642 | M62: -578.4079708 | N62: -571.9008811 | O62: -564.8904832 | P62: -557.3586101 | Q62: -549.2865199 | R62: -540.6548746 | S62: -531.4437175 | T62: -521.6324488 | U62: -511.1997998 | V62: -500.1238042 | W62: -488.381767 | X62: -475.9502312 | Y62: -462.8049391 | Z62: -448.9207909 | AA62: -434.2717967 | AB62: -418.8310217 | AC62: -402.5705232 | AD62: -385.4612759 | AE62: -367.4730831 | AF62: -348.5744674 | AG62: -328.7325361 | AH62: -307.9128089 | AI62: -286.0789915 | AJ62: -263.1926722 | AK62: -239.2128954 | AL62: -214.0955414 | AM62: -187.7923749 | AN62: -160.2494932 | AO62: -131.4045844 | AP62: -101.18153 | AQ62: -69.47798394 | AR62: -36.12855165 | AS62: 0 | AT62: 0 | AU62: 0 | AV62: 0 | AW62: 0 | AX62: 0 | AY62: 0 | AZ62: 0 | BA62: 0 | BB62: 0 | BC62: 0 | BD62: 0
B63: 2066 | C63: =Inputs_AS!I86 -> 0 | D63: 2060 | E63: 0 | F63: 0 | G63: 0 | H63: =IF(H$17>$D63+1,0,G63*(1-1/($D63-H$17+2)+G$11)) -> 0 | I63: 0 | J63: 0 | K63: 0 | L63: 0 | M63: 0 | N63: 0 | O63: 0 | P63: 0 | Q63: 0 | R63: 0 | S63: 0 | T63: 0 | U63: 0 | V63: 0 | W63: 0 | X63: 0 | Y63: 0 | Z63: 0 | AA63: 0 | AB63: 0 | AC63: 0 | AD63: 0 | AE63: 0 | AF63: 0 | AG63: 0 | AH63: 0 | AI63: 0 | AJ63: 0 | AK63: 0 | AL63: 0 | AM63: 0 | AN63: 0 | AO63: 0 | AP63: 0 | AQ63: 0 | AR63: 0 | AS63: 0 | AT63: 0 | AU63: 0 | AV63: 0 | AW63: 0 | AX63: 0 | AY63: 0 | AZ63: 0 | BA63: 0 | BB63: 0 | BC63: 0 | BD63: 0
B64: 2067 | C64: =Inputs_AS!I87 -> 141.9616949 | D64: 2060 | E64: 141.9616949 | F64: 145.9450361 | G64: 150.0695697 | H64: =IF(H$17>$D64+1,0,G64*(1-1/($D64-H$17+2)+G$11)) -> 149.8721097 | I64: 149.1186986 | J64: 147.9588865 | K64: 146.6906675 | L64: 145.3100494 | M64: 143.8129156 | N64: 142.1950203 | O64: 140.4519845 | P64: 138.5792914 | Q64: 136.572281 | R64: 134.4261451 | S64: 132.1359219 | T64: 129.6964895 | U64: 127.1025597 | V64: 124.3486709 | W64: 121.4291804 | X64: 118.3382558 | Y64: 115.0698659 | Z64: 111.6177699 | AA64: 107.9755058 | AB64: 104.1363767 | AC64: 100.0934351 | AD64: 95.83946407 | AE64: 91.36695575 | AF64: 86.66808374 | AG64: 81.73466974 | AH64: 76.55814066 | AI64: 71.1294725 | AJ64: 65.4391147 | AK64: 59.47688425 | AL64: 53.2318114 | AM64: 46.69190315 | AN64: 39.84375735 | AO64: 32.67188103 | AP64: 25.15734839 | AQ64: 17.27471256 | AR64: 8.982850532 | AS64: 0 | AT64: 0 | AU64: 0 | AV64: 0 | AW64: 0 | AX64: 0 | AY64: 0 | AZ64: 0 | BA64: 0 | BB64: 0 | BC64: 0 | BD64: 0
B65: 2068 | C65: =Inputs_AS!I88 -> 553.9733892 | D65: 2060 | E65: 553.9733892 | F65: 569.7630324 | G65: 586.1285663 | H65: =IF(H$17>$D65+1,0,G65*(1-1/($D65-H$17+2)+G$11)) -> 585.3573445 | I65: 582.4147373 | J65: 577.8848449 | K65: 572.9315462 | L65: 567.5392493 | M65: 561.6918752 | N65: 555.3728416 | O65: 548.5650455 | P65: 541.2508449 | Q65: 533.4120396 | R65: 525.0298504 | S65: 516.0848974 | T65: 506.5571762 | U65: 496.4260327 | V65: 485.6701353 | W65: 474.2674452 | X65: 462.1951829 | Y65: 449.4297922 | Z65: 435.9468984 | AA65: 421.7212628 | AB65: 406.726729 | AC65: 390.9361618 | AD65: 374.321375 | AE65: 356.8530441 | AF65: 338.5006019 | AG65: 319.2321061 | AH65: 299.0140727 | AI65: 277.8112566 | AJ65: 255.5863561 | AK65: 232.2995992 | AL65: 207.9081413 | AM65: 182.3651411 | AN65: 155.6182537 | AO65: 127.606968 | AP65: 98.25736539 | AQ65: 67.47005757 | AR65: 35.08442994 | AS65: 0 | AT65: 0 | AU65: 0 | AV65: 0 | AW65: 0 | AX65: 0 | AY65: 0 | AZ65: 0 | BA65: 0 | BB65: 0 | BC65: 0 | BD65: 0
B66: 2069 | C66: =Inputs_AS!I89 -> 733.9714687 | D66: 2060 | E66: 733.9714687 | F66: 755.2035752 | G66: 777.2303461 | H66: =IF(H$17>$D66+1,0,G66*(1-1/($D66-H$17+2)+G$11)) -> 776.2076746 | I66: 772.3056577 | J66: 766.2988359 | K66: 759.7305602 | L66: 752.5801549 | M66: 744.8262987 | N66: 736.4470029 | O66: 727.419588 | P66: 717.7206602 | Q66: 707.3260851 | R66: 696.2109609 | S66: 684.349589 | T66: 671.7154427 | U66: 658.2811339 | V66: 644.018376 | W66: 628.8979445 | X66: 612.8896332 | Y66: 595.9622052 | Z66: 578.0833391 | AA66: 559.219567 | AB66: 539.3362046 | AC66: 518.3972696 | AD66: 496.3653856 | AE66: 473.2016676 | AF66: 448.8655819 | AG66: 423.3147718 | AH66: 396.5048363 | AI66: 368.3890388 | AJ66: 338.9179157 | AK66: 308.0387278 | AL66: 275.6946614 | AM66: 241.823603 | AN66: 206.3561412 | AO66: 169.2120358 | AP66: 130.2932676 | AQ66: 89.46804373 | AR66: 46.52338274 | AS66: 0 | AT66: 0 | AU66: 0 | AV66: 0 | AW66: 0 | AX66: 0 | AY66: 0 | AZ66: 0 | BA66: 0 | BB66: 0 | BC66: 0 | BD66: 0
B67: 2070 | C67: =Inputs_AS!I90 -> 13538.6529 | D67: 2060 | E67: 13538.6529 | F67: 13935.82097 | G67: 14348.20751 | H67: =IF(H$17>$D67+1,0,G67*(1-1/($D67-H$17+2)+G$11)) -> 14329.32829 | I67: 14257.29437 | J67: 14146.4043 | K67: 14025.14941 | L67: 13893.148 | M67: 13750.00648 | N67: 13595.3189 | O67: 13428.66661 | P67: 13249.61772 | Q67: 13057.7267 | R67: 12852.53386 | S67: 12633.56476 | T67: 12400.32972 | U67: 12152.32313 | V67: 11889.02279 | W67: 11609.88921 | X67: 11314.36476 | Y67: 11001.87278 | Z67: 10671.8166 | AA67: 10323.57837 | AB67: 9956.517807 | AC67: 9569.970645 | AD67: 9163.246893 | AE67: 8735.628704 | AF67: 8286.367799 | AG67: 7814.682248 | AH67: 7319.752372 | AI67: 6800.715386 | AJ67: 6256.658155 | AK67: 5686.607079 | AL67: 5089.513335 | AM67: 4464.230268 | AN67: 3809.476496 | AO67: 3123.770726 | AP67: 2405.303459 | AQ67: 1651.641709 | AR67: 858.8536886 | AS67: 0 | AT67: 0 | AU67: 0 | AV67: 0 | AW67: 0 | AX67: 0 | AY67: 0 | AZ67: 0 | BA67: 0 | BB67: 0 | BC67: 0 | BD67: 0
B68: 2071 | C68: =Inputs_AS!I91 -> 0 | D68: 2060 | E68: 0 | F68: 0 | G68: 0 | H68: =IF(H$17>$D68+1,0,G68*(1-1/($D68-H$17+2)+G$11)) -> 0 | I68: 0 | J68: 0 | K68: 0 | L68: 0 | M68: 0 | N68: 0 | O68: 0 | P68: 0 | Q68: 0 | R68: 0 | S68: 0 | T68: 0 | U68: 0 | V68: 0 | W68: 0 | X68: 0 | Y68: 0 | Z68: 0 | AA68: 0 | AB68: 0 | AC68: 0 | AD68: 0 | AE68: 0 | AF68: 0 | AG68: 0 | AH68: 0 | AI68: 0 | AJ68: 0 | AK68: 0 | AL68: 0 | AM68: 0 | AN68: 0 | AO68: 0 | AP68: 0 | AQ68: 0 | AR68: 0 | AS68: 0 | AT68: 0 | AU68: 0 | AV68: 0 | AW68: 0 | AX68: 0 | AY68: 0 | AZ68: 0 | BA68: 0 | BB68: 0 | BC68: 0 | BD68: 0
B69: 2072 | C69: =Inputs_AS!I92 -> 1640.131698 | D69: 2060 | E69: 1640.131698 | F69: 1689.508017 | G69: 1740.85581 | H69: =IF(H$17>$D69+1,0,G69*(1-1/($D69-H$17+2)+G$11)) -> 1738.56521 | I69: 1729.825396 | J69: 1716.371199 | K69: 1701.659445 | L69: 1685.643827 | M69: 1668.276588 | N69: 1649.508476 | O69: 1629.288695 | P69: 1607.564846 | Q69: 1584.282872 | R69: 1559.386998 | S69: 1532.819664 | T69: 1504.521455 | U69: 1474.431026 | V69: 1442.48502 | W69: 1408.617981 | X69: 1372.76225 | Y69: 1334.847864 | Z69: 1294.802428 | AA69: 1252.550981 | AB69: 1208.015835 | AC69: 1161.116396 | AD69: 1111.76895 | AE69: 1059.886399 | AF69: 1005.377955 | AG69: 948.1487486 | AH69: 888.0993279 | AI69: 825.1250119 | AJ69: 759.1150109 | AK69: 689.9511988 | AL69: 617.5063229 | AM69: 541.6412604 | AN69: 462.2005422 | AO69: 379.0044446 | AP69: 291.8334224 | AQ69: 200.3922834 | AR69: 104.2039873 | AS69: 0 | AT69: 0 | AU69: 0 | AV69: 0 | AW69: 0 | AX69: 0 | AY69: 0 | AZ69: 0 | BA69: 0 | BB69: 0 | BC69: 0 | BD69: 0
B70: 2073 | C70: =Inputs_AS!I93 -> 1649.178458 | D70: 2060 | E70: 1649.178458 | F70: 1699.425526 | G70: 1751.715542 | H70: =IF(H$17>$D70+1,0,G70*(1-1/($D70-H$17+2)+G$11)) -> 1749.410653 | I70: 1740.616319 | J70: 1727.078192 | K70: 1712.274664 | L70: 1696.159138 | M70: 1678.683559 | N70: 1659.798369 | O70: 1639.452454 | P70: 1617.593088 | Q70: 1594.165877 | R70: 1569.114699 | S70: 1542.381634 | T70: 1513.906896 | U70: 1483.628758 | V70: 1451.483468 | W70: 1417.405161 | X70: 1381.325757 | Y70: 1343.174855 | Z70: 1302.879609 | AA70: 1260.364591 | AB70: 1215.551627 | AC70: 1168.359623 | AD70: 1118.704339 | AE70: 1066.498136 | AF70: 1011.649661 | AG70: 954.0634494 | AH70: 893.639431 | AI70: 830.2722713 | AJ70: 763.8504896 | AK70: 694.2552228 | AL70: 621.3584244 | AM70: 545.0201037 | AN70: 465.0838218 | AO70: 381.3687339 | AP70: 293.6539251 | AQ70: 201.6423619 | AR70: 104.8540282 | AS70: 0 | AT70: 0 | AU70: 0 | AV70: 0 | AW70: 0 | AX70: 0 | AY70: 0 | AZ70: 0 | BA70: 0 | BB70: 0 | BC70: 0 | BD70: 0
B71: 2074 | C71: =Inputs_AS!I94 -> 0 | D71: 2060 | E71: 0 | F71: 0 | G71: 0 | H71: =IF(H$17>$D71+1,0,G71*(1-1/($D71-H$17+2)+G$11)) -> 0 | I71: 0 | J71: 0 | K71: 0 | L71: 0 | M71: 0 | N71: 0 | O71: 0 | P71: 0 | Q71: 0 | R71: 0 | S71: 0 | T71: 0 | U71: 0 | V71: 0 | W71: 0 | X71: 0 | Y71: 0 | Z71: 0 | AA71: 0 | AB71: 0 | AC71: 0 | AD71: 0 | AE71: 0 | AF71: 0 | AG71: 0 | AH71: 0 | AI71: 0 | AJ71: 0 | AK71: 0 | AL71: 0 | AM71: 0 | AN71: 0 | AO71: 0 | AP71: 0 | AQ71: 0 | AR71: 0 | AS71: 0 | AT71: 0 | AU71: 0 | AV71: 0 | AW71: 0 | AX71: 0 | AY71: 0 | AZ71: 0 | BA71: 0 | BB71: 0 | BC71: 0 | BD71: 0
B72: 2075 | C72: =Inputs_AS!I95 -> 0 | D72: 2060 | E72: 0 | F72: 0 | G72: 0 | H72: =IF(H$17>$D72+1,0,G72*(1-1/($D72-H$17+2)+G$11)) -> 0 | I72: 0 | J72: 0 | K72: 0 | L72: 0 | M72: 0 | N72: 0 | O72: 0 | P72: 0 | Q72: 0 | R72: 0 | S72: 0 | T72: 0 | U72: 0 | V72: 0 | W72: 0 | X72: 0 | Y72: 0 | Z72: 0 | AA72: 0 | AB72: 0 | AC72: 0 | AD72: 0 | AE72: 0 | AF72: 0 | AG72: 0 | AH72: 0 | AI72: 0 | AJ72: 0 | AK72: 0 | AL72: 0 | AM72: 0 | AN72: 0 | AO72: 0 | AP72: 0 | AQ72: 0 | AR72: 0 | AS72: 0 | AT72: 0 | AU72: 0 | AV72: 0 | AW72: 0 | AX72: 0 | AY72: 0 | AZ72: 0 | BA72: 0 | BB72: 0 | BC72: 0 | BD72: 0
B73: 2076 | C73: =Inputs_AS!I96 -> 0 | D73: 2060 | E73: 0 | F73: 0 | G73: 0 | H73: =IF(H$17>$D73+1,0,G73*(1-1/($D73-H$17+2)+G$11)) -> 0 | I73: 0 | J73: 0 | K73: 0 | L73: 0 | M73: 0 | N73: 0 | O73: 0 | P73: 0 | Q73: 0 | R73: 0 | S73: 0 | T73: 0 | U73: 0 | V73: 0 | W73: 0 | X73: 0 | Y73: 0 | Z73: 0 | AA73: 0 | AB73: 0 | AC73: 0 | AD73: 0 | AE73: 0 | AF73: 0 | AG73: 0 | AH73: 0 | AI73: 0 | AJ73: 0 | AK73: 0 | AL73: 0 | AM73: 0 | AN73: 0 | AO73: 0 | AP73: 0 | AQ73: 0 | AR73: 0 | AS73: 0 | AT73: 0 | AU73: 0 | AV73: 0 | AW73: 0 | AX73: 0 | AY73: 0 | AZ73: 0 | BA73: 0 | BB73: 0 | BC73: 0 | BD73: 0
B74: 2077 | C74: =Inputs_AS!I97 -> 0 | D74: 2060 | E74: 0 | F74: 0 | G74: 0 | H74: =IF(H$17>$D74+1,0,G74*(1-1/($D74-H$17+2)+G$11)) -> 0 | I74: 0 | J74: 0 | K74: 0 | L74: 0 | M74: 0 | N74: 0 | O74: 0 | P74: 0 | Q74: 0 | R74: 0 | S74: 0 | T74: 0 | U74: 0 | V74: 0 | W74: 0 | X74: 0 | Y74: 0 | Z74: 0 | AA74: 0 | AB74: 0 | AC74: 0 | AD74: 0 | AE74: 0 | AF74: 0 | AG74: 0 | AH74: 0 | AI74: 0 | AJ74: 0 | AK74: 0 | AL74: 0 | AM74: 0 | AN74: 0 | AO74: 0 | AP74: 0 | AQ74: 0 | AR74: 0 | AS74: 0 | AT74: 0 | AU74: 0 | AV74: 0 | AW74: 0 | AX74: 0 | AY74: 0 | AZ74: 0 | BA74: 0 | BB74: 0 | BC74: 0 | BD74: 0
B75: 2078 | C75: =Inputs_AS!I98 -> 39.08529926 | D75: 2060 | E75: 39.08529926 | F75: 40.33972177 | G75: 41.64899344 | H75: =IF(H$17>$D75+1,0,G75*(1-1/($D75-H$17+2)+G$11)) -> 41.59419214 | I75: 41.38509701 | J75: 41.06321292 | K75: 40.71124253 | L75: 40.32807789 | M75: 39.91257648 | N75: 39.46356 | O75: 38.97981313 | P75: 38.46008229 | Q75: 37.9030742 | R75: 37.30745446 | S75: 36.67184598 | T75: 35.99482729 | U75: 35.27493074 | V75: 34.51064057 | W75: 33.70039075 | X75: 32.84256262 | Y75: 31.93548232 | Z75: 30.97741785 | AA75: 29.9665758 | AB75: 28.90109755 | AC75: 27.77905494 | AD75: 26.5984451 | AE75: 25.35718433 | AF75: 24.05310056 | AG75: 22.68392407 | AH75: 21.24727555 | AI75: 19.74065055 | AJ75: 18.16139851 | AK75: 16.50669331 | AL75: 14.77349051 | AM75: 12.95846168 | AN75: 11.0578873 | AO75: 9.067467585 | AP75: 6.981950041 | AQ75: 4.794272361 | AR75: 2.493021628 | AS75: 0 | AT75: 0 | AU75: 0 | AV75: 0 | AW75: 0 | AX75: 0 | AY75: 0 | AZ75: 0 | BA75: 0 | BB75: 0 | BC75: 0 | BD75: 0
B76: 2079 | C76: =Inputs_AS!I99 -> 0 | D76: 2060 | E76: 0 | F76: 0 | G76: 0 | H76: =IF(H$17>$D76+1,0,G76*(1-1/($D76-H$17+2)+G$11)) -> 0 | I76: 0 | J76: 0 | K76: 0 | L76: 0 | M76: 0 | N76: 0 | O76: 0 | P76: 0 | Q76: 0 | R76: 0 | S76: 0 | T76: 0 | U76: 0 | V76: 0 | W76: 0 | X76: 0 | Y76: 0 | Z76: 0 | AA76: 0 | AB76: 0 | AC76: 0 | AD76: 0 | AE76: 0 | AF76: 0 | AG76: 0 | AH76: 0 | AI76: 0 | AJ76: 0 | AK76: 0 | AL76: 0 | AM76: 0 | AN76: 0 | AO76: 0 | AP76: 0 | AQ76: 0 | AR76: 0 | AS76: 0 | AT76: 0 | AU76: 0 | AV76: 0 | AW76: 0 | AX76: 0 | AY76: 0 | AZ76: 0 | BA76: 0 | BB76: 0 | BC76: 0 | BD76: 0
B77: 2080 | C77: =Inputs_AS!I100 -> 0 | D77: 2060 | E77: 0 | F77: 0 | G77: 0 | H77: =IF(H$17>$D77+1,0,G77*(1-1/($D77-H$17+2)+G$11)) -> 0 | I77: 0 | J77: 0 | K77: 0 | L77: 0 | M77: 0 | N77: 0 | O77: 0 | P77: 0 | Q77: 0 | R77: 0 | S77: 0 | T77: 0 | U77: 0 | V77: 0 | W77: 0 | X77: 0 | Y77: 0 | Z77: 0 | AA77: 0 | AB77: 0 | AC77: 0 | AD77: 0 | AE77: 0 | AF77: 0 | AG77: 0 | AH77: 0 | AI77: 0 | AJ77: 0 | AK77: 0 | AL77: 0 | AM77: 0 | AN77: 0 | AO77: 0 | AP77: 0 | AQ77: 0 | AR77: 0 | AS77: 0 | AT77: 0 | AU77: 0 | AV77: 0 | AW77: 0 | AX77: 0 | AY77: 0 | AZ77: 0 | BA77: 0 | BB77: 0 | BC77: 0 | BD77: 0
B78: 2081 | C78: =Inputs_AS!I101 -> 0 | D78: 2060 | E78: 0 | F78: =IF(F$17>$B78,0,E78*(1-1/($B78-F$17+2)+E$11)) -> 0 | G78: 0 | H78: =IF(H$17>$D78+1,0,G78*(1-1/($D78-H$17+2)+G$11)) -> 0 | I78: 0 | J78: 0 | K78: 0 | L78: 0 | M78: 0 | N78: 0 | O78: 0 | P78: 0 | Q78: 0 | R78: 0 | S78: 0 | T78: 0 | U78: 0 | V78: 0 | W78: 0 | X78: 0 | Y78: 0 | Z78: 0 | AA78: 0 | AB78: 0 | AC78: 0 | AD78: 0 | AE78: 0 | AF78: 0 | AG78: 0 | AH78: 0 | AI78: 0 | AJ78: 0 | AK78: 0 | AL78: 0 | AM78: 0 | AN78: 0 | AO78: 0 | AP78: 0 | AQ78: 0 | AR78: 0 | AS78: 0 | AT78: 0 | AU78: 0 | AV78: 0 | AW78: 0 | AX78: 0 | AY78: 0 | AZ78: 0 | BA78: 0 | BB78: 0 | BC78: 0 | BD78: 0
B79: 2082 | C79: =Inputs_AS!I102 -> 0 | D79: 2060 | E79: 0 | F79: 0 | G79: 0 | H79: =IF(H$17>$D79+1,0,G79*(1-1/($D79-H$17+2)+G$11)) -> 0 | I79: 0 | J79: 0 | K79: 0 | L79: 0 | M79: 0 | N79: 0 | O79: 0 | P79: 0 | Q79: 0 | R79: 0 | S79: 0 | T79: 0 | U79: 0 | V79: 0 | W79: 0 | X79: 0 | Y79: 0 | Z79: 0 | AA79: 0 | AB79: 0 | AC79: 0 | AD79: 0 | AE79: 0 | AF79: 0 | AG79: 0 | AH79: 0 | AI79: 0 | AJ79: 0 | AK79: 0 | AL79: 0 | AM79: 0 | AN79: 0 | AO79: 0 | AP79: 0 | AQ79: 0 | AR79: 0 | AS79: 0 | AT79: 0 | AU79: 0 | AV79: 0 | AW79: 0 | AX79: 0 | AY79: 0 | AZ79: 0 | BA79: 0 | BB79: 0 | BC79: 0 | BD79: 0
B80: 2083 | C80: =Inputs_AS!I103 -> 0 | D80: 2060 | E80: 0 | F80: 0 | G80: 0 | H80: =IF(H$17>$D80+1,0,G80*(1-1/($D80-H$17+2)+G$11)) -> 0 | I80: 0 | J80: 0 | K80: 0 | L80: 0 | M80: 0 | N80: 0 | O80: 0 | P80: 0 | Q80: 0 | R80: 0 | S80: 0 | T80: 0 | U80: 0 | V80: 0 | W80: 0 | X80: 0 | Y80: 0 | Z80: 0 | AA80: 0 | AB80: 0 | AC80: 0 | AD80: 0 | AE80: 0 | AF80: 0 | AG80: 0 | AH80: 0 | AI80: 0 | AJ80: 0 | AK80: 0 | AL80: 0 | AM80: 0 | AN80: 0 | AO80: 0 | AP80: 0 | AQ80: 0 | AR80: 0 | AS80: 0 | AT80: 0 | AU80: 0 | AV80: 0 | AW80: 0 | AX80: 0 | AY80: 0 | AZ80: 0 | BA80: 0 | BB80: 0 | BC80: 0 | BD80: 0
B81: 2084 | C81: =Inputs_AS!I104 -> 0 | D81: 2060 | E81: 0 | F81: 0 | G81: 0 | H81: =IF(H$17>$D81+1,0,G81*(1-1/($D81-H$17+2)+G$11)) -> 0 | I81: 0 | J81: 0 | K81: 0 | L81: 0 | M81: 0 | N81: 0 | O81: 0 | P81: 0 | Q81: 0 | R81: 0 | S81: 0 | T81: 0 | U81: 0 | V81: 0 | W81: 0 | X81: 0 | Y81: 0 | Z81: 0 | AA81: 0 | AB81: 0 | AC81: 0 | AD81: 0 | AE81: 0 | AF81: 0 | AG81: 0 | AH81: 0 | AI81: 0 | AJ81: 0 | AK81: 0 | AL81: 0 | AM81: 0 | AN81: 0 | AO81: 0 | AP81: 0 | AQ81: 0 | AR81: 0 | AS81: 0 | AT81: 0 | AU81: 0 | AV81: 0 | AW81: 0 | AX81: 0 | AY81: 0 | AZ81: 0 | BA81: 0 | BB81: 0 | BC81: 0 | BD81: 0
B82: 2085 | C82: =Inputs_AS!I105 -> 0 | D82: 2060 | E82: =C82 -> 0 | F82: 0 | G82: 0 | H82: =IF(H$17>$D82+1,0,G82*(1-1/($D82-H$17+2)+G$11)) -> 0 | I82: 0 | J82: 0 | K82: 0 | L82: 0 | M82: 0 | N82: 0 | O82: 0 | P82: 0 | Q82: 0 | R82: 0 | S82: 0 | T82: 0 | U82: 0 | V82: 0 | W82: 0 | X82: 0 | Y82: 0 | Z82: 0 | AA82: 0 | AB82: 0 | AC82: 0 | AD82: 0 | AE82: 0 | AF82: 0 | AG82: 0 | AH82: 0 | AI82: 0 | AJ82: 0 | AK82: 0 | AL82: 0 | AM82: 0 | AN82: 0 | AO82: 0 | AP82: 0 | AQ82: 0 | AR82: 0 | AS82: 0 | AT82: 0 | AU82: 0 | AV82: 0 | AW82: 0 | AX82: 0 | AY82: 0 | AZ82: 0 | BA82: 0 | BB82: 0 | BC82: 0 | BD82: 0
B83: 2086 | C83: =Inputs_AS!I106 -> 0 | D83: 2060 | E83: 0 | F83: 0 | G83: 0 | H83: =IF(H$17>$D83+1,0,G83*(1-1/($D83-H$17+2)+G$11)) -> 0 | I83: 0 | J83: 0 | K83: 0 | L83: 0 | M83: 0 | N83: 0 | O83: 0 | P83: 0 | Q83: 0 | R83: 0 | S83: 0 | T83: 0 | U83: 0 | V83: 0 | W83: 0 | X83: 0 | Y83: 0 | Z83: 0 | AA83: 0 | AB83: 0 | AC83: 0 | AD83: 0 | AE83: 0 | AF83: 0 | AG83: 0 | AH83: 0 | AI83: 0 | AJ83: 0 | AK83: 0 | AL83: 0 | AM83: 0 | AN83: 0 | AO83: 0 | AP83: 0 | AQ83: 0 | AR83: 0 | AS83: 0 | AT83: 0 | AU83: 0 | AV83: 0 | AW83: 0 | AX83: 0 | AY83: 0 | AZ83: 0 | BA83: 0 | BB83: 0 | BC83: 0 | BD83: 0
B84: 2087 | C84: =Inputs_AS!I107 -> 0 | D84: 2060 | E84: 0 | F84: 0 | G84: 0 | H84: =IF(H$17>$D84+1,0,G84*(1-1/($D84-H$17+2)+G$11)) -> 0 | I84: 0 | J84: 0 | K84: 0 | L84: 0 | M84: 0 | N84: 0 | O84: 0 | P84: 0 | Q84: 0 | R84: 0 | S84: 0 | T84: 0 | U84: 0 | V84: 0 | W84: 0 | X84: 0 | Y84: 0 | Z84: 0 | AA84: 0 | AB84: 0 | AC84: 0 | AD84: 0 | AE84: 0 | AF84: 0 | AG84: 0 | AH84: 0 | AI84: 0 | AJ84: 0 | AK84: 0 | AL84: 0 | AM84: 0 | AN84: 0 | AO84: 0 | AP84: 0 | AQ84: 0 | AR84: 0 | AS84: 0 | AT84: 0 | AU84: 0 | AV84: 0 | AW84: 0 | AX84: 0 | AY84: 0 | AZ84: 0 | BA84: 0 | BB84: 0 | BC84: 0 | BD84: 0
B85: 2088 | C85: =Inputs_AS!I108 -> 8411.006054 | D85: 2060 | E85: 8411.006054 | F85: 8702.279035 | G85: 9007.508225 | H85: =IF(H$17>$D85+1,0,G85*(1-1/($D85-H$17+2)+G$11)) -> 8995.65624 | I85: 8950.434833 | J85: 8880.82034 | K85: 8804.699023 | L85: 8721.831267 | M85: 8631.969975 | N85: 8534.860313 | O85: 8430.239445 | P85: 8317.836252 | Q85: 8197.371037 | R85: 8068.555207 | S85: 7931.090933 | T85: 7784.670793 | U85: 7628.977377 | V85: 7463.682867 | W85: 7288.448574 | X85: 7102.924428 | Y85: 6906.74842 | Z85: 6699.545967 | AA85: 6480.929204 | AB85: 6250.496166 | AC85: 6007.829844 | AD85: 5752.497076 | AE85: 5484.047212 | AF85: 5202.010498 | AG85: 4905.896055 | AH85: 4595.189305 | AI85: 4269.348608 | AJ85: 3927.80072 | AK85: 3569.934432 | AL85: 3195.091317 | AM85: 2802.551526 | AN85: 2391.510636 | AO85: 1961.038721 | AP85: 1509.999815 | AQ85: 1036.86654 | AR85: 539.1706008 | AS85: 0 | AT85: 0 | AU85: 0 | AV85: 0 | AW85: 0 | AX85: 0 | AY85: 0 | AZ85: 0 | BA85: 0 | BB85: 0 | BC85: 0 | BD85: 0
B86: 2089 | C86: =Inputs_AS!I109 -> -386.7202342 | D86: 2060 | E86: -386.7202342 | F86: -400.1947698 | G86: -414.319291 | H86: =IF(H$17>$D86+1,0,G86*(1-1/($D86-H$17+2)+G$11)) -> -413.7741341 | I86: -411.6940803 | J86: -408.4920152 | K86: -404.9906551 | L86: -401.1789784 | M86: -397.0456192 | N86: -392.578856 | O86: -387.766599 | P86: -382.5963777 | Q86: -377.0553267 | R86: -371.1301716 | S86: -364.8072131 | T86: -358.0723107 | U86: -350.9108645 | V86: -343.3077958 | W86: -335.2475258 | X86: -326.7139524 | Y86: -317.6904242 | Z86: -308.1597115 | AA86: -298.1039735 | AB86: -287.5047211 | AC86: -276.3427731 | AD86: -264.5982053 | AE86: -252.250289 | AF86: -239.277417 | AG86: -225.6570102 | AH86: -211.3653996 | AI86: -196.3776712 | AJ86: -180.6674575 | AK86: -164.2066447 | AL86: -146.964947 | AM86: -128.9092535 | AN86: -110.002563 | AO86: -90.20210168 | AP86: -69.45561829 | AQ86: -47.69285789 | AR86: -24.8002861 | AS86: 0 | AT86: 0 | AU86: 0 | AV86: 0 | AW86: 0 | AX86: 0 | AY86: 0 | AZ86: 0 | BA86: 0 | BB86: 0 | BC86: 0 | BD86: 0
B87: 2090 | C87: =Inputs_AS!I110 -> 18060.25816 | D87: 2060 | E87: 18060.25816 | F87: 18693.27291 | G87: 19357.01955 | H87: =IF(H$17>$D87+1,0,G87*(1-1/($D87-H$17+2)+G$11)) -> 19331.54979 | I87: 19234.36957 | J87: 19084.76891 | K87: 18921.18518 | L87: 18743.10344 | M87: 18549.99268 | N87: 18341.30526 | O87: 18116.47635 | P87: 17874.92334 | Q87: 17616.04514 | R87: 17339.22157 | S87: 17043.81261 | T87: 16729.15761 | U87: 16394.57446 | V87: 16039.35868 | W87: 15662.78243 | X87: 15264.09342 | Y87: 14842.5137 | Z87: 14397.23829 | AA87: 13927.43367 | AB87: 13432.23603 | AC87: 12910.74922 | AD87: 12362.04238 | AE87: 11785.14706 | AF87: 11179.05379 | AG87: 10542.70765 | AH87: 9875.002831 | AI87: 9174.775357 | AJ87: 8440.793329 | AK87: 7671.74327 | AL87: 6866.210227 | AM87: 6022.647256 | AN87: 5139.325658 | AO87: 4214.24704 | AP87: 3244.970221 | AQ87: 2228.212885 | AR87: 1158.6707 | AS87: 0 | AT87: 0 | AU87: 0 | AV87: 0 | AW87: 0 | AX87: 0 | AY87: 0 | AZ87: 0 | BA87: 0 | BB87: 0 | BC87: 0 | BD87: 0
B88: Total opening RAB of existing assets | E88: =SUM(E18:E87) -> 782988.9229 | F88: 788134.4901 | G88: 793667.2904 | H88: 775324.8336 | I88: 754966.1371 | J88: 733080.4862 | K88: 710301.4022 | L88: 686619.7119 | M88: 662509.3314 | N88: 638030.5244 | O88: 612809.5019 | P88: 586434.5377 | Q88: 558887.2232 | R88: 533858.5787 | S88: 508244.7389 | T88: 481491.9936 | U88: 454382.6731 | V88: 426285.3999 | W88: 396871.76 | X88: 367307.3108 | Y88: 337548.47 | Z88: 306379.341 | AA88: 274467.2859 | AB88: 242200.4833 | AC88: 209094.1774 | AD88: 178315.594 | AE88: 153252.4242 | AF88: 130300.0439 | AG88: 109041.413 | AH88: 87335.51532 | AI88: 65839.87877 | AJ88: =SUM(AJ18:AJ87) -> 44706.29737 | AK88: 23350.74213 | AL88: 18626.43582 | AM88: 15935.45028 | AN88: 13375.7265 | AO88: 10773.52502 | AP88: 8171.391922 | AQ88: 5496.499577 | AR88: 2801.132306 | AS88: 0 | AT88: 0 | AU88: 0 | AV88: 0 | AW88: 0 | AX88: 0 | AY88: 0 | AZ88: 0 | BA88: 0 | BB88: 0 | BC88: 0 | BD88: 0

Sheet Additional
A1: Additional assets
A2: Inputs
B3: Chosen supplier | D3: =Inputs_AS!D2 -> First Gas transmission | E3: Timing of "additional assets" against the timeliine: In this workbook, additional assets
B4: Chosen supplier number | D4: =Inputs_AS!D3 -> 5 | E4: are recorded as occurring in the year in which they enter the RAB. This is the year after
B5: Post-tax WACC | D5: =Inputs_AS!D5 -> 0.0614 | E5: the year during which they are dommissioned.
B6: Stranding year | D6: =Inputs_AS!D10 -> 2060
B7: Adjustment factor | D7: =AdjFactor -> 0.908944059
B8: Remaining life of additional assets, Business As Usual (BAU) | D8: =Inputs_AS!D12 -> 45
B9: Mitigation | D9: =Mitigation -> TRUE
B10: Stranding year BBAR ÷ 2023 BBAR | D10: =Inputs_AS!D13 -> 0.2
B11: Apply revaluations from 2023 onwards | D11: =Reval -> TRUE
B12: Reduced remaining life of additional assets | D12: =D8*D7 -> 40.90248266
B14: Forecast changes in CPI used for revaluations | E14: 2021 | F14: 2022 | G14: 2023 | H14: 2024 | I14: 2025 | J14: 2026 | K14: 2027 | L14: 2028 | M14: 2029 | N14: 2030 | O14: 2031 | P14: 2032 | Q14: 2033 | R14: 2034 | S14: 2035 | T14: 2036 | U14: 2037 | V14: 2038 | W14: 2039 | X14: 2040 | Y14: 2041 | Z14: 2042 | AA14: 2043 | AB14: 2044 | AC14: 2045 | AD14: 2046 | AE14: 2047 | AF14: 2048 | AG14: 2049 | AH14: 2050 | AI14: 2051 | AJ14: 2052 | AK14: 2053 | AL14: 2054 | AM14: 2055 | AN14: 2056 | AO14: 2057 | AP14: 2058 | AQ14: 2059 | AR14: 2060 | AS14: 2061 | AT14: 2062 | AU14: 2063 | AV14: 2064 | AW14: 2065 | AX14: 2066 | AY14: 2067 | AZ14: 2068 | BA14: 2069 | BB14: 2070 | BC14: 2071 | BD14: 2072
B15: Forecast changes in CPI used for revaluations, chosen GPB's year ends | E15: =Inputs_AS!E28 -> 0.04933586338 | F15: =Inputs_AS!F28 -> 0.05 | G15: =IF(AND($D$11,G14<>$D$6),Inputs_AS!G28,0) -> 0.025 | H15: =IF(AND($D$11,H14<>$D$6),Inputs_AS!H28,0) -> 0.022 | I15: =IF(AND($D$11,I14<>$D$6),Inputs_AS!I28,0) -> 0.02 | J15: =IF(AND($D$11,J14<>$D$6),Inputs_AS!J28,0) -> 0.02 | K15: =IF(AND($D$11,K14<>$D$6),Inputs_AS!K28,0) -> 0.02 | L15: =IF(AND($D$11,L14<>$D$6),Inputs_AS!L28,0) -> 0.02 | M15: =IF(AND($D$11,M14<>$D$6),Inputs_AS!M28,0) -> 0.02 | N15: =IF(AND($D$11,N14<>$D$6),Inputs_AS!N28,0) -> 0.02 | O15: =IF(AND($D$11,O14<>$D$6),Inputs_AS!O28,0) -> 0.02 | P15: =IF(AND($D$11,P14<>$D$6),Inputs_AS!P28,0) -> 0.02 | Q15: =IF(AND($D$11,Q14<>$D$6),Inputs_AS!Q28,0) -> 0.02 | R15: =IF(AND($D$11,R14<>$D$6),Inputs_AS!R28,0) -> 0.02 | S15: =IF(AND($D$11,S14<>$D$6),Inputs_AS!S28,0) -> 0.02 | T15: =IF(AND($D$11,T14<>$D$6),Inputs_AS!T28,0) -> 0.02 | U15: =IF(AND($D$11,U14<>$D$6),Inputs_AS!U28,0) -> 0.02 | V15: =IF(AND($D$11,V14<>$D$6),Inputs_AS!V28,0) -> 0.02 | W15: =IF(AND($D$11,W14<>$D$6),Inputs_AS!W28,0) -> 0.02 | X15: =IF(AND($D$11,X14<>$D$6),Inputs_AS!X28,0) -> 0.02 | Y15: =IF(AND($D$11,Y14<>$D$6),Inputs_AS!Y28,0) -> 0.02 | Z15: =IF(AND($D$11,Z14<>$D$6),Inputs_AS!Z28,0) -> 0.02 | AA15: =IF(AND($D$11,AA14<>$D$6),Inputs_AS!AA28,0) -> 0.02 | AB15: =IF(AND($D$11,AB14<>$D$6),Inputs_AS!AB28,0) -> 0.02 | AC15: =IF(AND($D$11,AC14<>$D$6),Inputs_AS!AC28,0) -> 0.02 | AD15: =IF(AND($D$11,AD14<>$D$6),Inputs_AS!AD28,0) -> 0.02 | AE15: =IF(AND($D$11,AE14<>$D$6),Inputs_AS!AE28,0) -> 0.02 | AF15: =IF(AND($D$11,AF14<>$D$6),Inputs_AS!AF28,0) -> 0.02 | AG15: =IF(AND($D$11,AG14<>$D$6),Inputs_AS!AG28,0) -> 0.02 | AH15: =IF(AND($D$11,AH14<>$D$6),Inputs_AS!AH28,0) -> 0.02 | AI15: =IF(AND($D$11,AI14<>$D$6),Inputs_AS!AI28,0) -> 0.02 | AJ15: =IF(AND($D$11,AJ14<>$D$6),Inputs_AS!AJ28,0) -> 0.02 | AK15: =IF(AND($D$11,AK14<>$D$6),Inputs_AS!AK28,0) -> 0.02 | AL15: =IF(AND($D$11,AL14<>$D$6),Inputs_AS!AL28,0) -> 0.02 | AM15: =IF(AND($D$11,AM14<>$D$6),Inputs_AS!AM28,0) -> 0.02 | AN15: =IF(AND($D$11,AN14<>$D$6),Inputs_AS!AN28,0) -> 0.02 | AO15: =IF(AND($D$11,AO14<>$D$6),Inputs_AS!AO28,0) -> 0.02 | AP15: =IF(AND($D$11,AP14<>$D$6),Inputs_AS!AP28,0) -> 0.02 | AQ15: =IF(AND($D$11,AQ14<>$D$6),Inputs_AS!AQ28,0) -> 0.02 | AR15: =IF(AND($D$11,AR14<>$D$6),Inputs_AS!AR28,0) -> 0 | AS15: =IF(AND($D$11,AS14<>$D$6),Inputs_AS!AS28,0) -> 0.02 | AT15: =IF(AND($D$11,AT14<>$D$6),Inputs_AS!AT28,0) -> 0.02 | AU15: =IF(AND($D$11,AU14<>$D$6),Inputs_AS!AU28,0) -> 0.02 | AV15: =IF(AND($D$11,AV14<>$D$6),Inputs_AS!AV28,0) -> 0.02 | AW15: =IF(AND($D$11,AW14<>$D$6),Inputs_AS!AW28,0) -> 0.02 | AX15: =IF(AND($D$11,AX14<>$D$6),Inputs_AS!AX28,0) -> 0.02 | AY15: =IF(AND($D$11,AY14<>$D$6),Inputs_AS!AY28,0) -> 0.02 | AZ15: =IF(AND($D$11,AZ14<>$D$6),Inputs_AS!AZ28,0) -> 0.02 | BA15: =IF(AND($D$11,BA14<>$D$6),Inputs_AS!BA28,0) -> 0.02 | BB15: =IF(AND($D$11,BB14<>$D$6),Inputs_AS!BB28,0) -> 0.02 | BC15: 0
A17: Calculations
B18: Additional Assets | I18: Chosen GPB
B19: Capex year | C19: Expiry year, BAU | D19: GasNet | E19: Powerco | F19: Vector | G19: First Gas distribution | H19: First Gas transmission | I19: =GPB_name -> First Gas transmission
B20: 2021 | C20: =B20+D$8 -> 2066 | D20: =Inputs_finmod!B40 -> 961 | E20: =Inputs_finmod!C40 -> 15514.61337 | F20: =Inputs_finmod!D40 -> 15572 | G20: =Inputs_finmod!E40 -> 5437.82584 | H20: =Inputs_finmod!F40 -> 18812.79207 | I20: =IF(B20>$D$6,0,INDEX(D20:H20,1,D$4)) -> 18812.79207
B21: 2022 | C21: =B21+D$8 -> 2067 | D21: ='[3]Reflation outputs'!B14 -> 831.3206597 | E21: ='[3]Reflation outputs'!C14 -> 18183.28609 | F21: ='[3]Reflation outputs'!D14 -> 7573.743649 | G21: ='[3]Reflation outputs'!E14 -> 21122.86143 | H21: ='[3]Reflation outputs'!F14 -> 37106.20045 | I21: =IF(B21>$D$6,0,INDEX(D21:H21,1,D$4)) -> 37106.20045
B22: 2023 | C22: 2068 | D22: ='[3]Reflation outputs'!B15 -> 932.2514037 | E22: ='[3]Reflation outputs'!C15 -> 19010.71508 | F22: ='[3]Reflation outputs'!D15 -> 6788.752246 | G22: ='[3]Reflation outputs'!E15 -> 13894.17236 | H22: ='[3]Reflation outputs'!F15 -> 40302.49786 | I22: =IF(B22>$D$6,0,INDEX(D22:H22,1,D$4)) -> 40302.49786
B23: 2024 | C23: 2069 | D23: ='[3]Reflation outputs'!B16 -> 1001.142265 | E23: ='[3]Reflation outputs'!C16 -> 19197.17854 | F23: ='[3]Reflation outputs'!D16 -> 6162.44264 | G23: ='[3]Reflation outputs'!E16 -> 14098.28233 | H23: ='[3]Reflation outputs'!F16 -> 47383.78588 | I23: 47383.78588
B24: 2025 | C24: 2070 | D24: ='[3]Reflation outputs'!B17 -> 1035.88761 | E24: ='[3]Reflation outputs'!C17 -> 20204.48326 | F24: ='[3]Reflation outputs'!D17 -> 6867.068833 | G24: ='[3]Reflation outputs'!E17 -> 14182.29891 | H24: ='[3]Reflation outputs'!F17 -> 40281.49669 | I24: 40281.49669
B25: 2026 | C25: 2071 | D25: ='[3]Reflation outputs'!B18 -> 1022.394124 | E25: ='[3]Reflation outputs'!C18 -> 22084.79006 | F25: ='[3]Reflation outputs'!D18 -> 7880.523059 | G25: ='[3]Reflation outputs'!E18 -> 14168.41741 | H25: ='[3]Reflation outputs'!F18 -> 42695.22192 | I25: 42695.22192
B26: 2027 | C26: =B26+D$8 -> 2072 | D26: ='[3]Reflation outputs'!B19 -> 1050.70063 | E26: ='[3]Reflation outputs'!C19 -> 22259.48831 | F26: ='[3]Reflation outputs'!D19 -> 8310.031422 | G26: ='[3]Reflation outputs'!E19 -> 14595.55696 | H26: ='[3]Reflation outputs'!F19 -> 45010.91881 | I26: 45010.91881
B27: 2028 | C27: 2073 | D27: 518.1002986 | E27: 8605.497647 | F27: 6017.269233 | G27: 5350.67998 | H27: 35322.42548 | I27: 35322.42548
B28: 2029 | C28: 2074 | D28: 531.3805279 | E28: 8854.055513 | F28: 4590.368799 | G28: 5586.310799 | H28: 36761.50735 | I28: 36761.50735
B29: 2030 | C29: 2075 | D29: 545.0011632 | E29: 8648.466412 | F29: 5557.461911 | G29: 5557.461911 | H29: 40914.86386 | I29: 40914.86386
B30: 2031 | C30: 2076 | D30: 518.367519 | E30: 8963.344785 | F30: 5782.557626 | G30: 5353.273384 | H30: 39250.65587 | I30: 39250.65587
B31: 2032 | C31: 2077 | D31: 492.4797092 | E31: 8581.622037 | F31: 5572.744464 | G31: 5155.941008 | H31: 36944.08045 | I31: 36944.08045
B32: 2033 | C32: 2078 | D32: 466.5918994 | E32: 8199.89929 | F32: 5362.931303 | G32: 4958.608631 | H32: 34637.50503 | I32: 34637.50503
B33: 2034 | C33: 2079 | D33: 440.7040895 | E33: 7818.176542 | F33: 5153.118141 | G33: 4761.276255 | H33: 32330.92961 | I33: 32330.92961
B34: 2035 | C34: 2080 | D34: 414.8162797 | E34: 7436.453794 | F34: 4943.30498 | G34: 4563.943878 | H34: 30024.35419 | I34: 30024.35419
B35: 2036 | C35: 2081 | D35: 388.9284699 | E35: 7054.731047 | F35: 4733.491818 | G35: 4366.611502 | H35: 27717.77877 | I35: 27717.77877
B36: 2037 | C36: 2082 | D36: 363.04066 | E36: 6673.008299 | F36: 4523.678657 | G36: 4169.279125 | H36: 25411.20335 | I36: 25411.20335
B37: 2038 | C37: 2083 | D37: 337.1528502 | E37: 6291.285551 | F37: 4313.865495 | G37: 3971.946749 | H37: 23104.62793 | I37: 23104.62793
B38: 2039 | C38: 2084 | D38: 311.2650404 | E38: 5909.562804 | F38: 4104.052334 | G38: 3774.614372 | H38: 20798.05251 | I38: 20798.05251
B39: 2040 | C39: 2085 | D39: 285.3772305 | E39: 5527.840056 | F39: 3894.239172 | G39: 3577.281996 | H39: 18491.4771 | I39: 18491.4771
B40: 2041 | C40: 2086 | D40: 259.4894207 | E40: 5146.117308 | F40: 3684.426011 | G40: 3379.949619 | H40: 16184.90168 | I40: 16184.90168
B41: 2042 | C41: 2087 | D41: 233.6016109 | E41: 4764.394561 | F41: 3474.612849 | G41: 3182.617242 | H41: 13878.32626 | I41: 13878.32626
B42: 2043 | C42: 2088 | D42: 207.713801 | E42: 4382.671813 | F42: 3264.799688 | G42: 2985.284866 | H42: 11571.75084 | I42: 11571.75084
B43: 2044 | C43: 2089 | D43: 181.8259912 | E43: 4000.949065 | F43: 3054.986526 | G43: 2787.952489 | H43: 9265.175419 | I43: 9265.175419
B44: 2045 | C44: 2090 | D44: 155.9381814 | E44: 3619.226318 | F44: 2845.173364 | G44: 2590.620113 | H44: 6958.6 | I44: 6958.6
B45: 2046 | C45: 2091 | D45: 155.9381814 | E45: 3619.226318 | F45: 2845.173364 | G45: 2590.620113 | H45: 6958.6 | I45: 6958.6
B46: 2047 | C46: 2092 | D46: 155.9381814 | E46: 3619.226318 | F46: 2845.173364 | G46: 2590.620113 | H46: 6958.6 | I46: 6958.6
B47: 2048 | C47: 2093 | D47: 155.9381814 | E47: 3619.226318 | F47: 2845.173364 | G47: 2590.620113 | H47: 6958.6 | I47: 6958.6
B48: 2049 | C48: 2094 | D48: 155.9381814 | E48: 3619.226318 | F48: 2845.173364 | G48: 2590.620113 | H48: 6958.6 | I48: 6958.6
B49: 2050 | C49: 2095 | D49: 155.9381814 | E49: 3619.226318 | F49: 2845.173364 | G49: 2590.620113 | H49: 6958.6 | I49: =IF(B49>$D$6,0,INDEX(D49:H49,1,D$4)) -> 6958.6
B50: 2051 | C50: 2096 | D50: 155.9381814 | E50: 3619.226318 | F50: 2845.173364 | G50: 2590.620113 | H50: 6958.6 | I50: 6958.6
B51: 2052 | C51: 2097 | D51: 155.9381814 | E51: 3619.226318 | F51: 2845.173364 | G51: 2590.620113 | H51: 6958.6 | I51: 6958.6
B52: 2053 | C52: 2098 | D52: 155.9381814 | E52: 3619.226318 | F52: 2845.173364 | G52: 2590.620113 | H52: 6958.6 | I52: 6958.6
B53: 2054 | C53: =B53+D$8 -> 2099 | D53: 155.9381814 | E53: 3619.226318 | F53: 2845.173364 | G53: 2590.620113 | H53: 6958.6 | I53: 6958.6
B54: 2055 | C54: 2100 | D54: 155.9381814 | E54: 3619.226318 | F54: 2845.173364 | G54: 2590.620113 | H54: 6958.6 | I54: 6958.6
B55: 2056 | C55: 2101 | D55: 155.9381814 | E55: 3619.226318 | F55: 2845.173364 | G55: 2590.620113 | H55: 6958.6 | I55: 6958.6
B56: 2057 | C56: 2102 | D56: 155.9381814 | E56: 3619.226318 | F56: 2845.173364 | G56: 2590.620113 | H56: 6958.6 | I56: 6958.6
B57: 2058 | C57: 2103 | D57: 155.9381814 | E57: 3619.226318 | F57: 2845.173364 | G57: 2590.620113 | H57: 6958.6 | I57: 6958.6
B58: 2059 | C58: 2104 | D58: 155.9381814 | E58: 3619.226318 | F58: 2845.173364 | G58: 2590.620113 | H58: 6958.6 | I58: 6958.6
B59: 2060 | C59: 2105 | D59: 155.9381814 | E59: 3619.226318 | F59: 2845.173364 | G59: 2590.620113 | H59: 6958.6 | I59: 6958.6
B60: 2061 | C60: 2106 | D60: 155.9381814 | E60: 3619.226318 | F60: 2845.173364 | G60: 2590.620113 | H60: 6958.6 | I60: 0
B61: 2062 | C61: 2107 | D61: 155.9381814 | E61: 3619.226318 | F61: 2845.173364 | G61: 2590.620113 | H61: 6958.6 | I61: 0
B62: 2063 | C62: 2108 | D62: 155.9381814 | E62: 3619.226318 | F62: 2845.173364 | G62: 2590.620113 | H62: 6958.6 | I62: 0
B63: 2064 | C63: 2109 | D63: 155.9381814 | E63: 3619.226318 | F63: 2845.173364 | G63: 2590.620113 | H63: 6958.6 | I63: 0
B64: 2065 | C64: 2110 | D64: 155.9381814 | E64: 3619.226318 | F64: 2845.173364 | G64: 2590.620113 | H64: 6958.6 | I64: 0
B65: 2066 | C65: 2111 | D65: 155.9381814 | E65: 3619.226318 | F65: 2845.173364 | G65: 2590.620113 | H65: 6958.6 | I65: 0
B66: 2067 | C66: 2112 | D66: 155.9381814 | E66: 3619.226318 | F66: 2845.173364 | G66: 2590.620113 | H66: 6958.6 | I66: 0
B67: 2068 | C67: 2113 | D67: 155.9381814 | E67: 3619.226318 | F67: 2845.173364 | G67: 2590.620113 | H67: 6958.6 | I67: 0
B68: 2069 | C68: 2114 | D68: 155.9381814 | E68: 3619.226318 | F68: 2845.173364 | G68: 2590.620113 | H68: 6958.6 | I68: 0
B69: 2070 | C69: 2115 | D69: 155.9381814 | E69: 3619.226318 | F69: 2845.173364 | G69: 2590.620113 | H69: 6958.6 | I69: 0
B72: Opening RAB and revaluation rate by ID year
B73: ID year | E73: 2021 | F73: 2022 | G73: 2023 | H73: 2024 | I73: 2025 | J73: 2026 | K73: 2027 | L73: 2028 | M73: 2029 | N73: 2030 | O73: 2031 | P73: 2032 | Q73: 2033 | R73: 2034 | S73: 2035 | T73: 2036 | U73: 2037 | V73: 2038 | W73: 2039 | X73: 2040 | Y73: 2041 | Z73: 2042 | AA73: 2043 | AB73: 2044 | AC73: 2045 | AD73: 2046 | AE73: 2047 | AF73: 2048 | AG73: 2049 | AH73: 2050 | AI73: 2051 | AJ73: 2052 | AK73: 2053 | AL73: 2054 | AM73: 2055 | AN73: 2056 | AO73: 2057 | AP73: 2058 | AQ73: 2059 | AR73: 2060 | AS73: 2061 | AT73: 2062 | AU73: 2063 | AV73: 2064 | AW73: 2065 | AX73: 2066 | AY73: 2067 | AZ73: 2068 | BA73: 2069 | BB73: 2070 | BC73: 2071 | BD73: 2072
B74: Forecast changes in CPI used for revaluations, chosen GPB's year ends | E74: =E15 -> 0.04933586338 | F74: 0.05 | G74: 0.025 | H74: 0.022 | I74: 0.02 | J74: 0.02 | K74: 0.02 | L74: 0.02 | M74: 0.02 | N74: 0.02 | O74: 0.02 | P74: 0.02 | Q74: 0.02 | R74: 0.02 | S74: 0.02 | T74: 0.02 | U74: 0.02 | V74: 0.02 | W74: 0.02 | X74: 0.02 | Y74: 0.02 | Z74: 0.02 | AA74: 0.02 | AB74: 0.02 | AC74: 0.02 | AD74: 0.02 | AE74: 0.02 | AF74: 0.02 | AG74: 0.02 | AH74: 0.02 | AI74: 0.02 | AJ74: 0.02 | AK74: =AK15 -> 0.02 | AL74: 0.02 | AM74: 0.02 | AN74: 0.02 | AO74: 0.02 | AP74: 0.02 | AQ74: 0.02 | AR74: 0 | AS74: 0.02 | AT74: 0.02 | AU74: 0.02 | AV74: 0.02 | AW74: 0.02 | AX74: 0.02 | AY74: 0.02 | AZ74: 0.02 | BA74: 0.02 | BB74: 0.02 | BC74: 0
B75: Opening RAB of assets entering RAB, ie previous year's capex | F75: =TRANSPOSE(I20:I69) -> 18812.79207 | G75: 37106.20045 | H75: 40302.49786 | I75: 47383.78588 | J75: 40281.49669 | K75: 42695.22192 | L75: 45010.91881 | M75: 35322.42548 | N75: 36761.50735 | O75: 40914.86386 | P75: 39250.65587 | Q75: 36944.08045 | R75: 34637.50503 | S75: 32330.92961 | T75: 30024.35419 | U75: 27717.77877 | V75: 25411.20335 | W75: 23104.62793 | X75: 20798.05251 | Y75: 18491.4771 | Z75: 16184.90168 | AA75: 13878.32626 | AB75: 11571.75084 | AC75: 9265.175419 | AD75: 6958.6 | AE75: 6958.6 | AF75: 6958.6 | AG75: 6958.6 | AH75: 6958.6 | AI75: 6958.6 | AJ75: 6958.6 | AK75: 6958.6 | AL75: 6958.6 | AM75: 6958.6 | AN75: 6958.6 | AO75: 6958.6 | AP75: 6958.6 | AQ75: 6958.6 | AR75: 6958.6 | AS75: 6958.6 | AT75: 0 | AU75: 0 | AV75: 0 | AW75: 0 | AX75: 0 | AY75: 0 | AZ75: 0 | BA75: 0 | BB75: 0 | BC75: 0
B76: Present value of capex entering the RAB from Y/E 2023 | E76: =G75+NPV(D5,H75:BB75) -> 462390.0988
B79: Panel of additional assets opening RAB by ID year and expiry year
B80: First year in RAB | C80: Expiry year, BAU | D80: Expiry year, applicable acceleration
B81: ID year | E81: 2021 | F81: 2022 | G81: 2023 | H81: 2024 | I81: 2025 | J81: 2026 | K81: 2027 | L81: 2028 | M81: 2029 | N81: 2030 | O81: 2031 | P81: 2032 | Q81: 2033 | R81: 2034 | S81: 2035 | T81: 2036 | U81: 2037 | V81: 2038 | W81: 2039 | X81: 2040 | Y81: 2041 | Z81: 2042 | AA81: 2043 | AB81: 2044 | AC81: 2045 | AD81: 2046 | AE81: 2047 | AF81: 2048 | AG81: 2049 | AH81: 2050 | AI81: 2051 | AJ81: 2052 | AK81: 2053 | AL81: 2054 | AM81: 2055 | AN81: 2056 | AO81: 2057 | AP81: 2058 | AQ81: 2059 | AR81: 2060 | AS81: 2061 | AT81: 2062 | AU81: 2063 | AV81: 2064 | AW81: 2065 | AX81: 2066 | AY81: 2067 | AZ81: 2068 | BA81: 2069 | BB81: 2070 | BC81: 2071 | BD81: 2072
B82: 2022 | C82: =C21 -> 2067 | D82: =ROUND(IF($D$9,MIN(B82+$D$12,$D$6),C82),0) -> 2060 | F82: =IF(F$73=$B82,F$75,E82*(1-1/($C82-F$73+2)+E$74)) -> 18812.79207 | G82: =IF(G$73=$B82,G$75,F82*(1-1/($C82-G$73+2)+F$74)) -> 19344.45793 | H82: =IF(OR(H$73<$B82,AND($D$9,H$73>$D$6+1),H$73>$D82+1),0,IF(H$73=$B82,H$75,G82*(1-1/($D82-H$73+2)+G$74))) -> 19319.0047 | I82: 19221.88754 | J82: 19072.38397 | K82: 18908.90639 | L82: 18730.94022 | M82: 18537.95477 | N82: 18329.40278 | O82: 18104.71978 | P82: 17863.32351 | Q82: 17604.61331 | R82: 17327.96939 | S82: 17032.75213 | T82: 16718.30132 | U82: 16383.9353 | V82: 16028.95003 | W82: 15652.61816 | X82: 15254.18788 | Y82: 14832.88174 | Z82: 14387.89529 | AA82: 13918.39555 | AB82: 13423.51926 | AC82: 12902.37087 | AD82: 12354.0201 | AE82: 11777.49917 | AF82: 11171.79921 | AG82: 10535.86602 | AH82: 9868.594508 | AI82: 9168.821443 | AJ82: 8435.315728 | AK82: 7666.764739 | AL82: 6861.754441 | AM82: 6018.738896 | AN82: 5135.990524 | AO82: 4211.51223 | AP82: 3242.864417 | AQ82: 2226.7669 | AR82: 1157.918788 | AS82: 0 | AT82: 0 | AU82: 0 | AV82: 0 | AW82: 0 | AX82: 0 | AY82: 0 | AZ82: 0 | BA82: 0 | BB82: 0 | BC82: =IF(OR(BC$73<$B82,AND($D$9,BC$73>$D$6+1),BC$73>$D82+1),0,IF(BC$73=$B82,BC$75,BB82*(1-1/($D82-BC$73+2)+BC$74))) -> 0 | BD82: 0
B83: 2023 | C83: 2068 | D83: 2060 | F83: =IF(F$73=$B83,F$75,E83*(1-1/($C83-F$73+2)+E$74)) -> 0 | G83: 37106.20045 | H83: =IF(OR(H$73<$B83,AND($D$9,H$73>$D$6+1),H$73>$D83+1),0,IF(H$73=$B83,H$75,G83*(1-1/($D83-H$73+2)+G$74))) -> 37057.3765 | I83: 36871.08807 | J83: 36584.31294 | K83: 36270.73311 | L83: 35929.36151 | M83: 35559.18021 | N83: 35159.13943 | O83: 34728.15643 | P83: 34265.11434 | Q83: 33768.86096 | R83: 33238.20743 | S83: 32671.92686 | T83: 32068.75283 | U83: 31427.37777 | V83: 30746.45125 | W83: 30024.57805 | X83: 29260.31606 | Y83: 28452.174 | Z83: 27598.60878 | AA83: 26698.0226 | AB83: 25748.75957 | AC83: 24749.10185 | AD83: 23697.26502 | AE83: 22591.39265 | AF83: 21429.5496 | AG83: 20209.7137 | AH83: 18929.76517 | AI83: 17587.47273 | AJ83: 16180.47491 | AK83: 14706.25386 | AL83: 13162.09721 | AM83: 11545.03955 | AN83: 9851.767083 | AO83: 8078.449008 | AP83: 6220.405736 | AQ83: 4271.345272 | AR83: 2221.099541 | AS83: 0 | AT83: 0 | AU83: 0 | AV83: 0 | AW83: 0 | AX83: 0 | AY83: 0 | AZ83: 0 | BA83: 0 | BB83: 0 | BC83: 0 | BD83: 0
B84: 2024 | C84: 2069 | D84: 2060 | F84: =IF(F$73=$B84,F$75,E84*(1-1/($C84-F$73+2)+E$74)) -> 0 | G84: 0 | H84: =IF(OR(H$73<$B84,AND($D$9,H$73>$D$6+1),H$73>$D84+1),0,IF(H$73=$B84,H$75,G84*(1-1/($D84-H$73+2)+G$74))) -> 40302.49786 | I84: 40099.89611 | J84: 39788.00803 | K84: 39446.96796 | L84: 39075.70238 | M84: 38673.10423 | N84: 38238.03181 | O84: 37769.30755 | P84: 37265.71678 | Q84: 36726.0064 | R84: 36148.88344 | S84: 35533.01358 | T84: 34877.01948 | U84: 34179.47909 | V84: 33438.92371 | W84: 32653.83594 | X84: 31822.64739 | Y84: 30943.73617 | Z84: 30015.42409 | AA84: 29035.97341 | AB84: 28003.58324 | AC84: 26916.3853 | AD84: 25772.43893 | AE84: 24569.72511 | AF84: 23306.13925 | AG84: 21979.48209 | AH84: 20587.44823 | AI84: 19127.61099 | AJ84: 17597.40211 | AK84: 15994.08325 | AL84: 14314.70451 | AM84: 12556.04081 | AN84: 10714.48816 | AO84: 8785.880291 | AP84: 6765.127824 | AQ84: 4645.387772 | AR84: 2415.601642 | AS84: 0 | AT84: 0 | AU84: 0 | AV84: 0 | AW84: 0 | AX84: 0 | AY84: 0 | AZ84: 0 | BA84: 0 | BB84: 0 | BC84: 0 | BD84: 0
B85: 2025 | C85: 2070 | D85: 2060 | F85: =IF(F$73=$B85,F$75,E85*(1-1/($C85-F$73+2)+E$74)) -> 0 | G85: 0 | H85: =IF(OR(H$73<$B85,AND($D$9,H$73>$D$6+1),H$73>$D85+1),0,IF(H$73=$B85,H$75,G85*(1-1/($D85-H$73+2)+G$74))) -> 0 | I85: 47383.78588 | J85: 47015.24533 | K85: 46612.25751 | L85: 46173.55391 | M85: 45697.82639 | N85: 45183.72584 | O85: 44629.86081 | P85: 44034.796 | Q85: 43397.05068 | R85: 42715.09703 | S85: 41987.35834 | T85: 41212.20711 | U85: 40387.96296 | V85: 39512.89043 | W85: 38585.19648 | X85: 37603.02785 | Y85: 36564.46803 | Z85: 35467.53399 | AA85: 34310.17235 | AB85: 33090.25511 | AC85: 31805.57462 | AD85: 30453.8377 | AE85: 29032.65861 | AF85: 27539.55045 | AG85: 25971.9145 | AH85: 24327.02658 | AI85: 22602.01924 | AJ85: 20793.8577 | AK85: 18899.30622 | AL85: 16914.87907 | AM85: 14836.76536 | AN85: 12660.70644 | AO85: 10381.77928 | AP85: 7993.970045 | AQ85: 5489.192764 | AR85: 2854.380237 | AS85: 0 | AT85: 0 | AU85: 0 | AV85: 0 | AW85: 0 | AX85: 0 | AY85: 0 | AZ85: 0 | BA85: 0 | BB85: 0 | BC85: 0 | BD85: 0
B86: 2026 | C86: 2071 | D86: 2060 | F86: =IF(F$73=$B86,F$75,E86*(1-1/($C86-F$73+2)+E$74)) -> 0 | G86: 0 | H86: =IF(OR(H$73<$B86,AND($D$9,H$73>$D$6+1),H$73>$D86+1),0,IF(H$73=$B86,H$75,G86*(1-1/($D86-H$73+2)+G$74))) -> 0 | I86: 0 | J86: 40281.49669 | K86: 39936.22672 | L86: 39560.35635 | M86: 39152.7648 | N86: 38712.29619 | O86: 38237.75837 | P86: 37727.92159 | Q86: 37181.51721 | R86: 36597.23623 | S86: 35973.72776 | T86: 35309.5974 | U86: 34603.40545 | V86: 33853.665 | W86: 33058.83982 | X86: 32217.34208 | Y86: 31327.52977 | Z86: 30387.70388 | AA86: 29396.10512 | AB86: 28350.91027 | AC86: 27250.22788 | AD86: 26092.09319 | AE86: 24874.46217 | AF86: 23595.20412 | AG86: 22252.0925 | AH86: 20842.79331 | AI86: 19364.84978 | AJ86: 17815.6618 | AK86: 16192.45706 | AL86: 14492.24907 | AM86: 12711.77275 | AN86: 10847.37942 | AO86: 8894.851122 | AP86: 6849.035364 | AQ86: 4703.004283 | AR86: 2445.562227 | AS86: 0 | AT86: 0 | AU86: 0 | AV86: 0 | AW86: 0 | AX86: 0 | AY86: 0 | AZ86: 0 | BA86: 0 | BB86: 0 | BC86: 0 | BD86: 0
B87: 2027 | C87: 2072 | D87: 2060 | F87: =IF(F$73=$B87,F$75,E87*(1-1/($C87-F$73+2)+E$74)) -> 0 | G87: 0 | H87: =IF(OR(H$73<$B87,AND($D$9,H$73>$D$6+1),H$73>$D87+1),0,IF(H$73=$B87,H$75,G87*(1-1/($D87-H$73+2)+G$74))) -> 0 | I87: 0 | J87: 0 | K87: 42695.22192 | L87: 42293.38453 | M87: 41857.63451 | N87: 41386.73612 | O87: 40879.41484 | P87: 40334.35598 | Q87: 39750.20324 | R87: 39125.55719 | S87: 38458.97362 | T87: 37748.9618 | U87: 36993.98256 | V87: 36192.44627 | W87: 35342.71058 | X87: 34443.07794 | Y87: 33491.79293 | Z87: 32487.03915 | AA87: 31426.93576 | AB87: 30309.5336 | AC87: 29132.81053 | AD87: 27894.66609 | AE87: 26592.915 | AF87: 25225.27937 | AG87: 23789.37886 | AH87: 22282.71819 | AI87: 20702.6709 | AJ87: 19046.45723 | AK87: 17311.11335 | AL87: 15493.44645 | AM87: 13589.96589 | AN87: 11596.77089 | AO87: 9509.352129 | AP87: 7322.201139 | AQ87: 5027.911449 | AR87: 2614.513953 | AS87: 0 | AT87: 0 | AU87: 0 | AV87: 0 | AW87: 0 | AX87: 0 | AY87: 0 | AZ87: 0 | BA87: 0 | BB87: 0 | BC87: 0 | BD87: 0
B88: 2028 | C88: 2073 | D88: 2060 | F88: =IF(F$73=$B88,F$75,E88*(1-1/($C88-F$73+2)+E$74)) -> 0 | G88: 0 | H88: =IF(OR(H$73<$B88,AND($D$9,H$73>$D$6+1),H$73>$D88+1),0,IF(H$73=$B88,H$75,G88*(1-1/($D88-H$73+2)+G$74))) -> 0 | I88: 0 | J88: 0 | K88: 0 | L88: 45010.91881 | M88: 44547.16995 | N88: 44046.01429 | O88: 43506.0954 | P88: 42926.01413 | Q88: 42304.32703 | R88: 41639.54475 | S88: 40930.13028 | T88: 40174.49711 | U88: 39371.00716 | V88: 38517.96868 | W88: 37613.63376 | X88: 36656.19581 | Y88: 35643.78659 | Z88: 34574.47299 | AA88: 33446.25335 | AB88: 32257.05323 | AC88: 31004.72057 | AD88: 29687.01995 | AE88: 28301.62569 | AF88: 26846.11351 | AG88: 25317.95012 | AH88: 23714.47995 | AI88: 22032.90773 | AJ88: 20270.27512 | AK88: 18423.42783 | AL88: 16488.96791 | AM88: 14463.18042 | AN88: 12341.91396 | AO88: 10120.36945 | AP88: 7792.684473 | AQ88: 5350.976672 | AR88: 2782.507869 | AS88: 0 | AT88: 0 | AU88: 0 | AV88: 0 | AW88: 0 | AX88: 0 | AY88: 0 | AZ88: 0 | BA88: 0 | BB88: 0 | BC88: 0 | BD88: 0
B89: 2029 | C89: 2074 | D89: 2060 | F89: =IF(F$73=$B89,F$75,E89*(1-1/($C89-F$73+2)+E$74)) -> 0 | G89: 0 | H89: =IF(OR(H$73<$B89,AND($D$9,H$73>$D$6+1),H$73>$D89+1),0,IF(H$73=$B89,H$75,G89*(1-1/($D89-H$73+2)+G$74))) -> 0 | I89: 0 | J89: 0 | K89: 0 | L89: 0 | M89: 35322.42548 | N89: 34925.0482 | O89: 34496.9347 | P89: 34036.97557 | Q89: 33544.02627 | R89: 33016.90586 | S89: 32454.39561 | T89: 31855.23754 | U89: 31218.13279 | V89: 30541.73991 | W89: 29824.67297 | X89: 29065.49948 | Y89: 28262.73807 | Z89: 27414.85592 | AA89: 26520.26589 | AB89: 25577.3231 | AC89: 24584.32115 | AD89: 23539.4875 | AE89: 22440.97808 | AF89: 21286.87064 | AG89: 20075.15646 | AH89: 18803.72989 | AI89: 17470.37449 | AJ89: 16072.74453 | AK89: 14608.33892 | AL89: 13074.46333 | AM89: 11468.17212 | AN89: 9786.173546 | AO89: 8024.662308 | AP89: 6178.989977 | AQ89: 4242.906451 | AR89: 2206.311354 | AS89: 0 | AT89: 0 | AU89: 0 | AV89: 0 | AW89: 0 | AX89: 0 | AY89: 0 | AZ89: 0 | BA89: 0 | BB89: 0 | BC89: 0 | BD89: 0
B90: 2030 | C90: 2075 | D90: 2060 | F90: =IF(F$73=$B90,F$75,E90*(1-1/($C90-F$73+2)+E$74)) -> 0 | G90: 0 | H90: =IF(OR(H$73<$B90,AND($D$9,H$73>$D$6+1),H$73>$D90+1),0,IF(H$73=$B90,H$75,G90*(1-1/($D90-H$73+2)+G$74))) -> 0 | I90: 0 | J90: 0 | K90: 0 | L90: 0 | M90: 0 | N90: 36761.50735 | O90: 36310.88242 | P90: 35826.73732 | Q90: 35307.86733 | R90: 34753.02941 | S90: 34160.94076 | T90: 33530.27724 | U90: 32859.6717 | V90: 32147.71214 | W90: 31392.93977 | X90: 30593.84676 | Y90: 29748.87385 | Z90: 28856.40763 | AA90: 27914.77749 | AB90: 26922.25207 | AC90: 25877.03522 | AD90: 24777.26123 | AE90: 23620.98904 | AF90: 22406.19531 | AG90: 21130.76573 | AH90: 19792.4839 | AI90: 18389.01686 | AJ90: 16917.89551 | AK90: 15376.48726 | AL90: 13761.95609 | AM90: 12071.20149 | AN90: 10300.7586 | AO90: 8446.622055 | AP90: 6503.898982 | AQ90: 4466.010635 | AR90: 2322.32553 | AS90: 0 | AT90: 0 | AU90: 0 | AV90: 0 | AW90: 0 | AX90: 0 | AY90: 0 | AZ90: 0 | BA90: 0 | BB90: 0 | BC90: 0 | BD90: 0
B91: 2031 | C91: 2076 | D91: 2060 | F91: =IF(F$73=$B91,F$75,E91*(1-1/($C91-F$73+2)+E$74)) -> 0 | G91: 0 | H91: =IF(OR(H$73<$B91,AND($D$9,H$73>$D$6+1),H$73>$D91+1),0,IF(H$73=$B91,H$75,G91*(1-1/($D91-H$73+2)+G$74))) -> 0 | I91: 0 | J91: 0 | K91: 0 | L91: 0 | M91: 0 | N91: 0 | O91: 40914.86386 | P91: 40369.33234 | Q91: 39784.67305 | R91: 39159.48533 | S91: 38492.32373 | T91: 37781.69621 | U91: 37026.06229 | V91: 36223.83094 | W91: 35373.35839 | X91: 34472.94563 | Y91: 33520.8357 | Z91: 32515.21063 | AA91: 31454.18797 | AB91: 30335.81684 | AC91: 29158.07336 | AD91: 27918.85524 | AE91: 26615.97533 | AF91: 25247.15374 | AG91: 23810.00807 | AH91: 22302.04089 | AI91: 20720.62345 | AJ91: 19062.97357 | AK91: 17326.12487 | AL91: 15506.88176 | AM91: 13601.75057 | AN91: 11606.82715 | AO91: 9517.598265 | AP91: 7328.550664 | AQ91: 5032.271456 | AR91: 2616.781157 | AS91: 0 | AT91: 0 | AU91: 0 | AV91: 0 | AW91: 0 | AX91: 0 | AY91: 0 | AZ91: 0 | BA91: 0 | BB91: 0 | BC91: 0 | BD91: 0
B92: 2032 | C92: 2077 | D92: =ROUND(IF($D$9,MIN(B92+$D$12,$D$6),C92),0) -> 2060 | F92: =IF(F$73=$B92,F$75,E92*(1-1/($C92-F$73+2)+E$74)) -> 0 | G92: 0 | H92: =IF(OR(H$73<$B92,AND($D$9,H$73>$D$6+1),H$73>$D92+1),0,IF(H$73=$B92,H$75,G92*(1-1/($D92-H$73+2)+G$74))) -> 0 | I92: 0 | J92: 0 | K92: 0 | L92: 0 | M92: 0 | N92: 0 | O92: 0 | P92: 39250.65587 | Q92: 38682.19809 | R92: 38074.33498 | S92: 37425.66112 | T92: 36734.72584 | U92: 36000.03133 | V92: 35220.03065 | W92: 34393.12558 | X92: 33517.6642 | Y92: 32591.93824 | Z92: 31614.18009 | AA92: 30582.55948 | AB92: 29495.17958 | AC92: 28350.07261 | AD92: 27145.19453 | AE92: 25878.41878 | AF92: 24547.52867 | AG92: 23150.20781 | AH92: 21684.02798 | AI92: 20146.43327 | AJ92: 18534.71861 | AK92: 16845.9998 | AL92: 15077.16982 | AM92: 13224.83182 | AN92: 11285.18982 | AO92: 9253.855649 | AP92: 7125.46885 | AQ92: 4892.821944 | AR92: 2544.267411 | AS92: 0 | AT92: 0 | AU92: 0 | AV92: 0 | AW92: 0 | AX92: 0 | AY92: 0 | AZ92: 0 | BA92: 0 | BB92: 0 | BC92: 0 | BD92: 0
B93: 2033 | C93: 2078 | D93: 2060 | F93: =IF(F$73=$B93,F$75,E93*(1-1/($C93-F$73+2)+E$74)) -> 0 | G93: 0 | H93: =IF(OR(H$73<$B93,AND($D$9,H$73>$D$6+1),H$73>$D93+1),0,IF(H$73=$B93,H$75,G93*(1-1/($D93-H$73+2)+G$74))) -> 0 | I93: 0 | J93: 0 | K93: 0 | L93: 0 | M93: 0 | N93: 0 | O93: 0 | P93: 0 | Q93: 36944.08045 | R93: 36363.53061 | S93: 35744.00379 | T93: 35084.11449 | U93: 34382.4322 | V93: 33637.47951 | W93: 32847.72999 | X93: 32011.60595 | Y93: 31127.47588 | Z93: 30193.65161 | AA93: 29208.38508 | AB93: 28169.86472 | AC93: 27076.21115 | AD93: 25925.47218 | AE93: 24715.61681 | AF93: 23444.52794 | AG93: 22109.99328 | AH93: 20709.6937 | AI93: 19241.18815 | AJ93: 17701.8931 | AK93: 16089.05395 | AL93: 14399.70328 | AM93: 12630.59688 | AN93: 10778.10934 | AO93: 8838.049657 | AP93: 6805.298236 | AQ93: 4672.971455 | AR93: 2429.945157 | AS93: 0 | AT93: 0 | AU93: 0 | AV93: 0 | AW93: 0 | AX93: 0 | AY93: 0 | AZ93: 0 | BA93: 0 | BB93: 0 | BC93: 0 | BD93: 0
B94: 2034 | C94: 2079 | D94: 2060 | F94: =IF(F$73=$B94,F$75,E94*(1-1/($C94-F$73+2)+E$74)) -> 0 | G94: 0 | H94: =IF(OR(H$73<$B94,AND($D$9,H$73>$D$6+1),H$73>$D94+1),0,IF(H$73=$B94,H$75,G94*(1-1/($D94-H$73+2)+G$74))) -> 0 | I94: 0 | J94: 0 | K94: 0 | L94: 0 | M94: 0 | N94: 0 | O94: 0 | P94: 0 | Q94: 0 | R94: 34637.50503 | S94: 34047.38457 | T94: 33418.81747 | U94: 32750.44112 | V94: 32040.84823 | W94: 31288.58484 | X94: 30492.14813 | Y94: 29649.98404 | Z94: 28760.48452 | AA94: 27821.9845 | AB94: 26832.75838 | AC94: 25791.016 | AD94: 24694.89782 | AE94: 23542.46926 | AF94: 22331.71369 | AG94: 21060.52384 | AH94: 19726.69066 | AI94: 18327.88896 | AJ94: 16861.65784 | AK94: 15325.37346 | AL94: 13716.20925 | AM94: 12031.07497 | AN94: 10266.51731 | AO94: 8418.544192 | AP94: 6482.279028 | AQ94: 4451.164932 | AR94: 2314.605765 | AS94: 0 | AT94: 0 | AU94: 0 | AV94: 0 | AW94: 0 | AX94: 0 | AY94: 0 | AZ94: 0 | BA94: 0 | BB94: 0 | BC94: 0 | BD94: 0
B95: 2035 | C95: 2080 | D95: 2060 | F95: =IF(F$73=$B95,F$75,E95*(1-1/($C95-F$73+2)+E$74)) -> 0 | G95: 0 | H95: =IF(OR(H$73<$B95,AND($D$9,H$73>$D$6+1),H$73>$D95+1),0,IF(H$73=$B95,H$75,G95*(1-1/($D95-H$73+2)+G$74))) -> 0 | I95: 0 | J95: 0 | K95: 0 | L95: 0 | M95: 0 | N95: 0 | O95: 0 | P95: 0 | Q95: 0 | R95: 0 | S95: 32330.92961 | T95: 31734.05091 | U95: 31099.36989 | V95: 30425.55021 | W95: 29711.21121 | X95: 28954.92583 | Y95: 28155.21835 | Z95: 27310.5618 | AA95: 26419.37505 | AB95: 25480.01949 | AC95: 24490.79521 | AD95: 23449.93641 | AE95: 22355.60604 | AF95: 21205.88916 | AG95: 19998.7847 | AH95: 18732.195 | AI95: 17403.91209 | AJ95: 16011.59912 | AK95: 14552.76453 | AL95: 13024.72426 | AM95: 11424.54385 | AN95: 9748.944083 | AO95: 7994.134148 | AP95: 6155.483294 | AQ95: 4226.765195 | AR95: 2197.917902 | AS95: 0 | AT95: 0 | AU95: 0 | AV95: 0 | AW95: 0 | AX95: 0 | AY95: 0 | AZ95: 0 | BA95: 0 | BB95: 0 | BC95: 0 | BD95: 0
B96: 2036 | C96: 2081 | D96: 2060 | F96: =IF(F$73=$B96,F$75,E96*(1-1/($C96-F$73+2)+E$74)) -> 0 | G96: 0 | H96: =IF(OR(H$73<$B96,AND($D$9,H$73>$D$6+1),H$73>$D96+1),0,IF(H$73=$B96,H$75,G96*(1-1/($D96-H$73+2)+G$74))) -> 0 | I96: 0 | J96: 0 | K96: 0 | L96: 0 | M96: 0 | N96: 0 | O96: 0 | P96: 0 | Q96: 0 | R96: 0 | S96: 0 | T96: 30024.35419 | U96: 29423.86711 | V96: 28786.34999 | W96: 28110.49655 | X96: 27394.95664 | Y96: 26638.33403 | Z96: 25839.18401 | AA96: 24996.01063 | AB96: 24107.26359 | AC96: 23171.33453 | AD96: 22186.55281 | AE96: 21151.18035 | AF96: 20063.40536 | AG96: 18921.33459 | AH96: 17722.9834 | AI96: 16466.26276 | AJ96: 15148.96174 | AK96: 13768.723 | AL96: 12323.00709 | AM96: 10809.03765 | AN96: 9223.712125 | AO96: 7563.443942 | AP96: 5823.851836 | AQ96: 3999.044927 | AR96: 2079.503362 | AS96: 0 | AT96: 0 | AU96: 0 | AV96: 0 | AW96: 0 | AX96: 0 | AY96: 0 | AZ96: 0 | BA96: 0 | BB96: 0 | BC96: 0 | BD96: 0
B97: 2037 | C97: 2082 | D97: 2060 | F97: =IF(F$73=$B97,F$75,E97*(1-1/($C97-F$73+2)+E$74)) -> 0 | G97: 0 | H97: =IF(OR(H$73<$B97,AND($D$9,H$73>$D$6+1),H$73>$D97+1),0,IF(H$73=$B97,H$75,G97*(1-1/($D97-H$73+2)+G$74))) -> 0 | I97: 0 | J97: 0 | K97: 0 | L97: 0 | M97: 0 | N97: 0 | O97: 0 | P97: 0 | Q97: 0 | R97: 0 | S97: 0 | T97: 0 | U97: 27717.77877 | V97: 27117.2269 | W97: 26480.56157 | X97: 25806.51091 | Y97: 25093.75966 | Z97: 24340.94687 | AA97: 23546.66334 | AB97: 22709.44864 | AC97: 21827.7877 | AD97: 20900.10672 | AE97: 19924.76841 | AF97: 18900.06603 | AG97: 17824.21612 | AH97: 16695.3491 | AI97: 15511.49707 | AJ97: 14270.5773 | AK97: 12970.36915 | AL97: 11608.48039 | AM97: 10182.29566 | AN97: 8688.892293 | AO97: 7124.89168 | AP97: 5486.166594 | AQ97: 3767.167728 | AR97: 1958.927218 | AS97: 0 | AT97: 0 | AU97: 0 | AV97: 0 | AW97: 0 | AX97: 0 | AY97: 0 | AZ97: 0 | BA97: 0 | BB97: 0 | BC97: 0 | BD97: 0
B98: 2038 | C98: 2083 | D98: 2060 | F98: =IF(F$73=$B98,F$75,E98*(1-1/($C98-F$73+2)+E$74)) -> 0 | G98: 0 | H98: =IF(OR(H$73<$B98,AND($D$9,H$73>$D$6+1),H$73>$D98+1),0,IF(H$73=$B98,H$75,G98*(1-1/($D98-H$73+2)+G$74))) -> 0 | I98: 0 | J98: 0 | K98: 0 | L98: 0 | M98: 0 | N98: 0 | O98: 0 | P98: 0 | Q98: 0 | R98: 0 | S98: 0 | T98: 0 | U98: 0 | V98: 25411.20335 | W98: 24814.59249 | X98: 24182.94832 | Y98: 23515.03832 | Z98: 22809.58717 | AA98: 22065.27432 | AB98: 21280.73124 | AC98: 20454.53814 | AD98: 19585.22027 | AE98: 18671.24332 | AF98: 17711.00795 | AG98: 16702.84289 | AH98: 15644.99617 | AI98: 14535.62371 | AJ98: 13372.77382 | AK98: 12154.36554 | AL98: 10878.15715 | AM98: 9541.697847 | AN98: 8142.248829 | AO98: 6676.64404 | AP98: 5141.015911 | AQ98: 3530.164259 | AR98: 1835.685415 | AS98: 0 | AT98: 0 | AU98: 0 | AV98: 0 | AW98: 0 | AX98: 0 | AY98: 0 | AZ98: 0 | BA98: 0 | BB98: 0 | BC98: 0 | BD98: 0
B99: 2039 | C99: 2084 | D99: 2060 | F99: =IF(F$73=$B99,F$75,E99*(1-1/($C99-F$73+2)+E$74)) -> 0 | G99: 0 | H99: =IF(OR(H$73<$B99,AND($D$9,H$73>$D$6+1),H$73>$D99+1),0,IF(H$73=$B99,H$75,G99*(1-1/($D99-H$73+2)+G$74))) -> 0 | I99: 0 | J99: 0 | K99: 0 | L99: 0 | M99: 0 | N99: 0 | O99: 0 | P99: 0 | Q99: 0 | R99: 0 | S99: 0 | T99: 0 | U99: 0 | V99: 0 | W99: 23104.62793 | X99: 22516.51013 | Y99: 21894.62557 | Z99: 21237.7868 | AA99: 20544.76428 | AB99: 19814.28377 | AC99: 19045.02335 | AD99: 18235.60985 | AE99: 17384.61473 | AF99: 16490.54883 | AG99: 15551.85605 | AH99: 14566.90516 | AI99: 13533.97916 | AJ99: 12451.26083 | AK99: 11316.81262 | AL99: 10128.54729 | AM99: 8884.182913 | AN99: 7581.169419 | AO99: 6216.558924 | AP99: 4786.750371 | AQ99: 3286.901922 | AR99: 1709.188999 | AS99: 0 | AT99: 0 | AU99: 0 | AV99: 0 | AW99: 0 | AX99: 0 | AY99: 0 | AZ99: 0 | BA99: 0 | BB99: 0 | BC99: 0 | BD99: 0
B100: 2040 | C100: 2085 | D100: 2060 | F100: =IF(F$73=$B100,F$75,E100*(1-1/($C100-F$73+2)+E$74)) -> 0 | G100: 0 | H100: =IF(OR(H$73<$B100,AND($D$9,H$73>$D$6+1),H$73>$D100+1),0,IF(H$73=$B100,H$75,G100*(1-1/($D100-H$73+2)+G$74))) -> 0 | I100: 0 | J100: 0 | K100: 0 | L100: 0 | M100: 0 | N100: 0 | O100: 0 | P100: 0 | Q100: 0 | R100: 0 | S100: 0 | T100: 0 | U100: 0 | V100: 0 | W100: 0 | X100: 20798.05251 | Y100: 20223.63011 | Z100: 19616.92121 | AA100: 18976.7901 | AB100: 18302.05978 | AC100: 17591.50922 | AD100: 16843.87008 | AE100: 16057.82281 | AF100: 15231.99192 | AG100: 14364.94008 | AH100: 13455.16054 | AI100: 12501.06734 | AJ100: 11500.98195 | AK100: 10453.11471 | AL100: 9355.537661 | AM100: 8206.143034 | AN100: 7002.575389 | AO100: 5742.111819 | AP100: 4421.426101 | AQ100: 3036.045923 | AR100: 1578.74388 | AS100: 0 | AT100: 0 | AU100: 0 | AV100: 0 | AW100: 0 | AX100: 0 | AY100: 0 | AZ100: 0 | BA100: 0 | BB100: 0 | BC100: 0 | BD100: 0
B101: 2041 | C101: 2086 | D101: 2060 | F101: =IF(F$73=$B101,F$75,E101*(1-1/($C101-F$73+2)+E$74)) -> 0 | G101: 0 | H101: =IF(OR(H$73<$B101,AND($D$9,H$73>$D$6+1),H$73>$D101+1),0,IF(H$73=$B101,H$75,G101*(1-1/($D101-H$73+2)+G$74))) -> 0 | I101: 0 | J101: 0 | K101: 0 | L101: 0 | M101: 0 | N101: 0 | O101: 0 | P101: 0 | Q101: 0 | R101: 0 | S101: 0 | T101: 0 | U101: 0 | V101: 0 | W101: 0 | X101: 0 | Y101: 18491.4771 | Z101: 17936.73278 | AA101: 17351.42887 | AB101: 16734.48918 | AC101: 16084.79724 | AD101: 15401.19336 | AE101: 14682.471 | AF101: 13927.3725 | AG101: 13134.5836 | AH101: 12302.72664 | AI101: 11430.35148 | AJ101: 10515.92336 | AK101: 9557.805897 | AL101: 8554.236278 | AM101: 7503.28725 | AN101: 6402.80512 | AO101: 5250.300198 | AP101: 4042.731153 | AQ101: 2776.008725 | AR101: 1443.524537 | AS101: 0 | AT101: 0 | AU101: 0 | AV101: 0 | AW101: 0 | AX101: 0 | AY101: 0 | AZ101: 0 | BA101: 0 | BB101: 0 | BC101: 0 | BD101: 0
B102: 2042 | C102: 2087 | D102: 2060 | F102: =IF(F$73=$B102,F$75,E102*(1-1/($C102-F$73+2)+E$74)) -> 0 | G102: 0 | H102: =IF(OR(H$73<$B102,AND($D$9,H$73>$D$6+1),H$73>$D102+1),0,IF(H$73=$B102,H$75,G102*(1-1/($D102-H$73+2)+G$74))) -> 0 | I102: 0 | J102: 0 | K102: 0 | L102: 0 | M102: 0 | N102: 0 | O102: 0 | P102: 0 | Q102: 0 | R102: 0 | S102: 0 | T102: 0 | U102: 0 | V102: 0 | W102: 0 | X102: 0 | Y102: 0 | Z102: 16184.90168 | AA102: 15656.76278 | AB102: 15100.07788 | AC102: 14513.83956 | AD102: 13897.00138 | AE102: 13248.47465 | AF102: 12567.12453 | AG102: 11851.76513 | AH102: 11101.15334 | AI102: 10313.98065 | AJ102: 9488.862195 | AK102: 8624.321417 | AL102: 7718.767668 | AM102: 6770.461926 | AN102: 5777.460844 | AO102: 4737.517892 | AP102: 3647.888777 | AQ102: 2504.883627 | AR102: 1302.539486 | AS102: 0 | AT102: 0 | AU102: 0 | AV102: 0 | AW102: 0 | AX102: 0 | AY102: 0 | AZ102: 0 | BA102: 0 | BB102: 0 | BC102: =IF(OR(BC$73<$B102,AND($D$9,BC$73>$D$6+1),BC$73>$D102+1),0,IF(BC$73=$B102,BC$75,BB102*(1-1/($D102-BC$73+2)+BC$74))) -> 0 | BD102: 0
B103: 2043 | C103: 2088 | D103: 2060 | F103: =IF(F$73=$B103,F$75,E103*(1-1/($C103-F$73+2)+E$74)) -> 0 | G103: 0 | H103: =IF(OR(H$73<$B103,AND($D$9,H$73>$D$6+1),H$73>$D103+1),0,IF(H$73=$B103,H$75,G103*(1-1/($D103-H$73+2)+G$74))) -> 0 | I103: 0 | J103: 0 | K103: 0 | L103: 0 | M103: 0 | N103: 0 | O103: 0 | P103: 0 | Q103: 0 | R103: 0 | S103: 0 | T103: 0 | U103: 0 | V103: 0 | W103: 0 | X103: 0 | Y103: 0 | Z103: 0 | AA103: 13878.32626 | AB103: 13384.87466 | AC103: 12865.22658 | AD103: 12318.45445 | AE103: 11743.59324 | AF103: 11139.63702 | AG103: 10505.53461 | AH103: 9840.18408 | AI103: 9142.425573 | AJ103: 8411.031527 | AK103: 7644.693099 | AL103: 6842.000324 | AM103: 6001.411712 | AN103: 5121.204661 | AO103: 4199.387822 | AP103: 3233.528623 | AQ103: 2220.356321 | AR103: 1154.585287 | AS103: 0 | AT103: 0 | AU103: 0 | AV103: 0 | AW103: 0 | AX103: 0 | AY103: 0 | AZ103: 0 | BA103: 0 | BB103: 0 | BC103: 0 | BD103: 0
B104: 2044 | C104: 2089 | D104: 2060 | F104: =IF(F$73=$B104,F$75,E104*(1-1/($C104-F$73+2)+E$74)) -> 0 | G104: 0 | H104: =IF(OR(H$73<$B104,AND($D$9,H$73>$D$6+1),H$73>$D104+1),0,IF(H$73=$B104,H$75,G104*(1-1/($D104-H$73+2)+G$74))) -> 0 | I104: 0 | J104: 0 | K104: 0 | L104: 0 | M104: 0 | N104: 0 | O104: 0 | P104: 0 | Q104: 0 | R104: 0 | S104: 0 | T104: 0 | U104: 0 | V104: 0 | W104: 0 | X104: 0 | Y104: 0 | Z104: 0 | AA104: 0 | AB104: 11571.75084 | AC104: 11122.49463 | AD104: 10649.78861 | AE104: 10152.79847 | AF104: 9630.654551 | AG104: 9082.448061 | AH104: 8507.226351 | AI104: 7903.986664 | AJ104: 7271.667731 | AK104: 6609.138004 | AL104: 5915.178514 | AM104: 5188.456582 | AN104: 4427.48295 | AO104: 3630.536019 | AP104: 2795.512735 | AQ104: 1919.585411 | AR104: 998.1844138 | AS104: 0 | AT104: 0 | AU104: 0 | AV104: 0 | AW104: 0 | AX104: 0 | AY104: 0 | AZ104: 0 | BA104: 0 | BB104: 0 | BC104: 0 | BD104: 0
B105: 2045 | C105: 2090 | D105: 2060 | F105: =IF(F$73=$B105,F$75,E105*(1-1/($C105-F$73+2)+E$74)) -> 0 | G105: 0 | H105: =IF(OR(H$73<$B105,AND($D$9,H$73>$D$6+1),H$73>$D105+1),0,IF(H$73=$B105,H$75,G105*(1-1/($D105-H$73+2)+G$74))) -> 0 | I105: 0 | J105: 0 | K105: 0 | L105: 0 | M105: 0 | N105: 0 | O105: 0 | P105: 0 | Q105: 0 | R105: 0 | S105: 0 | T105: 0 | U105: 0 | V105: 0 | W105: 0 | X105: 0 | Y105: 0 | Z105: 0 | AA105: 0 | AB105: 0 | AC105: 9265.175419 | AD105: 8871.405464 | AE105: 8457.406542 | AF105: 8022.454206 | AG105: 7565.791428 | AH105: 7086.624637 | AI105: 6584.118527 | AJ105: 6057.389045 | AK105: 5505.493598 | AL105: 4927.41677 | AM105: 4322.048424 | AN105: 3688.147989 | AO105: 3024.281351 | AP105: 2328.69664 | AQ105: 1599.03836 | AR105: 831.499947 | AS105: 0 | AT105: 0 | AU105: 0 | AV105: 0 | AW105: 0 | AX105: 0 | AY105: 0 | AZ105: 0 | BA105: 0 | BB105: 0 | BC105: 0 | BD105: 0
B106: 2046 | C106: 2091 | D106: 2060 | F106: =IF(F$73=$B106,F$75,E106*(1-1/($C106-F$73+2)+E$74)) -> 0 | G106: 0 | H106: =IF(OR(H$73<$B106,AND($D$9,H$73>$D$6+1),H$73>$D106+1),0,IF(H$73=$B106,H$75,G106*(1-1/($D106-H$73+2)+G$74))) -> 0 | I106: 0 | J106: 0 | K106: 0 | L106: 0 | M106: 0 | N106: 0 | O106: 0 | P106: 0 | Q106: 0 | R106: 0 | S106: 0 | T106: 0 | U106: 0 | V106: 0 | W106: 0 | X106: 0 | Y106: 0 | Z106: 0 | AA106: 0 | AB106: 0 | AC106: 0 | AD106: 6958.6 | AE106: 6633.865333 | AF106: 6292.695116 | AG106: 5934.495548 | AH106: 5558.644163 | AI106: 5164.485759 | AJ106: 4751.326898 | AK106: 4318.428225 | AL106: 3864.993262 | AM106: 3390.151232 | AN106: 2892.929052 | AO106: 2372.201822 | AP106: 1826.595403 | AQ106: 1254.262177 | AR106: 652.216332 | AS106: 0 | AT106: 0 | AU106: 0 | AV106: 0 | AW106: 0 | AX106: 0 | AY106: 0 | AZ106: 0 | BA106: 0 | BB106: 0 | BC106: 0 | BD106: 0
B107: 2047 | C107: 2092 | D107: 2060 | F107: =IF(F$73=$B107,F$75,E107*(1-1/($C107-F$73+2)+E$74)) -> 0 | G107: 0 | H107: =IF(OR(H$73<$B107,AND($D$9,H$73>$D$6+1),H$73>$D107+1),0,IF(H$73=$B107,H$75,G107*(1-1/($D107-H$73+2)+G$74))) -> 0 | I107: 0 | J107: 0 | K107: 0 | L107: 0 | M107: 0 | N107: 0 | O107: 0 | P107: 0 | Q107: 0 | R107: 0 | S107: 0 | T107: 0 | U107: 0 | V107: 0 | W107: 0 | X107: 0 | Y107: 0 | Z107: 0 | AA107: 0 | AB107: 0 | AC107: 0 | AD107: 0 | AE107: 6958.6 | AF107: 6600.729143 | AG107: 6224.99533 | AH107: 5830.745626 | AI107: 5417.292754 | AJ107: 4983.909334 | AK107: 4529.819817 | AL107: 4054.188736 | AM107: 3556.102691 | AN107: 3034.540963 | AO107: 2488.32359 | AP107: 1916.009164 | AQ107: 1315.659626 | AR107: 684.1430056 | AS107: 0 | AT107: 0 | AU107: 0 | AV107: 0 | AW107: 0 | AX107: 0 | AY107: 0 | AZ107: 0 | BA107: 0 | BB107: 0 | BC107: 0 | BD107: 0
B108: 2048 | C108: 2093 | D108: 2060 | F108: =IF(F$73=$B108,F$75,E108*(1-1/($C108-F$73+2)+E$74)) -> 0 | G108: 0 | H108: =IF(OR(H$73<$B108,AND($D$9,H$73>$D$6+1),H$73>$D108+1),0,IF(H$73=$B108,H$75,G108*(1-1/($D108-H$73+2)+G$74))) -> 0 | I108: 0 | J108: 0 | K108: 0 | L108: 0 | M108: 0 | N108: 0 | O108: 0 | P108: 0 | Q108: 0 | R108: 0 | S108: 0 | T108: 0 | U108: 0 | V108: 0 | W108: 0 | X108: 0 | Y108: 0 | Z108: 0 | AA108: 0 | AB108: 0 | AC108: 0 | AD108: 0 | AE108: 0 | AF108: 6958.6 | AG108: 6562.495077 | AH108: 6146.870389 | AI108: 5711.001398 | AJ108: 5254.121286 | AK108: 4775.412457 | AL108: 4273.994149 | AM108: 3748.90344 | AN108: 3199.064268 | AO108: 2623.2327 | AP108: 2019.889179 | AQ108: 1386.99057 | AR108: 721.2350962 | AS108: 0 | AT108: 0 | AU108: 0 | AV108: 0 | AW108: 0 | AX108: 0 | AY108: 0 | AZ108: 0 | BA108: 0 | BB108: 0 | BC108: 0 | BD108: 0
B109: 2049 | C109: 2094 | D109: 2060 | F109: =IF(F$73=$B109,F$75,E109*(1-1/($C109-F$73+2)+E$74)) -> 0 | G109: 0 | H109: =IF(OR(H$73<$B109,AND($D$9,H$73>$D$6+1),H$73>$D109+1),0,IF(H$73=$B109,H$75,G109*(1-1/($D109-H$73+2)+G$74))) -> 0 | I109: 0 | J109: 0 | K109: 0 | L109: 0 | M109: 0 | N109: 0 | O109: 0 | P109: 0 | Q109: 0 | R109: 0 | S109: 0 | T109: 0 | U109: 0 | V109: 0 | W109: 0 | X109: 0 | Y109: 0 | Z109: 0 | AA109: 0 | AB109: 0 | AC109: 0 | AD109: 0 | AE109: 0 | AF109: 0 | AG109: 6958.6 | AH109: 6517.888667 | AI109: 6055.711107 | AJ109: 5571.254218 | AK109: 5063.651056 | AL109: 4531.967695 | AM109: 3975.183093 | AN109: 3392.156239 | AO109: 2781.568116 | AP109: 2141.807449 | AQ109: 1470.707782 | AR109: 764.7680466 | AS109: 0 | AT109: 0 | AU109: 0 | AV109: 0 | AW109: 0 | AX109: 0 | AY109: 0 | AZ109: 0 | BA109: 0 | BB109: 0 | BC109: 0 | BD109: 0
B110: 2050 | C110: 2095 | D110: 2060 | F110: =IF(F$73=$B110,F$75,E110*(1-1/($C110-F$73+2)+E$74)) -> 0 | G110: 0 | H110: =IF(OR(H$73<$B110,AND($D$9,H$73>$D$6+1),H$73>$D110+1),0,IF(H$73=$B110,H$75,G110*(1-1/($D110-H$73+2)+G$74))) -> 0 | I110: 0 | J110: 0 | K110: 0 | L110: 0 | M110: 0 | N110: 0 | O110: 0 | P110: 0 | Q110: 0 | R110: 0 | S110: 0 | T110: 0 | U110: 0 | V110: 0 | W110: 0 | X110: 0 | Y110: 0 | Z110: 0 | AA110: 0 | AB110: 0 | AC110: 0 | AD110: 0 | AE110: 0 | AF110: 0 | AG110: 0 | AH110: 6958.6 | AI110: 6465.172 | AJ110: 5947.95824 | AK110: 5406.033156 | AL110: 4838.399675 | AM110: 4243.967715 | AN110: 3621.519116 | AO110: 2969.645675 | AP110: 2286.62717 | AQ110: 1570.150657 | AR110: 816.4783415 | AS110: 0 | AT110: 0 | AU110: 0 | AV110: 0 | AW110: 0 | AX110: 0 | AY110: 0 | AZ110: 0 | BA110: 0 | BB110: 0 | BC110: 0 | BD110: 0
B111: 2051 | C111: 2096 | D111: 2060 | F111: =IF(F$73=$B111,F$75,E111*(1-1/($C111-F$73+2)+E$74)) -> 0 | G111: 0 | H111: =IF(OR(H$73<$B111,AND($D$9,H$73>$D$6+1),H$73>$D111+1),0,IF(H$73=$B111,H$75,G111*(1-1/($D111-H$73+2)+G$74))) -> 0 | I111: 0 | J111: 0 | K111: 0 | L111: 0 | M111: 0 | N111: 0 | O111: 0 | P111: 0 | Q111: 0 | R111: 0 | S111: 0 | T111: 0 | U111: 0 | V111: 0 | W111: 0 | X111: 0 | Y111: 0 | Z111: 0 | AA111: 0 | AB111: 0 | AC111: 0 | AD111: 0 | AE111: 0 | AF111: 0 | AG111: 0 | AH111: 0 | AI111: 6958.6 | AJ111: 6401.912 | AK111: 5818.626684 | AL111: 5207.670883 | AM111: 4567.871317 | AN111: 3897.916857 | AO111: 3196.291823 | AP111: 2461.144704 | AQ111: 1689.98603 | AR111: 878.7927355 | AS111: 0 | AT111: 0 | AU111: 0 | AV111: 0 | AW111: 0 | AX111: 0 | AY111: 0 | AZ111: 0 | BA111: 0 | BB111: 0 | BC111: 0 | BD111: 0
B112: 2052 | C112: 2097 | D112: 2060 | F112: =IF(F$73=$B112,F$75,E112*(1-1/($C112-F$73+2)+E$74)) -> 0 | G112: 0 | H112: =IF(OR(H$73<$B112,AND($D$9,H$73>$D$6+1),H$73>$D112+1),0,IF(H$73=$B112,H$75,G112*(1-1/($D112-H$73+2)+G$74))) -> 0 | I112: 0 | J112: 0 | K112: 0 | L112: 0 | M112: 0 | N112: 0 | O112: 0 | P112: 0 | Q112: 0 | R112: 0 | S112: 0 | T112: 0 | U112: 0 | V112: 0 | W112: 0 | X112: 0 | Y112: 0 | Z112: 0 | AA112: 0 | AB112: 0 | AC112: 0 | AD112: 0 | AE112: 0 | AF112: 0 | AG112: 0 | AH112: 0 | AI112: 0 | AJ112: 6958.6 | AK112: 6324.594222 | AL112: 5660.511829 | AM112: 4965.077518 | AN112: 4236.866149 | AO112: 3474.230242 | AP112: 2675.157287 | AQ112: 1836.941337 | AR112: 955.2094951 | AS112: 0 | AT112: 0 | AU112: 0 | AV112: 0 | AW112: 0 | AX112: 0 | AY112: 0 | AZ112: 0 | BA112: 0 | BB112: 0 | BC112: 0 | BD112: 0
B113: 2053 | C113: 2098 | D113: 2060 | F113: =IF(F$73=$B113,F$75,E113*(1-1/($C113-F$73+2)+E$74)) -> 0 | G113: 0 | H113: =IF(OR(H$73<$B113,AND($D$9,H$73>$D$6+1),H$73>$D113+1),0,IF(H$73=$B113,H$75,G113*(1-1/($D113-H$73+2)+G$74))) -> 0 | I113: 0 | J113: 0 | K113: 0 | L113: 0 | M113: 0 | N113: 0 | O113: 0 | P113: 0 | Q113: 0 | R113: 0 | S113: 0 | T113: 0 | U113: 0 | V113: 0 | W113: 0 | X113: 0 | Y113: 0 | Z113: 0 | AA113: 0 | AB113: 0 | AC113: 0 | AD113: 0 | AE113: 0 | AF113: 0 | AG113: 0 | AH113: 0 | AI113: 0 | AJ113: 0 | AK113: 6958.6 | AL113: 6227.947 | AM113: 5462.799226 | AN113: 4661.588673 | AO113: 3822.502712 | AP113: 2943.327088 | AQ113: 2021.0846 | AR113: 1050.963992 | AS113: 0 | AT113: 0 | AU113: 0 | AV113: 0 | AW113: 0 | AX113: 0 | AY113: 0 | AZ113: 0 | BA113: 0 | BB113: 0 | BC113: 0 | BD113: 0
B114: 2054 | C114: =C53 -> 2099 | D114: =ROUND(IF($D$9,MIN(B114+$D$12,$D$6),C114),0) -> 2060 | F114: =IF(F$73=$B114,F$75,E114*(1-1/($C114-F$73+2)+E$74)) -> 0 | G114: 0 | H114: =IF(OR(H$73<$B114,AND($D$9,H$73>$D$6+1),H$73>$D114+1),0,IF(H$73=$B114,H$75,G114*(1-1/($D114-H$73+2)+G$74))) -> 0 | I114: 0 | J114: 0 | K114: 0 | L114: 0 | M114: 0 | N114: 0 | O114: 0 | P114: 0 | Q114: 0 | R114: 0 | S114: 0 | T114: 0 | U114: 0 | V114: 0 | W114: 0 | X114: 0 | Y114: 0 | Z114: 0 | AA114: 0 | AB114: 0 | AC114: 0 | AD114: 0 | AE114: 0 | AF114: 0 | AG114: 0 | AH114: 0 | AI114: 0 | AJ114: 0 | AK114: 0 | AL114: 6958.6 | AM114: 6103.686286 | AN114: 5208.478964 | AO114: 4270.95275 | AP114: 3288.633618 | AQ114: 2258.195084 | AR114: 1174.261444 | AS114: 0 | AT114: 0 | AU114: 0 | AV114: 0 | AW114: 0 | AX114: 0 | AY114: 0 | AZ114: 0 | BA114: 0 | BB114: 0 | BC114: 0 | BD114: 0
B115: 2055 | C115: 2100 | D115: 2060 | F115: =IF(F$73=$B115,F$75,E115*(1-1/($C115-F$73+2)+E$74)) -> 0 | G115: 0 | H115: =IF(OR(H$73<$B115,AND($D$9,H$73>$D$6+1),H$73>$D115+1),0,IF(H$73=$B115,H$75,G115*(1-1/($D115-H$73+2)+G$74))) -> 0 | I115: 0 | J115: 0 | K115: 0 | L115: 0 | M115: 0 | N115: 0 | O115: 0 | P115: 0 | Q115: 0 | R115: 0 | S115: 0 | T115: 0 | U115: 0 | V115: 0 | W115: 0 | X115: 0 | Y115: 0 | Z115: 0 | AA115: 0 | AB115: 0 | AC115: 0 | AD115: 0 | AE115: 0 | AF115: 0 | AG115: 0 | AH115: 0 | AI115: 0 | AJ115: 0 | AK115: 0 | AL115: 0 | AM115: 6958.6 | AN115: 5938.005333 | AO115: 4869.164373 | AP115: 3749.256567 | AQ115: 2574.48951 | AR115: 1338.734545 | AS115: 0 | AT115: 0 | AU115: 0 | AV115: 0 | AW115: 0 | AX115: 0 | AY115: 0 | AZ115: 0 | BA115: 0 | BB115: 0 | BC115: 0 | BD115: 0
B116: 2056 | C116: 2101 | D116: 2060 | F116: =IF(F$73=$B116,F$75,E116*(1-1/($C116-F$73+2)+E$74)) -> 0 | G116: 0 | H116: =IF(OR(H$73<$B116,AND($D$9,H$73>$D$6+1),H$73>$D116+1),0,IF(H$73=$B116,H$75,G116*(1-1/($D116-H$73+2)+G$74))) -> 0 | I116: 0 | J116: 0 | K116: 0 | L116: 0 | M116: 0 | N116: 0 | O116: 0 | P116: 0 | Q116: 0 | R116: 0 | S116: 0 | T116: 0 | U116: 0 | V116: 0 | W116: 0 | X116: 0 | Y116: 0 | Z116: 0 | AA116: 0 | AB116: 0 | AC116: 0 | AD116: 0 | AE116: 0 | AF116: 0 | AG116: 0 | AH116: 0 | AI116: 0 | AJ116: 0 | AK116: 0 | AL116: 0 | AM116: 0 | AN116: 6958.6 | AO116: 5706.052 | AP116: 4393.66004 | AQ116: 3016.979894 | AR116: 1568.829545 | AS116: 0 | AT116: 0 | AU116: 0 | AV116: 0 | AW116: 0 | AX116: 0 | AY116: 0 | AZ116: 0 | BA116: 0 | BB116: 0 | BC116: 0 | BD116: 0
B117: 2057 | C117: 2102 | D117: 2060 | F117: =IF(F$73=$B117,F$75,E117*(1-1/($C117-F$73+2)+E$74)) -> 0 | G117: 0 | H117: =IF(OR(H$73<$B117,AND($D$9,H$73>$D$6+1),H$73>$D117+1),0,IF(H$73=$B117,H$75,G117*(1-1/($D117-H$73+2)+G$74))) -> 0 | I117: 0 | J117: 0 | K117: 0 | L117: 0 | M117: 0 | N117: 0 | O117: 0 | P117: 0 | Q117: 0 | R117: 0 | S117: 0 | T117: 0 | U117: 0 | V117: 0 | W117: 0 | X117: 0 | Y117: 0 | Z117: 0 | AA117: 0 | AB117: 0 | AC117: 0 | AD117: 0 | AE117: 0 | AF117: 0 | AG117: 0 | AH117: 0 | AI117: 0 | AJ117: 0 | AK117: 0 | AL117: 0 | AM117: 0 | AN117: 0 | AO117: 6958.6 | AP117: 5358.122 | AQ117: 3679.243773 | AR117: 1913.206762 | AS117: 0 | AT117: 0 | AU117: 0 | AV117: 0 | AW117: 0 | AX117: 0 | AY117: 0 | AZ117: 0 | BA117: 0 | BB117: 0 | BC117: 0 | BD117: 0
B118: 2058 | C118: 2103 | D118: 2060 | F118: =IF(F$73=$B118,F$75,E118*(1-1/($C118-F$73+2)+E$74)) -> 0 | G118: 0 | H118: =IF(OR(H$73<$B118,AND($D$9,H$73>$D$6+1),H$73>$D118+1),0,IF(H$73=$B118,H$75,G118*(1-1/($D118-H$73+2)+G$74))) -> 0 | I118: 0 | J118: 0 | K118: 0 | L118: 0 | M118: 0 | N118: 0 | O118: 0 | P118: 0 | Q118: 0 | R118: 0 | S118: 0 | T118: 0 | U118: 0 | V118: 0 | W118: 0 | X118: 0 | Y118: 0 | Z118: 0 | AA118: 0 | AB118: 0 | AC118: 0 | AD118: 0 | AE118: 0 | AF118: 0 | AG118: 0 | AH118: 0 | AI118: 0 | AJ118: 0 | AK118: 0 | AL118: 0 | AM118: 0 | AN118: 0 | AO118: 0 | AP118: 6958.6 | AQ118: 4778.238667 | AR118: 2484.684107 | AS118: 0 | AT118: 0 | AU118: 0 | AV118: 0 | AW118: 0 | AX118: 0 | AY118: 0 | AZ118: 0 | BA118: 0 | BB118: 0 | BC118: 0 | BD118: 0
B119: 2059 | C119: 2104 | D119: 2060 | F119: =IF(F$73=$B119,F$75,E119*(1-1/($C119-F$73+2)+E$74)) -> 0 | G119: 0 | H119: =IF(OR(H$73<$B119,AND($D$9,H$73>$D$6+1),H$73>$D119+1),0,IF(H$73=$B119,H$75,G119*(1-1/($D119-H$73+2)+G$74))) -> 0 | I119: 0 | J119: 0 | K119: 0 | L119: 0 | M119: 0 | N119: 0 | O119: 0 | P119: 0 | Q119: 0 | R119: 0 | S119: 0 | T119: 0 | U119: 0 | V119: 0 | W119: 0 | X119: 0 | Y119: 0 | Z119: 0 | AA119: 0 | AB119: 0 | AC119: 0 | AD119: 0 | AE119: 0 | AF119: 0 | AG119: 0 | AH119: 0 | AI119: 0 | AJ119: 0 | AK119: 0 | AL119: 0 | AM119: 0 | AN119: 0 | AO119: 0 | AP119: 0 | AQ119: 6958.6 | AR119: 3618.472 | AS119: 0 | AT119: 0 | AU119: 0 | AV119: 0 | AW119: 0 | AX119: 0 | AY119: 0 | AZ119: 0 | BA119: 0 | BB119: 0 | BC119: 0 | BD119: 0
B120: 2060 | C120: 2105 | D120: 2060 | F120: =IF(F$73=$B120,F$75,E120*(1-1/($C120-F$73+2)+E$74)) -> 0 | G120: 0 | H120: =IF(OR(H$73<$B120,AND($D$9,H$73>$D$6+1),H$73>$D120+1),0,IF(H$73=$B120,H$75,G120*(1-1/($D120-H$73+2)+G$74))) -> 0 | I120: 0 | J120: 0 | K120: 0 | L120: 0 | M120: 0 | N120: 0 | O120: 0 | P120: 0 | Q120: 0 | R120: 0 | S120: 0 | T120: 0 | U120: 0 | V120: 0 | W120: 0 | X120: 0 | Y120: 0 | Z120: 0 | AA120: 0 | AB120: 0 | AC120: 0 | AD120: 0 | AE120: 0 | AF120: 0 | AG120: 0 | AH120: 0 | AI120: 0 | AJ120: 0 | AK120: 0 | AL120: 0 | AM120: 0 | AN120: 0 | AO120: 0 | AP120: 0 | AQ120: 0 | AR120: 6958.6 | AS120: 0 | AT120: 0 | AU120: 0 | AV120: 0 | AW120: 0 | AX120: 0 | AY120: 0 | AZ120: 0 | BA120: 0 | BB120: 0 | BC120: 0 | BD120: 0
B121: 2061 | C121: 2106 | D121: 2060 | F121: =IF(F$73=$B121,F$75,E121*(1-1/($C121-F$73+2)+E$74)) -> 0 | G121: 0 | H121: =IF(OR(H$73<$B121,AND($D$9,H$73>$D$6+1),H$73>$D121+1),0,IF(H$73=$B121,H$75,G121*(1-1/($D121-H$73+2)+G$74))) -> 0 | I121: 0 | J121: 0 | K121: 0 | L121: 0 | M121: 0 | N121: 0 | O121: 0 | P121: 0 | Q121: 0 | R121: 0 | S121: 0 | T121: 0 | U121: 0 | V121: 0 | W121: 0 | X121: 0 | Y121: 0 | Z121: 0 | AA121: 0 | AB121: 0 | AC121: 0 | AD121: 0 | AE121: 0 | AF121: 0 | AG121: 0 | AH121: 0 | AI121: 0 | AJ121: 0 | AK121: 0 | AL121: 0 | AM121: 0 | AN121: 0 | AO121: 0 | AP121: 0 | AQ121: 0 | AR121: 0 | AS121: 6958.6 | AT121: 0 | AU121: 0 | AV121: 0 | AW121: 0 | AX121: 0 | AY121: 0 | AZ121: 0 | BA121: 0 | BB121: 0 | BC121: 0 | BD121: 0
B122: 2062 | C122: 2107 | D122: 2060 | F122: =IF(F$73=$B122,F$75,E122*(1-1/($C122-F$73+2)+E$74)) -> 0 | G122: 0 | H122: =IF(OR(H$73<$B122,AND($D$9,H$73>$D$6+1),H$73>$D122+1),0,IF(H$73=$B122,H$75,G122*(1-1/($D122-H$73+2)+G$74))) -> 0 | I122: 0 | J122: 0 | K122: 0 | L122: 0 | M122: 0 | N122: 0 | O122: 0 | P122: 0 | Q122: 0 | R122: 0 | S122: 0 | T122: 0 | U122: 0 | V122: 0 | W122: 0 | X122: 0 | Y122: 0 | Z122: 0 | AA122: 0 | AB122: 0 | AC122: 0 | AD122: 0 | AE122: 0 | AF122: 0 | AG122: 0 | AH122: 0 | AI122: 0 | AJ122: 0 | AK122: 0 | AL122: 0 | AM122: 0 | AN122: 0 | AO122: 0 | AP122: 0 | AQ122: 0 | AR122: 0 | AS122: 0 | AT122: 0 | AU122: 0 | AV122: 0 | AW122: 0 | AX122: 0 | AY122: 0 | AZ122: 0 | BA122: 0 | BB122: 0 | BC122: =IF(OR(BC$73<$B122,AND($D$9,BC$73>$D$6+1),BC$73>$D122+1),0,IF(BC$73=$B122,BC$75,BB122*(1-1/($D122-BC$73+2)+BC$74))) -> 0 | BD122: 0
B123: 2063 | C123: 2108 | D123: 2060 | F123: =IF(F$73=$B123,F$75,E123*(1-1/($C123-F$73+2)+E$74)) -> 0 | G123: 0 | H123: =IF(OR(H$73<$B123,AND($D$9,H$73>$D$6+1),H$73>$D123+1),0,IF(H$73=$B123,H$75,G123*(1-1/($D123-H$73+2)+G$74))) -> 0 | I123: 0 | J123: 0 | K123: 0 | L123: 0 | M123: 0 | N123: 0 | O123: 0 | P123: 0 | Q123: 0 | R123: 0 | S123: 0 | T123: 0 | U123: 0 | V123: 0 | W123: 0 | X123: 0 | Y123: 0 | Z123: 0 | AA123: 0 | AB123: 0 | AC123: 0 | AD123: 0 | AE123: 0 | AF123: 0 | AG123: 0 | AH123: 0 | AI123: 0 | AJ123: 0 | AK123: 0 | AL123: 0 | AM123: 0 | AN123: 0 | AO123: 0 | AP123: 0 | AQ123: 0 | AR123: 0 | AS123: 0 | AT123: 0 | AU123: 0 | AV123: 0 | AW123: 0 | AX123: 0 | AY123: 0 | AZ123: 0 | BA123: 0 | BB123: 0 | BC123: 0 | BD123: 0
B124: 2064 | C124: 2109 | D124: 2060 | F124: =IF(F$73=$B124,F$75,E124*(1-1/($C124-F$73+2)+E$74)) -> 0 | G124: 0 | H124: =IF(OR(H$73<$B124,AND($D$9,H$73>$D$6+1),H$73>$D124+1),0,IF(H$73=$B124,H$75,G124*(1-1/($D124-H$73+2)+G$74))) -> 0 | I124: 0 | J124: 0 | K124: 0 | L124: 0 | M124: 0 | N124: 0 | O124: 0 | P124: 0 | Q124: 0 | R124: 0 | S124: 0 | T124: 0 | U124: 0 | V124: 0 | W124: 0 | X124: 0 | Y124: 0 | Z124: 0 | AA124: 0 | AB124: 0 | AC124: 0 | AD124: 0 | AE124: 0 | AF124: 0 | AG124: 0 | AH124: 0 | AI124: 0 | AJ124: 0 | AK124: 0 | AL124: 0 | AM124: 0 | AN124: 0 | AO124: 0 | AP124: 0 | AQ124: 0 | AR124: 0 | AS124: 0 | AT124: 0 | AU124: 0 | AV124: 0 | AW124: 0 | AX124: 0 | AY124: 0 | AZ124: 0 | BA124: 0 | BB124: 0 | BC124: 0 | BD124: 0
B125: 2065 | C125: 2110 | D125: 2060 | F125: =IF(F$73=$B125,F$75,E125*(1-1/($C125-F$73+2)+E$74)) -> 0 | G125: 0 | H125: =IF(OR(H$73<$B125,AND($D$9,H$73>$D$6+1),H$73>$D125+1),0,IF(H$73=$B125,H$75,G125*(1-1/($D125-H$73+2)+G$74))) -> 0 | I125: 0 | J125: 0 | K125: 0 | L125: 0 | M125: 0 | N125: 0 | O125: 0 | P125: 0 | Q125: 0 | R125: 0 | S125: 0 | T125: 0 | U125: 0 | V125: 0 | W125: 0 | X125: 0 | Y125: 0 | Z125: 0 | AA125: 0 | AB125: 0 | AC125: 0 | AD125: 0 | AE125: 0 | AF125: 0 | AG125: 0 | AH125: 0 | AI125: 0 | AJ125: 0 | AK125: 0 | AL125: 0 | AM125: 0 | AN125: 0 | AO125: 0 | AP125: 0 | AQ125: 0 | AR125: 0 | AS125: 0 | AT125: 0 | AU125: 0 | AV125: 0 | AW125: 0 | AX125: 0 | AY125: 0 | AZ125: 0 | BA125: 0 | BB125: 0 | BC125: 0 | BD125: 0
B126: 2066 | C126: 2111 | D126: 2060 | F126: =IF(F$73=$B126,F$75,E126*(1-1/($C126-F$73+2)+E$74)) -> 0 | G126: 0 | H126: =IF(OR(H$73<$B126,AND($D$9,H$73>$D$6+1),H$73>$D126+1),0,IF(H$73=$B126,H$75,G126*(1-1/($D126-H$73+2)+G$74))) -> 0 | I126: 0 | J126: 0 | K126: 0 | L126: 0 | M126: 0 | N126: 0 | O126: 0 | P126: 0 | Q126: 0 | R126: 0 | S126: 0 | T126: 0 | U126: 0 | V126: 0 | W126: 0 | X126: 0 | Y126: 0 | Z126: 0 | AA126: 0 | AB126: 0 | AC126: 0 | AD126: 0 | AE126: 0 | AF126: 0 | AG126: 0 | AH126: 0 | AI126: 0 | AJ126: 0 | AK126: 0 | AL126: 0 | AM126: 0 | AN126: 0 | AO126: 0 | AP126: 0 | AQ126: 0 | AR126: 0 | AS126: 0 | AT126: 0 | AU126: 0 | AV126: 0 | AW126: 0 | AX126: 0 | AY126: 0 | AZ126: 0 | BA126: 0 | BB126: 0 | BC126: 0 | BD126: 0
B127: 2067 | C127: 2112 | D127: 2060 | F127: =IF(F$73=$B127,F$75,E127*(1-1/($C127-F$73+2)+E$74)) -> 0 | G127: 0 | H127: =IF(OR(H$73<$B127,AND($D$9,H$73>$D$6+1),H$73>$D127+1),0,IF(H$73=$B127,H$75,G127*(1-1/($D127-H$73+2)+G$74))) -> 0 | I127: 0 | J127: 0 | K127: 0 | L127: 0 | M127: 0 | N127: 0 | O127: 0 | P127: 0 | Q127: 0 | R127: 0 | S127: 0 | T127: 0 | U127: 0 | V127: 0 | W127: 0 | X127: 0 | Y127: 0 | Z127: 0 | AA127: 0 | AB127: 0 | AC127: 0 | AD127: 0 | AE127: 0 | AF127: 0 | AG127: 0 | AH127: 0 | AI127: 0 | AJ127: 0 | AK127: 0 | AL127: 0 | AM127: 0 | AN127: 0 | AO127: 0 | AP127: 0 | AQ127: 0 | AR127: 0 | AS127: 0 | AT127: 0 | AU127: 0 | AV127: 0 | AW127: 0 | AX127: 0 | AY127: 0 | AZ127: 0 | BA127: 0 | BB127: 0 | BC127: 0 | BD127: 0
B128: 2068 | C128: 2113 | D128: 2060 | F128: =IF(F$73=$B128,F$75,E128*(1-1/($C128-F$73+2)+E$74)) -> 0 | G128: 0 | H128: =IF(OR(H$73<$B128,AND($D$9,H$73>$D$6+1),H$73>$D128+1),0,IF(H$73=$B128,H$75,G128*(1-1/($D128-H$73+2)+G$74))) -> 0 | I128: 0 | J128: 0 | K128: 0 | L128: 0 | M128: 0 | N128: 0 | O128: 0 | P128: 0 | Q128: 0 | R128: 0 | S128: 0 | T128: 0 | U128: 0 | V128: 0 | W128: 0 | X128: 0 | Y128: 0 | Z128: 0 | AA128: 0 | AB128: 0 | AC128: 0 | AD128: 0 | AE128: 0 | AF128: 0 | AG128: 0 | AH128: 0 | AI128: 0 | AJ128: 0 | AK128: 0 | AL128: 0 | AM128: 0 | AN128: 0 | AO128: 0 | AP128: 0 | AQ128: 0 | AR128: 0 | AS128: 0 | AT128: 0 | AU128: 0 | AV128: 0 | AW128: 0 | AX128: 0 | AY128: 0 | AZ128: 0 | BA128: 0 | BB128: 0 | BC128: 0 | BD128: 0
B129: 2069 | C129: 2114 | D129: 2060 | F129: =IF(F$73=$B129,F$75,E129*(1-1/($C129-F$73+2)+E$74)) -> 0 | G129: 0 | H129: =IF(OR(H$73<$B129,AND($D$9,H$73>$D$6+1),H$73>$D129+1),0,IF(H$73=$B129,H$75,G129*(1-1/($D129-H$73+2)+G$74))) -> 0 | I129: 0 | J129: 0 | K129: 0 | L129: 0 | M129: 0 | N129: 0 | O129: 0 | P129: 0 | Q129: 0 | R129: 0 | S129: 0 | T129: 0 | U129: 0 | V129: 0 | W129: 0 | X129: 0 | Y129: 0 | Z129: 0 | AA129: 0 | AB129: 0 | AC129: 0 | AD129: 0 | AE129: 0 | AF129: 0 | AG129: 0 | AH129: 0 | AI129: 0 | AJ129: 0 | AK129: 0 | AL129: 0 | AM129: 0 | AN129: 0 | AO129: 0 | AP129: 0 | AQ129: 0 | AR129: 0 | AS129: 0 | AT129: 0 | AU129: 0 | AV129: 0 | AW129: 0 | AX129: 0 | AY129: 0 | AZ129: 0 | BA129: 0 | BB129: 0 | BC129: 0 | BD129: 0
B130: 2070 | C130: 2115 | D130: 2060 | F130: =IF(F$73=$B130,F$75,E130*(1-1/($C130-F$73+2)+E$74)) -> 0 | G130: 0 | H130: =IF(OR(H$73<$B130,AND($D$9,H$73>$D$6+1),H$73>$D130+1),0,IF(H$73=$B130,H$75,G130*(1-1/($D130-H$73+2)+G$74))) -> 0 | I130: 0 | J130: 0 | K130: 0 | L130: 0 | M130: 0 | N130: 0 | O130: 0 | P130: 0 | Q130: 0 | R130: 0 | S130: 0 | T130: 0 | U130: 0 | V130: 0 | W130: 0 | X130: 0 | Y130: 0 | Z130: 0 | AA130: 0 | AB130: 0 | AC130: 0 | AD130: 0 | AE130: 0 | AF130: 0 | AG130: 0 | AH130: 0 | AI130: 0 | AJ130: 0 | AK130: 0 | AL130: 0 | AM130: 0 | AN130: 0 | AO130: 0 | AP130: 0 | AQ130: 0 | AR130: 0 | AS130: 0 | AT130: 0 | AU130: 0 | AV130: 0 | AW130: 0 | AX130: 0 | AY130: 0 | AZ130: 0 | BA130: 0 | BB130: 0 | BC130: 0 | BD130: 0
B131: Total opening RAB of additional assets: | F131: =SUM(F82:F130) -> 18812.79207 | G131: 56450.65838 | H131: 96678.87905 | I131: 143576.6576 | J131: 182741.447 | K131: 223870.3136 | L131: 266774.2177 | M131: 299348.0603 | N131: 332741.902 | O131: 369577.9942 | P131: 403900.9434 | Q131: 434995.424 | R131: 462797.2867 | S131: 487243.5218 | T131: 508272.6109 | U131: 525824.9375 | V131: 539843.2672 | W131: 550273.3141 | X131: 557064.4095 | Y131: 560170.2981 | Z131: 559550.0909 | AA131: 555169.4142 | AB131: 547001.8081 | AC131: 535030.4427 | AD131: 519250.2489 | AE131: 501977.1706 | AF131: 483119.8018 | AG131: 462577.7362 | AH131: 440239.7462 | AI131: 415981.346 | AJ131: 389661.4384 | AK131: 361117.5518 | AL131: =SUM(AL82:AL130) -> 330158.8088 | AM131: 296555.0409 | AN131: 260018.9015 | AO131: 220174.0993 | AP131: 176492.6564 | AQ131: 128150.2241 | AR131: 73596.71653 | AS131: 6958.6 | AT131: 0 | AU131: 0 | AV131: 0 | AW131: 0 | AX131: 0 | AY131: 0 | AZ131: 0 | BA131: 0 | BB131: 0 | BC131: 0 | BD131: 0

Sheet OpexTax
A1: Opex and Tax
A2: Inputs
B3: Chosen supplier | C3: =GPB_name -> First Gas transmission
B4: Supplier number | C4: =SupplierNum -> 5
B5: Stranding Year | C5: =Inputs_AS!D10 -> 2060
B6: 2026 & 2027 opex | C6: =Inputs_finmod!K49 -> 58465.28188
B7: Stranding year opex÷2027 opex | C7: =Inputs_AS!D9 -> 0.3
B8: Stranding year opex | C8: =C6*C7 -> 17539.58456
B9: Annual opex decrement | C9: =(C6-C8)/(C5-2027) -> 1240.172646
B10: Opening regulatory tax asset value, 2021 | C10: =Tax!D106 -> 205340.1339
B11: Tax dv rate | C11: =Tax!D107 -> 0.1094220274
A13: Calculations
C14: 2021 | D14: 2022 | E14: 2023 | F14: 2024 | G14: 2025 | H14: 2026 | I14: 2027 | J14: 2028 | K14: 2029 | L14: 2030 | M14: 2031 | N14: 2032 | O14: 2033 | P14: 2034 | Q14: 2035 | R14: 2036 | S14: 2037 | T14: 2038 | U14: 2039 | V14: 2040 | W14: 2041 | X14: 2042 | Y14: 2043 | Z14: 2044 | AA14: 2045 | AB14: 2046 | AC14: 2047 | AD14: 2048 | AE14: 2049 | AF14: 2050 | AG14: 2051 | AH14: 2052 | AI14: 2053 | AJ14: 2054 | AK14: 2055 | AL14: 2056 | AM14: 2057 | AN14: 2058 | AO14: 2059 | AP14: 2060 | AQ14: 2061 | AR14: 2062 | AS14: 2063 | AT14: 2064 | AU14: 2065 | AV14: 2066 | AW14: 2067 | AX14: 2068 | AY14: 2069 | AZ14: 2070
B15: Opex profile | D15: ='GPB data'!E53 -> 49431.44087 | E15: ='GPB data'!F53 -> 53512.75174 | F15: ='GPB data'!G53 -> 55336.41136 | G15: ='GPB data'!H53 -> 56654.08304 | H15: ='GPB data'!I53 -> 58465.28188 | I15: =H15 -> 58465.28188 | J15: =IF(J14>$C$5,0,I15-$C$9) -> 57225.10923 | K15: =IF(K14>$C$5,0,J15-$C$9) -> 55984.93658 | L15: 54744.76394 | M15: 53504.59129 | N15: 52264.41865 | O15: 51024.246 | P15: 49784.07335 | Q15: 48543.90071 | R15: 47303.72806 | S15: 46063.55542 | T15: 44823.38277 | U15: 43583.21013 | V15: 42343.03748 | W15: 41102.86483 | X15: 39862.69219 | Y15: 38622.51954 | Z15: 37382.3469 | AA15: 36142.17425 | AB15: 34902.0016 | AC15: 33661.82896 | AD15: 32421.65631 | AE15: 31181.48367 | AF15: 29941.31102 | AG15: 28701.13838 | AH15: 27460.96573 | AI15: 26220.79308 | AJ15: 24980.62044 | AK15: 23740.44779 | AL15: 22500.27515 | AM15: 21260.1025 | AN15: 20019.92985 | AO15: 18779.75721 | AP15: 17539.58456 | AQ15: 0 | AR15: 0 | AS15: 0 | AT15: 0 | AU15: 0 | AV15: 0 | AW15: 0 | AX15: 0 | AY15: 0 | AZ15: 0
B16: Opening tax asset value | C16: =C10 -> 205340.1339 | D16: =C19 -> 201684.1922 | E16: 216721.6995 | F16: 233310.0696 | G16: 255164.5947 | H16: 267525.4641 | I16: 280947.5074 | J16: =I19 -> 295216.5803 | K16: 298235.8091 | L16: 302363.7496 | M16: 310193.3589 | N16: 315502.0286 | O16: 317923.2374 | P16: 317772.9373 | Q16: 315332.5078 | R16: 310852.5397 | S16: 304556.2034 | T16: 296642.2495 | U16: 287287.6811 | V16: 276650.1331 | W16: 264869.9918 | X16: 252072.2819 | Y16: 238368.3481 | Z16: 223857.351 | AA16: 208627.6012 | AB16: 192757.7461 | AC16: 178624.4028 | AD16: 166037.5585 | AE16: 154827.9922 | AF16: 144844.9994 | AG16: 135954.3659 | AH16: 128036.5636 | AI16: 120985.1432 | AJ16: 114705.3035 | AK16: 109112.6167 | AL16: 104131.893 | AM16: 99696.17011 | AN16: 95745.81306 | AO16: 92227.71208 | AP16: 89094.56884 | AQ16: 86304.26049 | AR16: 76860.67334 | AS16: 68450.42264 | AT16: 60960.43862 | AU16: 54290.02383 | AV16: 48349.49936 | AW16: 43058.99912 | AX16: 38347.39614 | AY16: 34151.34631 | AZ16: 30414.43676
B17: Tax depreciation | C17: =C16*$C$11 -> 22468.73376 | D17: 22068.6932 | E17: 23714.12773 | F17: 25529.26082 | G17: 27920.62726 | H17: 29273.17866 | I17: 30741.84584 | J17: 32303.19673 | K17: 32633.56686 | L17: 33085.25448 | M17: 33941.98621 | N17: 34522.87161 | O17: 34787.80519 | P17: 34771.35904 | Q17: 34504.3223 | R17: 34014.11511 | S17: 33325.15722 | T17: 32459.19635 | U17: 31435.60051 | V17: 30271.61844 | W17: 28982.61149 | X17: 27582.26014 | Y17: 26082.74791 | Z17: 24494.92519 | AA17: 22828.45509 | AB17: 21091.94337 | AC17: 19545.44429 | AD17: 18168.16627 | AE17: 16941.5928 | AF17: 15849.23349 | AG17: 14876.40235 | AH17: 14010.02036 | AI17: =AI16*$C$11 -> 13238.43965 | AJ17: 12551.28687 | AK17: 11939.32373 | AL17: 11394.32284 | AM17: 10908.95706 | AN17: 10476.70098 | AO17: 10091.74324 | AP17: 9748.908351 | AQ17: 9443.587154 | AR17: 8410.250702 | AS17: 7489.98402 | AT17: 6670.414783 | AU17: 5940.524474 | AV17: 5290.500243 | AW17: 4711.60298 | AX17: 4196.04983 | AY17: 3736.909551 | AZ17: 3328.009331
B18: Capex | C18: =Additional!F75 -> 18812.79207 | D18: =Additional!G75 -> 37106.20045 | E18: =Additional!H75 -> 40302.49786 | F18: =Additional!I75 -> 47383.78588 | G18: =Additional!J75 -> 40281.49669 | H18: =Additional!K75 -> 42695.22192 | I18: =Additional!L75 -> 45010.91881 | J18: =Additional!M75 -> 35322.42548 | K18: =Additional!N75 -> 36761.50735 | L18: =Additional!O75 -> 40914.86386 | M18: =Additional!P75 -> 39250.65587 | N18: =Additional!Q75 -> 36944.08045 | O18: =Additional!R75 -> 34637.50503 | P18: =Additional!S75 -> 32330.92961 | Q18: =Additional!T75 -> 30024.35419 | R18: =Additional!U75 -> 27717.77877 | S18: =Additional!V75 -> 25411.20335 | T18: =Additional!W75 -> 23104.62793 | U18: =Additional!X75 -> 20798.05251 | V18: =Additional!Y75 -> 18491.4771 | W18: =Additional!Z75 -> 16184.90168 | X18: =Additional!AA75 -> 13878.32626 | Y18: =Additional!AB75 -> 11571.75084 | Z18: =Additional!AC75 -> 9265.175419 | AA18: =Additional!AD75 -> 6958.6 | AB18: =Additional!AE75 -> 6958.6 | AC18: =Additional!AF75 -> 6958.6 | AD18: =Additional!AG75 -> 6958.6 | AE18: =Additional!AH75 -> 6958.6 | AF18: =Additional!AI75 -> 6958.6 | AG18: =Additional!AJ75 -> 6958.6 | AH18: =Additional!AK75 -> 6958.6 | AI18: =Additional!AL75 -> 6958.6 | AJ18: =Additional!AM75 -> 6958.6 | AK18: =Additional!AN75 -> 6958.6 | AL18: =Additional!AO75 -> 6958.6 | AM18: =Additional!AP75 -> 6958.6 | AN18: =Additional!AQ75 -> 6958.6 | AO18: =Additional!AR75 -> 6958.6 | AP18: =Additional!AS75 -> 6958.6 | AQ18: =Additional!AT75 -> 0 | AR18: =Additional!AU75 -> 0 | AS18: =Additional!AV75 -> 0 | AT18: =Additional!AW75 -> 0 | AU18: =Additional!AX75 -> 0 | AV18: =Additional!AY75 -> 0 | AW18: =Additional!AZ75 -> 0 | AX18: =Additional!BA75 -> 0 | AY18: =Additional!BB75 -> 0 | AZ18: =Additional!BC75 -> 0
B19: Closing tax asset value | C19: =C16+C18-C17 -> 201684.1922 | D19: 216721.6995 | E19: 233310.0696 | F19: 255164.5947 | G19: 267525.4641 | H19: 280947.5074 | I19: 295216.5803 | J19: 298235.8091 | K19: 302363.7496 | L19: 310193.3589 | M19: 315502.0286 | N19: 317923.2374 | O19: 317772.9373 | P19: 315332.5078 | Q19: 310852.5397 | R19: 304556.2034 | S19: 296642.2495 | T19: 287287.6811 | U19: 276650.1331 | V19: 264869.9918 | W19: 252072.2819 | X19: 238368.3481 | Y19: 223857.351 | Z19: 208627.6012 | AA19: 192757.7461 | AB19: 178624.4028 | AC19: 166037.5585 | AD19: 154827.9922 | AE19: 144844.9994 | AF19: 135954.3659 | AG19: 128036.5636 | AH19: 120985.1432 | AI19: =AI16+AI18-AI17 -> 114705.3035 | AJ19: 109112.6167 | AK19: 104131.893 | AL19: 99696.17011 | AM19: 95745.81306 | AN19: 92227.71208 | AO19: 89094.56884 | AP19: 86304.26049 | AQ19: 76860.67334 | AR19: 68450.42264 | AS19: 60960.43862 | AT19: 54290.02383 | AU19: 48349.49936 | AV19: 43058.99912 | AW19: 38347.39614 | AX19: 34151.34631 | AY19: 30414.43676 | AZ19: 27086.42743

Sheet Total
A1: Total
A2: Inputs
B3: Chosen supplier | C3: =Inputs_AS!D2 -> First Gas transmission
B4: Chosen supplier number | C4: =Inputs_AS!D3 -> 5
B5: Post-tax WACC | C5: 0.0567
B6: Vanilla WACC | C6: 0.0614
B7: Cost of debt | C7: 0.0404
B8: Leverage | C8: =Inputs_AS!D7 -> 0.42
B9: Tax rate | C9: =Inputs_AS!D8 -> 0.28
B10: Stranding year | C10: =Inputs_AS!D10 -> 2060
B11: Number of years in MAR ramp-up | C11: =Dashboard!C5 -> 6
B12: Start of MAR ramp-down | C12: =MARrampDownStart -> 2029
B13: Remaining life of additional assets | C13: =Inputs_AS!D12 -> 45
B14: Stranding year MAR ÷ 2023 MAR | C14: =Inputs_AS!D13 -> 0.2
B15: Apply revaluations from 2023 onwards | C15: =Reval -> TRUE
B16: Curve on MAR ramp-down | C16: =Dashboard!C9 -> 0.02
B18: Forecast changes in CPI and CPRG | D18: 2022 | E18: 2023 | F18: 2024 | G18: 2025 | H18: 2026 | I18: 2027 | J18: 2028 | K18: 2029 | L18: 2030 | M18: 2031 | N18: 2032 | O18: 2033 | P18: 2034 | Q18: 2035 | R18: 2036 | S18: 2037 | T18: 2038 | U18: 2039 | V18: 2040 | W18: 2041 | X18: 2042 | Y18: 2043 | Z18: 2044 | AA18: 2045 | AB18: 2046 | AC18: 2047 | AD18: 2048 | AE18: 2049 | AF18: 2050 | AG18: 2051 | AH18: 2052 | AI18: 2053 | AJ18: 2054 | AK18: 2055 | AL18: 2056 | AM18: 2057 | AN18: 2058 | AO18: 2059 | AP18: 2060 | AQ18: 2061 | AR18: 2062 | AS18: 2063 | AT18: 2064 | AU18: 2065 | AV18: 2066 | AW18: 2067 | AX18: 2068 | AY18: 2069 | AZ18: 2070 | BA18: 2071
B19: Forecast changes in CPI used for price path | E19: =IF(E18<=$C$12,Inputs_AS!G31,0) -> 0.03092122799 | F19: =IF(F18<=$C$12,Inputs_AS!H31,0) -> 0.02324453846 | G19: =IF(G18<=$C$12,Inputs_AS!I31,0) -> 0.02024799149 | H19: =IF(H18<=$C$12,Inputs_AS!J31,0) -> 0.02 | I19: =IF(I18<=$C$12,Inputs_AS!K31,0) -> 0.02 | J19: =IF(J18<=$C$12,Inputs_AS!L31,0) -> 0.02 | K19: =IF(K18<=$C$12,Inputs_AS!M31,0) -> 0.02 | L19: =IF(L18<=$C$12,Inputs_AS!N31,0) -> 0 | M19: =IF(M18<=$C$12,Inputs_AS!O31,0) -> 0 | N19: =IF(N18<=$C$12,Inputs_AS!P31,0) -> 0 | O19: =IF(O18<=$C$12,Inputs_AS!Q31,0) -> 0 | P19: =IF(P18<=$C$12,Inputs_AS!R31,0) -> 0 | Q19: =IF(Q18<=$C$12,Inputs_AS!S31,0) -> 0 | R19: =IF(R18<=$C$12,Inputs_AS!T31,0) -> 0 | S19: =IF(S18<=$C$12,Inputs_AS!U31,0) -> 0 | T19: =IF(T18<=$C$12,Inputs_AS!V31,0) -> 0 | U19: =IF(U18<=$C$12,Inputs_AS!W31,0) -> 0 | V19: =IF(V18<=$C$12,Inputs_AS!X31,0) -> 0 | W19: =IF(W18<=$C$12,Inputs_AS!Y31,0) -> 0 | X19: =IF(X18<=$C$12,Inputs_AS!Z31,0) -> 0 | Y19: =IF(Y18<=$C$12,Inputs_AS!AA31,0) -> 0 | Z19: =IF(Z18<=$C$12,Inputs_AS!AB31,0) -> 0 | AA19: =IF(AA18<=$C$12,Inputs_AS!AC31,0) -> 0 | AB19: =IF(AB18<=$C$12,Inputs_AS!AD31,0) -> 0 | AC19: =IF(AC18<=$C$12,Inputs_AS!AE31,0) -> 0 | AD19: =IF(AD18<=$C$12,Inputs_AS!AF31,0) -> 0 | AE19: =IF(AE18<=$C$12,Inputs_AS!AG31,0) -> 0 | AF19: =IF(AF18<=$C$12,Inputs_AS!AH31,0) -> 0 | AG19: =IF(AG18<=$C$12,Inputs_AS!AI31,0) -> 0 | AH19: =IF(AH18<=$C$12,Inputs_AS!AJ31,0) -> 0 | AI19: =IF(AI18<=$C$12,Inputs_AS!AK31,0) -> 0 | AJ19: =IF(AJ18<=$C$12,Inputs_AS!AL31,0) -> 0 | AK19: =IF(AK18<=$C$12,Inputs_AS!AM31,0) -> 0 | AL19: =IF(AL18<=$C$12,Inputs_AS!AN31,0) -> 0 | AM19: =IF(AM18<=$C$12,Inputs_AS!AO31,0) -> 0 | AN19: =IF(AN18<=$C$12,Inputs_AS!AP31,0) -> 0 | AO19: =IF(AO18<=$C$12,Inputs_AS!AQ31,0) -> 0 | AP19: =IF(AP18<=$C$12,Inputs_AS!AR31,0) -> 0 | AQ19: =IF(AQ18<=$C$12,Inputs_AS!AS31,0) -> 0 | AR19: =IF(AR18<=$C$12,Inputs_AS!AT31,0) -> 0 | AS19: =IF(AS18<=$C$12,Inputs_AS!AU31,0) -> 0 | AT19: =IF(AT18<=$C$12,Inputs_AS!AV31,0) -> 0 | AU19: =IF(AU18<=$C$12,Inputs_AS!AW31,0) -> 0 | AV19: =IF(AV18<=$C$12,Inputs_AS!AX31,0) -> 0 | AW19: =IF(AW18<=$C$12,Inputs_AS!AY31,0) -> 0 | AX19: =IF(AX18<=$C$12,Inputs_AS!AZ31,0) -> 0 | AY19: =IF(AY18<=$C$12,Inputs_AS!BA31,0) -> 0 | AZ19: =IF(AZ18<=$C$12,Inputs_AS!BB31,0) -> 0 | BA19: =IF(BA18<=$C$12,Inputs_AS!BC31,0) -> 0
B20: Constant price revenue growth | E20: ='GPB data'!F61 -> 0 | F20: ='GPB data'!G61 -> 0 | G20: ='GPB data'!H61 -> 0 | H20: ='GPB data'!I61 -> 0
B21: Curve on ramp-down | E21: =IF(E18<=$C$12,0,Dashboard!$C$9) -> 0 | F21: =IF(F18<=$C$12,0,Dashboard!$C$9) -> 0 | G21: =IF(G18<=$C$12,0,Dashboard!$C$9) -> 0 | H21: =IF(H18<=$C$12,0,Dashboard!$C$9) -> 0 | I21: =IF(I18<=$C$12,0,Dashboard!$C$9) -> 0 | J21: =IF(J18<=$C$12,0,Dashboard!$C$9) -> 0 | K21: =IF(K18<=$C$12,0,Dashboard!$C$9) -> 0 | L21: =IF(L18<=$C$12,0,Dashboard!$C$9) -> 0.02 | M21: =IF(M18<=$C$12,0,Dashboard!$C$9) -> 0.02 | N21: =IF(N18<=$C$12,0,Dashboard!$C$9) -> 0.02 | O21: =IF(O18<=$C$12,0,Dashboard!$C$9) -> 0.02 | P21: =IF(P18<=$C$12,0,Dashboard!$C$9) -> 0.02 | Q21: =IF(Q18<=$C$12,0,Dashboard!$C$9) -> 0.02 | R21: =IF(R18<=$C$12,0,Dashboard!$C$9) -> 0.02 | S21: =IF(S18<=$C$12,0,Dashboard!$C$9) -> 0.02 | T21: =IF(T18<=$C$12,0,Dashboard!$C$9) -> 0.02 | U21: =IF(U18<=$C$12,0,Dashboard!$C$9) -> 0.02 | V21: =IF(V18<=$C$12,0,Dashboard!$C$9) -> 0.02 | W21: =IF(W18<=$C$12,0,Dashboard!$C$9) -> 0.02 | X21: =IF(X18<=$C$12,0,Dashboard!$C$9) -> 0.02 | Y21: =IF(Y18<=$C$12,0,Dashboard!$C$9) -> 0.02 | Z21: =IF(Z18<=$C$12,0,Dashboard!$C$9) -> 0.02 | AA21: =IF(AA18<=$C$12,0,Dashboard!$C$9) -> 0.02 | AB21: =IF(AB18<=$C$12,0,Dashboard!$C$9) -> 0.02 | AC21: =IF(AC18<=$C$12,0,Dashboard!$C$9) -> 0.02 | AD21: =IF(AD18<=$C$12,0,Dashboard!$C$9) -> 0.02 | AE21: =IF(AE18<=$C$12,0,Dashboard!$C$9) -> 0.02 | AF21: =IF(AF18<=$C$12,0,Dashboard!$C$9) -> 0.02 | AG21: =IF(AG18<=$C$12,0,Dashboard!$C$9) -> 0.02 | AH21: =IF(AH18<=$C$12,0,Dashboard!$C$9) -> 0.02 | AI21: =IF(AI18<=$C$12,0,Dashboard!$C$9) -> 0.02 | AJ21: =IF(AJ18<=$C$12,0,Dashboard!$C$9) -> 0.02 | AK21: =IF(AK18<=$C$12,0,Dashboard!$C$9) -> 0.02 | AL21: =IF(AL18<=$C$12,0,Dashboard!$C$9) -> 0.02 | AM21: =IF(AM18<=$C$12,0,Dashboard!$C$9) -> 0.02 | AN21: =IF(AN18<=$C$12,0,Dashboard!$C$9) -> 0.02 | AO21: =IF(AO18<=$C$12,0,Dashboard!$C$9) -> 0.02 | AP21: =IF(AP18<=$C$12,0,Dashboard!$C$9) -> 0.02 | AQ21: =IF(AQ18<=$C$12,0,Dashboard!$C$9) -> 0.02 | AR21: =IF(AR18<=$C$12,0,Dashboard!$C$9) -> 0.02 | AS21: =IF(AS18<=$C$12,0,Dashboard!$C$9) -> 0.02 | AT21: =IF(AT18<=$C$12,0,Dashboard!$C$9) -> 0.02 | AU21: =IF(AU18<=$C$12,0,Dashboard!$C$9) -> 0.02 | AV21: =IF(AV18<=$C$12,0,Dashboard!$C$9) -> 0.02 | AW21: =IF(AW18<=$C$12,0,Dashboard!$C$9) -> 0.02 | AX21: =IF(AX18<=$C$12,0,Dashboard!$C$9) -> 0.02 | AY21: =IF(AY18<=$C$12,0,Dashboard!$C$9) -> 0.02 | AZ21: =IF(AZ18<=$C$12,0,Dashboard!$C$9) -> 0.02 | BA21: =IF(BA18<=$C$12,0,Dashboard!$C$9) -> 0.02
B23: RAB | D23: 2022 | E23: 2023 | F23: 2024 | G23: 2025 | H23: 2026 | I23: 2027 | J23: 2028 | K23: 2029 | L23: 2030 | M23: 2031 | N23: 2032 | O23: 2033 | P23: 2034 | Q23: 2035 | R23: 2036 | S23: 2037 | T23: 2038 | U23: 2039 | V23: 2040 | W23: 2041 | X23: 2042 | Y23: 2043 | Z23: 2044 | AA23: 2045 | AB23: 2046 | AC23: 2047 | AD23: 2048 | AE23: 2049 | AF23: 2050 | AG23: 2051 | AH23: 2052 | AI23: 2053 | AJ23: 2054 | AK23: 2055 | AL23: 2056 | AM23: 2057 | AN23: 2058 | AO23: 2059 | AP23: 2060 | AQ23: 2061 | AR23: 2062 | AS23: 2063 | AT23: 2064 | AU23: 2065 | AV23: 2066 | AW23: 2067 | AX23: 2068 | AY23: 2069 | AZ23: 2070 | BA23: 2071
B24: Annual value of assets entering the RAB | D24: =Additional!F75 -> 18812.79207 | E24: =Additional!G75 -> 37106.20045 | F24: =Additional!H75 -> 40302.49786 | G24: =Additional!I75 -> 47383.78588 | H24: =Additional!J75 -> 40281.49669 | I24: =Additional!K75 -> 42695.22192 | J24: =Additional!L75 -> 45010.91881 | K24: =Additional!M75 -> 35322.42548 | L24: =Additional!N75 -> 36761.50735 | M24: =Additional!O75 -> 40914.86386 | N24: =Additional!P75 -> 39250.65587 | O24: =Additional!Q75 -> 36944.08045 | P24: =Additional!R75 -> 34637.50503 | Q24: =Additional!S75 -> 32330.92961 | R24: =Additional!T75 -> 30024.35419 | S24: =Additional!U75 -> 27717.77877 | T24: =Additional!V75 -> 25411.20335 | U24: =Additional!W75 -> 23104.62793 | V24: =Additional!X75 -> 20798.05251 | W24: =Additional!Y75 -> 18491.4771 | X24: =Additional!Z75 -> 16184.90168 | Y24: =Additional!AA75 -> 13878.32626 | Z24: =Additional!AB75 -> 11571.75084 | AA24: =Additional!AC75 -> 9265.175419 | AB24: =Additional!AD75 -> 6958.6 | AC24: =Additional!AE75 -> 6958.6 | AD24: =Additional!AF75 -> 6958.6 | AE24: =Additional!AG75 -> 6958.6 | AF24: =Additional!AH75 -> 6958.6 | AG24: =Additional!AI75 -> 6958.6 | AH24: =Additional!AJ75 -> 6958.6 | AI24: =Additional!AK75 -> 6958.6 | AJ24: =Additional!AL75 -> 6958.6 | AK24: =Additional!AM75 -> 6958.6 | AL24: =Additional!AN75 -> 6958.6 | AM24: =Additional!AO75 -> 6958.6 | AN24: =Additional!AP75 -> 6958.6 | AO24: =Additional!AQ75 -> 6958.6 | AP24: =Additional!AR75 -> 6958.6 | AQ24: =Additional!AS75 -> 6958.6 | AR24: =Additional!AT75 -> 0 | AS24: =Additional!AU75 -> 0 | AT24: =Additional!AV75 -> 0 | AU24: =Additional!AW75 -> 0 | AV24: =Additional!AX75 -> 0 | AW24: =Additional!AY75 -> 0 | AX24: =Additional!AZ75 -> 0 | AY24: =Additional!BA75 -> 0 | AZ24: =Additional!BB75 -> 0 | BA24: =Additional!BC75 -> 0
B25: Existing assets RAB, opening values | D25: =Inputs_finmod!K32 -> 874464.5955 | E25: =Existing!G88 -> 793667.2904 | F25: =Existing!H88 -> 775324.8336 | G25: =Existing!I88 -> 754966.1371 | H25: =Existing!J88 -> 733080.4862 | I25: =Existing!K88 -> 710301.4022 | J25: =Existing!L88 -> 686619.7119 | K25: =Existing!M88 -> 662509.3314 | L25: =Existing!N88 -> 638030.5244 | M25: =Existing!O88 -> 612809.5019 | N25: =Existing!P88 -> 586434.5377 | O25: =Existing!Q88 -> 558887.2232 | P25: =Existing!R88 -> 533858.5787 | Q25: =Existing!S88 -> 508244.7389 | R25: =Existing!T88 -> 481491.9936 | S25: =Existing!U88 -> 454382.6731 | T25: =Existing!V88 -> 426285.3999 | U25: =Existing!W88 -> 396871.76 | V25: =Existing!X88 -> 367307.3108 | W25: =Existing!Y88 -> 337548.47 | X25: =Existing!Z88 -> 306379.341 | Y25: =Existing!AA88 -> 274467.2859 | Z25: =Existing!AB88 -> 242200.4833 | AA25: =Existing!AC88 -> 209094.1774 | AB25: =Existing!AD88 -> 178315.594 | AC25: =Existing!AE88 -> 153252.4242 | AD25: =Existing!AF88 -> 130300.0439 | AE25: =Existing!AG88 -> 109041.413 | AF25: =Existing!AH88 -> 87335.51532 | AG25: =Existing!AI88 -> 65839.87877 | AH25: =Existing!AJ88 -> 44706.29737 | AI25: =Existing!AK88 -> 23350.74213 | AJ25: =Existing!AL88 -> 18626.43582 | AK25: =Existing!AM88 -> 15935.45028 | AL25: =Existing!AN88 -> 13375.7265 | AM25: =Existing!AO88 -> 10773.52502 | AN25: =Existing!AP88 -> 8171.391922 | AO25: =Existing!AQ88 -> 5496.499577 | AP25: =Existing!AR88 -> 2801.132306 | AQ25: =Existing!AS88 -> 0 | AR25: =Existing!AT88 -> 0 | AS25: =Existing!AU88 -> 0 | AT25: =Existing!AV88 -> 0 | AU25: =Existing!AW88 -> 0 | AV25: =Existing!AX88 -> 0 | AW25: =Existing!AY88 -> 0 | AX25: =Existing!AZ88 -> 0 | AY25: =Existing!BA88 -> 0 | AZ25: =Existing!BB88 -> 0 | BA25: =Existing!BC88 -> 0
B26: Additional assets RAB, opening values | D26: =Additional!F131 -> 18812.79207 | E26: =Additional!G131 -> 56450.65838 | F26: =Additional!H131 -> 96678.87905 | G26: =Additional!I131 -> 143576.6576 | H26: =Additional!J131 -> 182741.447 | I26: =Additional!K131 -> 223870.3136 | J26: =Additional!L131 -> 266774.2177 | K26: =Additional!M131 -> 299348.0603 | L26: =Additional!N131 -> 332741.902 | M26: =Additional!O131 -> 369577.9942 | N26: =Additional!P131 -> 403900.9434 | O26: =Additional!Q131 -> 434995.424 | P26: =Additional!R131 -> 462797.2867 | Q26: =Additional!S131 -> 487243.5218 | R26: =Additional!T131 -> 508272.6109 | S26: =Additional!U131 -> 525824.9375 | T26: =Additional!V131 -> 539843.2672 | U26: =Additional!W131 -> 550273.3141 | V26: =Additional!X131 -> 557064.4095 | W26: =Additional!Y131 -> 560170.2981 | X26: =Additional!Z131 -> 559550.0909 | Y26: =Additional!AA131 -> 555169.4142 | Z26: =Additional!AB131 -> 547001.8081 | AA26: =Additional!AC131 -> 535030.4427 | AB26: =Additional!AD131 -> 519250.2489 | AC26: =Additional!AE131 -> 501977.1706 | AD26: =Additional!AF131 -> 483119.8018 | AE26: =Additional!AG131 -> 462577.7362 | AF26: =Additional!AH131 -> 440239.7462 | AG26: =Additional!AI131 -> 415981.346 | AH26: =Additional!AJ131 -> 389661.4384 | AI26: =Additional!AK131 -> 361117.5518 | AJ26: =Additional!AL131 -> 330158.8088 | AK26: =Additional!AM131 -> 296555.0409 | AL26: =Additional!AN131 -> 260018.9015 | AM26: =Additional!AO131 -> 220174.0993 | AN26: =Additional!AP131 -> 176492.6564 | AO26: =Additional!AQ131 -> 128150.2241 | AP26: =Additional!AR131 -> 73596.71653 | AQ26: =Additional!AS131 -> 6958.6 | AR26: =Additional!AT131 -> 0 | AS26: =Additional!AU131 -> 0 | AT26: =Additional!AV131 -> 0 | AU26: =Additional!AW131 -> 0 | AV26: =Additional!AX131 -> 0 | AW26: =Additional!AY131 -> 0 | AX26: =Additional!AZ131 -> 0 | AY26: =Additional!BA131 -> 0 | AZ26: =Additional!BB131 -> 0 | BA26: =Additional!BC131 -> 0
B28: Opex and tax depreciation | D28: 2022 | E28: 2023 | F28: 2024 | G28: 2025 | H28: 2026 | I28: 2027 | J28: 2028 | K28: 2029 | L28: 2030 | M28: 2031 | N28: 2032 | O28: 2033 | P28: 2034 | Q28: 2035 | R28: 2036 | S28: 2037 | T28: 2038 | U28: 2039 | V28: 2040 | W28: 2041 | X28: 2042 | Y28: 2043 | Z28: 2044 | AA28: 2045 | AB28: 2046 | AC28: 2047 | AD28: 2048 | AE28: 2049 | AF28: 2050 | AG28: 2051 | AH28: 2052 | AI28: 2053 | AJ28: 2054 | AK28: 2055 | AL28: 2056 | AM28: 2057 | AN28: 2058 | AO28: 2059 | AP28: 2060 | AQ28: 2061 | AR28: 2062 | AS28: 2063 | AT28: 2064 | AU28: 2065 | AV28: 2066 | AW28: 2067 | AX28: 2068 | AY28: 2069 | AZ28: 2070
B29: Opex | D29: =OpexTax!D15 -> 49431.44087 | E29: =OpexTax!E15 -> 53512.75174 | F29: =OpexTax!F15 -> 55336.41136 | G29: =OpexTax!G15 -> 56654.08304 | H29: =OpexTax!H15 -> 58465.28188 | I29: =OpexTax!I15 -> 58465.28188 | J29: =OpexTax!J15 -> 57225.10923 | K29: =OpexTax!K15 -> 55984.93658 | L29: =OpexTax!L15 -> 54744.76394 | M29: =OpexTax!M15 -> 53504.59129 | N29: =OpexTax!N15 -> 52264.41865 | O29: =OpexTax!O15 -> 51024.246 | P29: =OpexTax!P15 -> 49784.07335 | Q29: =OpexTax!Q15 -> 48543.90071 | R29: =OpexTax!R15 -> 47303.72806 | S29: =OpexTax!S15 -> 46063.55542 | T29: =OpexTax!T15 -> 44823.38277 | U29: =OpexTax!U15 -> 43583.21013 | V29: =OpexTax!V15 -> 42343.03748 | W29: =OpexTax!W15 -> 41102.86483 | X29: =OpexTax!X15 -> 39862.69219 | Y29: =OpexTax!Y15 -> 38622.51954 | Z29: =OpexTax!Z15 -> 37382.3469 | AA29: =OpexTax!AA15 -> 36142.17425 | AB29: =OpexTax!AB15 -> 34902.0016 | AC29: =OpexTax!AC15 -> 33661.82896 | AD29: =OpexTax!AD15 -> 32421.65631 | AE29: =OpexTax!AE15 -> 31181.48367 | AF29: =OpexTax!AF15 -> 29941.31102 | AG29: =OpexTax!AG15 -> 28701.13838 | AH29: =OpexTax!AH15 -> 27460.96573 | AI29: =OpexTax!AI15 -> 26220.79308 | AJ29: =OpexTax!AJ15 -> 24980.62044 | AK29: =OpexTax!AK15 -> 23740.44779 | AL29: =OpexTax!AL15 -> 22500.27515 | AM29: =OpexTax!AM15 -> 21260.1025 | AN29: =OpexTax!AN15 -> 20019.92985 | AO29: =OpexTax!AO15 -> 18779.75721 | AP29: =OpexTax!AP15 -> 17539.58456 | AQ29: =OpexTax!AQ15 -> 0 | AR29: =OpexTax!AR15 -> 0 | AS29: =OpexTax!AS15 -> 0 | AT29: =OpexTax!AT15 -> 0 | AU29: =OpexTax!AU15 -> 0 | AV29: =OpexTax!AV15 -> 0 | AW29: =OpexTax!AW15 -> 0 | AX29: =OpexTax!AX15 -> 0 | AY29: =OpexTax!AY15 -> 0 | AZ29: =OpexTax!AZ15 -> 0
B30: Tax depreciation | D30: =OpexTax!D17 -> 22068.6932 | E30: =OpexTax!E17 -> 23714.12773 | F30: =OpexTax!F17 -> 25529.26082 | G30: =OpexTax!G17 -> 27920.62726 | H30: =OpexTax!H17 -> 29273.17866 | I30: =OpexTax!I17 -> 30741.84584 | J30: =OpexTax!J17 -> 32303.19673 | K30: =OpexTax!K17 -> 32633.56686 | L30: =OpexTax!L17 -> 33085.25448 | M30: =OpexTax!M17 -> 33941.98621 | N30: =OpexTax!N17 -> 34522.87161 | O30: =OpexTax!O17 -> 34787.80519 | P30: =OpexTax!P17 -> 34771.35904 | Q30: =OpexTax!Q17 -> 34504.3223 | R30: =OpexTax!R17 -> 34014.11511 | S30: =OpexTax!S17 -> 33325.15722 | T30: =OpexTax!T17 -> 32459.19635 | U30: =OpexTax!U17 -> 31435.60051 | V30: =OpexTax!V17 -> 30271.61844 | W30: =OpexTax!W17 -> 28982.61149 | X30: =OpexTax!X17 -> 27582.26014 | Y30: =OpexTax!Y17 -> 26082.74791 | Z30: =OpexTax!Z17 -> 24494.92519 | AA30: =OpexTax!AA17 -> 22828.45509 | AB30: =OpexTax!AB17 -> 21091.94337 | AC30: =OpexTax!AC17 -> 19545.44429 | AD30: =OpexTax!AD17 -> 18168.16627 | AE30: =OpexTax!AE17 -> 16941.5928 | AF30: =OpexTax!AF17 -> 15849.23349 | AG30: =OpexTax!AG17 -> 14876.40235 | AH30: =OpexTax!AH17 -> 14010.02036 | AI30: =OpexTax!AI17 -> 13238.43965 | AJ30: =OpexTax!AJ17 -> 12551.28687 | AK30: =OpexTax!AK17 -> 11939.32373 | AL30: =OpexTax!AL17 -> 11394.32284 | AM30: =OpexTax!AM17 -> 10908.95706 | AN30: =OpexTax!AN17 -> 10476.70098 | AO30: =OpexTax!AO17 -> 10091.74324 | AP30: =OpexTax!AP17 -> 9748.908351 | AQ30: =OpexTax!AQ17 -> 9443.587154 | AR30: =OpexTax!AR17 -> 8410.250702 | AS30: =OpexTax!AS17 -> 7489.98402 | AT30: =OpexTax!AT17 -> 6670.414783 | AU30: =OpexTax!AU17 -> 5940.524474 | AV30: =OpexTax!AV17 -> 5290.500243 | AW30: =OpexTax!AW17 -> 4711.60298 | AX30: =OpexTax!AX17 -> 4196.04983 | AY30: =OpexTax!AY17 -> 3736.909551 | AZ30: =OpexTax!AZ17 -> 3328.009331
A32: Calculations
B33: Total RAB and present value of assets | D33: 2022 | E33: 2023 | F33: 2024 | G33: 2025 | H33: 2026 | I33: 2027 | J33: 2028 | K33: 2029 | L33: 2030 | M33: 2031 | N33: 2032 | O33: 2033 | P33: 2034 | Q33: 2035 | R33: 2036 | S33: 2037 | T33: 2038 | U33: 2039 | V33: 2040 | W33: 2041 | X33: 2042 | Y33: 2043 | Z33: 2044 | AA33: 2045 | AB33: 2046 | AC33: 2047 | AD33: 2048 | AE33: 2049 | AF33: 2050 | AG33: 2051 | AH33: 2052 | AI33: 2053 | AJ33: 2054 | AK33: 2055 | AL33: 2056 | AM33: 2057 | AN33: 2058 | AO33: 2059 | AP33: 2060 | AQ33: 2061 | AR33: 2062 | AS33: 2063 | AT33: 2064 | AU33: 2065 | AV33: 2066 | AW33: 2067 | AX33: 2068 | AY33: 2069 | AZ33: 2070 | BA33: 2071
B34: Total RAB | D34: =IF(D33=2022,D25,D25+D26) -> 874464.5955 | E34: =IF(E33=2022,E25,E25+E26) -> 850117.9488 | F34: 872003.7127 | G34: 898542.7947 | H34: 915821.9332 | I34: 934171.7159 | J34: 953393.9296 | K34: 961857.3918 | L34: 970772.4264 | M34: 982387.4961 | N34: 990335.4811 | O34: 993882.6472 | P34: =IF(P33=2022,P25,P25+P26) -> 996655.8653 | Q34: =IF(Q33=2022,Q25,Q25+Q26) -> 995488.2607 | R34: =IF(R33=2022,R25,R25+R26) -> 989764.6046 | S34: =IF(S33=2022,S25,S25+S26) -> 980207.6106 | T34: =IF(T33=2022,T25,T25+T26) -> 966128.6671 | U34: =IF(U33=2022,U25,U25+U26) -> 947145.0741 | V34: =IF(V33=2022,V25,V25+V26) -> 924371.7203 | W34: =IF(W33=2022,W25,W25+W26) -> 897718.7681 | X34: =IF(X33=2022,X25,X25+X26) -> 865929.4318 | Y34: =IF(Y33=2022,Y25,Y25+Y26) -> 829636.7 | Z34: 789202.2913 | AA34: =IF(AA33=2022,AA25,AA25+AA26) -> 744124.6201 | AB34: =IF(AB33=2022,AB25,AB25+AB26) -> 697565.8429 | AC34: =IF(AC33=2022,AC25,AC25+AC26) -> 655229.5948 | AD34: =IF(AD33=2022,AD25,AD25+AD26) -> 613419.8457 | AE34: =IF(AE33=2022,AE25,AE25+AE26) -> 571619.1492 | AF34: =IF(AF33=2022,AF25,AF25+AF26) -> 527575.2615 | AG34: =IF(AG33=2022,AG25,AG25+AG26) -> 481821.2248 | AH34: =IF(AH33=2022,AH25,AH25+AH26) -> 434367.7357 | AI34: =IF(AI33=2022,AI25,AI25+AI26) -> 384468.2939 | AJ34: =IF(AJ33=2022,AJ25,AJ25+AJ26) -> 348785.2446 | AK34: 312490.4912 | AL34: =IF(AL33=2022,AL25,AL25+AL26) -> 273394.628 | AM34: =IF(AM33=2022,AM25,AM25+AM26) -> 230947.6243 | AN34: =IF(AN33=2022,AN25,AN25+AN26) -> 184664.0484 | AO34: =IF(AO33=2022,AO25,AO25+AO26) -> 133646.7237 | AP34: =IF(AP33=2022,AP25,AP25+AP26) -> 76397.84883 | AQ34: =IF(AQ33=2022,AQ25,AQ25+AQ26) -> 6958.6 | AR34: =IF(AR33=2022,AR25,AR25+AR26) -> 0 | AS34: =IF(AS33=2022,AS25,AS25+AS26) -> 0 | AT34: =IF(AT33=2022,AT25,AT25+AT26) -> 0 | AU34: =IF(AU33=2022,AU25,AU25+AU26) -> 0 | AV34: 0 | AW34: =IF(AW33=2022,AW25,AW25+AW26) -> 0 | AX34: =IF(AX33=2022,AX25,AX25+AX26) -> 0 | AY34: =IF(AY33=2022,AY25,AY25+AY26) -> 0 | AZ34: =IF(AZ33=2022,AZ25,AZ25+AZ26) -> 0 | BA34: =IF(BA33=2022,BA25,BA25+BA26) -> 0
B36: Calculation of MAR profile using simplified BBAR formula
B37: Last year of MAR ramp-up | C37: =$C$11+2022 -> 2028
B38: First year of MAR ramp-down | C38: =C12 -> 2029
B39: Real RAB increase during MAR ramp-up | C39: =RealMARinc -> 0.1573479829
B40: 2023 MAR | C40: =E47 -> 157044.417
B41: Stranding year MAR ÷ 2023 MAR | C41: =C14 -> 0.2
B42: ="Excpected MAR in Stranding Year "&C10 -> Excpected MAR in Stranding Year 2060 | C42: =C40*C41 -> 31408.8834
B43: MAR decrement | C43: 9514.301418
B44: MAR at Stranding year | C44: =HLOOKUP(C10,$D$46:$BA$47,2,0) -> 277611.0874
B46: MAR profile | D46: =D33 -> 2022 | E46: 2023 | F46: 2024 | G46: 2025 | H46: 2026 | I46: 2027 | J46: 2028 | K46: 2029 | L46: 2030 | M46: 2031 | N46: 2032 | O46: 2033 | P46: 2034 | Q46: 2035 | R46: 2036 | S46: 2037 | T46: 2038 | U46: 2039 | V46: 2040 | W46: 2041 | X46: 2042 | Y46: 2043 | Z46: 2044 | AA46: 2045 | AB46: 2046 | AC46: 2047 | AD46: 2048 | AE46: 2049 | AF46: 2050 | AG46: 2051 | AH46: 2052 | AI46: 2053 | AJ46: =AJ33 -> 2054 | AK46: 2055 | AL46: 2056 | AM46: 2057 | AN46: 2058 | AO46: 2059 | AP46: 2060 | AQ46: 2061 | AR46: 2062 | AS46: 2063 | AT46: 2064 | AU46: 2065 | AV46: 2066 | AW46: 2067 | AX46: 2068 | AY46: 2069 | AZ46: 2070 | BA46: 2071
B47: MAR, profiled on ability-to-pay, for given AdjFactor | D47: ='GPB data'!B42 -> 131623.3864 | E47: =IF(DeferMitigationDPP4,Inputs_AS!$I$135,D47*(1+RealMARinc)*(1+E20)*(1+E19)*(1+E21)) -> 157044.417 | F47: =IF(DeferMitigationDPP4,Inputs_AS!$I$136,E47*(1+RealMARinc)*(1+F20)*(1+F19)*(1+F21)) -> 185979.8512 | G47: =IF(DeferMitigationDPP4,Inputs_AS!$I$137,F47*(1+RealMARinc)*(1+G20)*(1+G19)*(1+G21)) -> 219601.6523 | H47: =IF(DeferMitigationDPP4,Inputs_AS!$I$138,G47*(1+RealMARinc)*(1+H20)*(1+H19)*(1+H21)) -> 259238.6399 | I47: =IF(I33<$C37+1,H47*(1+RealMARinc)*(1+I19)*(1+I21),IF(I33<$C38+1,H47*(1+I19)*(1+I21),H47*(1+I19)*(1+I21)-$C$43)) -> 306029.9033 | J47: 361266.7532 | K47: 368492.0882 | L47: 366347.6286 | M47: 364160.2797 | N47: 361929.1839 | O47: 359653.4662 | P47: 357332.2341 | Q47: 354964.5773 | R47: 352549.5675 | S47: =IF(S46>$C$10,R47,R47*(1+S19)*(1+S21)-$C$43) -> 350086.2574 | T47: 347573.6811 | U47: 345010.8533 | V47: 342396.769 | W47: 339730.403 | X47: 337010.7096 | Y47: 334236.6224 | Z47: 331407.0534 | AA47: 328520.893 | AB47: 325577.0095 | AC47: 322574.2483 | AD47: 319511.4318 | AE47: 316387.359 | AF47: 313200.8048 | AG47: 309950.5195 | AH47: 306635.2284 | AI47: 303253.6316 | AJ47: 299804.4028 | AK47: 296286.1894 | AL47: 292697.6118 | AM47: 289037.2626 | AN47: 285303.7065 | AO47: 281495.4792 | AP47: 277611.0874 | AQ47: 277611.0874 | AR47: 277611.0874 | AS47: 277611.0874 | AT47: 277611.0874 | AU47: 277611.0874 | AV47: 277611.0874 | AW47: 277611.0874 | AX47: 277611.0874 | AY47: 277611.0874 | AZ47: 277611.0874 | BA47: 277611.0874
B49: DMR calculation | D49: =D46 -> 2022 | E49: =E46 -> 2023 | F49: 2024 | G49: 2025 | H49: 2026 | I49: 2027 | J49: 2028 | K49: 2029 | L49: 2030 | M49: 2031 | N49: 2032 | O49: 2033 | P49: 2034 | Q49: 2035 | R49: 2036 | S49: 2037 | T49: 2038 | U49: 2039 | V49: 2040 | W49: 2041 | X49: 2042 | Y49: 2043 | Z49: 2044 | AA49: 2045 | AB49: 2046 | AC49: 2047 | AD49: 2048 | AE49: 2049 | AF49: 2050 | AG49: 2051 | AH49: 2052 | AI49: 2053 | AJ49: 2054 | AK49: 2055 | AL49: 2056 | AM49: 2057 | AN49: 2058 | AO49: 2059 | AP49: 2060 | AQ49: 2061 | AR49: 2062 | AS49: 2063 | AT49: 2064 | AU49: 2065 | AV49: 2066 | AW49: 2067 | AX49: 2068 | AY49: 2069 | AZ49: 2070 | BA49: 2071
B50: Interest | D50: =D34*$C$8*$C$7 -> 14837.91526 | E50: 14424.80135 | F50: 14796.159 | G50: 15246.47414 | H50: 15539.66656 | I50: 15851.02567 | J50: 16177.1882 | K50: 16320.79622 | L50: 16472.06653 | M50: 16669.15103 | N50: 16804.01244 | O50: 16864.20076 | P50: 16911.25672 | Q50: 16891.44481 | R50: 16794.32581 | S50: 16632.16274 | T50: 16393.27122 | U50: 16071.15762 | V50: 15684.73935 | W50: 15232.49206 | X50: 14693.0906 | Y50: 14077.27553 | Z50: 13391.18448 | AA50: 12626.30655 | AB50: 11836.29722 | AC50: 11117.93577 | AD50: 10408.50794 | AE50: 9699.233723 | AF50: 8951.897038 | AG50: 8175.542543 | AH50: 7370.35174 | AI50: 6523.658011 | AJ50: =AJ34*$C$8*$C$7 -> 5918.188031 | AK50: 5302.338654 | AL50: 4638.960049 | AM50: 3918.719289 | AN50: 3133.379573 | AO50: 2267.717607 | AP50: 1296.318699 | AQ50: 118.0735248 | AR50: 0 | AS50: 0 | AT50: 0 | AU50: 0 | AV50: 0 | AW50: 0 | AX50: 0 | AY50: 0 | AZ50: 0 | BA50: 0
B51: Deductibles | D51: =D50+D29+D30 -> 86338.04933 | E51: 91651.68083 | F51: 95661.83118 | G51: 99821.18444 | H51: 103278.1271 | I51: 105058.1534 | J51: 105705.4942 | K51: 104939.2997 | L51: 104302.085 | M51: 104115.7285 | N51: 103591.3027 | O51: 102676.2519 | P51: 101466.6891 | Q51: 99939.66782 | R51: 98112.16898 | S51: 96020.87538 | T51: 93675.85034 | U51: 91089.96825 | V51: 88299.39527 | W51: 85317.96838 | X51: 82138.04292 | Y51: 78782.54298 | Z51: 75268.45656 | AA51: 71596.9359 | AB51: 67830.2422 | AC51: 64325.20901 | AD51: 60998.33052 | AE51: 57822.31019 | AF51: 54742.44155 | AG51: 51753.08327 | AH51: 48841.33783 | AI51: 45982.89075 | AJ51: =AJ50+AJ29+AJ30 -> 43450.09533 | AK51: 40982.11018 | AL51: 38533.55804 | AM51: 36087.77884 | AN51: 33630.0104 | AO51: 31139.21805 | AP51: 28584.81161 | AQ51: 9561.660679 | AR51: 8410.250702 | AS51: 7489.98402 | AT51: 6670.414783 | AU51: 5940.524474 | AV51: 5290.500243 | AW51: 4711.60298 | AX51: 4196.04983 | AY51: 3736.909551 | AZ51: 3328.009331
B52: Depreciation Minus Revals (DMR) | D52: =IF(D33>$C$10,0,D47*(1-$C$9)-D34*$C$6-D29+D51*$C$9) -> 15819.925 | E52: =IF(E33>$C$10,0,E47*(1-$C$9)-E34*$C$6-E29+E51*$C$9) -> 33024.45706 | F52: =IF(F33>$C$10,0,F47*(1-$C$9)-F34*$C$6-F29+F51*$C$9) -> 51813.36629 | G52: 74238.51068 | H52: =IF(H33>$C$10,0,H47*(1-$C$9)-H34*$C$6-H29+H51*$C$9) -> 100872.9478 | I52: 133934.3881 | J52: 173946.1041 | K52: 179654.327 | L52: 178624.6854 | M52: 177524.6218 | N52: 176523.56 | O52: 175651.2057 | P52: 174711.138 | Q52: 173890.7228 | R52: 173231.8211 | S52: 172699.6477 | T52: 172338.6056 | U52: 172175.0878 | V52: 172150.0432 | W52: 172272.1241 | X52: 172615.6036 | Y52: 173147.2672 | Z52: 173848.8787 | AA52: 174750.7591 | AB52: 175675.3703 | AC52: 176371.5912 | AD52: 177042.1286 | AE52: 177710.2459 | AF52: 178498.031 | AG52: 179370.2758 | AH52: 180321.7944 | AI52: 181390.6778 | AJ52: =IF(AJ33>$C$10,0,AJ47*(1-$C$9)-AJ34*$C$6-AJ29+AJ51*$C$9) -> 181629.1623 | AK52: 181873.6833 | AL52: 182244.9715 | AM52: 182771.1205 | AN52: 183476.7691 | AO52: 184410.06 | AP52: 185653.3177 | AQ52: 0 | AR52: 0 | AS52: 0 | AT52: 0 | AU52: 0 | AV52: 0 | AW52: 0 | AX52: 0 | AY52: 0 | AZ52: 0
B54: Value of assets to be recovered via DMR at the beginning of DPP3
B55: Value of existing assets as the 2022 closing value | C55: =E25 -> 793667.2904
B56: Total value of additional assets (simple sum) | C56: =SUM(E24:BA24) -> 816727.3373
B57: Total value of assets to be recovered via DMR | C57: =(C56+C55) -> 1610394.628
B59: Goal-seek equal DMR in AS model and Financial model by changing Adjustment Factor
B60: Sum of DMR during DPP3 | C60: =SUM(E52:H52) -> 259949.2818
B61: SumofDepnDMR | C61: =RAB!B97 -> 106134.959
B62: Difference in (∑ depreciation less ∑ revals), nil after goal-seek | C62: =SumofDepn-C61 -> 153814.3227
B64: Goal-seek real MAR increase to provide for DMR
B65: Total value of assets to be recovered via DMR | C65: =C57 -> 1610394.628
B66: Sum of DMR from 2023 until cessation date | C66: =SUM(E52:AZ52) -> 6242079.072
B67: Difference between total asset value and total DMR | C67: =C65-C66 -> -4631684.445
A69: Closing RAB
B70: 2040 CB RAB Existing Assets | C70: =W25 -> 337548.47
B71: 2050 CB RAB Existing Assets | C71: =AG25 -> 65839.87877
B72: 2060 CB RAB Existing Assets | C72: =AQ25 -> 0
B73: 2070 CB RAB Existing Assets | C73: =BA25 -> 0
B74: =Inputs_AS!G20&" CB RAB Existing Assets" -> 2055 CB RAB Existing Assets | C74: =HLOOKUP(Inputs_AS!G20+1,Total!$D$23:$BA$26,3,0) -> 13375.7265
B76: 2040 CB RAB Additional Assets | C76: =W26-IF(StrandingYear=2040,W26,0) -> 560170.2981
B77: 2050 CB RAB Additional Assets | C77: =AG26-IF(StrandingYear=2050,AG26,0) -> 415981.346
B78: 2060 CB RAB Additional Assets | C78: =AQ26-IF(StrandingYear=2060,AQ26,0) -> 0
B79: 2070 CB RAB Additional Assets | C79: =BA26-IF(StrandingYear=2070,BA26,0) -> 0
B80: =Inputs_AS!G20&" CB RAB Additional Assets" -> 2055 CB RAB Additional Assets | C80: =HLOOKUP(Inputs_AS!G20+1,Total!$D$23:$BA$26,4,0)-IF(StrandingYear=Inputs_AS!G20,HLOOKUP(Inputs_AS!G20+1,Total!$D$23:$BA$26,4,0),0) -> 260018.9015
B82: 2040 CB RAB all Assets | C82: =C70+C76 -> 897718.7681
B83: 2050 CB RAB all Assets | C83: =C71+C77 -> 481821.2248
B84: 2060 CB RAB all Assets | C84: =C72+C78 -> 0
B85: 2070 CB RAB all Assets | C85: =C73+C79 -> 0
B86: =Inputs_AS!G20&" CB RAB all Assets" -> 2055 CB RAB all Assets | C86: =C74+C80 -> 273394.628

Sheet Inputs_finmod
A1: Inputs | B1: Values, not time series | C1: Early base year | D1: Standard base year | E1: Gap year | F1: 1st BBAR year | G1: 2nd BBAR year | H1: 3rd BBAR year | I1: 4th BBAR year | J1: 5th BBAR year
A2: All input data is entered into this worksheet. | B2: Exceptions to the principle that an inputs sheet should not include anything other than inputs have this grey background.
A3: Name of supplier currently chosen as the focus of this workbook | C3: =GPB_name -> First Gas transmission
A4: Supplier number (inferred from chosen name above) | C4: =HLOOKUP(GPB_name,Inputs_finmod!$B$21:$F$22,2,FALSE) -> 5
A6: Inputs that are the same for all suppliers
A7: BBAR year ending in calendar year: | C7: =D7-1 -> 2020 | D7: =E7-1 -> 2021 | E7: =F7-1 -> 2022 | F7: 2023 | G7: =F7+1 -> 2024 | H7: =G7+1 -> 2025 | I7: =H7+1 -> 2026 | J7: =I7+1 -> 2027
A8: Forecast changes in CPI used for revaluations, June year-ends | D8: =[1]Output!G8 -> 0.03342884432 | E8: =[1]Output!H8 -> 0.063 | F8: =[1]Output!I8 -> 0.026 | G8: =[1]Output!J8 -> 0.023 | H8: =[1]Output!K8 -> 0.02 | I8: =[1]Output!L8 -> 0.02 | J8: =[1]Output!M8 -> 0.02
A9: Forecast changes in CPI used for revaluations, September year-ends | D9: =[1]Output!G9 -> 0.04933586338 | E9: =[1]Output!H9 -> 0.05 | F9: =[1]Output!I9 -> 0.025 | G9: =[1]Output!J9 -> 0.022 | H9: =[1]Output!K9 -> 0.02 | I9: =[1]Output!L9 -> 0.02 | J9: =[1]Output!M9 -> 0.02
A10: Forecast changes in the CPI element of the price path | D10: =IF($C$3="First Gas Transmission",[1]Output!G11,[1]Output!G10) -> 0.02811532047 | E10: =IF($C$3="First Gas Transmission",[1]Output!H11,[1]Output!H10) -> 0.05954901506 | F10: =IF($C$3="First Gas Transmission",[1]Output!I11,[1]Output!I10) -> 0.03092122799 | G10: =IF($C$3="First Gas Transmission",[1]Output!J11,[1]Output!J10) -> 0.02324453846 | H10: =IF($C$3="First Gas Transmission",[1]Output!K11,[1]Output!K10) -> 0.02024799149 | I10: =IF($C$3="First Gas Transmission",[1]Output!L11,[1]Output!L10) -> 0.02 | J10: =IF($C$3="First Gas Transmission",[1]Output!M11,[1]Output!M10) -> 0.02
A11: Corporate tax rate | C11: 0.28 | D11: 0.28 | E11: 0.28 | F11: 0.28 | G11: 0.28 | H11: 0.28 | I11: 0.28 | J11: 0.28
A12: Days from mid-year to year-end | B12: 182
A13: Days from revenue date to year-end | B13: 148
A14: Day prior to start of the regulatory period | B14: 2022-09-30
A15: Vanilla WACC (67th percentile) | B15: 0.0614
A16: Cost of debt | B16: 0.0404
A17: Leverage | B17: 0.42
A18: Remaining asset life for additional assets before adjustment | B18: 45
A19: Industry-wide X factor | B19: 0
A20: Inputs that are specific to individual suppliers | I20: Selected supplier #: | J20: =C4 -> 5 | K20: Value for selected supplier
A21: Name | B21: GasNet | C21: Powerco | D21: Vector | E21: First Gas distribution | F21: First Gas transmission | K21: =INDEX(B21:F21,,$J$20) -> First Gas transmission
A22: Supplier number | B22: 1 | C22: 2 | D22: 3 | E22: 4 | F22: 5
A23: Early base year adopted? | B23: FALSE | C23: FALSE | D23: FALSE | E23: FALSE | F23: FALSE | K23: =INDEX(B23:F23,,$J$20) -> FALSE
A24: Last day in the standard base year | B24: 2021-06-30 | C24: 2021-09-30 | D24: 2021-06-30 | E24: 2021-09-30 | F24: 2021-09-30 | K24: =INDEX(B24:F24,,$J$20) -> 2021-09-30
A25: Tax payable (payable) or deferred tax (deferred) | B25: deferred | C25: deferred | D25: deferred | E25: deferred | F25: payable | K25: =INDEX(B25:F25,,$J$20) -> payable
A26: Total revenue cap (TRC) or weighted avg price cap (WAPC) | B26: WAPC | C26: WAPC | D26: WAPC | E26: WAPC | F26: TRC_FQ | K26: =INDEX(B26:F26,,$J$20) -> TRC_FQ
A27: Adjustment factor (for accelerated depreciation) existing | K27: =AdjFactor -> 0.908944059
A28: Adjustment factor (for accelerated depreciation) additional | K28: =AdjFactor -> 0.908944059
A29: Initial conditions
A30: Opening RAB | B30: =[4]Output!B5 -> 24056 | C30: =[4]Output!C5 -> 388863.0303 | D30: =[4]Output!D5 -> 434256 | E30: =[4]Output!E5 -> 174405.1661 | F30: =[4]Output!F5 -> 849688.0929 | K30: =INDEX(B30:F30,,$J$20) -> 849688.0929
A31: Total depreciation | B31: =[4]Output!B6 -> 890 | C31: =[4]Output!C6 -> 16520.80123 | D31: =[4]Output!D6 -> 12684 | E31: =[4]Output!E6 -> 6273.133953 | F31: =[4]Output!F6 -> 34267.21374 | K31: =INDEX(B31:F31,,$J$20) -> 34267.21374
A32: Closing RAB | B32: =[4]Output!B7 -> 24943 | C32: =[4]Output!C7 -> 406139 | D32: =[4]Output!D7 -> 451131 | E32: =[4]Output!E7 -> 181908.4666 | F32: =[4]Output!F7 -> 874464.5955 | K32: 874464.5955
A33: Opening RAB excluding revaluations | B33: =[4]Output!B8 -> 21153 | C33: =[4]Output!C8 -> 347153.9267 | D33: =[4]Output!D8 -> 387877 | E33: =[4]Output!E8 -> 159463.3196 | F33: =[4]Output!F8 -> 0 | K33: 0
A34: Adjusted depreciation | B34: =[4]Output!B9 -> 756 | C34: =[4]Output!C9 -> 14618.99278 | D34: =[4]Output!D9 -> 11347 | E34: =[4]Output!E9 -> 5666.21179 | F34: =[4]Output!F9 -> 0 | K34: 0
A35: Tax depreciation | B35: =[4]Output!B10 -> 668 | C35: =[4]Output!C10 -> 19094.19586 | D35: =[4]Output!D10 -> 18496 | E35: =[4]Output!E10 -> 8024.564544 | F35: =[4]Output!F10 -> 22468.73376 | K35: 22468.73376
A36: Opening regulatory tax asset value | B36: =[4]Output!B11 -> 6332 | C36: =[4]Output!C11 -> 174476.9623 | D36: =[4]Output!D11 -> 178920 | E36: =[4]Output!E11 -> 71182.16614 | F36: =[4]Output!F11 -> 205340.1339 | K36: 205340.1339
A37: Amortisation of initial differences in asset values | B37: =[4]Output!B12 -> 475.3853565 | C37: =[4]Output!C12 -> 2286.643824 | D37: =[4]Output!D12 -> 2452.34375 | E37: =[4]Output!E12 -> 1682.628571 | F37: =[4]Output!F12 -> 0 | K37: 0
A38: Term credit spread differential allowance | B38: =[4]Output!B13 -> 0 | C38: =[4]Output!C13 -> 415.3212016 | D38: =[4]Output!D13 -> 394.7103671 | E38: =[4]Output!E13 -> 262.7097852 | F38: =[4]Output!F13 -> 1271.216537 | K38: 1271.216537
A39: Opening deferred tax balance | B39: =[4]Output!B14 -> -1402 | C39: =[4]Output!C14 -> -30580.636 | D39: =[4]Output!D14 -> -33959 | E39: =[4]Output!E14 -> -8906.824887 | F39: =[4]Output!F14 -> 0 | K39: 0
A40: Capital expenditure ~ value of commissioned assets | B40: =[4]Output!B15 -> 961 | C40: =[4]Output!C15 -> 15514.61337 | D40: =[4]Output!D15 -> 15572 | E40: =[4]Output!E15 -> 5437.82584 | F40: =[4]Output!F15 -> 18812.79207 | K40: 18812.79207
A41: 2022 MAR from 2017 financial model | B41: =Inputs_AS!D23 -> 4383.998268 | C41: =Inputs_AS!E23 -> 51435.56862 | D41: =Inputs_AS!F23 -> 50702.2772 | E41: =Inputs_AS!G23 -> 24646.15131 | F41: =Inputs_AS!H23 -> 131623.3864 | K41: 131623.3864
A42: Alternative X factor (leave blank if no alternative) | K42: =X_factor -> -0.04856304031
A43: Operating expenditure
K44: =INDEX(B44:F44,,$J$20) -> 0
A45: Operating expenditure in year ending 2022 | B45: ='[3]Reflation outputs'!B5 -> 2105.869235 | C45: ='[3]Reflation outputs'!C5 -> 19191.84016 | D45: ='[3]Reflation outputs'!D5 -> 14561.01945 | E45: ='[3]Reflation outputs'!E5 -> 9825.824075 | F45: ='[3]Reflation outputs'!F5 -> 49431.44087 | K45: 49431.44087
A46: Operating expenditure in year ending 2023 | B46: ='[3]Reflation outputs'!B6 -> 2553.489498 | C46: ='[3]Reflation outputs'!C6 -> 19977.41341 | D46: ='[3]Reflation outputs'!D6 -> 15402.43671 | E46: ='[3]Reflation outputs'!E6 -> 10562.23877 | F46: ='[3]Reflation outputs'!F6 -> 53512.75174 | K46: 53512.75174
A47: Operating expenditure in year ending 2024 | B47: ='[3]Reflation outputs'!B7 -> 2644.955245 | C47: ='[3]Reflation outputs'!C7 -> 20475.16567 | D47: ='[3]Reflation outputs'!D7 -> 15938.21291 | E47: ='[3]Reflation outputs'!E7 -> 11087.79684 | F47: ='[3]Reflation outputs'!F7 -> 55336.41136 | K47: 55336.41136
A48: Operating expenditure in year ending 2025 | B48: ='[3]Reflation outputs'!B8 -> 2722.37449 | C48: ='[3]Reflation outputs'!C8 -> 21057.76636 | D48: ='[3]Reflation outputs'!D8 -> 16028.18117 | E48: ='[3]Reflation outputs'!E8 -> 11550.22358 | F48: ='[3]Reflation outputs'!F8 -> 56654.08304 | K48: 56654.08304
A49: Operating expenditure in year ending 2026 | B49: ='[3]Reflation outputs'!B9 -> 2793.662096 | C49: ='[3]Reflation outputs'!C9 -> 21637.5593 | D49: ='[3]Reflation outputs'!D9 -> 16465.67508 | E49: ='[3]Reflation outputs'!E9 -> 11986.17028 | F49: ='[3]Reflation outputs'!F9 -> 58465.28188 | K49: 58465.28188
A50: Operating expenditure in year ending 2027 | B50: ='[3]Reflation outputs'!B10 -> 2866.778433 | C50: ='[3]Reflation outputs'!C10 -> 22150.62899 | D50: ='[3]Reflation outputs'!D10 -> 16951.96015 | E50: ='[3]Reflation outputs'!E10 -> 12428.0251 | F50: ='[3]Reflation outputs'!F10 -> 59738.56089 | K50: 59738.56089
K51: 0
A52: Constant price revenue growth
A53: Constant price revenue growth in year ending 2022 | B53: =[5]Output!B3 -> -0.001003335731 | C53: =[5]Output!C3 -> 0.01365074927 | D53: =[5]Output!D3 -> 0.01402179604 | E53: =[5]Output!E3 -> 0.02595745483 | K53: =INDEX(B53:F53,,$J$20) -> 0
A54: Constant price revenue growth in year ending 2023 | B54: =[5]Output!B4 -> -0.00292858236 | C54: =[5]Output!C4 -> 0.01423886913 | D54: =[5]Output!D4 -> 0.01548673721 | E54: =[5]Output!E4 -> 0.001446936929 | K54: 0
A55: Constant price revenue growth in year ending 2024 | B55: =[5]Output!B5 -> -0.003206394073 | C55: =[5]Output!C5 -> 0.01347482345 | D55: =[5]Output!D5 -> 0.01032253435 | E55: =[5]Output!E5 -> 0.001283574806 | K55: 0
A56: Constant price revenue growth in year ending 2025 | B56: =[5]Output!B6 -> -0.003464122892 | C56: =[5]Output!C6 -> 0.01273583812 | D56: =[5]Output!D6 -> 0.01021189474 | E56: =[5]Output!E6 -> 0.001123060514 | K56: 0
A57: Constant price revenue growth in year ending 2026 | B57: =[5]Output!B7 -> -0.003702911872 | C57: =[5]Output!C7 -> 0.01202310459 | D57: =[5]Output!D7 -> 0.0101010024 | E57: =[5]Output!E7 -> 0.0009656319629 | K57: 0
A58: Constant price revenue growth in year ending 2027 | B58: =[5]Output!B8 -> -0.00392390725 | C58: =[5]Output!C8 -> 0.01134481886 | D58: =[5]Output!D8 -> 0.01003288107 | E58: =[5]Output!E8 -> 0.000811366982 | K58: 0
A59: Value of commissioned assets | B59: Data for first row of value of commissioned assets linked differently from rest of panel
A60: Value of commissioned assets, yr ending 2021 | B60: =B40 -> 961 | C60: =C40 -> 15514.61337 | D60: =D40 -> 15572 | E60: =E40 -> 5437.82584 | F60: =F40 -> 18812.79207 | K60: =INDEX(B60:F60,,$J$20) -> 18812.79207
A61: Value of commissioned assets, yr ending 2022 | B61: =Additional!D21 -> 831.3206597 | C61: =Additional!E21 -> 18183.28609 | D61: =Additional!F21 -> 7573.743649 | E61: =Additional!G21 -> 21122.86143 | F61: =Additional!H21 -> 37106.20045 | K61: 37106.20045
A62: Value of commissioned assets, yr ending 2023 | B62: =Additional!D22 -> 932.2514037 | C62: =Additional!E22 -> 19010.71508 | D62: =Additional!F22 -> 6788.752246 | E62: =Additional!G22 -> 13894.17236 | F62: =Additional!H22 -> 40302.49786 | K62: 40302.49786
A63: Value of commissioned assets, yr ending 2024 | B63: =Additional!D23 -> 1001.142265 | C63: =Additional!E23 -> 19197.17854 | D63: =Additional!F23 -> 6162.44264 | E63: =Additional!G23 -> 14098.28233 | F63: =Additional!H23 -> 47383.78588 | K63: 47383.78588
A64: Value of commissioned assets, yr ending 2025 | B64: =Additional!D24 -> 1035.88761 | C64: =Additional!E24 -> 20204.48326 | D64: =Additional!F24 -> 6867.068833 | E64: =Additional!G24 -> 14182.29891 | F64: =Additional!H24 -> 40281.49669 | K64: 40281.49669
A65: Value of commissioned assets, yr ending 2026 | B65: =Additional!D25 -> 1022.394124 | C65: =Additional!E25 -> 22084.79006 | D65: =Additional!F25 -> 7880.523059 | E65: =Additional!G25 -> 14168.41741 | F65: =Additional!H25 -> 42695.22192 | K65: 42695.22192
A66: Value of commissioned assets, yr ending 2027 | B66: =Additional!D26 -> 1050.70063 | C66: =Additional!E26 -> 22259.48831 | D66: =Additional!F26 -> 8310.031422 | E66: =Additional!G26 -> 14595.55696 | F66: =Additional!H26 -> 45010.91881 | K66: 45010.91881
A67: Value of commissioned assets, yr ending 2028 | K67: 0
A68: Name | B68: GasNet | C68: Powerco | D68: Vector | E68: First Gas distribution | F68: First Gas transmission
A69: Value of disposed assets
A70: Value of disposed assets, yr ending 2020 | B70: =[4]Output!B17 -> 0 | C70: =[4]Output!C17 -> 587 | D70: =[4]Output!D17 -> 48 | E70: =[4]Output!E17 -> 0 | F70: =[4]Output!F17 -> 53.00725 | K70: 53.00725
A71: Value of disposed assets, yr ending 2021 | B71: =[4]Output!B18 -> 0 | C71: =[4]Output!C18 -> 119.5918062 | D71: =[4]Output!D18 -> 280 | E71: =[4]Output!E18 -> 118.5853312 | F71: =[4]Output!F18 -> 1634.348379 | K71: 1634.348379
A72: Value of disposed assets, yr ending 2022 | B72: =[4]Output!B19 -> 5.052591791 | C72: =[4]Output!C19 -> 360.5917861 | D72: =[4]Output!D19 -> 105.0678636 | E72: =[4]Output!E19 -> 31.67792673 | F72: =[4]Output!F19 -> 466.0617575 | K72: 466.0617575
A73: Value of disposed assets, yr ending 2023 | B73: =[4]Output!B20 -> 5.183959177 | C73: =[4]Output!C20 -> 369.6065808 | D73: =[4]Output!D20 -> 107.7996281 | E73: =[4]Output!E20 -> 32.4698749 | F73: =[4]Output!F20 -> 477.7133014 | K73: 477.7133014
A74: Value of disposed assets, yr ending 2024 | B74: =[4]Output!B21 -> 5.303190238 | C74: =[4]Output!C21 -> 377.7379256 | D74: =[4]Output!D21 -> 110.2790195 | E74: =[4]Output!E21 -> 33.18421215 | F74: =[4]Output!F21 -> 488.2229941 | K74: 488.2229941
A75: Value of disposed assets, yr ending 2025 | B75: =[4]Output!B22 -> 5.409254043 | C75: =[4]Output!C22 -> 385.2926841 | D75: =[4]Output!D22 -> 112.4845999 | E75: =[4]Output!E22 -> 33.84789639 | F75: =[4]Output!F22 -> 497.987454 | K75: 497.987454
A76: Value of disposed assets, yr ending 2026 | B76: =[4]Output!B23 -> 5.517439124 | C76: =[4]Output!C23 -> 392.9985377 | D76: =[4]Output!D23 -> 114.7342919 | E76: =[4]Output!E23 -> 34.52485432 | F76: =[4]Output!F23 -> 507.947203 | K76: 507.947203
A77: Value of disposed assets, yr ending 2027 | B77: =[4]Output!B24 -> 5.627787907 | C77: =[4]Output!C24 -> 400.8585085 | D77: =[4]Output!D24 -> 117.0289778 | E77: =[4]Output!E24 -> 35.21535141 | F77: =[4]Output!F24 -> 518.1061471 | K77: 518.1061471
A78: Value of disposed assets, yr ending 2028 | B78: =[4]Output!B25 -> 5.740343665 | C78: =[4]Output!C25 -> 408.8756787 | D78: =[4]Output!D25 -> 119.3695573 | E78: =[4]Output!E25 -> 35.91965843 | F78: =[4]Output!F25 -> 528.46827 | K78: 528.46827
A79: Other regulated income
A80: Other regulated income, yr ending 2023 | B80: =[4]Output!B28 -> 48.35930118 | C80: =[4]Output!C28 -> 614.3067864 | D80: =[4]Output!D28 -> -106.0844096 | E80: =[4]Output!E28 -> 276.6205741 | K80: 0
A81: Other regulated income, yr ending 2024 | B81: =[4]Output!B29 -> 49.47156511 | C81: =[4]Output!C29 -> 627.8215357 | D81: =[4]Output!D29 -> -108.524351 | E81: =[4]Output!E29 -> 282.7062267 | K81: 0
A82: Other regulated income, yr ending 2025 | B82: =[4]Output!B30 -> 50.46099641 | C82: =[4]Output!C30 -> 640.3779664 | D82: =[4]Output!D30 -> -110.694838 | E82: =[4]Output!E30 -> 288.3603512 | K82: 0
A83: Other regulated income, yr ending 2026 | B83: =[4]Output!B31 -> 51.47021634 | C83: =[4]Output!C31 -> 653.1855257 | D83: =[4]Output!D31 -> -112.9087348 | E83: =[4]Output!E31 -> 294.1275583 | K83: 0
A84: Other regulated income, yr ending 2027 | B84: =[4]Output!B32 -> 52.49962066 | C84: =[4]Output!C32 -> 666.2492362 | D84: =[4]Output!D32 -> -115.1669095 | E84: =[4]Output!E32 -> 300.0101094 | K84: 0
A85: Other regulated income, yr ending 2028 | B85: =[4]Output!B33 -> 53.54961308 | C85: =[4]Output!C33 -> 679.5742209 | D85: =[4]Output!D33 -> -117.4702477 | E85: =[4]Output!E33 -> 306.0103116 | K85: 0

Sheet GPB data
A1: GPB data | B1: Values, not time series | C1: Early base year | D1: Standard base year | E1: Gap year | F1: 1st BBAR year | G1: 2nd BBAR year | H1: 3rd BBAR year | I1: 4th BBAR year | J1: 5th BBAR year
A2: Data from the Inputs sheet that relates to the selected supplier. The supplier's name is user-selected in cell C3 on the Inputs sheet. | C2: =TEXT(EOMONTH($B$17+1,-25)+1,"dd.mm.yy") & " to " & TEXT(EOMONTH($B$17,-12),"dd.mm.yy") -> 01.10.19 to 30.09.20 | D2: =TEXT(EOMONTH($B$17+1,-13)+1,"dd.mm.yy") & " to " & TEXT(EOMONTH($B$17,0),"dd.mm.yy") -> 01.10.20 to 30.09.21 | E2: =TEXT(EOMONTH($B$17+1,-1)+1,"dd.mm.yy") & " to " & TEXT(EOMONTH($B$17,12),"dd.mm.yy") -> 01.10.21 to 30.09.22 | F2: =TEXT(EOMONTH($B$17+1,11)+1,"dd.mm.yy") & " to " & TEXT(EOMONTH($B$17,24),"dd.mm.yy") -> 01.10.22 to 30.09.23 | G2: =TEXT(EOMONTH($B$17+1,23)+1,"dd.mm.yy") & " to " & TEXT(EOMONTH($B$17,36),"dd.mm.yy") -> 01.10.23 to 30.09.24 | H2: =TEXT(EOMONTH($B$17+1,35)+1,"dd.mm.yy") & " to " & TEXT(EOMONTH($B$17,48),"dd.mm.yy") -> 01.10.24 to 30.09.25 | I2: =TEXT(EOMONTH($B$17+1,47)+1,"dd.mm.yy") & " to " & TEXT(EOMONTH($B$17,60),"dd.mm.yy") -> 01.10.25 to 30.09.26 | J2: =TEXT(EOMONTH($B$17+1,59)+1,"dd.mm.yy") & " to " & TEXT(EOMONTH($B$17,72),"dd.mm.yy") -> 01.10.26 to 30.09.27
A3: Supplier | J3: =GPB_name -> First Gas transmission
A4: Supplier number | C4: =Inputs_finmod!C4 -> 5
A5: General data
A6: Non business-specific single inputs
A7: =Inputs_finmod!A15 -> Vanilla WACC (67th percentile) | B7: =Inputs_finmod!B15 -> 0.0614
A8: =Inputs_finmod!A16 -> Cost of debt | B8: =Inputs_finmod!B16 -> 0.0404
A9: =Inputs_finmod!A17 -> Leverage | B9: =Inputs_finmod!B17 -> 0.42
A10: =Inputs_finmod!A18 -> Remaining asset life for additional assets before adjustment | B10: =Inputs_finmod!B18 -> 45 | C10: years
A11: =Inputs_finmod!A19 -> Industry-wide X factor | B11: =Inputs_finmod!B19 -> 0
A12: =Inputs_finmod!A12 -> Days from mid-year to year-end | B12: =Inputs_finmod!B12 -> 182 | C12: days
A13: =Inputs_finmod!A13 -> Days from revenue date to year-end | B13: =Inputs_finmod!B13 -> 148 | C13: days
A14: =Inputs_finmod!A14 -> Day prior to start of the regulatory period | B14: =Inputs_finmod!B14 -> 2022-09-30
A15: General time-series data
A16: Early base year adopted? | B16: =Inputs_finmod!K23 -> FALSE
A17: Last day in the standard base year | B17: =Inputs_finmod!K24 -> 2021-09-30
A18: BBAR year ending in calendar year: | C18: =Inputs_finmod!C7 -> 2020 | D18: =Inputs_finmod!D7 -> 2021 | E18: =Inputs_finmod!E7 -> 2022 | F18: =Inputs_finmod!F7 -> 2023 | G18: =Inputs_finmod!G7 -> 2024 | H18: =Inputs_finmod!H7 -> 2025 | I18: =Inputs_finmod!I7 -> 2026 | J18: =Inputs_finmod!J7 -> 2027
A19: =Inputs_finmod!A8 -> Forecast changes in CPI used for revaluations, June year-ends | D19: =Inputs_finmod!D8 -> 0.03342884432 | E19: =Inputs_finmod!E8 -> 0.063 | F19: =Inputs_finmod!F8 -> 0.026 | G19: =Inputs_finmod!G8 -> 0.023 | H19: =Inputs_finmod!H8 -> 0.02 | I19: =Inputs_finmod!I8 -> 0.02 | J19: =Inputs_finmod!J8 -> 0.02
A20: =Inputs_finmod!A9 -> Forecast changes in CPI used for revaluations, September year-ends | D20: =Inputs_finmod!D9 -> 0.04933586338 | E20: =Inputs_finmod!E9 -> 0.05 | F20: =Inputs_finmod!F9 -> 0.025 | G20: =Inputs_finmod!G9 -> 0.022 | H20: =Inputs_finmod!H9 -> 0.02 | I20: =Inputs_finmod!I9 -> 0.02 | J20: =Inputs_finmod!J9 -> 0.02
A21: =Inputs_finmod!A10 -> Forecast changes in the CPI element of the price path | F21: =Inputs_finmod!F10 -> 0.03092122799 | G21: =Inputs_finmod!G10 -> 0.02324453846 | H21: =Inputs_finmod!H10 -> 0.02024799149 | I21: =Inputs_finmod!I10 -> 0.02 | J21: =Inputs_finmod!J10 -> 0.02
A22: =Inputs_finmod!A11 -> Corporate tax rate | C22: =Inputs_finmod!C11 -> 0.28 | D22: =Inputs_finmod!D11 -> 0.28 | E22: =Inputs_finmod!E11 -> 0.28 | F22: =Inputs_finmod!F11 -> 0.28 | G22: =Inputs_finmod!G11 -> 0.28 | H22: =Inputs_finmod!H11 -> 0.28 | I22: =Inputs_finmod!I11 -> 0.28 | J22: =Inputs_finmod!J11 -> 0.28
A23: Business-specific data
A24: BBAR year ending in calendar year: | D24: =D$18 -> 2021 | E24: =E$18 -> 2022 | F24: 2023 | G24: 2024 | H24: 2025 | I24: 2026 | J24: 2027
A25: ="Forecast changes in CPI used for revaluations, " & TEXT(B17, "mmm") & " year-ends" -> Forecast changes in CPI used for revaluations, Sep year-ends | D25: =IF(MONTH($B$17)=6,D19,D20) -> 0.04933586338 | E25: =IF(MONTH($B$17)=6,E19,E20) -> 0.05 | F25: 0.025 | G25: 0.022 | H25: 0.02 | I25: 0.02 | J25: 0.02
A26: Year-end timing, tax approach and form of control
A27: =Inputs_finmod!A25 -> Tax payable (payable) or deferred tax (deferred) | B27: =Inputs_finmod!K25 -> payable
A28: =Inputs_finmod!A26 -> Total revenue cap (TRC) or weighted avg price cap (WAPC) | B28: =Inputs_finmod!K26 -> TRC_FQ
A29: Adjustment factor (for accelerated depreciation) existing | B29: =Inputs_finmod!K27 -> 0.908944059
A30: Adjustment factor (for accelerated depreciation) additional | B30: =Inputs_finmod!K28 -> 0.908944059
C31: =C1 -> Early base year | D31: =D1 -> Standard base year
A32: =Inputs_finmod!A30 -> Opening RAB | B32: =Inputs_finmod!K30 -> 849688.0929 | C32: =IF(EarlyBaseYear,B32,"~") -> ~ | D32: =IF(EarlyBaseYear,"~",B32) -> 849688.0929
A33: =Inputs_finmod!A31 -> Total depreciation | B33: =Inputs_finmod!K31 -> 34267.21374 | C33: ~ | D33: =IF(EarlyBaseYear,"~",B33) -> 34267.21374
A34: =Inputs_finmod!A32 -> Closing RAB | B34: =Inputs_finmod!K32 -> 874464.5955 | C34: ~ | D34: 874464.5955
A35: =Inputs_finmod!A33 -> Opening RAB excluding revaluations | B35: =Inputs_finmod!K33 -> 0 | C35: ~ | D35: 0
A36: =Inputs_finmod!A34 -> Adjusted depreciation | B36: =Inputs_finmod!K34 -> 0 | C36: ~ | D36: 0
A37: =Inputs_finmod!A35 -> Tax depreciation | B37: =Inputs_finmod!K35 -> 22468.73376 | C37: ~ | D37: 22468.73376
A38: =Inputs_finmod!A36 -> Opening regulatory tax asset value | B38: =Inputs_finmod!K36 -> 205340.1339 | C38: ~ | D38: 205340.1339
A39: =Inputs_finmod!A38 -> Term credit spread differential allowance | B39: =IF(Inputs_finmod!K38>0,Inputs_finmod!K38,0) -> 1271.216537 | C39: ~ | D39: =IF(EarlyBaseYear,"~",B39) -> 1271.216537
A40: =Inputs_finmod!A39 -> Opening deferred tax balance | B40: =Inputs_finmod!K39 -> 0 | C40: ~ | D40: =IF(EarlyBaseYear,"~",B40) -> 0
A41: =Inputs_finmod!A37 -> Amortisation of initial differences in asset values | B41: =Inputs_finmod!K37 -> 0
A42: 2022 MAR from 2017 financial model | B42: =Inputs_finmod!K41 -> 131623.3864
A43: Alternative X factor (insert "blank" if no alternative) | B43: =Inputs_finmod!K42 -> -0.04856304031
A44: Operating expenditure
B45: =Inputs_finmod!K44 -> 0
A46: =Inputs_finmod!A45 -> Operating expenditure in year ending 2022 | B46: =Inputs_finmod!K45 -> 49431.44087
A47: =Inputs_finmod!A46 -> Operating expenditure in year ending 2023 | B47: =Inputs_finmod!K46 -> 53512.75174 | C47: 1st BBAR year
A48: =Inputs_finmod!A47 -> Operating expenditure in year ending 2024 | B48: =Inputs_finmod!K47 -> 55336.41136
A49: =Inputs_finmod!A48 -> Operating expenditure in year ending 2025 | B49: =Inputs_finmod!K48 -> 56654.08304
A50: =Inputs_finmod!A49 -> Operating expenditure in year ending 2026 | B50: =Inputs_finmod!K49 -> 58465.28188
A51: =Inputs_finmod!A50 -> Operating expenditure in year ending 2027 | B51: =Inputs_finmod!K50 -> 59738.56089
B52: =Inputs_finmod!K51 -> 0
A53: Operating expenditure in each year | D53: =TRANSPOSE(B45:B51) -> 0 | E53: 49431.44087 | F53: 53512.75174 | G53: 55336.41136 | H53: 56654.08304 | I53: 58465.28188 | J53: 59738.56089
A54: Constant price revenue growth
A55: =Inputs_finmod!A53 -> Constant price revenue growth in year ending 2022 | B55: =Inputs_finmod!K53 -> 0
A56: =Inputs_finmod!A54 -> Constant price revenue growth in year ending 2023 | B56: =Inputs_finmod!K54 -> 0 | C56: 1st pricing year
A57: =Inputs_finmod!A55 -> Constant price revenue growth in year ending 2024 | B57: =Inputs_finmod!K55 -> 0
A58: =Inputs_finmod!A56 -> Constant price revenue growth in year ending 2025 | B58: =Inputs_finmod!K56 -> 0
A59: =Inputs_finmod!A57 -> Constant price revenue growth in year ending 2026 | B59: =Inputs_finmod!K57 -> 0
A60: =Inputs_finmod!A58 -> Constant price revenue growth in year ending 2027 | B60: =Inputs_finmod!K58 -> 0
A61: Constant price revenue growth in each year | E61: =TRANSPOSE(B55:B60) -> 0 | F61: 0 | G61: 0 | H61: 0 | I61: 0 | J61: 0
A62: Value of commissioned assets
A63: =Inputs_finmod!A60 -> Value of commissioned assets, yr ending 2021 | B63: =Inputs_finmod!K60 -> 18812.79207
A64: =Inputs_finmod!A61 -> Value of commissioned assets, yr ending 2022 | B64: =Inputs_finmod!K61 -> 37106.20045
A65: =Inputs_finmod!A62 -> Value of commissioned assets, yr ending 2023 | B65: =Inputs_finmod!K62 -> 40302.49786 | C65: 1st BBAR year
A66: =Inputs_finmod!A63 -> Value of commissioned assets, yr ending 2024 | B66: =Inputs_finmod!K63 -> 47383.78588
A67: =Inputs_finmod!A64 -> Value of commissioned assets, yr ending 2025 | B67: =Inputs_finmod!K64 -> 40281.49669
A68: =Inputs_finmod!A65 -> Value of commissioned assets, yr ending 2026 | B68: =Inputs_finmod!K65 -> 42695.22192
A69: =Inputs_finmod!A66 -> Value of commissioned assets, yr ending 2027 | B69: =Inputs_finmod!K66 -> 45010.91881
A70: =Inputs_finmod!A67 -> Value of commissioned assets, yr ending 2028 | B70: =Inputs_finmod!K67 -> 0
A71: Value of commissioned assets in each year | D71: =TRANSPOSE(B63:B70) -> 18812.79207 | E71: 37106.20045 | F71: 40302.49786 | G71: 47383.78588 | H71: 40281.49669 | I71: 42695.22192 | J71: 45010.91881
A72: Disposed assets
A73: =Inputs_finmod!A70 -> Value of disposed assets, yr ending 2020 | B73: =Inputs_finmod!K70 -> 53.00725
A74: =Inputs_finmod!A71 -> Value of disposed assets, yr ending 2021 | B74: =Inputs_finmod!K71 -> 1634.348379
A75: =Inputs_finmod!A72 -> Value of disposed assets, yr ending 2022 | B75: =Inputs_finmod!K72 -> 466.0617575
A76: =Inputs_finmod!A73 -> Value of disposed assets, yr ending 2023 | B76: =Inputs_finmod!K73 -> 477.7133014 | C76: 1st BBAR year
A77: =Inputs_finmod!A74 -> Value of disposed assets, yr ending 2024 | B77: =Inputs_finmod!K74 -> 488.2229941
A78: =Inputs_finmod!A75 -> Value of disposed assets, yr ending 2025 | B78: =Inputs_finmod!K75 -> 497.987454
A79: =Inputs_finmod!A76 -> Value of disposed assets, yr ending 2026 | B79: =Inputs_finmod!K76 -> 507.947203
A80: =Inputs_finmod!A77 -> Value of disposed assets, yr ending 2027 | B80: =Inputs_finmod!K77 -> 518.1061471
A81: =Inputs_finmod!A78 -> Value of disposed assets, yr ending 2028 | B81: =Inputs_finmod!K78 -> 528.46827
A82: Value of disposed assets in each year | C82: =TRANSPOSE(B73:B80) -> 53.00725 | D82: 1634.348379 | E82: 466.0617575 | F82: 477.7133014 | G82: 488.2229941 | H82: 497.987454 | I82: 507.947203 | J82: 518.1061471
A83: Other regulated income
A84: =Inputs_finmod!A80 -> Other regulated income, yr ending 2023 | B84: =Inputs_finmod!K80 -> 0 | C84: 1st BBAR year
A85: =Inputs_finmod!A81 -> Other regulated income, yr ending 2024 | B85: =Inputs_finmod!K81 -> 0
A86: =Inputs_finmod!A82 -> Other regulated income, yr ending 2025 | B86: =Inputs_finmod!K82 -> 0
A87: =Inputs_finmod!A83 -> Other regulated income, yr ending 2026 | B87: =Inputs_finmod!K83 -> 0
A88: =Inputs_finmod!A84 -> Other regulated income, yr ending 2027 | B88: =Inputs_finmod!K84 -> 0
A89: =Inputs_finmod!A85 -> Other regulated income, yr ending 2028 | B89: =Inputs_finmod!K85 -> 0
A90: Other regulated income in each year | F90: =TRANSPOSE(B84:B89) -> 0 | G90: 0 | H90: 0 | I90: 0 | J90: 0

Sheet Timing
A1: Timing | F1: 1st BBAR year | G1: 2nd BBAR year | H1: 3rd BBAR year | I1: 4th BBAR year | J1: 5th BBAR year
A2: Calculations related to timing | J2: =GPB_name -> First Gas transmission
A3: Inputs
A4: Days from mid-year to year-end | C4: ='GPB data'!B12 -> 182
A5: Days from revenue date to year-end | C5: ='GPB data'!B13 -> 148
A6: Vanilla WACC (67th percentile) | C6: =WACC -> 0.0614
A7: ='GPB data'!A17 -> Last day in the standard base year | C7: ='GPB data'!B17 -> 2021-09-30
A8: ='GPB data'!A14 -> Day prior to start of the regulatory period | C8: ='GPB data'!B14 -> 2022-09-30
A9: Calculations
A10: Year-end of 1st BBAR year | C10: =EOMONTH(C7,24) -> 2023-09-30
A11: TFrev for MAR calculations | C11: =(1+$C$6)^(C5/365) -> 1.024456298 | D11: Intra-year timing factor: discount from revenue date to end of year values
A12: Number of days between mid-period and revenue date | C12: =C4-C5 -> 34
F13: 1st BBAR year | G13: 2nd BBAR year | H13: 3rd BBAR year | I13: 4th BBAR year | J13: 5th BBAR year
A14: BBAR year ending in calendar year: | F14: ='GPB data'!F18 -> 2023 | G14: ='GPB data'!G18 -> 2024 | H14: ='GPB data'!H18 -> 2025 | I14: ='GPB data'!I18 -> 2026 | J14: ='GPB data'!J18 -> 2027
A15: Date of the end of the BBAR year | F15: =EOMONTH(C$7,24) -> 2023-09-30 | G15: =EOMONTH(F15,12) -> 2024-09-30 | H15: 2025-09-30 | I15: 2026-09-30 | J15: 2027-09-30
A16: Date of the start of the BBAR year | F16: =EOMONTH(C$7,12) -> 2022-09-30 | G16: 2023-09-30 | H16: 2024-09-30 | I16: 2025-09-30 | J16: 2026-09-30
A17: Number of days in the BBAR year | F17: =F15-F16 -> 365 | G17: =G15-G16 -> 366 | H17: =H15-H16 -> 365 | I17: =I15-I16 -> 365 | J17: =J15-J16 -> 365
A18: Date of the end of the BBAR period | F18: =EOMONTH(C7,24) -> 2023-09-30 | G18: =EOMONTH(F18,12) -> 2024-09-30 | H18: =EOMONTH(G18,12) -> 2025-09-30 | I18: =EOMONTH(H18,12) -> 2026-09-30 | J18: =EOMONTH(C8,48) -> 2026-09-30
A19: Date of the start of the BBAR period | F19: =C8 -> 2022-09-30 | G19: =F18 -> 2023-09-30 | H19: =G18 -> 2024-09-30 | I19: =H18 -> 2025-09-30 | J19: =I18 -> 2026-09-30
A20: Number of days in the BBAR period | F20: =F18-F19 -> 365 | G20: =G18-G19 -> 366 | H20: =H18-H19 -> 365 | I20: =I18-I19 -> 365 | J20: =J18-J19 -> 0
A21: Number of days in the latter half of the BBAR period | F21: =ROUNDDOWN(F20/2,0) -> 182 | G21: =ROUNDDOWN(G20/2,0) -> 183 | H21: =ROUNDDOWN(H20/2,0) -> 182 | I21: =ROUNDDOWN(I20/2,0) -> 182 | J21: =ROUNDDOWN(J20/2,0) -> 0
A22: Mid period date | F22: =F18-F21 -> 2023-04-01 | G22: =G18-G21 -> 2024-03-31 | H22: =H18-H21 -> 2025-04-01 | I22: =I18-I21 -> 2026-04-01 | J22: =J18-J21 -> 2026-09-30
A23: Tax date | F23: =F18-F21 -> 2023-04-01 | G23: =G18-G21 -> 2024-03-31 | H23: =H18-H21 -> 2025-04-01 | I23: =I18-I21 -> 2026-04-01 | J23: =J18-J21 -> 2026-09-30
A24: Number days between tax date and period-end | F24: =F18-F23 -> 182 | G24: =G18-G23 -> 183 | H24: =H18-H23 -> 182 | I24: =I18-I23 -> 182 | J24: =J18-J23 -> 0
A25: Number days between revenue date and period-end | F25: =F21-$C$12 -> 148 | G25: =G21-$C$12 -> 149 | H25: =H21-$C$12 -> 148 | I25: =I21-$C$12 -> 148 | J25: =J21-$C$12 -> -34
A26: Outputs
A27: TFrev for MAR calculations | C27: =$C$11 -> 1.024456298
A28: Number of days in the BBAR period | F28: =F20 -> 365 | G28: =G20 -> 366 | H28: =H20 -> 365 | I28: =I20 -> 365 | J28: =J20 -> 0
A29: Proportion of building blocks year that is in PV period | F29: =F28/F17 -> 1 | G29: =G28/G17 -> 1 | H29: =H28/H17 -> 1 | I29: =I28/I17 -> 1 | J29: =J28/J17 -> 0
A30: TFmid | F30: =(1+$C$6)^(F21/F17) -> 1.030158596 | G30: =(1+$C$6)^(G21/G17) -> 1.03024269 | H30: =(1+$C$6)^(H21/H17) -> 1.030158596 | I30: =(1+$C$6)^(I21/I17) -> 1.030158596 | J30: =(1+$C$6)^(J21/J17) -> 1
A31: TFtax | F31: =(1+$C$6)^(F24/F17) -> 1.030158596 | G31: =(1+$C$6)^(G24/G17) -> 1.03024269 | H31: =(1+$C$6)^(H24/H17) -> 1.030158596 | I31: =(1+$C$6)^(I24/I17) -> 1.030158596 | J31: =(1+$C$6)^(J24/J17) -> 1
A32: TFrev | F32: =(1+$C$6)^(F25/F17) -> 1.024456298 | G32: =(1+$C$6)^(G25/G17) -> 1.024555464 | H32: =(1+$C$6)^(H25/H17) -> 1.024456298 | I32: =(1+$C$6)^(I25/I17) -> 1.024456298 | J32: =(1+$C$6)^(J25/J17) -> 0.9944646401

Sheet RAB
A1: Regulatory asset base | B1: Values, not time series | C1: Early base year | D1: Standard base year | E1: Gap year | F1: 1st BBAR year | G1: 2nd BBAR year | H1: 3rd BBAR year | I1: 4th BBAR year | J1: 5th BBAR year
A2: Calculations relating to RAB values for full years
A3: Inputs | J3: =GPB_name -> First Gas transmission
A4: BBAR year ending in calendar year: | C4: ='GPB data'!C18 -> 2020 | D4: ='GPB data'!D18 -> 2021 | E4: ='GPB data'!E18 -> 2022 | F4: ='GPB data'!F18 -> 2023 | G4: ='GPB data'!G18 -> 2024 | H4: ='GPB data'!H18 -> 2025 | I4: ='GPB data'!I18 -> 2026 | J4: ='GPB data'!J18 -> 2027
A5: Opening RAB | C5: ='GPB data'!C32 -> ~ | D5: ='GPB data'!D32 -> 849688.0929
A6: Total depreciation | C6: ='GPB data'!C33 -> ~ | D6: ='GPB data'!D33 -> 34267.21374
A7: Closing RAB | C7: ='GPB data'!C34 -> ~ | D7: ='GPB data'!D34 -> 874464.5955
A8: Value of disposed assets | D8: ='GPB data'!D82 -> 1634.348379 | E8: ='GPB data'!E82 -> 466.0617575 | F8: ='GPB data'!F82 -> 477.7133014 | G8: ='GPB data'!G82 -> 488.2229941 | H8: ='GPB data'!H82 -> 497.987454 | I8: ='GPB data'!I82 -> 507.947203 | J8: ='GPB data'!J82 -> 518.1061471
A9: Value of commissioned assets | D9: ='GPB data'!D71 -> 18812.79207 | E9: ='GPB data'!E71 -> 37106.20045 | F9: ='GPB data'!F71 -> 40302.49786 | G9: ='GPB data'!G71 -> 47383.78588 | H9: ='GPB data'!H71 -> 40281.49669 | I9: ='GPB data'!I71 -> 42695.22192 | J9: ='GPB data'!J71 -> 45010.91881
A10: Remaining life for additional assets before adjustment factor | B10: ='GPB data'!B10 -> 45
A11: Forecast changes in CPI used for revaluations | D11: ='GPB data'!D25 -> 0.04933586338 | E11: ='GPB data'!E25 -> 0.05 | F11: ='GPB data'!F25 -> 0.025 | G11: ='GPB data'!G25 -> 0.022 | H11: ='GPB data'!H25 -> 0.02 | I11: ='GPB data'!I25 -> 0.02 | J11: ='GPB data'!J25 -> 0.02
A12: Adjustment factor (for accelerated depreciation) existing | B12: ='GPB data'!B29 -> 0.908944059
A13: Adjustment factor (for accelerated depreciation) additional | B13: ='GPB data'!B30 -> 0.908944059
A14: Remaining life for additional assets after adjustment | B14: =B10*B13 -> 40.90248266
A15: Proportion of building blocks year that is in PV period | F15: =Timing!F29 -> 1 | G15: =Timing!G29 -> 1 | H15: =Timing!H29 -> 1 | I15: =Timing!I29 -> 1 | J15: =Timing!J29 -> 0
A17: Calculations
A18: Roll forward of existing assets | C18: Early base year | D18: Base year | E18: Gap year | F18: First year of reg period
A19: BBAR year ending in calendar year: | C19: =C$4 -> 2020 | D19: 2021 | E19: 2022 | F19: 2023 | G19: 2024 | H19: 2025 | I19: 2026 | J19: 2027
A20: Remaining asset life for existing assets | C20: =IF(EarlyBaseYear,100%*C5/C6,"~") -> ~ | D20: =IF(EarlyBaseYear,C20-1,100%*D5/D6) -> 24.79594925 | E20: =D20-1 -> 23.79594925 | F20: =IF(EarlyBaseYear,B12*C5/C6-3,B12*D5/D6-2) -> 20.53813076 | G20: =F20-1 -> 19.53813076 | H20: =G20-1 -> 18.53813076 | I20: =H20-1 -> 17.53813076 | J20: =I20-1 -> 16.53813076
A21: Opening RAB value for existing assets | C21: =IF(EarlyBaseYear,C5,"~") -> ~ | D21: =IF(EarlyBaseYear,C25,D5) -> 849688.0929 | E21: =D25 -> 874464.5955 | F21: 880906.2727 | G21: 859525.9924 | H21: 833925.4582 | I21: 805095.008 | J21: 774757.2945
A22: Value of disposed assets | D22: =D8 -> 1634.348379 | E22: 466.0617575 | F22: 477.7133014 | G22: 488.2229941 | H22: 497.987454 | I22: 507.947203 | J22: 518.1061471
A23: Revaluation for existing assets | D23: =(D21*0.999-D22)*D11 -> 41797.54358 | E23: 43656.20346 | F23: 21988.69133 | G23: 18879.92135 | H23: 16651.87091 | I23: 16075.63932 | J23: 15469.28862
A24: Depreciation for existing assets | D24: =D21/D20 -> 34267.21374 | E24: 36748.46446 | F24: 42891.25836 | G24: 43992.23256 | H24: 44984.33358 | I24: 45905.40571 | J24: 46846.72685
A25: Closing RAB value for existing assets | C25: =IF(EarlyBaseYear,C7,"~") -> ~ | D25: =IF(EarlyBaseYear,D21-D22+D23-D24,D7) -> 874464.5955 | E25: =E21-E22+E23-E24 -> 880906.2727 | F25: 859525.9924 | G25: 833925.4582 | H25: 805095.008 | I25: 774757.2945 | J25: 742861.7501
A26: Individual roll forward of additional assets
A27: BBAR year ending in calendar year: | D27: =D$4 -> 2021 | E27: 2022 | F27: 2023 | G27: 2024 | H27: 2025 | I27: 2026 | J27: 2027
A28: Value of commissioned assets | D28: =D$9 -> 18812.79207 | E28: =E$9 -> 37106.20045 | F28: 40302.49786 | G28: 47383.78588 | H28: 40281.49669 | I28: 42695.22192 | J28: 45010.91881
A29: =" Assets commissioned in yr ending " & C30 -> Assets commissioned in yr ending 2021
A30: Year asset is added during modelling period | C30: =D27 -> 2021
A31: Opening RAB | D31: 0 | E31: =D36 -> 0 | F31: 0 | G31: 0 | H31: 0 | I31: 0 | J31: 0
A32: Years of remaining life | D32: =B10 -> 45 | E32: =D32-1 -> 44 | F32: =(E32-1)*$B$13 -> 39.08459454 | G32: 38.08459454 | H32: 37.08459454 | I32: 36.08459454 | J32: 35.08459454
A33: Revaluation of assets | D33: =D31*D$11 -> 0 | E33: 0 | F33: 0 | G33: 0 | H33: 0 | I33: 0 | J33: 0
A34: Depreciation of assets | D34: =D31/D32 -> 0 | E34: 0 | F34: 0 | G34: 0 | H34: 0 | I34: 0 | J34: 0
A35: ="RAB of asset commissioned in year ending " & C30 -> RAB of asset commissioned in year ending 2021 | D35: =IF(EarlyBaseYear,D$28,0) -> 0 | E35: =IF($C30=E$27,E$28,0) -> 0 | F35: 0 | G35: 0 | H35: 0 | I35: 0 | J35: 0
A36: Closing RAB | D36: =D31+D33-D34+D35 -> 0 | E36: 0 | F36: 0 | G36: 0 | H36: 0 | I36: 0 | J36: 0
A37: =" Assets commissioned in yr ending " & C38 -> Assets commissioned in yr ending 2022
A38: Year asset is added during modelling period | C38: =E27 -> 2022
A39: Opening RAB | D39: 0 | E39: =D44 -> 0 | F39: 37106.20045 | G39: 37106.05057 | H39: 36970.78884 | I39: 36737.12366 | J39: 36478.79747
A40: Years of remaining life | D40: =$B$10+$C38-D$27 -> 46 | E40: =D40-1 -> 45 | F40: =(E40-1)*$B$13 -> 39.9935386 | G40: 38.9935386 | H40: 37.9935386 | I40: 36.9935386 | J40: 35.9935386
A41: Revaluation of assets | D41: =D39*D$11 -> 0 | E41: 0 | F41: 927.6550112 | G41: 816.3331126 | H41: 739.4157767 | I41: 734.7424731 | J41: 729.5759495
A42: Depreciation of assets | D42: =D39/D40 -> 0 | E42: 0 | F42: 927.8048842 | G42: 951.5948516 | H42: 973.0809554 | I42: 993.0686561 | J42: 1013.481833
A43: ="RAB of asset commissioned in year ending " & C38 -> RAB of asset commissioned in year ending 2022 | D43: =IF($C38=D$27,D$28,0) -> 0 | E43: 37106.20045 | F43: 0 | G43: 0 | H43: 0 | I43: 0 | J43: 0
A44: Closing RAB | D44: =D39+D41-D42+D43 -> 0 | E44: 37106.20045 | F44: 37106.05057 | G44: 36970.78884 | H44: 36737.12366 | I44: 36478.79747 | J44: 36194.89159
A45: =" Assets commissioned in yr ending " & C46 -> Assets commissioned in yr ending 2023
A46: Year asset is added during modelling period | C46: =F27 -> 2023
A47: Opening RAB | D47: 0 | E47: =D52 -> 0 | F47: 0 | G47: 40302.49786 | H47: 40179.12799 | I47: 39949.894 | J47: 39694.87401
A48: Years of remaining life | D48: =$B$10+$C46-D$27 -> 47 | E48: =D48-1 -> 46 | F48: =(E48-1)*$B$13 -> 40.90248266 | G48: 39.90248266 | H48: 38.90248266 | I48: 37.90248266 | J48: 36.90248266
A49: Revaluation of assets | D49: =D47*D$11 -> 0 | E49: 0 | F49: 0 | G49: 886.6549528 | H49: 803.5825598 | I49: 798.9978799 | J49: 793.8974801
A50: Depreciation of assets | D50: =D47/D48 -> 0 | E50: 0 | F50: 0 | G50: 1010.02482 | H50: 1032.816552 | I50: 1054.017869 | J50: 1075.669471
A51: ="RAB of asset commissioned in year ending " & C46 -> RAB of asset commissioned in year ending 2023 | D51: =IF($C46=D$27,D$28,0) -> 0 | E51: 0 | F51: 40302.49786 | G51: 0 | H51: 0 | I51: 0 | J51: 0
A52: Closing RAB | D52: =D47+D49-D50+D51 -> 0 | E52: 0 | F52: 40302.49786 | G52: 40179.12799 | H52: 39949.894 | I52: 39694.87401 | J52: 39413.10202
A53: =" Assets commissioned in yr ending " & C54 -> Assets commissioned in yr ending 2024
A54: Year asset is added during modelling period | C54: =G27 -> 2024
A55: Opening RAB | D55: 0 | E55: =D60 -> 0 | F55: 0 | G55: 0 | H55: 47383.78588 | I55: 47141.25593 | J55: 46869.45794
A56: Years of remaining life | D56: =$B$10+$C54-D$27 -> 48 | E56: =D56-1 -> 47 | F56: =(E56-1)*$B$13 -> 41.81142671 | G56: 40.81142671 | H56: 39.81142671 | I56: 38.81142671 | J56: 37.81142671
A57: Revaluation of assets | D57: =D55*D$11 -> 0 | E57: 0 | F57: 0 | G57: 0 | H57: 947.6757177 | I57: 942.8251186 | J57: 937.3891587
A58: Depreciation of assets | D58: =D55/D56 -> 0 | E58: 0 | F58: 0 | G58: 0 | H58: 1190.205672 | I58: 1214.623113 | J58: 1239.558039
A59: ="RAB of asset commissioned in year ending " & C54 -> RAB of asset commissioned in year ending 2024 | D59: =IF($C54=D$27,D$28,0) -> 0 | E59: 0 | F59: 0 | G59: 47383.78588 | H59: 0 | I59: 0 | J59: 0
A60: Closing RAB | D60: =D55+D57-D58+D59 -> 0 | E60: 0 | F60: 0 | G60: 47383.78588 | H60: 47141.25593 | I60: 46869.45794 | J60: 46567.28906
A61: =" Assets commissioned in yr ending " & C62 -> Assets commissioned in yr ending 2025
A62: Year asset is added during modelling period | C62: =H27 -> 2025
A63: Opening RAB | D63: 0 | E63: =D68 -> 0 | F63: 0 | G63: 0 | H63: 0 | I63: 40281.49669 | J63: 40072.99972
A64: Years of remaining life | D64: =$B$10+$C62-D$27 -> 49 | E64: =D64-1 -> 48 | F64: =(E64-1)*$B$13 -> 42.72037077 | G64: 41.72037077 | H64: 40.72037077 | I64: 39.72037077 | J64: 38.72037077
A65: Revaluation of assets | D65: =D63*D$11 -> 0 | E65: 0 | F65: 0 | G65: 0 | H65: 0 | I65: 805.6299338 | J65: 801.4599944
A66: Depreciation of assets | D66: =D63/D64 -> 0 | E66: 0 | F66: 0 | G66: 0 | H66: 0 | I66: 1014.126905 | J66: 1034.933264
A67: ="RAB of asset commissioned in year ending " & C62 -> RAB of asset commissioned in year ending 2025 | D67: =IF($C62=D$27,D$28,0) -> 0 | E67: 0 | F67: 0 | G67: 0 | H67: 40281.49669 | I67: 0 | J67: 0
A68: Closing RAB | D68: =D63+D65-D66+D67 -> 0 | E68: 0 | F68: 0 | G68: 0 | H68: 40281.49669 | I68: 40072.99972 | J68: 39839.52645
A69: =" Assets commissioned in yr ending " & C70 -> Assets commissioned in yr ending 2026
A70: Year asset is added during modelling period | C70: =I27 -> 2026
A71: Opening RAB | D71: 0 | E71: =D76 -> 0 | F71: 0 | G71: 0 | H71: 0 | I71: 0 | J71: 42695.22192
A72: Years of remaining life | D72: =$B$10+$C70-D$27 -> 50 | E72: =D72-1 -> 49 | F72: =(E72-1)*$B$13 -> 43.62931483 | G72: 42.62931483 | H72: 41.62931483 | I72: 40.62931483 | J72: 39.62931483
A73: Revaluation of assets | D73: =D71*D$11 -> 0 | E73: 0 | F73: 0 | G73: 0 | H73: 0 | I73: 0 | J73: 853.9044383
A74: Depreciation of assets | D74: =D71/D72 -> 0 | E74: 0 | F74: 0 | G74: 0 | H74: 0 | I74: 0 | J74: 1077.364625
A75: ="RAB of asset commissioned in year ending " & C70 -> RAB of asset commissioned in year ending 2026 | D75: =IF($C70=D$27,D$28,0) -> 0 | E75: 0 | F75: 0 | G75: 0 | H75: 0 | I75: 42695.22192 | J75: 0
A76: Closing RAB | D76: =D71+D73-D74+D75 -> 0 | E76: 0 | F76: 0 | G76: 0 | H76: 0 | I76: 42695.22192 | J76: 42471.76173
A77: =" Assets commissioned in yr ending " & C78 -> Assets commissioned in yr ending 2027
A78: Year asset is added during modelling period | C78: =J27 -> 2027
A79: Opening RAB | D79: 0 | E79: =D84 -> 0 | F79: 0 | G79: 0 | H79: 0 | I79: 0 | J79: 0
A80: Years of remaining life | D80: =$B$10+$C78-D$27 -> 51 | E80: =D80-1 -> 50 | F80: =(E80-1)*$B$13 -> 44.53825889 | G80: 43.53825889 | H80: 42.53825889 | I80: 41.53825889 | J80: 40.53825889
A81: Revaluation of assets | D81: =D79*D$11 -> 0 | E81: 0 | F81: 0 | G81: 0 | H81: 0 | I81: 0 | J81: 0
A82: Depreciation of assets | D82: =D79/D80 -> 0 | E82: 0 | F82: 0 | G82: 0 | H82: 0 | I82: 0 | J82: 0
A83: ="RAB of asset commissioned in year ending " & C78 -> RAB of asset commissioned in year ending 2027 | D83: =IF($C78=D$27,D$28,0) -> 0 | E83: 0 | F83: 0 | G83: 0 | H83: 0 | I83: 0 | J83: 45010.91881
A84: Closing RAB | D84: =D79+D81-D82+D83 -> 0 | E84: 0 | F84: 0 | G84: 0 | H84: 0 | I84: 0 | J84: 45010.91881
A85: Aggregate roll forward of additional assets
A86: Opening RAB of commissioned additional assets | D86: =D31+D39+D47+D55+D63+D71+D79 -> 0 | E86: =D89 -> 0 | F86: 37106.20045 | G86: 77408.54843 | H86: 124533.7027 | I86: 164109.7703 | J86: 205811.3511
A87: Revaluation of commissioned additional assets | D87: =D33+D41+D49+D57+D65+D73+D81 -> 0 | E87: 0 | F87: 927.6550112 | G87: 1702.988065 | H87: 2490.674054 | I87: 3282.195405 | J87: 4116.227021
A88: Depreciation of commissioned additional assets | D88: 0 | E88: 0 | F88: 927.8048842 | G88: 1961.619671 | H88: 3196.103179 | I88: 4275.836543 | J88: 5441.007232
A89: Closing RAB of commissioned additional assets | D89: =D36+D44+D52+D60+D68+D76+D84 -> 0 | E89: 37106.20045 | F89: 77408.54843 | G89: 124533.7027 | H89: 164109.7703 | I89: 205811.3511 | J89: 249497.4896
A90: Combined roll forward of existing and additional assets
A91: BBAR year ending in calendar year: | D91: =D$4 -> 2021 | E91: 2022 | F91: 2023 | G91: 2024 | H91: 2025 | I91: 2026 | J91: 2027
A92: Aggregate opening RAB value | D92: =D21+D86 -> 849688.0929 | E92: 874464.5955 | F92: 918012.4732 | G92: 936934.5408 | H92: 958459.1609 | I92: 969204.7783 | J92: 980568.6455
A93: Total revaluation | D93: =D23+D87 -> 41797.54358 | E93: =E23+E87 -> 43656.20346 | F93: 22916.34634 | G93: 20582.90942 | H93: 19142.54496 | I93: 19357.83472 | J93: 19585.51564
A94: Total depreciation | D94: 34267.21374 | E94: 36748.46446 | F94: 43819.06324 | G94: 45953.85224 | H94: 48180.43676 | I94: 50181.24225 | J94: 52287.73408
A95: Aggregate closing RAB value | E95: =E25+E89 -> 918012.4732 | F95: 936934.5408 | G95: 958459.1609 | H95: 969204.7783 | I95: 980568.6455 | J95: 992359.2397
A96: Check that closing value is as expected. Should = 0 | E96: =E92+E28+E93-E94-E22-E95 -> 0 | F96: 0 | G96: 0 | H96: 0 | I96: 0 | J96: 0
A97: Sum of depreciation less sum of revals, 2023 - 2027 | B97: =(F94-F93)*F15+(G94-G93)+(H94-H93)+(I94-I93)+(J94-J93)*J15 -> 106134.959
A98: Outputs
A99: BBAR year ending in calendar year: | C99: =C$4 -> 2020 | D99: 2021 | E99: 2022 | F99: 2023 | G99: 2024 | H99: 2025 | I99: 2026 | J99: 2027
A100: Value of commissioned assets
A101: Remaining asset life for existing assets | D101: =D20 -> 24.79594925 | E101: 23.79594925 | F101: 20.53813076 | G101: 19.53813076 | H101: 18.53813076 | I101: 17.53813076 | J101: 16.53813076
A102: Total depreciation | D102: =D94 -> 34267.21374 | E102: 36748.46446 | F102: 43819.06324 | G102: 45953.85224 | H102: 48180.43676 | I102: 50181.24225 | J102: 52287.73408
A103: Aggregate opening RAB value | C103: =C21 -> ~ | D103: =D92 -> 849688.0929 | E103: 874464.5955 | F103: 918012.4732 | G103: 936934.5408 | H103: 958459.1609 | I103: 969204.7783 | J103: 980568.6455
A104: Total revaluation | F104: =F93 -> 22916.34634 | G104: =G93 -> 20582.90942 | H104: =H93 -> 19142.54496 | I104: =I93 -> 19357.83472 | J104: =J93 -> 19585.51564
A105: Closing RAB value, 6th BBAR year | B105: =J95 -> 992359.2397

Sheet Tax
A1: Tax calculations | B1: Values, not time series | C1: Early base year | D1: Standard base year | E1: Gap year | F1: 1st BBAR year | G1: 2nd BBAR year | H1: 3rd BBAR year | I1: 4th BBAR year | J1: 5th BBAR year
A2: Calculation of adjusted depreciation, tax depreciation, deferred tax, notional deductible interest and regulatory tax adjustments.
A3: Inputs | J3: =GPB_name -> First Gas transmission
A4: BBAR year ending in calendar year: | C4: ='GPB data'!C18 -> 2020 | D4: ='GPB data'!D18 -> 2021 | E4: ='GPB data'!E18 -> 2022 | F4: ='GPB data'!F18 -> 2023 | G4: ='GPB data'!G18 -> 2024 | H4: ='GPB data'!H18 -> 2025 | I4: ='GPB data'!I18 -> 2026 | J4: ='GPB data'!J18 -> 2027
A5: Corporate tax rate | C5: ='GPB data'!C22 -> 0.28 | D5: ='GPB data'!D22 -> 0.28 | E5: ='GPB data'!E22 -> 0.28 | F5: ='GPB data'!F22 -> 0.28 | G5: ='GPB data'!G22 -> 0.28 | H5: ='GPB data'!H22 -> 0.28 | I5: ='GPB data'!I22 -> 0.28 | J5: ='GPB data'!J22 -> 0.28
A6: Value of commissioned assets | C6: ='GPB data'!C71 -> 0 | D6: ='GPB data'!D71 -> 18812.79207 | E6: ='GPB data'!E71 -> 37106.20045 | F6: ='GPB data'!F71 -> 40302.49786 | G6: ='GPB data'!G71 -> 47383.78588 | H6: ='GPB data'!H71 -> 40281.49669 | I6: ='GPB data'!I71 -> 42695.22192 | J6: ='GPB data'!J71 -> 45010.91881
A7: Remaining life for additional assets | D7: =RAB!D32 -> 45 | E7: =RAB!E32 -> 44 | F7: =RAB!F32 -> 39.08459454 | G7: =RAB!G32 -> 38.08459454 | H7: =RAB!H32 -> 37.08459454 | I7: =RAB!I32 -> 36.08459454 | J7: =RAB!J32 -> 35.08459454
A8: Amortisation of initial differences in asset values | B8: ='GPB data'!B41 -> 0
A9: Value of disposed assets | D9: ='GPB data'!D82 -> 1634.348379 | E9: ='GPB data'!E82 -> 466.0617575 | F9: ='GPB data'!F82 -> 477.7133014 | G9: ='GPB data'!G82 -> 488.2229941 | H9: ='GPB data'!H82 -> 497.987454 | I9: ='GPB data'!I82 -> 507.947203 | J9: ='GPB data'!J82 -> 518.1061471
A10: Opening RAB excluding revaluations | C10: ='GPB data'!C35 -> ~ | D10: ='GPB data'!D35 -> 0
A11: Adjusted depreciation | C11: ='GPB data'!C36 -> ~ | D11: ='GPB data'!D36 -> 0
A12: Tax depreciation | C12: ='GPB data'!C37 -> ~ | D12: ='GPB data'!D37 -> 22468.73376
A13: Opening regulatory tax asset value | C13: ='GPB data'!C38 -> ~ | D13: ='GPB data'!D38 -> 205340.1339
A14: Opening deferred tax balance | C14: ='GPB data'!C40 -> ~ | D14: ='GPB data'!D40 -> 0
A15: Cost of debt | D15: ='GPB data'!B8 -> 0.0404
A16: Leverage | D16: ='GPB data'!B9 -> 0.42
A17: Remaining asset life for existing assets | D17: =RAB!D20 -> 24.79594925 | E17: =RAB!E20 -> 23.79594925 | F17: =RAB!F20 -> 20.53813076 | G17: =RAB!G20 -> 19.53813076 | H17: =RAB!H20 -> 18.53813076 | I17: =RAB!I20 -> 17.53813076 | J17: =RAB!J20 -> 16.53813076
A18: Total depreciation | F18: =RAB!F102 -> 43819.06324 | G18: =RAB!G102 -> 45953.85224 | H18: =RAB!H102 -> 48180.43676 | I18: =RAB!I102 -> 50181.24225 | J18: =RAB!J102 -> 52287.73408
A19: Term credit spread differential allowance, full BBAR years | F19: =BBAR!F92 -> 1373.436497 | G19: =BBAR!G92 -> 1401.745761 | H19: =BBAR!H92 -> 1433.948699 | I19: =BBAR!I92 -> 1450.025195 | J19: =BBAR!J92 -> 1467.026652
A20: Opening investment value | F20: =BBAR!F94 -> 918012.4732 | G20: =BBAR!G94 -> 936934.5408 | H20: =BBAR!H94 -> 958459.1609 | I20: =BBAR!I94 -> 969204.7783 | J20: =BBAR!J94 -> 980568.6455
A21: Calculations
A22: Adjusted RAB & depreciation of assets commissioned
A23: BBAR year ending in calendar year: | D23: =D$4 -> 2021 | E23: =E$4 -> 2022 | F23: 2023 | G23: 2024 | H23: =H$4 -> 2025 | I23: 2026 | J23: 2027
A24: Value of commissioned assets | D24: =D6 -> 18812.79207 | E24: 37106.20045 | F24: 40302.49786 | G24: 47383.78588 | H24: 40281.49669 | I24: 42695.22192 | J24: 45010.91881
A25: ="Assets commissioned in year ending " & C25 -> Assets commissioned in year ending 2021 | C25: =D23 -> 2021
A26: Opening RAB, adjusted depreciation | D26: 0 | E26: =D30 -> 0 | F26: 0 | G26: 0 | H26: =G30 -> 0 | I26: 0 | J26: 0
A27: Years of remaining life | D27: =RAB!D32 -> 45 | E27: =RAB!E32 -> 44 | F27: =RAB!F32 -> 39.08459454 | G27: =RAB!G32 -> 38.08459454 | H27: =RAB!H32 -> 37.08459454 | I27: =RAB!I32 -> 36.08459454 | J27: =RAB!J32 -> 35.08459454
A28: Adjusted depreciation | D28: =D26/D27 -> 0 | E28: 0 | F28: 0 | G28: 0 | H28: =H26/H27 -> 0 | I28: 0 | J28: 0
A29: ="RAB of asset commissioned in year ending " & C25 -> RAB of asset commissioned in year ending 2021 | D29: =IF(EarlyBaseYear,D$24,0) -> 0 | E29: =IF($C25=E$23,E$24,0) -> 0 | F29: 0 | G29: 0 | H29: 0 | I29: 0 | J29: 0
A30: Closing RAB, adjusted depreciation | D30: =D26-D28+D29 -> 0 | E30: 0 | F30: 0 | G30: 0 | H30: 0 | I30: 0 | J30: 0
A31: ="Assets commissioned in year ending " & C31 -> Assets commissioned in year ending 2022 | C31: =E23 -> 2022
A32: Opening RAB, adjusted depreciation | E32: 0 | F32: =E36 -> 37106.20045 | G32: =F36 -> 36178.39556 | H32: =G36 -> 35250.59068 | I32: =H36 -> 34322.78579 | J32: =I36 -> 33394.98091
A33: Years of remaining life | D33: =RAB!D40 -> 46 | E33: =RAB!E40 -> 45 | F33: =RAB!F40 -> 39.9935386 | G33: =RAB!G40 -> 38.9935386 | H33: =RAB!H40 -> 37.9935386 | I33: =RAB!I40 -> 36.9935386 | J33: =RAB!J40 -> 35.9935386
A34: Adjusted depreciation | D34: =D32/D33 -> 0 | E34: 0 | F34: 927.8048842 | G34: 927.8048842 | H34: =H32/H33 -> 927.8048842 | I34: 927.8048842 | J34: 927.8048842
A35: ="RAB of asset commissioned in year ending " & C31 -> RAB of asset commissioned in year ending 2022 | D35: =IF($C31=D$23,D$24,0) -> 0 | E35: 37106.20045 | F35: 0 | G35: 0 | H35: 0 | I35: 0 | J35: 0
A36: Closing RAB, adjusted depreciation | D36: =D32-D34+D35 -> 0 | E36: =E32-E34+E35 -> 37106.20045 | F36: 36178.39556 | G36: 35250.59068 | H36: =H32-H34+H35 -> 34322.78579 | I36: 33394.98091 | J36: 32467.17603
A37: ="Assets commissioned in year ending " & C37 -> Assets commissioned in year ending 2023 | C37: =F23 -> 2023
A38: Opening RAB, adjusted depreciation | F38: 0 | G38: =F42 -> 40302.49786 | H38: =G42 -> 39292.47304 | I38: =H42 -> 38282.44822 | J38: =I42 -> 37272.4234
A39: Years of remaining life | D39: =RAB!D48 -> 47 | E39: =RAB!E48 -> 46 | F39: =RAB!F48 -> 40.90248266 | G39: =RAB!G48 -> 39.90248266 | H39: =RAB!H48 -> 38.90248266 | I39: =RAB!I48 -> 37.90248266 | J39: =RAB!J48 -> 36.90248266
A40: Adjusted depreciation | D40: =D38/D39 -> 0 | E40: 0 | F40: 0 | G40: 1010.02482 | H40: =H38/H39 -> 1010.02482 | I40: 1010.02482 | J40: 1010.02482
A41: ="RAB of asset commissioned in year ending " & C37 -> RAB of asset commissioned in year ending 2023 | D41: =IF($C37=D$23,D$24,0) -> 0 | E41: 0 | F41: 40302.49786 | G41: 0 | H41: 0 | I41: 0 | J41: 0
A42: Closing RAB, adjusted depreciation | D42: =D38-D40+D41 -> 0 | E42: 0 | F42: 40302.49786 | G42: 39292.47304 | H42: =H38-H40+H41 -> 38282.44822 | I42: 37272.4234 | J42: 36262.39858
A43: ="Assets commissioned in year ending " & C43 -> Assets commissioned in year ending 2024 | C43: =G23 -> 2024
A44: Opening RAB, adjusted depreciation | G44: 0 | H44: =G48 -> 47383.78588 | I44: =H48 -> 46193.58021 | J44: =I48 -> 45003.37454
A45: Years of remaining life | D45: =RAB!D56 -> 48 | E45: =RAB!E56 -> 47 | F45: =RAB!F56 -> 41.81142671 | G45: =RAB!G56 -> 40.81142671 | H45: =RAB!H56 -> 39.81142671 | I45: =RAB!I56 -> 38.81142671 | J45: =RAB!J56 -> 37.81142671
A46: Adjusted depreciation | D46: =D44/D45 -> 0 | E46: 0 | F46: 0 | G46: 0 | H46: =H44/H45 -> 1190.205672 | I46: 1190.205672 | J46: 1190.205672
A47: ="RAB of asset commissioned in year ending " & C43 -> RAB of asset commissioned in year ending 2024 | D47: =IF($C43=D$23,D$24,0) -> 0 | E47: 0 | F47: 0 | G47: 47383.78588 | H47: 0 | I47: 0 | J47: 0
A48: Closing RAB, adjusted depreciation | D48: =D44-D46+D47 -> 0 | E48: 0 | F48: 0 | G48: 47383.78588 | H48: =H44-H46+H47 -> 46193.58021 | I48: 45003.37454 | J48: 43813.16887
A49: ="Assets commissioned in year ending " & C49 -> Assets commissioned in year ending 2025 | C49: =H23 -> 2025
A50: Opening RAB, adjusted depreciation | H50: 0 | I50: =H54 -> 40281.49669 | J50: =I54 -> 39267.36978
A51: Years of remaining life | D51: =RAB!D64 -> 49 | E51: =RAB!E64 -> 48 | F51: =RAB!F64 -> 42.72037077 | G51: =RAB!G64 -> 41.72037077 | H51: =RAB!H64 -> 40.72037077 | I51: =RAB!I64 -> 39.72037077 | J51: =RAB!J64 -> 38.72037077
A52: Adjusted depreciation | D52: =D50/D51 -> 0 | E52: 0 | F52: 0 | G52: 0 | H52: =H50/H51 -> 0 | I52: 1014.126905 | J52: 1014.126905
A53: ="RAB of asset commissioned in year ending " & C49 -> RAB of asset commissioned in year ending 2025 | D53: =IF($C49=D$23,D$24,0) -> 0 | E53: 0 | F53: 0 | G53: 0 | H53: 40281.49669 | I53: 0 | J53: 0
A54: Closing RAB, adjusted depreciation | D54: =D50-D52+D53 -> 0 | E54: 0 | F54: 0 | G54: 0 | H54: =H50-H52+H53 -> 40281.49669 | I54: 39267.36978 | J54: 38253.24288
A55: ="Assets commissioned in year ending " & C55 -> Assets commissioned in year ending 2026 | C55: =I23 -> 2026
A56: Opening RAB, adjusted depreciation | I56: 0 | J56: =I60 -> 42695.22192
A57: Years of remaining life | D57: =RAB!D72 -> 50 | E57: =RAB!E72 -> 49 | F57: =RAB!F72 -> 43.62931483 | G57: =RAB!G72 -> 42.62931483 | H57: =RAB!H72 -> 41.62931483 | I57: =RAB!I72 -> 40.62931483 | J57: =RAB!J72 -> 39.62931483
A58: Adjusted depreciation | D58: =D56/D57 -> 0 | E58: 0 | F58: 0 | G58: 0 | H58: =H56/H57 -> 0 | I58: 0 | J58: 1077.364625
A59: ="RAB of asset commissioned in year ending " & C55 -> RAB of asset commissioned in year ending 2026 | D59: =IF($C55=D$23,D$24,0) -> 0 | E59: 0 | F59: 0 | G59: 0 | H59: 0 | I59: 42695.22192 | J59: 0
A60: Closing RAB, adjusted depreciation | D60: =D56-D58+D59 -> 0 | E60: 0 | F60: 0 | G60: 0 | H60: =H56-H58+H59 -> 0 | I60: 42695.22192 | J60: 41617.85729
A61: ="Assets commissioned in year ending " & C61 -> Assets commissioned in year ending 2027 | C61: =J23 -> 2027
A62: Opening RAB, adjusted depreciation | J62: 0
A63: Years of remaining life | D63: =RAB!D80 -> 51 | E63: =RAB!E80 -> 50 | F63: =RAB!F80 -> 44.53825889 | G63: =RAB!G80 -> 43.53825889 | H63: =RAB!H80 -> 42.53825889 | I63: =RAB!I80 -> 41.53825889 | J63: =RAB!J80 -> 40.53825889
A64: Adjusted depreciation | J64: =J62/J63 -> 0
A65: ="RAB of asset commissioned in year ending " & C61 -> RAB of asset commissioned in year ending 2027 | J65: =IF($C61=J$23,J$24,0) -> 45010.91881
A66: Closing RAB, adjusted depreciation | J66: =J62-J64+J65 -> 45010.91881
A67: Total assets commissioned
A68: Total adjusted depreciation of commissioned assets | D68: =D28+D34+D40+D46+D52+D58+D64 -> 0 | E68: =E28+E34+E40+E46+E52+E58+E64 -> 0 | F68: 927.8048842 | G68: 1937.829704 | H68: =H28+H34+H40+H46+H52+H58+H64 -> 3128.035376 | I68: 4142.162281 | J68: 5219.526906
A69: Adjusted depreciation of existing assets
A70: BBAR year ending in calendar year: | C70: =C$4 -> 2020 | D70: =D$4 -> 2021 | E70: =E$4 -> 2022 | F70: 2023 | G70: 2024 | H70: =H$4 -> 2025 | I70: 2026 | J70: 2027
A71: Opening RAB value of existing assets, adjusted depreciation | C71: =IF(EarlyBaseYear,C10,"~") -> ~ | D71: =IF(EarlyBaseYear,C75,D10) -> 0 | E71: =D75 -> 17178.44369 | F71: 15990.47572 | G71: 14734.18739 | H71: 13491.83967 | I71: 12266.06365 | J71: 11058.72244
A72: Disposed assets | D72: =D9 -> 1634.348379 | E72: 466.0617575 | F72: 477.7133014 | G72: 488.2229941 | H72: =H9 -> 497.987454 | I72: 507.947203 | J72: 518.1061471
A73: Adjusted depreciation of existing assets | C73: =IF(EarlyBaseYear,C11,"~") -> ~ | D73: =IF(EarlyBaseYear,D71/D17,D11) -> 0 | E73: =E71/E17 -> 721.9062164 | F73: 778.5750272 | G73: 754.1247199 | H73: 727.7885698 | I73: 699.3940128 | J73: 668.6803118
A74: Base year commissioned assets | D74: =D6 -> 18812.79207
A75: Closing RAB value of existing assets, adjusted depreciation | C75: =IF(EarlyBaseYear,C71-C72-C73+C74,"~") -> ~ | D75: =D71-D72-D73+D74 -> 17178.44369 | E75: =E71-E72-E73 -> 15990.47572 | F75: 14734.18739 | G75: 13491.83967 | H75: 12266.06365 | I75: 11058.72244 | J75: 9871.935976
A76: Regulatory tax asset value
A77: BBAR year ending in calendar year: | C77: =C$4 -> 2020 | D77: =D$4 -> 2021 | E77: =E$4 -> 2022 | F77: 2023 | G77: 2024 | H77: =H$4 -> 2025 | I77: 2026 | J77: 2027
A78: Average DV rate | C78: =IF(EarlyBaseYear,C12/C13,"~") -> ~ | D78: =IF(EarlyBaseYear,C78,D12/D13) -> 0.1094220274
A79: Opening regulatory tax asset value | C79: =IF(EarlyBaseYear,C13,"~") -> ~ | D79: =IF(EarlyBaseYear,C82,D13) -> 205340.1339 | E79: =D82 -> 201684.1922 | F79: 216721.6995 | G79: 233310.0696 | H79: 255164.5947 | I79: 267525.4641 | J79: 280947.5074
A80: Tax depreciation | C80: =IF(EarlyBaseYear,C12,"~") -> ~ | D80: =D79*$D78 -> 22468.73376 | E80: =E79*$D78 -> 22068.6932 | F80: 23714.12773 | G80: 25529.26082 | H80: =H79*$D78 -> 27920.62726 | I80: 29273.17866 | J80: 30741.84584
A81: Value of commissioned assets | C81: =IF(EarlyBaseYear,C6,"~") -> ~ | D81: =D6 -> 18812.79207 | E81: 37106.20045 | F81: 40302.49786 | G81: 47383.78588 | H81: 40281.49669 | I81: 42695.22192 | J81: 45010.91881
A82: Closing regulatory tax asset value | C82: =IF(EarlyBaseYear,C79-C80+C81,"~") -> ~ | D82: =D79-D80+D81 -> 201684.1922 | E82: =E79-E80+E81 -> 216721.6995 | F82: 233310.0696 | G82: 255164.5947 | H82: =H79-H80+H81 -> 267525.4641 | I82: 280947.5074 | J82: 295216.5803
A83: Depreciation temporary differences
A84: BBAR year ending in calendar year: | C84: =C$4 -> 2020 | D84: =D$4 -> 2021 | E84: =E$4 -> 2022 | F84: 2023 | G84: 2024 | H84: =H$4 -> 2025 | I84: 2026 | J84: 2027
A85: Total adjusted depreciation of assets | C85: =IF(EarlyBaseYear,C68+C73,"~") -> ~ | D85: =D68+D73 -> 0 | E85: 721.9062164 | F85: 1706.379911 | G85: 2691.954424 | H85: 3855.823946 | I85: 4841.556294 | J85: 5888.207218
A86: Tax depreciation | C86: =C80 -> ~ | D86: 22468.73376 | E86: 22068.6932 | F86: 23714.12773 | G86: 25529.26082 | H86: 27920.62726 | I86: 29273.17866 | J86: 30741.84584
A87: Depreciation temporary differences, deferred tax approach | C87: =IF(EarlyBaseYear,C85-C86,"~") -> ~ | D87: =D85-D86 -> -22468.73376 | E87: -21346.78699 | F87: -22007.74782 | G87: -22837.3064 | H87: =H85-H86 -> -24064.80332 | I87: -24431.62236 | J87: -24853.63862
A88: Deductions for regulatory tax purposes
A89: Amortisation of initial differences in asset values | C89: =IF(EarlyBaseYear,B8,"~") -> ~ | D89: =$B$8 -> 0 | E89: 0 | F89: 0 | G89: 0 | H89: =$B$8 -> 0 | I89: 0 | J89: 0
A90: Notional deductible interest | F90: =(F20*$D$16*$D$15+F19)/(1+$D$15)^0.5 -> 16617.91386 | G90: =(G20*$D$16*$D$15+G19)/(1+$D$15)^0.5 -> 16960.44221 | H90: =(H20*$D$16*$D$15+H19)/(1+$D$15)^0.5 -> 17350.0821 | I90: =(I20*$D$16*$D$15+I19)/(1+$D$15)^0.5 -> 17544.59988 | J90: =(J20*$D$16*$D$15+J19)/(1+$D$15)^0.5 -> 17750.30924
A91: Amortisation of revaluations | F91: =F18-F85 -> 42112.68333 | G91: =G18-G85 -> 43261.89781 | H91: =H18-H85 -> 44324.61281 | I91: =I18-I85 -> 45339.68596 | J91: =J18-J85 -> 46399.52686
A92: Regulatory tax adjustments | F92: =F89+F91-F90 -> 25494.76947 | G92: =G89+G91-G90 -> 26301.45561 | H92: =H89+H91-H90 -> 26974.53071 | I92: =I89+I91-I90 -> 27795.08608 | J92: =J89+J91-J90 -> 28649.21762
A93: Deferred tax asset value
A94: BBAR year ending in calendar year: | C94: =C$4 -> 2020 | D94: =D$4 -> 2021 | E94: =E$4 -> 2022 | F94: 2023 | G94: 2024 | H94: =H$4 -> 2025 | I94: 2026 | J94: 2027
A95: Opening deferred tax | C95: =IF(EarlyBaseYear,C14,"~") -> ~ | D95: =IF(EarlyBaseYear,C98,D14) -> 0 | E95: =D98 -> -6291.245452 | F95: -12268.34581 | G95: -18430.5152 | H95: -24824.96099 | I95: -31563.10592 | J95: -38403.96018
A96: Depreciation temporary differences, deferred tax approach | C96: =C87 -> ~ | D96: -22468.73376 | E96: -21346.78699 | F96: -22007.74782 | G96: -22837.3064 | H96: -24064.80332 | I96: -24431.62236 | J96: -24853.63862
A97: Amortisation of initial differences in asset values | C97: =C89 -> ~ | D97: 0 | E97: 0 | F97: 0 | G97: 0 | H97: 0 | I97: 0 | J97: 0
A98: Closing deferred tax | C98: =IF(EarlyBaseYear,C95+(C96-C97)*C5,"~") -> ~ | D98: =D95+(D96-D97)*D5 -> -6291.245452 | E98: -12268.34581 | F98: -18430.5152 | G98: -24824.96099 | H98: -31563.10592 | I98: -38403.96018 | J98: -45362.97899
A99: Outputs
A100: BBAR year ending in calendar year: | C100: =C$4 -> 2020 | D100: =D$4 -> 2021 | E100: =E$4 -> 2022 | F100: 2023 | G100: 2024 | H100: =H$4 -> 2025 | I100: 2026 | J100: 2027
A101: Opening deferred tax | E101: =E95 -> -6291.245452 | F101: -12268.34581 | G101: -18430.5152 | H101: =H95 -> -24824.96099 | I101: -31563.10592 | J101: -38403.96018
A102: Closing deferred tax | F102: =F98 -> -18430.5152 | G102: =G98 -> -24824.96099 | H102: =H98 -> -31563.10592 | I102: =I98 -> -38403.96018 | J102: =J98 -> -45362.97899
A103: Regulatory tax adjustments | F103: =F92 -> 25494.76947 | G103: =G92 -> 26301.45561 | H103: =H92 -> 26974.53071 | I103: =I92 -> 27795.08608 | J103: =J92 -> 28649.21762
A104: Tax depreciation | F104: =F80 -> 23714.12773 | G104: =G80 -> 25529.26082 | H104: =H80 -> 27920.62726 | I104: =I80 -> 29273.17866 | J104: =J80 -> 30741.84584
A105: Notional deductible interest | F105: =F90 -> 16617.91386 | G105: =G90 -> 16960.44221 | H105: =H90 -> 17350.0821 | I105: =I90 -> 17544.59988 | J105: =J90 -> 17750.30924
A106: Opening 2021 tax asset value | D106: =D79 -> 205340.1339
A107: DV rate | D107: =D78 -> 0.1094220274

Sheet BBAR
A1: Building blocks allowable revenue | B1: Values, not time series | C1: Early base year | D1: Std base year | E1: Gap year | F1: 1st BBAR year | G1: 2nd BBAR year | H1: 3rd BBAR year | I1: 4th BBAR year | J1: 5th BBAR year
A2: Calculation of BBAR present value, opening investment value, and TCSD allowance.
A3: Inputs | J3: =GPB_name -> First Gas transmission
A4: Tax payable (payable) or deferred tax (deferred) | B4: ='GPB data'!B27 -> payable
A5: Vanilla WACC (67th percentile) | B5: =WACC -> 0.0614
A6: Term credit spread differential allowance | C6: ='GPB data'!C39 -> ~ | D6: ='GPB data'!D39 -> 1271.216537
A7: BBAR year ending in calendar year: | D7: ='GPB data'!D18 -> 2021 | E7: ='GPB data'!E18 -> 2022 | F7: ='GPB data'!F18 -> 2023 | G7: ='GPB data'!G18 -> 2024 | H7: ='GPB data'!H18 -> 2025 | I7: ='GPB data'!I18 -> 2026 | J7: ='GPB data'!J18 -> 2027
A8: Corporate tax rate | F8: ='GPB data'!F22 -> 0.28 | G8: ='GPB data'!G22 -> 0.28 | H8: ='GPB data'!H22 -> 0.28 | I8: ='GPB data'!I22 -> 0.28 | J8: ='GPB data'!J22 -> 0.28
A9: Other regulated income | F9: ='GPB data'!F90 -> 0 | G9: ='GPB data'!G90 -> 0 | H9: ='GPB data'!H90 -> 0 | I9: ='GPB data'!I90 -> 0 | J9: ='GPB data'!J90 -> 0
A11: Value of commissioned assets | F11: ='GPB data'!F71 -> 40302.49786 | G11: ='GPB data'!G71 -> 47383.78588 | H11: ='GPB data'!H71 -> 40281.49669 | I11: ='GPB data'!I71 -> 42695.22192 | J11: ='GPB data'!J71 -> 45010.91881
A12: Operating expenditure | F12: ='GPB data'!F53 -> 53512.75174 | G12: ='GPB data'!G53 -> 55336.41136 | H12: ='GPB data'!H53 -> 56654.08304 | I12: ='GPB data'!I53 -> 58465.28188 | J12: ='GPB data'!J53 -> 59738.56089
A13: Day prior to start of the regulatory period | B13: ='GPB data'!B14 -> 2022-09-30
A14: TFmid | F14: =Timing!F30 -> 1.030158596 | G14: =Timing!G30 -> 1.03024269 | H14: =Timing!H30 -> 1.030158596 | I14: =Timing!I30 -> 1.030158596 | J14: =Timing!J30 -> 1
A15: TFtax | F15: =Timing!F31 -> 1.030158596 | G15: =Timing!G31 -> 1.03024269 | H15: =Timing!H31 -> 1.030158596 | I15: =Timing!I31 -> 1.030158596 | J15: =Timing!J31 -> 1
A16: TFrev | F16: =Timing!F32 -> 1.024456298 | G16: =Timing!G32 -> 1.024555464 | H16: =Timing!H32 -> 1.024456298 | I16: =Timing!I32 -> 1.024456298 | J16: =Timing!J32 -> 0.9944646401
A17: Aggregate opening RAB value | C17: =RAB!C103 -> ~ | D17: =RAB!D103 -> 849688.0929 | E17: =RAB!E103 -> 874464.5955 | F17: =RAB!F103 -> 918012.4732 | G17: =RAB!G103 -> 936934.5408 | H17: =RAB!H103 -> 958459.1609 | I17: =RAB!I103 -> 969204.7783 | J17: =RAB!J103 -> 980568.6455
A18: Closing RAB, 5th BBAR year | B18: =RAB!B105 -> 992359.2397
A19: Total revaluation | F19: =RAB!F104 -> 22916.34634 | G19: =RAB!G104 -> 20582.90942 | H19: =RAB!H104 -> 19142.54496 | I19: =RAB!I104 -> 19357.83472 | J19: =RAB!J104 -> 19585.51564
A20: Total depreciation | F20: =RAB!F102 -> 43819.06324 | G20: =RAB!G102 -> 45953.85224 | H20: =RAB!H102 -> 48180.43676 | I20: =RAB!I102 -> 50181.24225 | J20: =RAB!J102 -> 52287.73408
A21: Opening deferred tax | E21: =Tax!E101 -> -6291.245452 | F21: =Tax!F101 -> -12268.34581 | G21: =Tax!G101 -> -18430.5152 | H21: =Tax!H101 -> -24824.96099 | I21: =Tax!I101 -> -31563.10592 | J21: =Tax!J101 -> -38403.96018
A22: Closing deferred tax | F22: =Tax!F102 -> -18430.5152 | G22: =Tax!G102 -> -24824.96099 | H22: =Tax!H102 -> -31563.10592 | I22: =Tax!I102 -> -38403.96018 | J22: =Tax!J102 -> -45362.97899
A23: Regulatory tax adjustments | F23: =Tax!F103 -> 25494.76947 | G23: =Tax!G103 -> 26301.45561 | H23: =Tax!H103 -> 26974.53071 | I23: =Tax!I103 -> 27795.08608 | J23: =Tax!J103 -> 28649.21762
A24: Tax depreciation | F24: =Tax!F104 -> 23714.12773 | G24: =Tax!G104 -> 25529.26082 | H24: =Tax!H104 -> 27920.62726 | I24: =Tax!I104 -> 29273.17866 | J24: =Tax!J104 -> 30741.84584
A25: Notional deductible interest | F25: =Tax!F105 -> 16617.91386 | G25: =Tax!G105 -> 16960.44221 | H25: =Tax!H105 -> 17350.0821 | I25: =Tax!I105 -> 17544.59988 | J25: =Tax!J105 -> 17750.30924
A26: Proportion of BBAR year in the regulatory period | F26: =Timing!F29 -> 1 | G26: =Timing!G29 -> 1 | H26: =Timing!H29 -> 1 | I26: =Timing!I29 -> 1 | J26: =Timing!J29 -> 0
A27: Number of BBAR days in the BBAR period | F27: =Timing!F28 -> 365 | G27: =Timing!G28 -> 366 | H27: =Timing!H28 -> 365 | I27: =Timing!I28 -> 365 | J27: =Timing!J28 -> 0
A28: Calculations
A29: BBAR year ending in calendar year: | D29: =D$7 -> 2021 | E29: =E$7 -> 2022 | F29: 2023 | G29: 2024 | H29: =H$7 -> 2025 | I29: 2026 | J29: 2027
A30: Cumulative number of days from start of regulatory period to end of BBAR period | E30: 0 | F30: =E30+F27 -> 365 | G30: =F30+G27 -> 731 | H30: =G30+H27 -> 1096 | I30: =H30+I27 -> 1461 | J30: =I30+J27 -> 1461
A31: PV factor from end of each BBAR period | F31: =(1+WACC)^(-1*F30/365) -> 0.9421518749 | G31: =(1+WACC)^(-1*G30/365) -> 0.8875052521 | H31: =(1+WACC)^(-1*H30/365) -> 0.8361647372 | I31: =(1+WACC)^(-1*I30/365) -> 0.7877941749 | J31: =(1+WACC)^(-1*J30/365) -> 0.7877941749
A32: Term credit spread differential allowance
A34: Asset base scaling factor | D34: =IF(EarlyBaseYear,D17/$C$17,D17/$D$17) -> 1 | E34: =IF(EarlyBaseYear,E17/$C$17,E17/$D$17) -> 1.029159527 | F34: 1.080411131 | G34: 1.102680558 | H34: 1.128012937 | I34: 1.14065948 | J34: 1.154033643
A35: Term credit spread differential allowance, full BBAR years | C35: =C6 -> ~ | D35: =IF(EarlyBaseYear,$C35*D34,D6) -> 1271.216537 | E35: =IF(EarlyBaseYear,$C35,$D35)*E34 -> 1308.28461 | F35: 1373.436497 | G35: 1401.745761 | H35: 1433.948699 | I35: 1450.025195 | J35: 1467.026652
A36: Return on capital
A37: BBAR year ending in calendar year: | D37: =D$7 -> 2021 | E37: =E$7 -> 2022 | F37: 2023 | G37: 2024 | H37: =H$7 -> 2025 | I37: 2026 | J37: 2027
A38: Opening investment value (full BBAR year values) | E38: =E17+IF($B$4="deferred",E21,0) -> 874464.5955 | F38: 918012.4732 | G38: 936934.5408 | H38: 958459.1609 | I38: 969204.7783 | J38: 980568.6455
A39: Opening investment value, start of regulatory period | B39: =G38-F26*(G38-F38) -> 918012.4732
A40: Closing investment value, end of 5th BBAR year | B40: =B18+IF($B$4="deferred",J22,0) -> 992359.2397
A41: Closing investment value, end of regulatory period | B41: =J38+J26*(B40-J38) -> 980568.6455
A42: Opening investment value for each BBAR period | F42: =B39 -> 918012.4732 | G42: =G38 -> 936934.5408 | H42: =H38 -> 958459.1609 | I42: =I38 -> 969204.7783 | J42: =J38 -> 980568.6455
A43: Value of commissioned assets, after accounting for part year effects | F43: =F11*F26 -> 40302.49786 | G43: =G11*G26 -> 47383.78588 | H43: =H11*H26 -> 40281.49669 | I43: =I11*I26 -> 42695.22192 | J43: =J11*J26 -> 0
A44: Term credit spread differential allowance, after accounting for part year effects | F44: =F35*F26 -> 1373.436497 | G44: =G35*G26 -> 1401.745761 | H44: =H35*H26 -> 1433.948699 | I44: =I35*I26 -> 1450.025195 | J44: =J35*J26 -> 0
A45: Total revaluation, after accounting for part year effects | F45: =F19*F26 -> 22916.34634 | G45: =G19*G26 -> 20582.90942 | H45: =H19*H26 -> 19142.54496 | I45: =I19*I26 -> 19357.83472 | J45: =J19*J26 -> 0
A46: WACC adjusted for full and part years | F46: =(1+WACC)^(F27/365)-1 -> 0.0614 | G46: =(1+WACC)^(G27/365)-1 -> 0.06157329509 | H46: =(1+WACC)^(H27/365)-1 -> 0.0614 | I46: =(1+WACC)^(I27/365)-1 -> 0.0614 | J46: =(1+WACC)^(J27/365)-1 -> 0
A47: Return on capital, after accounting for part year effects | F47: =F42*F46+F43*(F$14-1)+F44-F45 -> 36038.52277 | G47: =G42*G46+G43*(G$14-1)+G44-G45 -> 39941.99644 | H47: =H42*H46+H43*(H$14-1)+H44-H45 -> 42355.62961 | I47: =I42*I46+I43*(I$14-1)+I44-I45 -> 42888.99182 | J47: =J42*J46+J43*(J$14-1)+J44-J45 -> 0
A48: Operating expenditure
A49: BBAR year ending in calendar year: | F49: =F$7 -> 2023 | G49: =G$7 -> 2024 | H49: =H$7 -> 2025 | I49: =I$7 -> 2026 | J49: =J$7 -> 2027
A50: Operating expenditure, after accounting for part year effects | F50: =F12*F26 -> 53512.75174 | G50: =G12*G26 -> 55336.41136 | H50: =H12*H26 -> 56654.08304 | I50: =I12*I26 -> 58465.28188 | J50: =J12*J26 -> 0
A51: Building block allowable revenue before tax, after accounting for part year effects, deferred tax approach | G51: The next 12 lines are greyed out when a supplier to which a deferred tax approach does not apply.
A52: BBAR year ending in calendar year: | F52: =F$7 -> 2023 | G52: =G$7 -> 2024 | H52: =H$7 -> 2025 | I52: =I$7 -> 2026 | J52: =J$7 -> 2027
A53: Increase in deferred tax asset, ΔDT | F53: =F22-F21 -> -6162.16939 | G53: =G22-G21 -> -6394.445792 | H53: =H22-H21 -> -6738.144929 | I53: =I22-I21 -> -6840.854261 | J53: =J22-J21 -> -6959.018814
A54: Increase in deferred tax asset, ΔDT, after accounting for part year effects | F54: =F53*F26 -> -6162.16939 | G54: =G53*G26 -> -6394.445792 | H54: =H53*H26 -> -6738.144929 | I54: =I53*I26 -> -6840.854261 | J54: =J53*J26 -> 0
A55: Other regulated income, after accounting for part year effects | F55: =F9*F26 -> 0 | G55: =G9*G26 -> 0 | H55: =H9*H26 -> 0 | I55: =I9*I26 -> 0 | J55: =J9*J26 -> 0
A56: Depreciation, after accounting for part year effects | F56: =F20*F26 -> 43819.06324 | G56: =G20*G26 -> 45953.85224 | H56: =H20*H26 -> 48180.43676 | I56: =I20*I26 -> 50181.24225 | J56: =J20*J26 -> 0
A57: Regulatory tax adjustments, after accounting for part year effects | F57: =F23*F26 -> 25494.76947 | G57: =G23*G26 -> 26301.45561 | H57: =H23*H26 -> 26974.53071 | I57: =I23*I26 -> 27795.08608 | J57: =J23*J26 -> 0
A58: BBAR before tax in revenue date terms, calculation not referencing tax | F58: =(F47+F56*(1-F8*F15)+F50*(F14-F8*F15)-F55*(F14-F8*F15)+F54*(F15-1)+F57*F8*F15)/(F16-F8*F15) -> 154993.9237 | G58: =(G47+G56*(1-G8*G15)+G50*(G14-G8*G15)-G55*(G14-G8*G15)+G54*(G15-1)+G57*G8*G15)/(G16-G8*G15) -> 164492.0298 | H58: =(H47+H56*(1-H8*H15)+H50*(H14-H8*H15)-H55*(H14-H8*H15)+H54*(H15-1)+H57*H8*H15)/(H16-H8*H15) -> 171515.253 | I58: =(I47+I56*(1-I8*I15)+I50*(I14-I8*I15)-I55*(I14-I8*I15)+I54*(I15-1)+I57*I8*I15)/(I16-I8*I15) -> 176316.8405 | J58: =(J47+J56*(1-J8*J15)+J50*(J14-J8*J15)-J55*(J14-J8*J15)+J54*(J15-1)+J57*J8*J15)/(J16-J8*J15) -> 0
A59: Regulatory tax allowance before considering possibility of tax losses | F59: =(F58+F55-F50-F56+F57)*F8 -> 23283.9259 | G59: =(G58+G55-G50-G56+G57)*G8 -> 25060.9021 | H59: =(H58+H55-H50-H56+H57)*H8 -> 26223.4739 | I59: =(I58+I55-I50-I56+I57)*I8 -> 26730.31268 | J59: =(J58+J55-J50-J56+J57)*J8 -> 0
A60: Regulatory tax allowance | F60: =IF(AND(F59<0,$B$4="deferred"),#N/A,F59) -> 23283.9259 | G60: =IF(AND(G59<0,$B$4="deferred"),#N/A,G59) -> 25060.9021 | H60: =IF(AND(H59<0,$B$4="deferred"),#N/A,H59) -> 26223.4739 | I60: =IF(AND(I59<0,$B$4="deferred"),#N/A,I59) -> 26730.31268 | J60: =IF(AND(J59<0,$B$4="deferred"),#N/A,J59) -> 0
A61: BBAR before tax in BBAR period-end terms, direct simple calculation | F61: =F47+F56+F50*F14+(F60+F54)*F$15-F55*F$14-F54 -> 158784.5013 | G61: =G47+G56+G50*G14+(G60+G54)*G$15-G55*G$14-G54 -> 168531.2079 | H61: =H47+H56+H50*H14+(H60+H54)*H$15-H55*H$14-H54 -> 175709.8811 | I61: =I47+I56+I50*I14+(I60+I54)*I$15-I55*I$14-I54 -> 180628.8976 | J61: =J47+J56+J50*J14+(J60+J54)*J$15-J55*J$14-J54 -> 0
A62: BBAR before tax in revenue date terms | F62: =F61/F$16 -> 154993.9237 | G62: =G61/G$16 -> 164492.0298 | H62: =H61/H$16 -> 171515.253 | I62: =I61/I$16 -> 176316.8405 | J62: =J61/J$16 -> 0
A63: Difference between the two BBAR calculations (should = 0) | F63: =F58-F62 -> 0 | G63: =G58-G62 -> 0 | H63: =H58-H62 -> 0 | I63: =I58-I62 -> 0 | J63: =J58-J62 -> 0
A64: Building block allowable revenue before tax, after accounting for part year effects, tax payable approach | G64: The next 12 lines are greyed out when a supplier to which a tax payable approach does not apply.
A65: BBAR year ending in calendar year: | F65: =F$7 -> 2023 | G65: =G$7 -> 2024 | H65: =H$7 -> 2025 | I65: =I$7 -> 2026 | J65: =J$7 -> 2027
A66: Other regulated income, after accounting for part year effects | F66: =F9*F26 -> 0 | G66: =G9*G26 -> 0 | H66: =H9*H26 -> 0 | I66: =I9*I26 -> 0 | J66: =J9*J26 -> 0
A67: Depreciation, after accounting for part year effects | F67: =F20*F26 -> 43819.06324 | G67: =G20*G26 -> 45953.85224 | H67: =H20*H26 -> 48180.43676 | I67: =I20*I26 -> 50181.24225 | J67: =J20*J26 -> 0
A68: Tax depreciation | F68: =F24*F26 -> 23714.12773 | G68: =G24*G26 -> 25529.26082 | H68: =H24*H26 -> 27920.62726 | I68: =I24*I26 -> 29273.17866 | J68: =J24*J26 -> 0
A69: Notional deductible interest | F69: =F25*F26 -> 16617.91386 | G69: =G25*G26 -> 16960.44221 | H69: =H25*H26 -> 17350.0821 | I69: =I25*I26 -> 17544.59988 | J69: =J25*J26 -> 0
A70: Depreciation temporary differences, tax payable approach | F70: =F67-F68 -> 20104.93551 | G70: =G67-G68 -> 20424.59141 | H70: =H67-H68 -> 20259.8095 | I70: =I67-I68 -> 20908.0636 | J70: =J67-J68 -> 0
A71: BBAR before tax in revenue date terms, calculation not referencing tax | F71: =(F47+F67*(1-F8*F15)+F50*(F14-F8*F15)-F66*(F14-F8*F15)+(F70-F69)*F8*F15)/(F16-F8*F15) -> 146621.5462 | G71: =(G47+G67*(1-G8*G15)+G50*(G14-G8*G15)-G66*(G14-G8*G15)+(G70-G69)*G8*G15)/(G16-G8*G15) -> 155804.957 | H71: =(H47+H67*(1-H8*H15)+H50*(H14-H8*H15)-H66*(H14-H8*H15)+(H70-H69)*H8*H15)/(H16-H8*H15) -> 162360.3127 | I71: =(I47+I67*(1-I8*I15)+I50*(I14-I8*I15)-I66*(I14-I8*I15)+(I70-I69)*I8*I15)/(I16-I8*I15) -> 167022.3517 | J71: =(J47+J67*(1-J8*J15)+J50*(J14-J8*J15)-J66*(J14-J8*J15)+(J70-J69)*J8*J15)/(J16-J8*J15) -> 0
A72: Regulatory tax allowance before considering possibility of tax losses | F72: =(F71+F66-F50-F67+F70-F69)*F8 -> 14777.49081 | G72: =(G71+G66-G50-G67+G70-G69)*G8 -> 16234.07593 | H72: =(H71+H66-H50-H67+H70-H69)*H8 -> 16921.94568 | I72: =(I71+I66-I50-I67+I70-I69)*I8 -> 17287.00156 | J72: =(J71+J66-J50-J67+J70-J69)*J8 -> 0
A73: Regulatory tax allowance | F73: =IF(AND(F72<0,$B$4="payable"),#N/A,F72) -> 14777.49081 | G73: =IF(AND(G72<0,$B$4="payable"),#N/A,G72) -> 16234.07593 | H73: =IF(AND(H72<0,$B$4="payable"),#N/A,H72) -> 16921.94568 | I73: =IF(AND(I72<0,$B$4="payable"),#N/A,I72) -> 17287.00156 | J73: =IF(AND(J72<0,$B$4="payable"),#N/A,J72) -> 0
A74: BBAR before tax in BBAR period-end terms, direct simple calculation | F74: =F47+F67+F50*F14+(F73)*F$15-F66*F$14 -> 150207.3664 | G74: =G47+G67+G50*G14+(G73)*G$15-G66*G$14 -> 159630.82 | H74: =H47+H67+H50*H14+(H73)*H$15-H66*H$14 -> 166331.0448 | I74: =I47+I67+I50*I14+(I73)*I$15-I66*I$14 -> 171107.1 | J74: =J47+J67+J50*J14+(J73)*J$15-J66*J$14 -> 0
A75: BBAR before tax in revenue date terms | F75: =F74/F$16 -> 146621.5462 | G75: =G74/G$16 -> 155804.957 | H75: =H74/H$16 -> 162360.3127 | I75: =I74/I$16 -> 167022.3517 | J75: =J74/J$16 -> 0
A76: Difference between the two BBAR calculations (should = 0) | F76: =F71-F75 -> 0 | G76: =G71-G75 -> 0 | H76: =H71-H75 -> 0 | I76: =I71-I75 -> 0 | J76: =J71-J75 -> 0
A77: Parameters dependent on whether a deferred tax or tax payable approach applied
A78: BBAR before tax in BBAR period-end terms | F78: =IF($B$4="deferred",F61,F74) -> 150207.3664 | G78: =IF($B$4="deferred",G61,G74) -> 159630.82 | H78: =IF($B$4="deferred",H61,H74) -> 166331.0448 | I78: =IF($B$4="deferred",I61,I74) -> 171107.1 | J78: =IF($B$4="deferred",J61,J74) -> 0
A79: BBAR before tax in revenue date terms | F79: =IF($B$4="deferred",F58,F71) -> 146621.5462 | G79: =IF($B$4="deferred",G58,G71) -> 155804.957 | H79: =IF($B$4="deferred",H58,H71) -> 162360.3127 | I79: =IF($B$4="deferred",I58,I71) -> 167022.3517 | J79: =IF($B$4="deferred",J58,J71) -> 0
A80: Tax allowance in period-end terms | F80: =IF($B$4="deferred",F60,F73)*F15 -> 15223.15919 | G80: =IF($B$4="deferred",G60,G73)*G15 -> 16725.03805 | H80: =IF($B$4="deferred",H60,H73)*H15 -> 17432.28781 | I80: =IF($B$4="deferred",I60,I73)*I15 -> 17808.35326 | J80: =IF($B$4="deferred",J60,J73)*J15 -> 0
A81: Tax payable | F81: =IF($B$4="deferred",F54+F60,F73) -> 14777.49081 | G81: =IF($B$4="deferred",G54+G60,G73) -> 16234.07593 | H81: =IF($B$4="deferred",H54+H60,H73) -> 16921.94568 | I81: =IF($B$4="deferred",I54+I60,I73) -> 17287.00156 | J81: =IF($B$4="deferred",J54+J60,J73) -> 0
A82: Present value of the building block allowable revenue before tax
A83: BBAR year ending in calendar year: | B83: Value | F83: =F$7 -> 2023 | G83: =G$7 -> 2024 | H83: =H$7 -> 2025 | I83: =I$7 -> 2026 | J83: =J$7 -> 2027
A84: BBAR before tax in BBAR period-end terms | F84: =F78 -> 150207.3664 | G84: =G78 -> 159630.82 | H84: =H78 -> 166331.0448 | I84: =I78 -> 171107.1 | J84: =J78 -> 0
A85: ="PV at " & TEXT(B13, "dd-mmm-yy") & " BBAR before tax for each BBAR period" -> PV at 30-Sep-22 BBAR before tax for each BBAR period | F85: =F84*F31 -> 141518.1519 | G85: =G84*G31 -> 141673.1912 | H85: =H84*H31 -> 139080.1544 | I85: =I84*I31 -> 134797.1767 | J85: =J84*J31 -> 0
A86: ="PV at " & TEXT(B13, "dd-mmm-yy") & " of total BBAR before tax" -> PV at 30-Sep-22 of total BBAR before tax | B86: =SUM(F85:J85) -> 557068.6741
A87: Outputs
A88: BBAR year ending in calendar year: | B88: Value | F88: =F$7 -> 2023 | G88: =G$7 -> 2024 | H88: =H$7 -> 2025 | I88: =I$7 -> 2026 | J88: =J$7 -> 2027
A89: Present value of BBAR as at the start of the regulatory period | B89: =B86 -> 557068.6741
A90: Opening investment value at start of regulatory period | B90: =B39 -> 918012.4732
A91: Closing investment value at end of regulatory period | B91: =B41 -> 980568.6455
A92: Term credit spread differential allowance, full BBAR years | F92: =F35 -> 1373.436497 | G92: =G35 -> 1401.745761 | H92: =H35 -> 1433.948699 | I92: =I35 -> 1450.025195 | J92: =J35 -> 1467.026652
A93: BBAR before tax in revenue date terms | F93: =F79 -> 146621.5462 | G93: =G79 -> 155804.957 | H93: =H79 -> 162360.3127 | I93: =I79 -> 167022.3517 | J93: =J79 -> 0
A94: Opening investment value (full BBAR year values) | E94: =E38 -> 874464.5955 | F94: 918012.4732 | G94: 936934.5408 | H94: 958459.1609 | I94: 969204.7783 | J94: 980568.6455
A95: Annualised BBAR in revenue date terms | F95: =F93/F26 -> 146621.5462 | G95: =G93/G26 -> 155804.957 | H95: =H93/H26 -> 162360.3127 | I95: =I93/I26 -> 167022.3517 | J95: =J93/J26 -> 

Sheet Rev
A1: Revenue growth index | D1: Values, not time series | F1: 1st revenue year | G1: 2nd revenue year | H1: 3rd revenue year | I1: 4th revenue year
A2: Calculation of the normalised profile of the maximum allowable revenue before tax values. | I2: =GPB_name -> First Gas transmission
A3: Inputs
A4: Pricing year ending in calendar year: | E4: 2022 | F4: 2023 | G4: 2024 | H4: 2025 | I4: 2026
A5: Constant price revenue growth | G5: ='GPB data'!G61 -> 0 | H5: ='GPB data'!H61 -> 0 | I5: ='GPB data'!I61 -> 0
A6: Industry-wide X factor | D6: ='GPB data'!B11 -> 0
A7: Alternative X factor | D7: ='GPB data'!B43 -> -0.04856304031
A9: Forecast changes in the CPI element of the price path, no lag | G9: ='GPB data'!G21 -> 0.02324453846 | H9: ='GPB data'!H21 -> 0.02024799149 | I9: ='GPB data'!I21 -> 0.02
A10: Total revenue cap (TRC) or weighted average price cap (WAPC) | D10: ='GPB data'!B28 -> TRC_FQ
A11: Calculations
A12: ="Index of price path with industry-wide X factor of "&TEXT(D6,"#0.0%") -> Index of price path with industry-wide X factor of 0.0%
A13: Pricing year ending in calendar year: | F13: =F$4 -> 2023 | G13: =G$4 -> 2024 | H13: =H$4 -> 2025 | I13: =I$4 -> 2026
A14: X value applied, i.e. industry-wide X factor | D14: =D6 -> 0
A15: Index of cumulative CPI minus X changes | F15: 1 | G15: =F15*(1+G$9)*(1-$D$14) -> 1.023244538 | H15: =G15*(1+H$9)*(1-$D$14) -> 1.043963185 | I15: =H15*(1+I$9)*(1-$D$14) -> 1.064842449
A16: Index of cumulative constant price growth for weighted average price cap | F16: 1 | G16: =F16*(1+G$5) -> 1 | H16: =G16*(1+H$5) -> 1 | I16: =H16*(1+I$5) -> 1
A17: Indexed maximum allowable revenue before tax | F17: 1 | G17: =IF($D$10="WAPC",G15*G16,IF($D$10="TRC_FQ",G15,#N/A)) -> 1.023244538 | H17: =IF($D$10="WAPC",H15*H16,IF($D$10="TRC_FQ",H15,#N/A)) -> 1.043963185 | I17: =IF($D$10="WAPC",I15*I16,IF($D$10="TRC_FQ",I15,#N/A)) -> 1.064842449
A18: ="CPI minus X revenues with applicable X factor (" & IF(ISNUMBER(D7),"alternate X factor of " & TEXT(D7,"#0.0%"), "industry-wide X factor of " & TEXT(D6,"#0.0%"))&")" -> CPI minus X revenues with applicable X factor (alternate X factor of -4.9%)
A19: Pricing year ending in calendar year: | F19: =F$4 -> 2023 | G19: =G$4 -> 2024 | H19: =H$4 -> 2025 | I19: =I$4 -> 2026
A20: X value applied, i.e. alternative X factor if applicable | D20: =IF(D7="blank",D6,D7) -> -0.04856304031
A21: Index of cumulative CPI minus X changes | F21: 1 | G21: =F21*(1+G$9)*(1-$D$20) -> 1.072936404 | H21: =G21*(1+H$9)*(1-$D$20) -> 1.147821288 | I21: =H21*(1+I$9)*(1-$D$20) -> 1.227634239
A22: Index of constant price growth for weighted average price cap | F22: 1 | G22: =F22*(1+G$5) -> 1 | H22: =G22*(1+H$5) -> 1 | I22: =H22*(1+I$5) -> 1
A23: Indexed maximum allowable revenue before tax | F23: 1 | G23: =IF($D$10="WAPC",G21*G22,IF($D$10="TRC_FQ",G21,#N/A)) -> 1.072936404 | H23: =IF($D$10="WAPC",H21*H22,IF($D$10="TRC_FQ",H21,#N/A)) -> 1.147821288 | I23: =IF($D$10="WAPC",I21*I22,IF($D$10="TRC_FQ",I21,#N/A)) -> 1.227634239
A24: Outputs
A25: Pricing year ending in calendar year: | F25: =F$4 -> 2023 | G25: =G$4 -> 2024 | H25: =H$4 -> 2025 | I25: =I$4 -> 2026
A26: Indexed maximum allowable revenue before tax—industry wide X factor | F26: =F17 -> 1 | G26: =G17 -> 1.023244538 | H26: =H17 -> 1.043963185 | I26: =I17 -> 1.064842449
A27: Indexed maximum allowable revenue before tax—applicable X factor | F27: =F23 -> 1 | G27: =G23 -> 1.072936404 | H27: =H23 -> 1.147821288 | I27: =I23 -> 1.227634239

Sheet MAR
A1: Maximum allowable revenue | C1: Values, not time series | F1: 1st Revenue year | G1: 2nd Revenue year | H1: 3rd Revenue year | I1: 4th Revenue year
A2: Calculation of starting prices. | I2: =GPB_name -> First Gas transmission
A3: Inputs
A4: Pricing year ending in calendar year: | F4: 2023 | G4: 2024 | H4: 2025 | I4: 2026
A5: Year in regulatory period | F5: 1 | G5: =F5+1 -> 2 | H5: =G5+1 -> 3 | I5: =H5+1 -> 4
A6: Industry-wide X factor | C6: =Inputs_finmod!B19 -> 0
A7: Alternative X factor | C7: ='GPB data'!B43 -> -0.04856304031
A8: Vanilla WACC (67th percentile) | C8: =WACC -> 0.0614
A9: TFrev | C9: =Timing!C27 -> 1.024456298
A10: Constant price revenue growth in year ending 2022 | C10: ='GPB data'!E61 -> 0
A11: Constant price revenue growth in year ending 2023 | C11: ='GPB data'!F61 -> 0
A12: PV at 30 Sep 2017 of BBAR before tax over the regulatory period | C12: =BBAR!B89 -> 557068.6741
A13: Indexed maximum allowable revenue before tax—industry wide X factor | F13: =Rev!F26 -> 1 | G13: =Rev!G26 -> 1.023244538 | H13: =Rev!H26 -> 1.043963185 | I13: =Rev!I26 -> 1.064842449
A14: Indexed maximum allowable revenue before tax—applicable X factor | F14: =Rev!F27 -> 1 | G14: =Rev!G27 -> 1.072936404 | H14: =Rev!H27 -> 1.147821288 | I14: =Rev!I27 -> 1.227634239
A15: Total revenue cap (TRC) or weighted avg price cap (WAPC) | C15: ='GPB data'!B28 -> TRC_FQ
A16: Calculations
A17: ="CPI minus X revenues with industry-wide X factor of "&TEXT(C6,"#0.0%") -> CPI minus X revenues with industry-wide X factor of 0.0%
A18: Pricing year ending in calendar year: | F18: =F$4 -> 2023 | G18: =G$4 -> 2024 | H18: =H$4 -> 2025 | I18: =I$4 -> 2026
A19: PV at 30 Sep 2022 of BBAR before tax over the regulatory period | C19: =C12 -> 557068.6741
A20: PV at 30 Sep 2022 of maximum allowable revenue before tax | C20: =C19 -> 557068.6741
A21: Indexed maximum allowable revenue before tax | F21: =F13 -> 1 | G21: =G13 -> 1.023244538 | H21: =H13 -> 1.043963185 | I21: =I13 -> 1.064842449
A22: Present value of indexed maximum allowable revenue for each year | F22: =F21/(1+$C$8)^F$5 -> 0.9421518749 | G22: =G21/(1+$C$8)^G$5 -> 0.9082831735 | H22: =H21/(1+$C$8)^H$5 -> 0.8730677252 | I22: =I21/(1+$C$8)^I$5 -> 0.839013642
A23: Present value of indexed revenue | C23: =SUM(F22:I22) -> 3.562516416
A24: Maximum allowable revenue before tax in first year of the regulatory period | C24: =C20/C23 -> 156369.4336
A25: Maximum allowable revenue before tax in year-end terms | F25: =$C24*F21 -> 156369.4336 | G25: =$C24*G21 -> 160004.1689 | H25: =$C24*H21 -> 163243.932 | I25: =$C24*I21 -> 166508.8106
A26: Maximum allowable revenue before tax in revenue-date terms | F26: =F25/$C$9 -> 152636.5097 | G26: =G25/$C$9 -> 156184.4749 | H26: =H25/$C$9 -> 159346.8968 | I26: =I25/$C$9 -> 162533.8348
A27: PV at 30 Sep 2022 of maximum allowable revenue before tax in year-end terms in each year | F27: =F25/(1+$C$8)^F5 -> 147323.755 | G27: =G25/(1+$C$8)^G5 -> 142027.7254 | H27: =H25/(1+$C$8)^H5 -> 136521.1057 | I27: =I25/(1+$C$8)^I5 -> 131196.088
A28: PV at 30 Sep 2022 of maximum allowable revenue before tax | C28: =SUM(F27:I27) -> 557068.6741
A29: Error check for PV equivalence (should = 0) | C29: =C20-C28 -> 0
A30: ΔD | C30: =IF(C15="WAPC",(1+$C$10)*(1+$C$11),#N/A) -> 
A31: ANR (industry-wide X-factor) pricing year ending Sep 2023, GDBs only | C31: =F26/C30 -> 
A33: ="Real MAR increases with industry-wide X factor of "&TEXT($C$6,"#0.0%") -> Real MAR increases with industry-wide X factor of 0.0%
A34: Nominal MAR - SPA | E34: ='GPB data'!B42 -> 131623.3864 | F34: =F26 -> 152636.5097 | G34: =G26 -> 156184.4749 | H34: =H26 -> 159346.8968 | I34: =I26 -> 162533.8348
A35: Nominal MAR increases % | F35: =F34/E34-1 -> 0.1596458188 | G35: =G34/F34-1 -> 0.02324453846 | H35: =H34/G34-1 -> 0.02024799149 | I35: =I34/H34-1 -> 0.02
A36: CPI | F36: ='GPB data'!F21 -> 0.03092122799 | G36: ='GPB data'!G21 -> 0.02324453846 | H36: ='GPB data'!H21 -> 0.02024799149 | I36: ='GPB data'!I21 -> 0.02
A37: CPRG | F37: ='GPB data'!F61 -> 0 | G37: ='GPB data'!G61 -> 0 | H37: ='GPB data'!H61 -> 0 | I37: ='GPB data'!I61 -> 0
A38: Real MAR increases SPA | F38: =F34/E34/(1+F36)/(1+F37)-1 -> 0.1248636533 | G38: =G34/F34/(1+G36)/(1+G37)-1 -> 0 | H38: =H34/G34/(1+H36)/(1+H37)-1 -> 0 | I38: =I34/H34/(1+I36)/(1+I37)-1 -> 0
A39: ="CPI minus X revenues with applicable X factor (" & IF(ISNUMBER(C7),"alternate X factor of " & TEXT(C7,"#0.0%"), "industry-wide X factor of " & TEXT(C6,"#0.0%"))&")" -> CPI minus X revenues with applicable X factor (alternate X factor of -4.9%)
A40: Pricing year ending in calendar year: | F40: =F$4 -> 2023 | G40: =G$4 -> 2024 | H40: =H$4 -> 2025 | I40: =I$4 -> 2026
A41: Present value of BBAR as at the start of the regulatory period | C41: =C12 -> 557068.6741
A42: PV at 30-Sep-22 of Maximum Allowable Revenue before tax | C42: =C41 -> 557068.6741
A43: Indexed maximum allowable revenue before tax | F43: =F14 -> 1 | G43: =G14 -> 1.072936404 | H43: =H14 -> 1.147821288 | I43: =I14 -> 1.227634239
A44: Present value of indexed maximum allowable revenue for each year | F44: =F43/(1+$C$8)^F$5 -> 0.9421518749 | G44: =G43/(1+$C$8)^G$5 -> 0.9523921659 | H44: =H43/(1+$C$8)^H$5 -> 0.9599243872 | I44: =I43/(1+$C$8)^I$5 -> 0.9672810049
A45: Present value of indexed revenue | C45: =SUM(F44:I44) -> 3.821749433
A46: Maximum allowable revenue before tax in first year of the regulatory period | C46: =C42/C45 -> 145762.7414
A47: Maximum allowable revenue before tax in year-end terms | F47: =$C46*F43 -> 145762.7414 | G47: =$C46*G43 -> 156394.1516 | H47: =$C46*H43 -> 167309.5775 | I47: =$C46*I43 -> 178943.3321
A48: Maximum allowable revenue before tax in revenue-date terms | F48: =F47/$C$9 -> 142283.0253 | G48: =G47/$C$9 -> 152660.6376 | H48: =H47/$C$9 -> 163315.4854 | I48: =I47/$C$9 -> 174671.5135
A49: PV at 30-Sep-22 of maximum allowable revenue before tax in year-end terms in each year | F49: =F47/(1+$C$8)^F$5 -> 137330.6401 | G49: =G47/(1+$C$8)^G$5 -> 138823.2929 | H49: =H47/(1+$C$8)^H$5 -> 139921.2102 | I49: =I47/(1+$C$8)^I$5 -> 140993.5309
A50: PV at 30-Sep-22 of maximum allowable revenue before tax | C50: =SUM(F49:I49) -> 557068.6741
A51: Error check for PV equivalence (should = 0) | C51: =C42-C50 -> 0
A52: ΔD | C52: =IF(C15="WAPC",(1+$C$10)*(1+$C$11),#N/A) -> 
A53: ANR (industry-wide X-factor) pricing year ending Sep 2023, GDBs only | C53: =F48/C52 -> 
A54: This data block uses the applicable 2014/15 X factor to calculate the maximum allowable revenues for the regulatory period. These allowed
A55: revenues are PV-equivalent to the corresponding revenues calculated with the industry-wide X factor in the previous data block.
A57: ="Real MAR increases with applicable X factor (" & IF(ISNUMBER(C7),"alternate X factor of " & TEXT(C7,"#0.0%"), "industry-wide X factor of " & TEXT(C6,"#0.0%"))&")" -> Real MAR increases with applicable X factor (alternate X factor of -4.9%)
A58: Nominal MAR - SPA | E58: ='GPB data'!B42 -> 131623.3864 | F58: =F48 -> 142283.0253 | G58: =G48 -> 152660.6376 | H58: =H48 -> 163315.4854 | I58: =I48 -> 174671.5135
A59: Nominal MAR increases % | F59: =F58/E58-1 -> 0.08098590402 | G59: =G58/F58-1 -> 0.07293640424 | H59: =H58/G58-1 -> 0.06979433583 | I59: =I58/H58-1 -> 0.06953430112
A60: CPI | F60: ='GPB data'!F21 -> 0.03092122799 | G60: ='GPB data'!G21 -> 0.02324453846 | H60: ='GPB data'!H21 -> 0.02024799149 | I60: ='GPB data'!I21 -> 0.02
A61: CPRG | F61: ='GPB data'!F61 -> 0 | G61: ='GPB data'!G61 -> 0 | H61: ='GPB data'!H61 -> 0 | I61: ='GPB data'!I61 -> 0
A62: Real MAR increases SPA | F62: =F58/E58/(1+F60)/(1+F61)-1 -> 0.04856304698 | G62: =G58/F58/(1+G60)/(1+G61)-1 -> 0.04856304031 | H62: =H58/G58/(1+H60)/(1+H61)-1 -> 0.04856304031 | I62: =I58/H58/(1+I60)/(1+I61)-1 -> 0.04856304031
A64: Outputs
A65: Pricing year ending in calendar year: | F65: =F$4 -> 2023 | G65: =G$4 -> 2024 | H65: =H$4 -> 2025 | I65: =I$4 -> 2026
A66: Maximum allowable revenue before tax in revenue-date terms for industry wide X factor | F66: =F26 -> 152636.5097 | G66: =G26 -> 156184.4749 | H66: =H26 -> 159346.8968 | I66: =I26 -> 162533.8348
A67: Maximum allowable revenue before tax in revenue-date terms for applicable X factor | F67: =F48 -> 142283.0253 | G67: =G48 -> 152660.6376 | H67: =H48 -> 163315.4854 | I67: =I48 -> 174671.5135
A68: Starting price for industry-wide X factor | F68: =F26 -> 152636.5097
A69: Starting price for applicable X factor | F69: =F48 -> 142283.0253
A70: PV at 30-Sep-22 of MAR before tax over the regulatory period (applicable X ) | F70: =C42 -> 557068.6741
A71: ΔD | F71: =C52 -> 
A72: ANR (industry-wide X-factor) pricing year ending Sep 2023, GDBs only | F72: =C53 -> 

Sheet Reporting
A1: Reporting
B3: Update Summary Table results for all GPBs
B4: Final Decision blending
B5: Deferred Mitigation results
B6: Calculate unrecovered RAB for unmitigated stranding risk
B7: Residual Value
A9: Summary Table
B10: The table below is updated by CalcMainTables Macro, factoring in paramaters selected on tab Dashboard. Button for refresh can be found just above and also in the tab Dashboard.
B11: GPB | C11: Stranding year | D11: Adjustment Factor | E11: X factor | F11: Real one-off SPA % increase to 2023 | G11: Real % increase to 2024 | H11: Real % increase to 2025 | I11: Real % increase to 2026 | J11: Equivalent real SPA % increase to 2023 | K11: Equivalent real SPA % increase to 2024 | L11: Equivalent real SPA % increase to 2025 | M11: Equivalent real SPA % increase to 2026 | N11: Nominal MAR (X_factor=0) $, 2023 | O11: Nominal MAR (X_factor=0) $, 2024 | P11: Nominal MAR (X_factor=0) $, 2025 | Q11: Nominal MAR (X_factor=0) $, 2026 | R11: Nominal MAR (X_factor<>0) $, 2023 | S11: Nominal MAR (X_factor<>0) $, 2024 | T11: Nominal MAR (X_factor<>0) $, 2025 | U11: Nominal MAR (X_factor<>0) $, 2026 | V11: Difference in (∑ depreciation less ∑ revaluations) | W11: DiffTotalAssetsAndTotalDMR
B12: =GPB_name -> First Gas transmission | C12: =StrandingYear -> 2060 | D12: =AdjFactor -> 0.908944059 | E12: =X_factor -> -0.04856304031 | F12: =MAR!F38 -> 0.1248636533 | G12: =MAR!G38 -> 0 | H12: =MAR!H38 -> 0 | I12: =MAR!I38 -> 0 | J12: =MAR!F62 -> 0.04856304698 | K12: =MAR!G62 -> 0.04856304031 | L12: =MAR!H62 -> 0.04856304031 | M12: =MAR!I62 -> 0.04856304031 | N12: =MAR!F34 -> 152636.5097 | O12: =MAR!G34 -> 156184.4749 | P12: =MAR!H34 -> 159346.8968 | Q12: =MAR!I34 -> 162533.8348 | R12: =MAR!F58 -> 142283.0253 | S12: =MAR!G58 -> 152660.6376 | T12: =MAR!H58 -> 163315.4854 | U12: =MAR!I58 -> 174671.5135 | V12: =DiffInDepn -> 153814.3227 | W12: =DiffTotalAssetsAndTotalDMR -> -4631684.445
B13: GasNet | C13: 2040 | D13: 0.6361574512 | E13: -0.08808508352 | F13: 0.2361241059 | G13: 0 | H13: 0 | I13: 0 | J13: 0.0880854832 | K13: 0.08808508352 | L13: 0.08808508352 | M13: 0.08808508352 | N13: 5685.074512 | O13: 5929.137605 | P13: 6054.799137 | Q13: 6162.027562 | R13: 5004.22815 | S13: 5678.783695 | T13: 6309.956917 | U13: 6987.360441 | V13: 4.737657946e-07 | W13: 1.36977178e-07
B14: GasNet | C14: 2050 | D14: 0.7663911746 | E14: -0.0624665173 | F14: 0.1632924276 | G14: 0 | H14: 0 | I14: 0 | J14: 0.06246656132 | K14: 0.0624665173 | L14: 0.0624665173 | M14: 0.0624665173 | N14: 5350.11339 | O14: 5579.796434 | P14: 5698.054065 | Q14: 5798.964657 | R14: 4886.403832 | S14: 5414.520184 | T14: 5874.669517 | U14: 6352.176969 | V14: -9.543952274e-06 | W14: 1.354928827e-07
B15: GasNet | C15: 2060 | D15: 0.8590692956 | E15: -0.04891952584 | F15: 0.1261900318 | G15: 0 | H15: 0 | I15: 0 | J15: 0.04891953322 | K15: 0.04891952584 | L15: 0.04891952584 | M15: 0.04891952584 | N15: 5179.475277 | O15: 5401.832742 | P15: 5516.318628 | Q15: 5614.010748 | R15: 4824.099518 | S15: 5277.324468 | T15: 5652.807255 | U15: 6034.346491 | V15: -4.082658052e-07 | W15: 2.12865416e-07
B16: GasNet | C16: 2070 | D16: 0.9369433089 | E16: -0.03958205553 | F16: 0.1011785174 | G16: 0 | H16: 0 | I16: 0 | J16: 0.03958840829 | K16: 0.03958205553 | L16: 0.03958205553 | M16: 0.03958205553 | N16: 5064.444495 | O16: 5281.86363 | P16: 5393.806904 | Q16: 5489.329383 | R16: 4781.18462 | S16: 5183.816942 | T16: 5503.217048 | U16: 5822.363456 | V16: -4.354455996e-07 | W16: 2.268789103e-07
B17: GasNet | C17: 2055 | D17: 0.816446771 | E17: -0.05477251051 | F17: 0.1421022946 | G17: 0 | H17: 0 | I17: 0 | J17: 0.05477252793 | K17: 0.05477251051 | L17: 0.05477251051 | M17: 0.05477251051 | N17: 5252.657573 | O17: 5478.15679 | P17: 5594.26028 | Q17: 5693.33272 | R17: 4851.018103 | S17: 5336.383915 | T17: 5747.964534 | U17: 6170.165011 | V17: 6.223272067e-07 | W17: 1.900407369e-07
B18: Powerco | C18: 2040 | D18: 0.6643166516 | E18: -0.09534671067 | F18: 0.2597137652 | G18: 0 | H18: 0 | I18: 0 | J18: 0.09534742366 | K18: 0.09534671067 | L18: 0.09534671067 | M18: 0.09534671067 | N18: 69143.77954 | O18: 73318.94459 | P18: 76090.01251 | Q18: 78659.8508 | R18: 60121.96014 | S18: 69830.93053 | T18: 79379.96231 | U18: 89885.1525 | V18: -3.264576662e-07 | W18: 1.692678779e-07
B19: Powerco | C19: 2050 | D19: 0.7823652735 | E19: -0.06260049874 | F19: 0.1650818231 | G19: 0 | H19: 0 | I19: 0 | J19: 0.06260054819 | K19: 0.06260049874 | L19: 0.06260049874 | M19: 0.06260049874 | N19: 63949.57565 | O19: 67811.09486 | P19: 70373.99523 | Q19: 72750.78268 | R19: 58324.53377 | S19: 65718.00646 | T19: 72471.26581 | U19: 79608.84539 | V19: 5.983893061e-07 | W19: 1.592561603e-07
B20: Powerco | C20: 2060 | D20: 0.8633686554 | E20: -0.04504805186 | F20: 0.1167489794 | G20: 0 | H20: 0 | I20: 0 | J20: 0.04504805602 | K20: 0.04504805186 | L20: 0.04504805186 | M20: 0.04504805186 | N20: 61296.6591 | O20: 64997.9851 | P20: 67454.56481 | Q20: 69732.75241 | R20: 57361.10408 | S20: 63564.82438 | T20: 68938.93377 | U20: 74477.7049 | V20: -5.090405466e-07 | W20: 2.012820914e-07
B21: Powerco | C21: 2070 | D21: 0.9322308662 | E21: -0.03239972935 | F21: 0.08292555219 | G21: 0 | H21: 0 | I21: 0 | J21: 0.03240111376 | K21: 0.03239972935 | L21: 0.03239972935 | M21: 0.03239972935 | N21: 59440.14244 | O21: 63029.36488 | P21: 65411.54117 | Q21: 67620.72839 | R21: 56666.93258 | S21: 62035.55559 | T21: 66466.07127 | U21: 70937.08755 | V21: 2.967542969e-06 | W21: 1.890584826e-07
B22: Powerco | C22: 2055 | D22: 0.8256890936 | E22: -0.05280861726 | F22: 0.1379169959 | G22: 0 | H22: 0 | I22: 0 | J22: 0.05280863198 | K22: 0.05280861726 | L22: 0.05280861726 | M22: 0.05280861726 | N22: 62458.53945 | O22: 66230.02421 | P22: 68733.16847 | Q22: 71054.53921 | R22: 57787.07033 | S22: 64512.39984 | T22: 70486.19703 | U22: 76714.76753 | V22: 7.320704754e-07 | W22: 2.013985068e-07
B23: Vector | C23: 2040 | D23: 0.5214666227 | E23: -0.07583710682 | F23: 0.2023510549 | G23: 0 | H23: 0 | I23: 0 | J23: 0.07583727815 | K23: 0.07583710682 | L23: 0.07583710682 | M23: 0.07583710682 | N23: 65134.40563 | O23: 68852.64351 | P23: 71276.82875 | Q23: 73544.16241 | R23: 58280.83353 | S23: 66279.99066 | T23: 73817.05384 | U23: 81941.34053 | V23: -7.540802471e-08 | W23: 1.34925358e-07
B24: Vector | C24: 2050 | D24: 0.618700626 | E24: -0.04153872722 | F24: 0.1071500184 | G24: 0 | H24: 0 | I24: 0 | J24: 0.04154770156 | K24: 0.04153872722 | L24: 0.04153872722 | M24: 0.04153872722 | N24: 59977.12407 | O24: 63400.95534 | P24: 65633.19585 | Q24: 67721.00413 | R24: 56423.28021 | S24: 62121.78383 | T24: 66980.30034 | U24: 71981.74169 | V24: 6.318150554e-07 | W24: 1.789303496e-07
B25: Vector | C25: 2060 | D25: 0.6953448225 | E25: -0.02082845698 | F25: 0.05263371107 | G25: 0 | H25: 0 | I25: 0 | J25: 0.02082847667 | K25: 0.02082845698 | L25: 0.02082845698 | M25: 0.02082845698 | N25: 57023.83746 | O25: 60279.07853 | P25: 62401.40303 | Q25: 64386.40718 | R25: 55300.86726 | S25: 59675.33627 | T25: 63063.1112 | U25: 66424.45475 | V25: -4.551795428e-06 | W25: -0.01690649474
B26: Vector | C26: 2070 | D26: 0.7671062276 | E26: -0.004939379027 | F26: 0.01229612427 | G26: 0 | H26: 0 | I26: 0 | J26: 0.004948178613 | K26: 0.004939379027 | L26: 0.004939379027 | M26: 0.004939379027 | N26: 54838.64809 | O26: 57969.14627 | P26: 60010.14197 | Q26: 61919.07951 | R26: 54440.59124 | S26: 57832.61929 | T26: 60164.52284 | U26: 62384.99988 | V26: 2.102271537e-06 | W26: 7.648486644e-08
B27: Vector | C27: 2055 | D27: 0.657863649 | E27: -0.03039860216 | F27: 0.07754863355 | G27: 0 | H27: 0 | I27: 0 | J27: 0.03039926244 | K27: 0.03039860216 | L27: 0.03039860216 | M27: 0.03039860216 | N27: 58373.54199 | O27: 61705.83178 | P27: 63878.38986 | Q27: 65910.37732 | R27: 55819.34099 | S27: 60799.51716 | T27: 64853.45848 | U27: 68950.63007 | V27: -5.221372703e-07 | W27: 1.704320312e-07
B28: First Gas distribution | C28: 2040 | D28: 0.5507884358 | E28: -0.1432565662 | F28: 0.4064283212 | G28: 0 | H28: 0 | I28: 0 | J28: 0.1432566976 | K28: 0.1432565662 | L28: 0.1432565662 | M28: 0.1432565662 | N28: 36523.47579 | O28: 38263.02644 | P28: 39253.83161 | Q28: 40136.20041 | R28: 29689.18336 | S28: 35558.97005 | T28: 41705.71921 | U28: 48752.12169 | V28: -2.469896572e-07 | W28: 2.175220288e-07
B29: First Gas distribution | C29: 2050 | D29: 0.6442422115 | E29: -0.1128624448 | F29: 0.3107866462 | G29: 0 | H29: 0 | I29: 0 | J29: 0.1128655662 | K29: 0.1128624448 | L29: 0.1128624448 | M29: 0.1128624448 | N29: 34039.7613 | O29: 35661.01687 | P29: 36584.44409 | Q29: 37406.80896 | R29: 28899.9574 | S29: 33693.48289 | T29: 38467.16056 | U29: 43770.93446 | V29: 6.100162864e-07 | W29: 3.233435564e-07
B30: First Gas distribution | C30: 2060 | D30: 0.7060511542 | E30: -0.09699373709 | F30: 0.2629539878 | G30: 0 | H30: 0 | I30: 0 | J30: 0.09699447326 | K30: 0.09699373709 | L30: 0.09699373709 | M30: 0.09699373709 | N30: 32797.59708 | O30: 34359.6905 | P30: 35249.4204 | Q30: 36041.77589 | R30: 28487.80167 | S30: 32739.36881 | T30: 36844.8835 | U30: 41327.15769 | V30: 2.240351023e-06 | W30: 2.799206413e-07
B31: First Gas distribution | C31: 2070 | D31: 0.7679484484 | E31: -0.08354943567 | F31: 0.2235310802 | G31: 0 | H31: 0 | I31: 0 | J31: 0.0835497328 | K31: 0.08354943567 | L31: 0.08354943567 | M31: 0.08354943567 | N31: 31773.82531 | O31: 33287.15823 | P31: 34149.11536 | Q31: 34916.7376 | R31: 28138.6558 | S31: 31941.79325 | T31: 35506.73688 | U31: 39338.12841 | V31: 2.266453521e-06 | W31: 3.294553608e-07
B32: First Gas distribution | C32: 2055 | D32: 0.6765000862 | E32: -0.104236379 | F32: 0.284608421 | G32: 0 | H32: 0 | I32: 0 | J32: 0.104237509 | K32: 0.104236379 | L32: 0.104236379 | M32: 0.104236379 | N32: 33359.94011 | O32: 34948.81697 | P32: 35853.80206 | Q32: 36659.74316 | R32: 28675.89575 | S32: 33173.11549 | T32: 37579.50445 | U32: 42429.44013 | V32: -3.280983947e-07 | W32: 3.649620339e-07
B33: First Gas transmission | C33: 2040 | D33: 0.590303887 | E33: -0.1400605402 | F33: 0.3938733636 | G33: 0 | H33: 0 | I33: 0 | J33: 0.1400606292 | K33: 0.1400605402 | L33: 0.1400605402 | M33: 0.1400605402 | N33: 189139.3366 | O33: 193535.7932 | P33: 197454.5043 | Q33: 201403.5944 | R33: 154698.6382 | S33: 180465.3549 | T33: 209907.2808 | U33: 244093.1481 | V33: -2.004089765e-07 | W33: 1.501757652e-07
B34: First Gas transmission | C34: 2050 | D34: 0.7002086543 | E34: -0.09981725108 | F34: 0.2698646203 | G34: 0 | H34: 0 | I34: 0 | J34: 0.09981806677 | K34: 0.09981725108 | L34: 0.09981725108 | M34: 0.09981725108 | N34: 172312.1757 | O34: 176317.4927 | P34: 179887.5678 | Q34: 183485.3191 | R34: 149237.9903 | S34: 167949.7474 | T34: 188454.1176 | U34: 211410.3913 | V34: 0 | W34: 2.397222265
B35: First Gas transmission | C35: 2060 | D35: 0.7778736095 | E35: -0.07777661751 | F35: 0.2057845727 | G35: 0 | H35: 0 | I35: 0 | J35: 0.07777679462 | K35: 0.07777661751 | L35: 0.07777661751 | M35: 0.07777661751 | N35: 163616.9398 | O35: 167420.14 | P35: 170810.0616 | Q35: 174226.2628 | R35: 146247.1364 | S35: 161285.5887 | T35: 177349.5413 | U35: 194966.0525 | V35: 8.558854461e-07 | W35: 2.69850716e-07
B36: First Gas transmission | C36: 2070 | D36: 0.8439214307 | E36: -0.06200462888 | F36: 0.1615384058 | G36: 0 | H36: 0 | I36: 0 | J36: 0.06200466898 | K36: 0.06200462888 | L36: 0.06200462888 | M36: 0.06200462888 | N36: 157613.0295 | O36: 161276.6716 | P36: 164542.2003 | Q36: 167833.0443 | R36: 144106.964 | S36: 156599.6596 | T36: 169676.998 | U36: 183801.7124 | V36: 2.823129762e-06 | W36: 1.962762326e-07
B37: First Gas transmission | C37: 2055 | D37: 0.7423035718 | E37: -0.08734170013 | F37: 0.2332679734 | G37: 0 | H37: 0 | I37: 0 | J37: 0.08734206424 | K37: 0.08734170013 | L37: 0.08734170013 | M37: 0.08734170013 | N37: 167346.2543 | O37: 171236.1408 | P37: 174703.3287 | Q37: 178197.3952 | R37: 147545.0798 | S37: 164161.0839 | T37: 182113.4421 | U37: 201979.9306 | V37: -4.996545613e-07 | W37: 2.379529178e-07
A39: Blending
B40: Parameters for 2050 Mitigation
B41: Stranding Year | C41: MAR ramp-up years | D41: MAR ramp-down start | E41: Stranding MAR ÷ 2023 MAR | F41: Curve on MAR ramp-down
B42: 2050 | C42: 6 | D42: 2029 | E42: 0.2 | F42: 0
C44: Adjustment Factor | D44: X factor
B45: GasNet | C45: 0.7345958133 | D45: -0.06789152874
B46: Powerco | C46: 0.7590175616 | D46: -0.06831357539
B47: Vector | C47: 0.6012629861 | D47: -0.04693533377
B48: First Gas distribution | C48: 0.6229175235 | D48: -0.1190328034
B49: First Gas transmission | C49: 0.6795096265 | D49: -0.1064740715
B51: Parameters for 2060 Mitigation
B52: Stranding Year | C52: MAR ramp-up years | D52: MAR ramp-down start | E52: Stranding MAR ÷ 2023 MAR | F52: Curve on MAR ramp-down
B53: 2060 | C53: 6 | D53: 2029 | E53: 0.2 | F53: 0.02
C55: Adjustment Factor | D55: X factor
B56: GasNet | C56: 0.8590692929 | D56: -0.04891952619
B57: Powerco | C57: 0.8633686554 | D57: -0.04504805186
B58: Vector | C58: 0.6953448065 | D58: -0.02082846088
B59: First Gas distribution | C59: 0.706051154 | D59: -0.09699373713
B60: First Gas transmission | C60: 0.7778736095 | D60: -0.0777766175
A64: Deferred Mitigation until DPP4
B65: Tables below are updated by DeferredMitigation Macro, factoring in paramaters selected on tab Deferred Action. Button for refresh can be found just above and also in the tab Deferred Action.
B66: Parameters for DPP4 Mitigation
B67: Stranding Year | C67: MAR ramp-up years | D67: MAR ramp-down start | E67: Stranding MAR ÷ 2023 MAR | F67: Curve on MAR ramp-down
B68: 2060 | C68: 6 | D68: 2029 | E68: 0.2 | F68: 0.02
B69: MAR profile
B70: GPB | C70: Scenario | D70: 2022 | E70: 2023 | F70: 2024 | G70: 2025 | H70: 2026 | I70: 2027 | J70: 2028 | K70: 2029 | L70: 2030 | M70: 2031 | N70: 2032 | O70: 2033 | P70: 2034 | Q70: 2035 | R70: 2036 | S70: 2037 | T70: 2038 | U70: 2039 | V70: 2040 | W70: 2041 | X70: 2042 | Y70: 2043 | Z70: 2044 | AA70: 2045 | AB70: 2046 | AC70: 2047 | AD70: 2048 | AE70: 2049 | AF70: 2050 | AG70: 2051 | AH70: 2052 | AI70: 2053 | AJ70: 2054 | AK70: 2055 | AL70: 2056 | AM70: 2057 | AN70: 2058 | AO70: 2059 | AP70: 2060 | AQ70: 2061 | AR70: 2062 | AS70: 2063 | AT70: 2064 | AU70: 2065 | AV70: 2066 | AW70: 2067 | AX70: 2068 | AY70: 2069 | AZ70: 2070 | BA70: 2071
B71: GasNet | C71: Mitigation DPP4 | D71: 4383.998268 | E71: 4751.242611 | F71: 5119.124565 | G71: 5400.538046 | H71: 5677.982478 | I71: 6512.418779 | J71: 7469.483838 | K71: 7618.873514 | L71: 7461.518324 | M71: 7301.016029 | N71: 7137.303688 | O71: 6970.317101 | P71: 6799.990782 | Q71: 6626.257937 | R71: 6449.050434 | S71: 6268.298782 | T71: 6083.932096 | U71: 5895.878077 | V71: 5704.062978 | W71: 5508.411576 | X71: 5308.847146 | Y71: 5105.291428 | Z71: 4897.664596 | AA71: 4685.885226 | AB71: 4469.87027 | AC71: 4249.535014 | AD71: 4024.793053 | AE71: 3795.556253 | AF71: 3561.734717 | AG71: 3323.236751 | AH71: 3079.968824 | AI71: 2831.83554 | AJ71: 2578.739589 | AK71: 2320.58172 | AL71: 2057.260693 | AM71: 1788.673246 | AN71: 1514.71405 | AO71: 1235.27567 | AP71: 950.2485222 | AQ71: 950.2485222 | AR71: 950.2485222 | AS71: 950.2485222 | AT71: 950.2485222 | AU71: 950.2485222 | AV71: 950.2485222 | AW71: 950.2485222 | AX71: 950.2485222 | AY71: 950.2485222 | AZ71: 950.2485222 | BA71: 950.2485222
B72: Powerco | C72: Mitigation DPP4 | D72: 51435.56862 | E72: 56072.20338 | F72: 60740.31947 | G72: 64395.40554 | H72: 68005.91769 | I72: 81036.24635 | J72: 96563.26165 | K72: 98494.52688 | L72: 96435.03566 | M72: 94334.35462 | N72: 92191.65995 | O72: 90006.1114 | P72: 87776.85187 | Q72: 85503.00715 | R72: 83183.68553 | S72: 80817.97748 | T72: 78404.95528 | U72: 75943.67263 | V72: 73433.16432 | W72: 70872.44585 | X72: 68260.51301 | Y72: 65596.34151 | Z72: 62878.88658 | AA72: 60107.08256 | AB72: 57279.84245 | AC72: 54396.05754 | AD72: 51454.59694 | AE72: 48454.30712 | AF72: 45394.0115 | AG72: 42272.50998 | AH72: 39088.57842 | AI72: 35840.96823 | AJ72: 32528.40584 | AK72: 29149.59219 | AL72: 25703.20228 | AM72: 22187.88457 | AN72: 18602.2605 | AO72: 14944.92396 | AP72: 11214.44068 | AQ72: 11214.44068 | AR72: 11214.44068 | AS72: 11214.44068 | AT72: 11214.44068 | AU72: 11214.44068 | AV72: 11214.44068 | AW72: 11214.44068 | AX72: 11214.44068 | AY72: 11214.44068 | AZ72: 11214.44068 | BA72: 11214.44068
B73: Vector | C73: Mitigation DPP4 | D73: 50702.2772 | E73: 52451.50801 | F73: 53684.25766 | G73: 53808.82522 | H73: 53756.64501 | I73: 71542.66916 | J73: 95213.41055 | K73: 97117.67876 | L73: 95073.58909 | M73: 92988.61762 | N73: 90861.94673 | O73: 88692.74242 | P73: 86480.15402 | Q73: 84223.31386 | R73: 81921.33689 | S73: 79573.32038 | T73: 77178.34354 | U73: 74735.46717 | V73: 72243.73327 | W73: 69702.16469 | X73: 67109.76473 | Y73: 64465.51678 | Z73: 61768.38387 | AA73: 59017.3083 | AB73: 56211.21123 | AC73: 53348.9922 | AD73: 50429.5288 | AE73: 47451.67613 | AF73: 44414.26641 | AG73: 41316.10849 | AH73: 38155.98742 | AI73: 34932.66392 | AJ73: 31644.87395 | AK73: 28291.32819 | AL73: 24870.7115 | AM73: 21381.68249 | AN73: 17822.87289 | AO73: 14192.88711 | AP73: 10490.3016 | AQ73: 10490.3016 | AR73: 10490.3016 | AS73: 10490.3016 | AT73: 10490.3016 | AU73: 10490.3016 | AV73: 10490.3016 | AW73: 10490.3016 | AX73: 10490.3016 | AY73: 10490.3016 | AZ73: 10490.3016 | BA73: 10490.3016
